Workbook

Sheet Instructivo
B2: Tablero de control de vacunas del Programa Ampliado de Inmunizaciones -PAI- Período 2020
B4: Acerca de la versión
B5: 1. CELDAS BLOQUEADAS: Todas las celdas están bloqueadas con excepción de las celdas donde se digitan las dosis aplicadas de cada mes, es decir, las columnas de la F a la Q. Es responsabilidad de la Coordinadora o Coordinador PAI de cada localidad la calidad y seguridad de la información allí registrada. Los datos de las dosis mensuales deben ser auditables y confiables.
B6: 2. PARA AGREGAR O RETITAR IPS: Debe reportar los datos por medio de correo electrónico a la SDS (sdspai@saludcapital.gov.co)
B7: 3. MEJORAS O MODIFICACIONES: Esta versión del tablero de control está totalmente estandarizada, por lo tanto no está autorizado a personalizar, adaptar, o modificar el Tablero de Control, en ningún aspecto, fórmulas, escenario, columnas, títulos, distribución, etc. Si requiere alguna adaptación o mejora para el tablero de control, escriba su sugerencia a la SDS (sdspai@saludcapital.gov.co)
B8: 4. VERSIÓN DE OFFICE: Este tablero fue creado con la versión Microsoft Office 2007.
B9: 5. FILTRO: Para hacer uso eficiente del tablero de control, en el filtro de las columnas: - "Localidad " realice la selección de su predilección. Ejemplo: en la columna "Localidad", en el filtro seleccionó "01-USAQUEN". Resultado: Despliega la información de las IPS públicas y privadas de la localidad de Usaquén. - "EAPB o ESE" realice la selección de su predilección. Ejemplo: en la columna "EAPB o ESE", en el filtro seleccionó "COMPENSAR". Resultado: Despliega la información de las IPS de esta aseguradora
B11: Acerca del diligenciamiento por biológico
B12: 1. BCG: Del informe mensual SIS 151 tome el total de dosis aplicadas por IPS y localidad, regístrelas y súmelas así: POS: BCG en niño o niña recién nacido (de 0 hasta 28 días)
B13: 2. HEPATITIS B: Del informe mensual SIS 151 tome el total de dosis aplicadas por IPS y localidad, regístrelas y súmelas así: POS: HB en niño o niña Recién nacido (hasta las primeras 12 horas) y Recién nacido (Entre 12 horas y 28 dias)
B14: 3. PENTA1: Del informe mensual tome el total de dosis aplicadas y súmelas, así: - POS: PENTAVALENTE (DPT - HB - Hib) - < DE 1 AÑO - primera dosis; DTP - < DE 1 AÑO - primera dosis; DTPa acelular pediatrica - < DE 1 AÑO - primera dosis; TOXOIDE TETANICO-DIFTERICO PEDIATRICO (TD) - < DE 1 AÑO - primera dosis - NO POS: PENTAVALENTE (DPTa -HiB-VPI) - < DE 1 AÑO - primera dosis; HEXAVALENTE (DPTa -HB-HiB-VIP) - < DE 1 AÑO primera dosis - TETRAVALENTE (DPTa - VPI) - < DE 1 AÑO primera dosis; DPTaceluar pediátrica (DPTa) - < DE 1 AÑO primera dosis y TOXOIDE TETÁNICO-DIFTERICO DE NIÑOS (TD) - MENOR DE 1 AÑO - primera dosis
B15: 4. PENTA2: Del informe mensual tome el total de dosis aplicadas y súmelas, así: - POS: PENTAVALENTE (DPT - HB - Hib) - < DE 1 AÑO - segunda dosis; DTP - < DE 1 AÑO - segunda dosis; DTPa acelular pediatrica - < DE 1 AÑO - segunda dosis; TOXOIDE TETANICO-DIFTERICO PEDIATRICO (TD) - < DE 1 AÑO - segunda dosis - NO POS: PENTAVALENTE (DPTa -HiB-VPI) - < DE 1 AÑO - segunda dosis; HEXAVALENTE (DPTa -HB-HiB-VIP) - < DE 1 AÑO segunda dosis - TETRAVALENTE (DPTa - VPI) - < DE 1 AÑO segunda dosis; DPTaceluar pediátrica (DPTa) - < DE 1 AÑO segunda dosis y TOXOIDE TETÁNICO-DIFTERICO DE NIÑOS (TD) - MENOR DE 1 AÑO - segunda dosis
B16: 5. PENTA3: Del informe mensual tome el total de dosis aplicadas y súmelas, así: - POS: PENTAVALENTE (DPT - HB - Hib) - < DE 1 AÑO - tercera dosis; DTP - < DE 1 AÑO - tercera dosis; DTPa acelular pediatrica - < DE 1 AÑO - tercera dosis; TOXOIDE TETANICO-DIFTERICO PEDIATRICO (TD) - < DE 1 AÑO - tercera dosis - NO POS: PENTAVALENTE (DPTa -HiB-VPI) - < DE 1 AÑO - tercera dosis; HEXAVALENTE (DPTa -HB-HiB-VIP) - < DE 1 AÑO tercera dosis - TETRAVALENTE (DPTa - VPI) - < DE 1 AÑO tercera dosis; DPTaceluar pediátrica (DPTa) - < DE 1 AÑO tercera dosis y TOXOIDE TETÁNICO-DIFTERICO DE NIÑOS (TD) - MENOR DE 1 AÑO - tercera dosis
B17: 6. ROTAVIRUS1: Del informe mensual tome el total de dosis aplicadas y súmelas, así: - POS: ROTAVIRUS - DE 2 MESES A 3 MESES y 21 DIAS - Primera dosis - NO POS: ROTAVIRUS - < DE 1 AÑO - Primera dosis
B18: 7. ROTAVIRUS2: Del informe mensual tome el total de dosis aplicadas y súmelas, así: - POS: ROTAVIRUS - DE 4 MESES A 11 MESES y 29 DIAS - Segundas dosis - NO POS: ROTAVIRUS - < DE 1 AÑO - Terceras dosis
B19: 8. NEUMOCOCO1: Del informe mensual tome el total de dosis aplicadas y súmelas, así: - POS: NEUMOCOCO CONJUGADA - DE 2 MESES A 11 MESES 29 DIAS - Primera dosis - NO POS: NEUMOCOCO CONJUGADA-DE 2 MESES A 11 MESES 29 DIAS - Primera dosis
B20: 9. NEUMOCOCO2: Del informe mensual tome el total de dosis aplicadas y súmelas, así: - POS: NEUMOCOCO CONJUGADA - DE 2 MESES A 11 MESES 29 DIAS - Segundas dosis - NO POS: NEUMOCOCO CONJUGADA-DE 2 MESES A 11 MESES 29 DIAS - Segundas dosis
B21: 10. TRIPLE VIRAL: Del informe mensual tome el total de dosis aplicadas y súmelas , así: - POS: SRP (TRIPLE VIRAL) - Primera dosis - De 1 año - NO POS: SRP (TRIPLE VIRAL) - Dosis única - Un año de edad; y TRIPLE VIRAL + VARICELA - Un año - Dosis única
B22: 11. VARICELA: Del informe mensual tome el total de dosis aplicadas y súmelas , así: - POS: VARICELA - DE 1 AÑO - Primera Dosis - NO POS: VARICELA - DE 1 AÑO - Primera Dosis; y TRIPLE VIRAL + VARICELA - Un año - Primera dosis
B23: 12. HEPATITIS A: Del informe mensual tome el total de dosis aplicadas y súmelas , así: - POS: HEPATITIS A - DOSIS ÚNICA - DE 1 AÑO - NO POS: HEPATITIS A - DE 1 AÑO - Primera Dosis
B24: 13. R. NEUMOCOCO CONJUGADA: Del informe mensual tome el total de dosis aplicadas y súmelas , así: - POS: NEUMOCOCO CONJUGADA - DE 12 MESES A 23 MESES - DE 1 AÑO - Refuerzo. - NO POS: NEUMOCOCO CONJUGADA - DE 12 MESES A 23 MESES - Refuerzo
B25: 14. R1 DPT: Del informe mensual tome el total de dosis aplicadas y súmelas , así: - POS: PENTAVALENTE DPT - HB - Hib (CUANDO EL MINISTERIO LA AUTORICE) - 1er REF; DPT - AL AÑO DE LA 3ra DOSIS (De 18 a 23 meses) - 1er REF; DTPa acelular pediátrica - AL AÑO DE LA 3ra DOSIS (De 18 a 23 meses) - 1er REF; TOXOIDE TETANICO-DIFTERICO PEDIATRICO (TD) - AL AÑO DE LA 3ra DOSIS (De 18 a 23 meses) - 1er REF. - NO POS: PENTAVALENTE (DPTa -HiB-VPI) - AL AÑO DE LA 3ra DOSIS (De 18 a 23 meses) - 1er REF; HEXAVALENTE (DPTa -HB-HiB-VIP) - AL AÑO DE LA 3ra DOSIS (De 18 a 23 meses) - 1er REF - TETRAVALENTE (DPTa - VPI) - AL AÑO DE LA 3ra DOSIS (De 18 a 23 meses) - 1er REF; DPTaceluar pediátrica (DPTa) - AL AÑO DE LA 3ra DOSIS (De 18 a 23 meses) - 1er REF.; TOXOIDE TETÁNICO-DIFTERICO DE NIÑOS (TD) - DE 1 A 4 AÑOS - REF. 1;
B26: 15. F.AMARILLA: Del informe mensual tome el total de dosis aplicadas y súmelas , así: - POS: FIEBRE AMARILLA - DE 1 AÑO - NO POS: FIEBRE AMARILLA - DE 1 AÑO
B27: 16. R2. TRIPLE VIRAL: Del informe mensual tome el total de dosis aplicadas y súmelas , así: - POS: SRP (TRIPLE VIRAL) - REFUERZO DE 5 AÑOS - NO POS: SRP (TRIPLE VIRAL) - REFUERZO DE 5 AÑOS; Y TRIPLE VIRAL + VARICELA - REFUERZO DE 5 AÑOS

Sheet METAS 2020
A1: Metas de población PAI por localidad. Año 2020
A2: Localidad | B2: Menor de un año | C2: Un año | D2: Cinco años
A3: 01-USAQUEN | B3: 8,126 | C3: 7,777 | D3: 7,262
A4: 02-CHAPINERO | B4: 6,147 | C4: 5,477 | D4: 4,846
A5: 03-SANTA FE | B5: 881 | C5: 993 | D5: 814
A6: 04-SAN CRISTOBAL | B6: 3,776 | C6: 3,865 | D6: 3,369
A7: 05-USME | B7: 4,928 | C7: 5,014 | D7: 4,698
A8: 06-TUNJUELITO | B8: 2,568 | C8: 2,618 | D8: 2,609
A9: 07-BOSA | B9: 8,949 | C9: 9,693 | D9: 9,047
A10: 08-KENNEDY | B10: 12,334 | C10: 12,690 | D10: 12,781
A11: 09-FONTIBON | B11: 4,076 | C11: 4,267 | D11: 4,026
A12: 10-ENGATIVA | B12: 6,290 | C12: 6,839 | D12: 6,800
A13: 11-SUBA | B13: 10,787 | C13: 10,905 | D13: 10,886
A14: 12-BARRIOS UNIDOS | B14: 3,230 | C14: 2,676 | D14: 2,354
A15: 13-TEUSAQUILLO | B15: 3,285 | C15: 3,025 | D15: 3,442
A16: 14-MARTIRES | B16: 769 | C16: 1,039 | D16: 689
A17: 15-ANTONIO NARIÑO | B17: 3,008 | C17: 3,016 | D17: 4,179
A18: 16-PUENTE ARANDA | B18: 5,153 | C18: 4,531 | D18: 4,718
A19: 17-CANDELARIA | B19: 154 | C19: 130 | D19: 179
A20: 18-RAFAEL URIBE URIBE | B20: 5,460 | C20: 5,653 | D20: 5,967
A21: 19-CIUDAD BOLIVAR | B21: 9,595 | C21: 9,172 | D21: 8,436
A22: 20-SUMAPAZ | B22: 34 | C22: 45 | D22: 37
A23: Bogotá | B23: =SUM(B3:B22) -> 99,552 | C23: =SUM(C3:C22) -> 99,424 | D23: =SUM(D3:D22) -> 97,140
A25: Metas de población PAI por Subred. Año 2020
A26: Localidad | B26: Menor de un año | C26: Un año | D26: Cinco años
A27: 01-USAQUEN | B27: =B3 -> 8,126 | C27: 7,777 | D27: 7,262
A28: 02-CHAPINERO | B28: 6,147 | C28: 5,477 | D28: 4,846
A29: 10-ENGATIVA | B29: =B12 -> 6,290 | C29: 6,839 | D29: 6,800
A30: 11-SUBA | B30: 10,787 | C30: 10,905 | D30: 10,886
A31: 12-BARRIOS UNIDOS | B31: 3,230 | C31: 2,676 | D31: 2,354
A32: 13-TEUSAQUILLO | B32: 3,285 | C32: 3,025 | D32: 3,442
A33: SUBRED NORTE | B33: =SUM(B27:B32) -> 37,866 | C33: =SUM(C27:C32) -> 36,699 | D33: =SUM(D27:D32) -> 35,591
A34: 03-SANTA FE | B34: =B5 -> 881 | C34: 993 | D34: 814
A35: 04-SAN CRISTOBAL | B35: 3,776 | C35: 3,865 | D35: 3,369
A36: 14-MARTIRES | B36: =B16 -> 769 | C36: 1,039 | D36: 689
A37: 15-ANTONIO NARIÑO | B37: 3,008 | C37: 3,016 | D37: 4,179
A38: 17-CANDELARIA | B38: =B19 -> 154 | C38: 130 | D38: 179
A39: 18-RAFAEL URIBE URIBE | B39: 5,460 | C39: 5,653 | D39: 5,967
A40: SUBRED CENTRO ORIENTE | B40: =SUM(B34:B39) -> 14,049 | C40: =SUM(C34:C39) -> 14,696 | D40: =SUM(D34:D39) -> 15,197
A41: 05-USME | B41: =B7 -> 4,928 | C41: 5,014 | D41: 4,698
A42: 06-TUNJUELITO | B42: 2,568 | C42: 2,618 | D42: 2,609
A43: 19-CIUDAD BOLIVAR | B43: =B21 -> 9,595 | C43: 9,172 | D43: 8,436
A44: 20-SUMAPAZ | B44: 34 | C44: 45 | D44: 37
A45: SUBRED SUR | B45: =SUM(B41:B44) -> 17,125 | C45: =SUM(C41:C44) -> 16,849 | D45: =SUM(D41:D44) -> 15,781
A46: 07-BOSA | B46: =B9 -> 8,949 | C46: 9,693 | D46: 9,047
A47: 08-KENNEDY | B47: 12,334 | C47: 12,690 | D47: 12,781
A48: 09-FONTIBON | B48: 4,076 | C48: 4,267 | D48: 4,026
A49: 16-PUENTE ARANDA | B49: =B18 -> 5,153 | C49: =C18 -> 4,531 | D49: =D18 -> 4,718
A50: SUBRED SUR OCCIDENTE | B50: =SUM(B46:B49) -> 30,512 | C50: =SUM(C46:C49) -> 31,181 | D50: =SUM(D46:D49) -> 30,571
A51: Bogotá | B51: =B33+B40+B45+B50 -> 99,552 | C51: =C33+C40+C45+C50 -> 99,424 | D51: =D33+D40+D45+D50 -> 97,140
A54: Metas de población PAI por aseguradora / subred. Año 2020
A55: Aeguradora/ subred | B55: Menor de un año | C55: Un año | D55: Cinco años
A56: Aliansalud | B56: 1,665 | C56: 2,013 | D56: 2,326
A57: Medimás | B57: 1,721 | C57: 1,991 | D57: 2,192
A58: Compensar | B58: 12,896 | C58: 14,515 | D58: 15,820
A59: Coomeva | B59: 814 | C59: 862 | D59: 923
A60: Famisanar | B60: 13,333 | C60: 14,847 | D60: 16,783
A61: Fuerzas Militares | B61: 974 | C61: 1,240 | D61: 1,629
A62: Policía Nacional | B62: 1,156 | C62: 1,037 | D62: 1,106
A63: Nueva EPS | B63: 3,722 | C63: 3,700 | D63: 4,105
A64: Sanitas | B64: 12,048 | C64: 13,636 | D64: 14,738
A65: Salud Total | B65: 8,782 | C65: 9,391 | D65: 10,369
A66: Sura | B66: 3,934 | C66: 4,406 | D66: 4,777
A67: Ecopetrol | B67: 87 | C67: 93 | D67: 180
A68: Magisterio | B68: 270 | C68: 302 | D68: 502
A69: SOS** | B69: 37 | C69: 38 | D69: 53
A70: Unisalud | B70: 16 | C70: 26 | D70: 56
A71: Ferrocarriles Nales | B71: 1 | C71: 5 | D71: 1
A72: Coosalud | B72: 60 | C72: 102 | D72: 135
A73: Unicajas | B73: 1,637 | C73: 1,670 | D73: 1,833
A74: Capital Salud | B74: 11,424 | C74: 12,234 | D74: 11,130
A75: Sub red Centro oriente | B75: 3,880 | C75: 2,544 | D75: 1,344
A76: Sub red Norte | B76: =8412-B72 -> 8,352 | C76: =6388-C72 -> 6,286 | D76: =3154-D72 -> 3,019
A77: Sub red Sur | B77: 5,057 | C77: 2,925 | D77: 1,409
A78: Sub red Sur occidente | B78: 7,686 | C78: 5,561 | D78: 2,710
A79: Bogotá | B79: =SUM(B56:B78) -> 99,552 | C79: =SUM(C56:C78) -> 99,424 | D79: =SUM(D56:D78) -> 97,140

Sheet BCG
A1: EPS O ESE | B1: IPS | C1: Localidad | D1: Meta Anual Menor de 1 Año | E1: Meta Mensual | F1: Enero | G1: Febrero | H1: Marzo | I1: Abril | J1: Mayo | K1: Junio | L1: Julio | M1: Agosto | N1: Septiembre | O1: Octubre | P1: Noviembre | Q1: Diciembre | R1: Total | S1: % Cobertura | T1: Deficit
A2: COMPENSAR | B2: CLINICA LOS COBOS | C2: 01-USAQUEN | D2: 0 | E2: 0 | F2: 87 | G2: 102 | H2: 126 | I2: 118 | J2: 108 | K2: 110 | L2: 121 | M2: 111 | R2: =SUM(F2:Q2) -> 883 | S2: =IF(D2=0,0,+R2/D2) -> 0.0% | T2: =IF(COUNT(F2:Q2)*(D2/12)-R2<0,"",COUNT(F2:Q2)*(D2/12)-R2) -> 
A3: SANITAS | B3: CLINICA REINA SOFIA | C3: 01-USAQUEN | D3: 0 | E3: 0 | F3: 96 | G3: 78 | H3: 86 | I3: 92 | J3: 76 | K3: 66 | L3: 87 | M3: 74 | R3: 655 | S3: 0.0%
A4: PARTICULAR | B4: FUNDACION SANTA FE | C4: 01-USAQUEN | D4: 0 | E4: 0 | F4: 107 | G4: 108 | H4: 113 | I4: 92 | J4: 100 | K4: 101 | L4: 137 | M4: 117 | R4: 875 | S4: 0.0%
A5: 01-USAQUEN | B5: HOSPITAL SIMON BOLIVAR | C5: 01-USAQUEN | D5: 0 | E5: 0 | F5: 136 | G5: 95 | H5: 98 | I5: 51 | J5: 47 | K5: 61 | L5: 42 | M5: 4 | R5: 534 | S5: 0.0%
A6: PARTICULAR | B6: CLINICA DE LA MUJER | C6: 02-CHAPINERO | D6: 0 | E6: 0 | F6: 169 | G6: 151 | H6: 171 | I6: 173 | J6: 173 | K6: 175 | L6: 228 | M6: 207 | R6: 1447 | S6: 0.0%
A7: PARTICULAR | B7: CLINICA DE MARLY S.A | C7: 02-CHAPINERO | D7: 0 | E7: 0 | F7: 55 | G7: 51 | H7: 56 | I7: 60 | J7: 68 | K7: 66 | L7: 63 | M7: 58 | R7: 477 | S7: 0.0%
A8: PARTICULAR | B8: CLINICA DEL COUNTRY | C8: 02-CHAPINERO | D8: 0 | E8: 0 | F8: 218 | G8: 218 | H8: 228 | I8: 182 | J8: 194 | K8: 186 | L8: 221 | M8: 211 | R8: 1658 | S8: 0.0%
A9: MILITAR | B9: HOSPITAL MILITAR CENTRAL | C9: 02-CHAPINERO | D9: 0 | E9: 0 | F9: 50 | G9: 62 | H9: 69 | I9: 45 | J9: 58 | K9: 49 | L9: 61 | M9: 61 | R9: 455 | S9: 0.0%
A10: PARTICULAR | B10: HOSPITAL SAN IGNACIO | C10: 02-CHAPINERO | D10: 0 | E10: 0 | F10: 89 | G10: 88 | H10: 141 | I10: 172 | J10: 173 | K10: 114 | L10: 93 | M10: 84 | R10: 954 | S10: 0.0%
A11: UNICAJAS | B11: EXTRAMURAL SANTA FE | C11: 03-SANTA FE | D11: 0 | E11: 0 | F11: 0 | G11: 0 | H11: 0 | I11: 0 | J11: 0 | K11: 0 | L11: 1 | M11: 0 | R11: =SUM(F11:Q11) -> 1 | S11: =IF(D11=0,0,+R11/D11) -> 0.0% | T11: =IF(COUNT(F11:Q11)*(D11/12)-R11<0,"",COUNT(F11:Q11)*(D11/12)-R11) -> 
A12: 04-SAN CRISTOBAL | B12: CAMI ALTAMIRA | C12: 04-SAN CRISTOBAL | D12: 0 | E12: 0 | F12: 0 | G12: 1 | H12: 0 | I12: 0 | J12: 0 | K12: 0 | L12: 0 | M12: 0 | R12: 1 | S12: 0.0%
A13: PARTICULAR | B13: CLINICA SAN RAFAEL | C13: 04-SAN CRISTOBAL | D13: 1216 | E13: 101 | F13: 449 | G13: 406 | H13: 439 | I13: 411 | J13: 472 | K13: 396 | L13: 382 | M13: 433 | R13: 3388 | S13: 278.6%
A14: 04-SAN CRISTOBAL | B14: HOSPITAL LA VICTORIA | C14: 04-SAN CRISTOBAL | D14: 1216 | E14: 101 | F14: 225 | G14: 161 | H14: 153 | I14: 120 | J14: 115 | K14: 117 | L14: 99 | M14: 117 | R14: 1107 | S14: 91.0%
A15: 04-SAN CRISTOBAL | B15: INSTITUTO MATERNO INFANTIL LA VICTORIA SEDE II | C15: 04-SAN CRISTOBAL | D15: 1216 | E15: 101 | F15: 359 | G15: 408 | H15: 418 | I15: 433 | J15: 517 | K15: 517 | L15: 558 | M15: 557 | R15: 3767 | S15: 309.8%
A16: 07-BOSA | B16: CAMI PABLO VI BOSA | C16: 07-BOSA | D16: 0 | E16: 0 | F16: 0 | G16: 0 | H16: 0 | I16: 0 | J16: 1 | K16: 1 | L16: 0 | M16: 2 | R16: 4 | S16: 0.0%
A17: 07-BOSA | B17: HOSPITAL DE BOSA II NIVEL | C17: 07-BOSA | D17: 0 | E17: 0 | F17: 174 | G17: 154 | H17: 176 | I17: 220 | J17: 207 | K17: 223 | L17: 222 | M17: 195 | R17: 1571 | S17: 0.0%
A18: 08-KENNEDY | B18: CAFAM KENNEDY | C18: 08-KENNEDY | E18: 0 | F18: 0 | G18: 0 | H18: 0 | I18: 0 | J18: 0 | K18: 0 | L18: 1 | M18: 0 | R18: 1 | S18: 0.0%
A19: 08-KENNEDY | B19: CAPS PATIO BONITO | C19: 08-KENNEDY | E19: 0 | F19: 0 | G19: 0 | H19: 0 | I19: 0 | J19: 0 | K19: 0 | L19: 1 | M19: 0 | R19: 1 | S19: 0.0%
A20: 08-KENNEDY | B20: CLINICA COLSUBSIDIO ROMA | C20: 08-KENNEDY | E20: 0 | F20: 0 | G20: 0 | H20: 0 | I20: 0 | J20: 1 | K20: 1 | L20: 0 | M20: 0 | R20: 2 | S20: 0.0%
A21: 08-KENNEDY | B21: CLINICA DEL OCCIDENTE LTDA | C21: 08-KENNEDY | D21: 0 | E21: 0 | F21: 92 | G21: 82 | H21: 76 | I21: 96 | J21: 77 | K21: 56 | L21: 77 | M21: 139 | R21: 695 | S21: 0.0%
A22: 08-KENNEDY | B22: COMPENSAR KENNEDY | C22: 08-KENNEDY | D22: 0 | E22: 0 | F22: 0 | G22: 0 | H22: 0 | I22: 0 | J22: 0 | K22: 1 | L22: 0 | M22: 1 | R22: 2 | S22: 0.0%
A23: 08-KENNEDY | B23: HOSPITAL OCCIDENTE DE KENNEDY | C23: 08-KENNEDY | D23: 0 | E23: 0 | F23: 406 | G23: 349 | H23: 352 | I23: 329 | J23: 315 | K23: 269 | L23: 320 | M23: 338 | R23: 2678 | S23: 0.0%
A24: 08-KENNEDY | B24: USS TINTAL PATIO BONITO | C24: 08-KENNEDY | F24: 0 | G24: 0 | H24: 0 | I24: 0 | J24: 10 | K24: 8 | L24: 2 | M24: 3 | R24: 23 | S24: 0.0%
A25: 09-FONTIBON | B25: CAMI II CENTRO DE ESPECIALISTAS | C25: 09-FONTIBON | D25: 0 | E25: 0 | F25: 86 | G25: 91 | H25: 75 | I25: 48 | J25: 0 | K25: 0 | L25: 0 | M25: 0 | R25: 300 | S25: 0.0%
A26: 09-FONTIBON | B26: CENTRO DIA | C26: 09-FONTIBON | F26: 0 | G26: 0 | H26: 0 | I26: 0 | J26: 17 | K26: 13 | L26: 15 | M26: 15 | R26: 60 | S26: 0.0%
A27: 10-ENGATIVA | B27: HOSPITAL ENGATIVA II SEDE PRINCIPAL CALLE 80 | C27: 10-ENGATIVA | D27: 0 | E27: 0 | F27: 176 | G27: 161 | H27: 156 | I27: 121 | J27: 174 | K27: 148 | L27: 171 | M27: 169 | R27: 1276 | S27: 0.0%
A28: 11-SUBA | B28: CENTRO DE SERVICIOS ESPECIALIZADOS | C28: 11-SUBA | D28: 0 | E28: 0 | F28: 214 | G28: 213 | H28: 193 | I28: 254 | J28: 249 | K28: 206 | L28: 231 | M28: 255 | R28: 1815 | S28: 0.0%
A29: PARTICULAR | B29: CLINICA COLINA | C29: 11-SUBA | D29: 0 | E29: 0 | F29: 65 | G29: 51 | H29: 53 | I29: 415 | J29: 51 | K29: 36 | L29: 67 | M29: 57 | R29: 795 | S29: 0.0%
A30: PARTICULAR | B30: FUNDACION CLINICA CORPAS | C30: 11-SUBA | D30: 0 | E30: 0 | F30: 350 | G30: 390 | H30: 379 | I30: 52 | J30: 369 | K30: 287 | L30: 326 | M30: 384 | R30: 2537 | S30: 0.0%
A31: PARTICULAR | B31: CLINICA COLSUBSIDIO CALLE 94 | C31: 12-BARRIOS UNIDOS | D31: 0 | E31: 0 | F31: 302 | G31: 290 | H31: 343 | I31: 308 | J31: 426 | K31: 368 | L31: 373 | M31: 413 | R31: 2823 | S31: 0.0%
A32: CRUZ BLANCA | B32: HOSPITAL UNIVERSITARIO INFANTIL SAN JOSE | C32: 12-BARRIOS UNIDOS | D32: 0 | E32: 0 | F32: 369 | G32: 348 | H32: 389 | I32: 422 | J32: 477 | K32: 478 | L32: 456 | M32: 405 | R32: 3344 | S32: 0.0%
A33: FAMI- CAFAM | B33: CLINICA CAFAM CALLE 51 | C33: 13-TEUSAQUILLO | D33: 0 | E33: 0 | F33: 472 | G33: 398 | H33: 456 | I33: 423 | J33: 459 | K33: 423 | L33: 438 | M33: 23 | R33: 3092 | S33: 0.0%
A34: PARTICULAR | B34: CLINICA EUSALUD | C34: 13-TEUSAQUILLO | D34: 0 | E34: 0 | F34: 383 | G34: 381 | H34: 103 | I34: 0 | J34: 0 | K34: 26 | L34: 191 | M34: 363 | R34: 1447 | S34: 0.0%
A35: PARTICULAR | B35: CLINICA FEDERMAN | C35: 13-TEUSAQUILLO | D35: 0 | E35: 0 | F35: 0 | G35: 0 | H35: 0 | I35: 0 | J35: 0 | K35: 0 | L35: 0 | M35: 0 | R35: 0 | S35: 0.0% | T35: 0.0
A36: PARTICULAR | B36: CLINICA PALERMO | C36: 13-TEUSAQUILLO | D36: 0 | E36: 0 | F36: 533 | G36: 438 | H36: 435 | I36: 341 | J36: 274 | K36: 299 | L36: 367 | M36: 404 | R36: 3091 | S36: 0.0%
A37: SANITAS | B37: CLINICA UNIVERSITARIA COLOMBIA | C37: 13-TEUSAQUILLO | D37: 0 | E37: 0 | F37: 6 | G37: 16 | H37: 44 | I37: 131 | J37: 200 | K37: 323 | L37: 375 | M37: 323 | R37: 1418 | S37: 0.0%
A38: POLICIA | B38: HOSPITAL CENTRAL DE LA POLICIA | C38: 13-TEUSAQUILLO | D38: 0 | E38: 0 | F38: 86 | G38: 77 | H38: 57 | I38: 71 | J38: 59 | K38: 52 | L38: 49 | M38: 64 | R38: 515 | S38: 0.0%
A39: PARTICULAR | B39: MEDICA MAGDALENA LTDA | C39: 13-TEUSAQUILLO | D39: 0 | E39: 0 | F39: 519 | G39: 520 | H39: 570 | I39: 568 | J39: 613 | K39: 599 | L39: 584 | M39: 592 | R39: 4565 | S39: 0.0%
A40: PARTICULAR | B40: HOSPITAL UNIVERSITARIO MAYOR | C40: 14-LOS MARTIRES | D40: 299 | E40: 25 | F40: 359 | G40: 408 | H40: 418 | I40: 433 | J40: 517 | K40: 517 | L40: 558 | M40: 557 | R40: 3767 | S40: 1259.9%
A41: PARTICULAR | B41: SOCIEDAD DE CIRUGIA HOSPITAL SAN JOSE | C41: 14-LOS MARTIRES | D41: 299 | E41: 25 | F41: 268 | G41: 332 | H41: 374 | I41: 316 | J41: 358 | K41: 325 | L41: 291 | M41: 296 | R41: 2560 | S41: 856.2%
A42: 14-LOS MARTIRES | B42: USS SAMPER MENDOZA | C42: 14-LOS MARTIRES | D42: 0 | E42: 0 | F42: 0 | G42: 0 | H42: 1 | I42: 0 | J42: 0 | K42: 0 | L42: 0 | M42: 0 | R42: 1 | S42: 0.0%
A43: COMPENSAR | B43: USS 1 DE MAYO | C43: 15-ANTONIO NARIÑO | D43: 0 | E43: 0 | F43: 0 | G43: 1 | H43: 0 | I43: 0 | J43: 0 | K43: 0 | L43: 0 | M43: 0 | R43: 1 | S43: 0.0%
A44: FAMI- COLSB | B44: CENTRO MEDICO COLSUBSIDIO QUIROGA | C44: 18-RAFAEL URIBE URIBE | D44: 0 | E44: 0 | F44: 0 | G44: 0 | H44: 1 | I44: 0 | J44: 0 | K44: 1 | L44: 1 | M44: 0 | R44: 3 | S44: 0.0%
A45: PARTICULAR | B45: CENTRO POLICLINICO DEL OLAYA | C45: 18-RAFAEL URIBE URIBE | D45: 5526 | E45: 461 | F45: 365 | G45: 355 | H45: 369 | I45: 321 | J45: 278 | K45: 347 | L45: 367 | M45: 414 | R45: 2816 | S45: 51.0% | T45: 868.0
A46: 19-CIUDAD BOLIVAR | B46: USS MEISSEN | C46: 19-CIUDAD BOLIVAR | D46: 0 | E46: =D46/12 -> 0 | F46: 553 | G46: 461 | H46: 476 | I46: 480 | J46: 498 | K46: 443 | L46: 480 | M46: 448 | R46: 3839 | S46: 0.0%
C57: Localidad | D57: Enero | E57: Febrero | F57: Marzo | G57: Abril | H57: Mayo | I57: Junio | J57: Julio | K57: Agosto | L57: Septiembre | M57: Octubre | N57: Noviembre | O57: Diciembre | P57: Total TC
C58: 01-USAQUEN | D58: =SUMIF($C$2:$C$49,$C58,F$2:F$49) -> 426 | E58: 383 | F58: 423 | G58: 353 | H58: 331 | I58: 338 | J58: 387 | K58: 306 | L58: 0 | M58: 0 | N58: 0 | O58: 0 | P58: =SUM(D58:O58) -> 2,947
C59: 02-CHAPINERO | D59: 581 | E59: 570 | F59: 665 | G59: 632 | H59: 666 | I59: 590 | J59: 666 | K59: 621 | L59: 0 | M59: 0 | N59: 0 | O59: 0 | P59: =SUM(D59:O59) -> 4,991
C60: 10-ENGATIVA | D60: 176 | E60: 161 | F60: 156 | G60: 121 | H60: 174 | I60: 148 | J60: 171 | K60: 169 | L60: 0 | M60: 0 | N60: 0 | O60: 0 | P60: 1,276
C61: 11-SUBA | D61: 629 | E61: 654 | F61: 625 | G61: 721 | H61: 669 | I61: 529 | J61: 624 | K61: 696 | L61: 0 | M61: 0 | N61: 0 | O61: 0 | P61: 5,147
C62: 12-BARRIOS UNIDOS | D62: 671 | E62: 638 | F62: 732 | G62: 730 | H62: 903 | I62: 846 | J62: 829 | K62: 818 | L62: 0 | M62: 0 | N62: 0 | O62: 0 | P62: 6,167
C63: 13-TEUSAQUILLO | D63: 1,999 | E63: 1,830 | F63: 1,665 | G63: 1,534 | H63: 1,605 | I63: 1,722 | J63: 2,004 | K63: 1,769 | L63: 0 | M63: 0 | N63: 0 | O63: 0 | P63: 14,128
C64: TOTAL TC SUBRED NORTE | D64: =SUM(D58:D63) -> 4,482 | E64: =SUM(E58:E63) -> 4,236 | F64: 4,266 | G64: 4,091 | H64: 4,348 | I64: 4,173 | J64: 4,681 | K64: 4,379 | L64: 0 | M64: 0 | N64: 0 | O64: 0 | P64: 34,656
C65: TOTAL INFORME SIS 151 SUBRED NORTE
C66: DIFERENCIA | D66: =+D64-D65 -> 4,482 | E66: =+E64-E65 -> 4,236 | F66: 4,266 | G66: 4,091 | H66: 4,348 | I66: 4,173 | J66: 4,681 | K66: 4,379 | L66: 0 | M66: 0 | N66: 0 | O66: 0 | P66: 34,656
C69: Localidad | D69: Enero | E69: Febrero | F69: Marzo | G69: Abril | H69: Mayo | I69: Junio | J69: Julio | K69: Agosto | L69: Septiembre | M69: Octubre | N69: Noviembre | O69: Diciembre | P69: Total TC
C70: 07-BOSA | D70: =SUMIF($C$2:$DC$49,$C70,F$2:F$49) -> 174 | E70: 154 | F70: 176 | G70: 220 | H70: 208 | I70: 224 | J70: 222 | K70: 197 | L70: 0 | M70: 0 | N70: 0 | O70: 0 | P70: 1,575
C71: 08-KENNEDY | D71: 498 | E71: 431 | F71: 428 | G71: 425 | H71: 403 | I71: 335 | J71: 401 | K71: 481 | L71: 0 | M71: 0 | N71: 0 | O71: 0 | P71: 3,402
C72: 09-FONTIBON | D72: 86 | E72: 91 | F72: 75 | G72: 48 | H72: 17 | I72: 13 | J72: 15 | K72: 15 | L72: 0 | M72: 0 | N72: 0 | O72: 0 | P72: 360
C73: 16-PUENTE ARANDA | D73: 0 | E73: 0 | F73: 0 | G73: 0 | H73: 0 | I73: 0 | J73: 0 | K73: 0 | L73: 0 | M73: 0 | N73: 0 | O73: 0 | P73: 0
C74: TOTAL TC SUBRED SUROCCIDENTE | D74: =SUM(D70:D73) -> 758 | E74: =SUM(E70:E73) -> 676 | F74: 679 | G74: 693 | H74: 628 | I74: 572 | J74: 638 | K74: 693 | L74: 0 | M74: 0 | N74: 0 | O74: 0 | P74: 5,337
C75: TOTAL INFORME SIS 151 SUBRED SUROCCIDENTE
C76: DIFERENCIA | D76: =+D74-D75 -> 758 | E76: =+E74-E75 -> 676 | F76: 679 | G76: 693 | H76: 628 | I76: 572 | J76: 638 | K76: 693 | L76: 0 | M76: 0 | N76: 0 | O76: 0 | P76: 5,337
C79: Localidad | D79: Enero | E79: Febrero | F79: Marzo | G79: Abril | H79: Mayo | I79: Junio | J79: Julio | K79: Agosto | L79: Septiembre | M79: Octubre | N79: Noviembre | O79: Diciembre | P79: Total TC
C80: 03-SANTA FE | D80: =SUMIF($C$2:$C$49,$C80,F$2:F$49) -> 0 | E80: 0 | F80: 0 | G80: 0 | H80: 0 | I80: 0 | J80: 1 | K80: 0 | L80: 0 | M80: 0 | N80: 0 | O80: 0 | P80: 1
C81: 04-SAN CRISTOBAL | D81: 1,033 | E81: 976 | F81: 1,010 | G81: 964 | H81: 1,104 | I81: 1,030 | J81: 1,039 | K81: 1,107 | L81: 0 | M81: 0 | N81: 0 | O81: 0 | P81: 8,263
C82: 14-LOS MARTIRES | D82: 627 | E82: 740 | F82: 793 | G82: 749 | H82: 875 | I82: 842 | J82: 849 | K82: 853 | L82: 0 | M82: 0 | N82: 0 | O82: 0 | P82: 6,328
C83: 15-ANTONIO NARIÑO | D83: 0 | E83: 1 | F83: 0 | G83: 0 | H83: 0 | I83: 0 | J83: 0 | K83: 0 | L83: 0 | M83: 0 | N83: 0 | O83: 0 | P83: 1
C84: 17-LA CANDELARIA | D84: 0 | E84: 0 | F84: 0 | G84: 0 | H84: 0 | I84: 0 | J84: 0 | K84: 0 | L84: 0 | M84: 0 | N84: 0 | O84: 0 | P84: 0
C85: 18-RAFAEL URIBE URIBE | D85: 365 | E85: 355 | F85: 370 | G85: 321 | H85: 278 | I85: 348 | J85: 368 | K85: 414 | L85: 0 | M85: 0 | N85: 0 | O85: 0 | P85: 2,819
C86: TOTAL TC SUBRED CENTRO ORIENTE | D86: =SUM(D80:D85) -> 2,025 | E86: =SUM(E80:E85) -> 2,072 | F86: 2,173 | G86: 2,034 | H86: 2,257 | I86: 2,220 | J86: 2,257 | K86: 2,374 | L86: 0 | M86: 0 | N86: 0 | O86: 0 | P86: 17,412
C87: TOTAL INFORME SIS 151 SUBRED CENTRO ORIENTE
C88: DIFERENCIA | D88: =+D86-D87 -> 2,025 | E88: =+E86-E87 -> 2,072 | F88: 2,173 | G88: 2,034 | H88: 2,257 | I88: 2,220 | J88: 2,257 | K88: 2,374 | L88: 0 | M88: 0 | N88: 0 | O88: 0 | P88: 17,412
C91: Localidad | D91: Enero | E91: Febrero | F91: Marzo | G91: Abril | H91: Mayo | I91: Junio | J91: Julio | K91: Agosto | L91: Septiembre | M91: Octubre | N91: Noviembre | O91: Diciembre | P91: Total TC
C92: 05-USME | D92: =SUMIF($C$2:$C$49,$C92,F$2:F$49) -> 0 | E92: 0 | F92: 0 | G92: 0 | H92: 0 | I92: 0 | J92: 0 | K92: 0 | L92: 0 | M92: 0 | N92: 0 | O92: 0 | P92: 0
C93: 06-TUNJUELITO | D93: 0 | E93: 0 | F93: 0 | G93: 0 | H93: 0 | I93: 0 | J93: 0 | K93: 0 | L93: 0 | M93: 0 | N93: 0 | O93: 0 | P93: 0
C94: 19-CIUDAD BOLIVAR | D94: 553 | E94: 461 | F94: 476 | G94: 480 | H94: 498 | I94: 443 | J94: 480 | K94: 448 | L94: 0 | M94: 0 | N94: 0 | O94: 0 | P94: 3,839
C95: 20-SUMAPAZ | D95: 0 | E95: 0 | F95: 0 | G95: 0 | H95: 0 | I95: 0 | J95: 0 | K95: 0 | L95: 0 | M95: 0 | N95: 0 | O95: 0 | P95: =SUM(D95:O95) -> 0
C96: TOTAL TC SUBRED SUR | D96: =SUM(D92:D95) -> 553 | E96: =SUM(E92:E95) -> 461 | F96: 476 | G96: 480 | H96: 498 | I96: 443 | J96: 480 | K96: 448 | L96: 0 | M96: 0 | N96: 0 | O96: 0 | P96: 3,839
C97: TOTAL INFORME SIS 151 SUBRED SUR
C98: DIFERENCIA | D98: =+D96-D97 -> 553 | E98: =+E96-E97 -> 461 | F98: 476 | G98: 480 | H98: 498 | I98: 443 | J98: 480 | K98: 448 | L98: 0 | M98: 0 | N98: 0 | O98: 0 | P98: 3,839
C102: TOTAL LOCALIDADES | D102: =+D64+D74+D86+D96 -> 7,818 | E102: 7,445 | F102: 7,594 | G102: 7,298 | H102: 7,731 | I102: 7,408 | J102: 8,056 | K102: 7,894 | L102: 0 | M102: 0 | N102: 0 | O102: 0 | P102: =SUM(P58:P101) -> 183,732
D104: =SUM(F2:F49) -> 7818 | E104: =SUM(G2:G49) -> 7445 | F104: 7594 | G104: 7298 | H104: 7731 | I104: 7408 | J104: 8056 | K104: 7894 | L104: 0 | M104: 0 | N104: 0 | O104: 0

Sheet HEPATITIS_B
A1: EPS O ESE | B1: IPS | C1: Localidad | D1: Meta Anual Menor de 1 Año | E1: Meta Mensual | F1: Enero | G1: Febrero | H1: Marzo | I1: Abril | J1: Mayo | K1: Junio | L1: Julio | M1: Agosto | N1: Septiembre | O1: Octubre | P1: Noviembre | Q1: Diciembre | R1: Total | S1: % Cobertura | T1: Deficit
A2: COMPENSAR | B2: CLINICA LOS COBOS | C2: 01-USAQUEN | D2: 0 | E2: 0 | F2: 88 | G2: 109 | H2: 127 | I2: 120 | J2: 110 | K2: 110 | L2: 122 | M2: 117 | R2: =SUM(F2:Q2) -> 903 | S2: =IF(D2=0,0,+R2/D2) -> 0.0% | T2: =IF(COUNT(F2:Q2)*(D2/12)-R2<0,"",COUNT(F2:Q2)*(D2/12)-R2) -> 
A3: SANITAS | B3: CLINICA REINA SOFIA | C3: 01-USAQUEN | D3: 0 | E3: 0 | F3: 96 | G3: 81 | H3: 90 | I3: 89 | J3: 77 | K3: 67 | L3: 88 | M3: 80 | R3: 668 | S3: 0.0%
A4: PARTICULAR | B4: FUNDACION SANTA FE | C4: 01-USAQUEN | D4: 0 | E4: 0 | F4: 111 | G4: 106 | H4: 113 | I4: 108 | J4: 91 | K4: 109 | L4: 142 | M4: 119 | R4: 899 | S4: 0.0%
A5: 01-USAQUEN | B5: HOSPITAL SIMON BOLIVAR | C5: 01-USAQUEN | D5: 0 | E5: 0 | F5: 142 | G5: 101 | H5: 109 | I5: 56 | J5: 57 | K5: 72 | L5: 48 | M5: 13 | R5: 598 | S5: 0.0%
A6: PARTICULAR | B6: CLINICA DE LA MUJER | C6: 02-CHAPINERO | D6: 0 | E6: 0 | F6: 175 | G6: 153 | H6: 174 | I6: 177 | J6: 178 | K6: 185 | L6: 236 | M6: 208 | R6: 1486 | S6: 0.0%
A7: PARTICULAR | B7: CLINICA DE MARLY S.A | C7: 02-CHAPINERO | D7: 0 | E7: 0 | F7: 56 | G7: 52 | H7: 59 | I7: 61 | J7: 69 | K7: 73 | L7: 65 | M7: 61 | R7: 496 | S7: 0.0%
A8: PARTICULAR | B8: CLINICA DEL COUNTRY | C8: 02-CHAPINERO | D8: 0 | E8: 0 | F8: 219 | G8: 231 | H8: 227 | I8: 184 | J8: 196 | K8: 186 | L8: 223 | M8: 209 | R8: 1675 | S8: 0.0%
A9: MILITAR | B9: HOSPITAL MILITAR CENTRAL | C9: 02-CHAPINERO | D9: 0 | E9: 0 | F9: 55 | G9: 66 | H9: 65 | I9: 49 | J9: 57 | K9: 51 | L9: 64 | M9: 62 | R9: 469 | S9: 0.0%
A10: PARTICULAR | B10: HOSPITAL SAN IGNACIO | C10: 02-CHAPINERO | D10: 0 | E10: 0 | F10: 95 | G10: 80 | H10: 157 | I10: 177 | J10: 165 | K10: 125 | L10: 104 | M10: 77 | R10: 980 | S10: 0.0%
A11: UNICAJAS | B11: EXTRAMURAL SANTA FE | C11: 03-SANTA FE | D11: 0 | E11: 0 | F11: 0 | G11: 0 | H11: 0 | I11: 0 | J11: 0 | K11: 0 | L11: 1 | M11: 0 | R11: =SUM(F11:Q11) -> 1 | S11: =IF(D11=0,0,+R11/D11) -> 0.0% | T11: =IF(COUNT(F11:Q11)*(D11/12)-R11<0,"",COUNT(F11:Q11)*(D11/12)-R11) -> 
A12: 04-SAN CRISTOBAL | B12: CAMI ALTAMIRA | C12: 04-SAN CRISTOBAL | D12: 1216 | E12: 101 | F12: 0 | G12: 0 | H12: 0 | I12: 0 | J12: 0 | K12: 0 | L12: 0 | M12: 0 | R12: 0 | S12: 0.0% | T12: 810.7
A13: PARTICULAR | B13: CLINICA SAN RAFAEL | C13: 04-SAN CRISTOBAL | D13: 0 | E13: 0 | F13: 469 | G13: 420 | H13: 457 | I13: 429 | J13: 481 | K13: 411 | L13: 396 | M13: 447 | R13: 3510 | S13: 0.0%
A14: 04-SAN CRISTOBAL | B14: HOSPITAL LA VICTORIA | C14: 04-SAN CRISTOBAL | D14: 1216 | E14: 101 | F14: 238 | G14: 417 | H14: 164 | I14: 125 | J14: 111 | K14: 122 | L14: 115 | M14: 119 | R14: 1411 | S14: 116.0%
A15: 04-SAN CRISTOBAL | B15: INSTITUTO MATERNO INFANTIL LA VICTORIA SEDE II | C15: 04-SAN CRISTOBAL | D15: 1216 | E15: 101 | F15: 362 | G15: 384 | H15: 421 | I15: 444 | J15: 526 | K15: 523 | L15: 563 | M15: 576 | R15: 3799 | S15: 312.4%
A16: 07-BOSA | B16: CAMI PABLO VI BOSA | C16: 07-BOSA | D16: 0 | E16: 0 | F16: 0 | G16: 0 | H16: 0 | I16: 0 | J16: 1 | K16: 1 | L16: 0 | M16: 2 | R16: 4 | S16: 0.0%
A17: 07-BOSA | B17: HOSPITAL DE BOSA II NIVEL | C17: 07-BOSA | D17: 0 | E17: 0 | F17: 174 | G17: 154 | H17: 176 | I17: 220 | J17: 207 | K17: 224 | L17: 223 | M17: 196 | R17: 1574 | S17: 0.0%
A18: 08-KENNEDY | B18: CAFAM KENNEDY | C18: 08-KENNEDY | D18: 0 | F18: 0 | G18: 0 | H18: 0 | I18: 0 | J18: 0 | K18: 0 | L18: 1 | M18: 0 | R18: 1 | S18: 0.0%
A19: 08-KENNEDY | B19: CAPS PATIO BONITO | C19: 08-KENNEDY | D19: 0 | F19: 0 | G19: 0 | H19: 0 | I19: 0 | J19: 0 | K19: 0 | L19: 1 | M19: 0 | R19: 1 | S19: 0.0%
A20: 08-KENNEDY | B20: CLINICA COLSUBSIDIO ROMA | C20: 08-KENNEDY | D20: 0 | F20: 0 | G20: 0 | H20: 0 | I20: 0 | J20: 1 | K20: 1 | L20: 0 | M20: 0 | R20: 2 | S20: 0.0%
A21: 08-KENNEDY | B21: CLINICA DEL OCCIDENTE LTDA | C21: 08-KENNEDY | D21: 0 | E21: 0 | F21: 92 | G21: 86 | H21: 80 | I21: 108 | J21: 86 | K21: 63 | L21: 80 | M21: 148 | R21: 743 | S21: 0.0%
A22: 08-KENNEDY | B22: COMPENSAR KENNEDY | C22: 08-KENNEDY | D22: 0 | F22: 0 | G22: 0 | H22: 0 | I22: 0 | J22: 0 | K22: 0 | L22: 0 | M22: 0 | R22: 0 | S22: 0.0% | T22: 0.0
A23: 08-KENNEDY | B23: HOSPITAL OCCIDENTE DE KENNEDY | C23: 08-KENNEDY | D23: 0 | E23: 0 | F23: 419 | G23: 269 | H23: 371 | I23: 344 | J23: 331 | K23: 285 | L23: 338 | M23: 354 | R23: 2711 | S23: 0.0%
A24: 08-KENNEDY | B24: USS TINTAL PATIO BONITO | C24: 08-KENNEDY | D24: 0 | F24: 0 | G24: 0 | H24: 0 | I24: 0 | J24: 0 | K24: 0 | L24: 0 | M24: 0 | R24: 0 | S24: 0.0% | T24: 0.0
A25: 09-FONTIBON | B25: CAMI II CENTRO DE ESPECIALISTAS | C25: 09-FONTIBON | D25: 0 | E25: 0 | F25: 86 | G25: 87 | H25: 75 | I25: 48 | J25: 0 | K25: 0 | L25: 0 | M25: 0 | R25: 296 | S25: 0.0%
A26: 09-FONTIBON | B26: CENTRO DIA | C26: 09-FONTIBON | D26: 0 | F26: 0 | G26: 0 | H26: 0 | I26: 0 | J26: 18 | K26: 13 | L26: 17 | M26: 15 | R26: 63 | S26: 0.0%
A27: 10-ENGATIVA | B27: HOSPITAL ENGATIVA II SEDE PRINCIPAL CALLE 80 | C27: 10-ENGATIVA | D27: 0 | E27: 0 | F27: 182 | G27: 159 | H27: 159 | I27: 123 | J27: 172 | K27: 147 | L27: 178 | M27: 162 | R27: 1282 | S27: 0.0%
A28: 11-SUBA | B28: CENTRO DE SERVICIOS ESPECIALIZADOS | C28: 11-SUBA | D28: 0 | E28: 0 | F28: 215 | G28: 217 | H28: 201 | I28: 261 | J28: 262 | K28: 210 | L28: 242 | M28: 262 | R28: 1870 | S28: 0.0%
A29: PARTICULAR | B29: CLINICA COLINA | C29: 11-SUBA | D29: 0 | E29: 0 | F29: 63 | G29: 52 | H29: 55 | I29: 421 | J29: 48 | K29: 38 | L29: 70 | M29: 56 | R29: 803 | S29: 0.0%
A30: PARTICULAR | B30: FUNDACION CLINICA CORPAS | C30: 11-SUBA | D30: 0 | E30: 0 | F30: 367 | G30: 397 | H30: 398 | I30: 54 | J30: 386 | K30: 290 | L30: 335 | M30: 397 | R30: 2624 | S30: 0.0%
A31: PARTICULAR | B31: CLINICA COLSUBSIDIO CALLE 94 | C31: 12-BARRIOS UNIDOS | D31: 0 | E31: 0 | F31: 306 | G31: 298 | H31: 349 | I31: 322 | J31: 415 | K31: 376 | L31: 379 | M31: 426 | R31: 2871 | S31: 0.0%
A32: CRUZ BLANCA | B32: HOSPITAL UNIVERSITARIO INFANTIL SAN JOSE | C32: 12-BARRIOS UNIDOS | D32: 0 | E32: 0 | F32: 383 | G32: 350 | H32: 374 | I32: 442 | J32: 486 | K32: 474 | L32: 450 | M32: 406 | R32: 3365 | S32: 0.0%
A33: FAMI- CAFAM | B33: CLINICA CAFAM CALLE 51 | C33: 13-TEUSAQUILLO | D33: 0 | E33: 0 | F33: 481 | G33: 397 | H33: 457 | I33: 426 | J33: 460 | K33: 424 | L33: 444 | M33: 20 | R33: 3109 | S33: 0.0%
A34: PARTICULAR | B34: CLINICA EUSALUD | C34: 13-TEUSAQUILLO | D34: 0 | E34: 0 | F34: 394 | G34: 397 | H34: 106 | I34: 0 | J34: 0 | K34: 27 | L34: 209 | M34: 374 | R34: 1507 | S34: 0.0%
A35: PARTICULAR | B35: CLINICA FEDERMAN | C35: 13-TEUSAQUILLO | D35: 0 | E35: 0 | F35: 0 | G35: 0 | H35: 0 | I35: 0 | J35: 0 | K35: 0 | L35: 0 | M35: 0 | R35: 0 | S35: 0.0% | T35: 0.0
A36: PARTICULAR | B36: CLINICA PALERMO | C36: 13-TEUSAQUILLO | D36: 0 | E36: 0 | F36: 546 | G36: 450 | H36: 438 | I36: 352 | J36: 278 | K36: 310 | L36: 371 | M36: 409 | R36: 3154 | S36: 0.0%
A37: SANITAS | B37: CLINICA UNIVERSITARIA COLOMBIA | C37: 13-TEUSAQUILLO | D37: 0 | E37: 0 | F37: 3 | G37: 6 | H37: 53 | I37: 141 | J37: 211 | K37: 329 | L37: 374 | M37: 331 | R37: 1448 | S37: 0.0%
A38: POLICIA | B38: HOSPITAL CENTRAL DE LA POLICIA | C38: 13-TEUSAQUILLO | D38: 0 | E38: 0 | F38: 89 | G38: 78 | H38: 57 | I38: 73 | J38: 56 | K38: 53 | L38: 51 | M38: 64 | R38: 521 | S38: 0.0%
A39: PARTICULAR | B39: MEDICA MAGDALENA LTDA | C39: 13-TEUSAQUILLO | D39: 0 | E39: 0 | F39: 537 | G39: 538 | H39: 582 | I39: 573 | J39: 625 | K39: 613 | L39: 587 | M39: 601 | R39: 4656 | S39: 0.0%
A40: PARTICULAR | B40: HOSPITAL UNIVERSITARIO MAYOR | C40: 14-LOS MARTIRES | D40: 299 | E40: 25 | F40: 394 | G40: 308 | H40: 309 | I40: 282 | J40: 298 | K40: 300 | L40: 287 | M40: 256 | R40: 2434 | S40: 814.0%
A41: PARTICULAR | B41: SOCIEDAD DE CIRUGIA HOSPITAL SAN JOSE | C41: 14-LOS MARTIRES | D41: 0 | E41: 0 | F41: 279 | G41: 349 | H41: 399 | I41: 326 | J41: 280 | K41: 350 | L41: 301 | M41: 319 | R41: 2603 | S41: 0.0%
A42: 14-LOS MARTIRES | B42: USS SAMPER MENDOZA | C42: 14-LOS MARTIRES | D42: 299 | E42: 25 | F42: 0 | G42: 0 | H42: 1 | I42: 0 | J42: 0 | K42: 0 | L42: 0 | M42: 0 | R42: 1 | S42: 0.3% | T42: 198.3
A43: COMPENSAR | B43: USS 1 DE MAYO | C43: 15-ANTONIO NARIÑO | D43: 0 | E43: 0 | F43: 0 | G43: 0 | H43: 0 | I43: 0 | J43: 0 | K43: 0 | L43: 0 | M43: 1 | R43: 1 | S43: 0.0%
A44: FAMI- COLSB | B44: CENTRO MEDICO COLSUBSIDIO QUIROGA | C44: 18-RAFAEL URIBE URIBE | D44: 5526 | E44: 461 | F44: 0 | G44: 0 | H44: 0 | I44: 0 | J44: 0 | K44: 1 | L44: 0 | M44: 0 | R44: 1 | S44: 0.0% | T44: 3683.0
A45: PARTICULAR | B45: CENTRO POLICLINICO DEL OLAYA | C45: 18-RAFAEL URIBE URIBE | D45: 0 | E45: 0 | F45: 373 | G45: 356 | H45: 371 | I45: 321 | J45: 273 | K45: 353 | L45: 381 | M45: 429 | R45: 2857 | S45: 0.0%
A46: 19-CIUDAD BOLIVAR | B46: USS MEISSEN | C46: 19-CIUDAD BOLIVAR | D46: 0 | E46: =D46/12 -> 0 | F46: 556 | G46: 477 | H46: 501 | I46: 492 | J46: 518 | K46: 467 | L46: 506 | M46: 464 | R46: 3981 | S46: 0.0%
C57: Localidad | D57: Enero | E57: Febrero | F57: Marzo | G57: Abril | H57: Mayo | I57: Junio | J57: Julio | K57: Agosto | L57: Septiembre | M57: Octubre | N57: Noviembre | O57: Diciembre | P57: Total TC
C58: 01-USAQUEN | D58: =SUMIF($C$2:$C$49,$C58,F$2:F$49) -> 437 | E58: 397 | F58: 439 | G58: 373 | H58: 335 | I58: 358 | J58: 400 | K58: 329 | L58: 0 | M58: 0 | N58: 0 | O58: 0 | P58: =SUM(D58:O58) -> 3,068
C59: 02-CHAPINERO | D59: 600 | E59: 582 | F59: 682 | G59: 648 | H59: 665 | I59: 620 | J59: 692 | K59: 617 | L59: 0 | M59: 0 | N59: 0 | O59: 0 | P59: =SUM(D59:O59) -> 5,106
C60: 10-ENGATIVA | D60: 182 | E60: 159 | F60: 159 | G60: 123 | H60: 172 | I60: 147 | J60: 178 | K60: 162 | L60: 0 | M60: 0 | N60: 0 | O60: 0 | P60: 1,282
C61: 11-SUBA | D61: 645 | E61: 666 | F61: 654 | G61: 736 | H61: 696 | I61: 538 | J61: 647 | K61: 715 | L61: 0 | M61: 0 | N61: 0 | O61: 0 | P61: 5,297
C62: 12-BARRIOS UNIDOS | D62: 689 | E62: 648 | F62: 723 | G62: 764 | H62: 901 | I62: 850 | J62: 829 | K62: 832 | L62: 0 | M62: 0 | N62: 0 | O62: 0 | P62: 6,236
C63: 13-TEUSAQUILLO | D63: 2,050 | E63: 1,866 | F63: 1,693 | G63: 1,565 | H63: 1,630 | I63: 1,756 | J63: 2,036 | K63: 1,799 | L63: 0 | M63: 0 | N63: 0 | O63: 0 | P63: 14,395
C64: TOTAL TC SUBRED NORTE | D64: =SUM(D58:D63) -> 4,603 | E64: =SUM(E58:E63) -> 4,318 | F64: 4,350 | G64: 4,209 | H64: 4,399 | I64: 4,269 | J64: 4,782 | K64: 4,454 | L64: 0 | M64: 0 | N64: 0 | O64: 0 | P64: 35,384
C65: TOTAL INFORME SIS 151 SUBRED NORTE
C66: DIFERENCIA | D66: =+D64-D65 -> 4,603 | E66: =+E64-E65 -> 4,318 | F66: 4,350 | G66: 4,209 | H66: 4,399 | I66: 4,269 | J66: 4,782 | K66: 4,454 | L66: 0 | M66: 0 | N66: 0 | O66: 0 | P66: 35,384
C69: Localidad | D69: Enero | E69: Febrero | F69: Marzo | G69: Abril | H69: Mayo | I69: Junio | J69: Julio | K69: Agosto | L69: Septiembre | M69: Octubre | N69: Noviembre | O69: Diciembre | P69: Total TC
C70: 07-BOSA | D70: =SUMIF($C$2:$DC$49,$C70,F$2:F$49) -> 174 | E70: 154 | F70: 176 | G70: 220 | H70: 208 | I70: 225 | J70: 223 | K70: 198 | L70: 0 | M70: 0 | N70: 0 | O70: 0 | P70: 1,578
C71: 08-KENNEDY | D71: 511 | E71: 355 | F71: 451 | G71: 452 | H71: 418 | I71: 349 | J71: 420 | K71: 502 | L71: 0 | M71: 0 | N71: 0 | O71: 0 | P71: 3,458
C72: 09-FONTIBON | D72: 86 | E72: 87 | F72: 75 | G72: 48 | H72: 18 | I72: 13 | J72: 17 | K72: 15 | L72: 0 | M72: 0 | N72: 0 | O72: 0 | P72: 359
C73: 16-PUENTE ARANDA | D73: 0 | E73: 0 | F73: 0 | G73: 0 | H73: 0 | I73: 0 | J73: 0 | K73: 0 | L73: 0 | M73: 0 | N73: 0 | O73: 0 | P73: 0
C74: TOTAL TC SUBRED SUROCCIDENTE | D74: =SUM(D70:D73) -> 771 | E74: =SUM(E70:E73) -> 596 | F74: 702 | G74: 720 | H74: 644 | I74: 587 | J74: 660 | K74: 715 | L74: 0 | M74: 0 | N74: 0 | O74: 0 | P74: 5,395
C75: TOTAL INFORME SIS 151 SUBRED SUROCCIDENTE
C76: DIFERENCIA | D76: =+D74-D75 -> 771 | E76: =+E74-E75 -> 596 | F76: 702 | G76: 720 | H76: 644 | I76: 587 | J76: 660 | K76: 715 | L76: 0 | M76: 0 | N76: 0 | O76: 0 | P76: 5,395
C79: Localidad | D79: Enero | E79: Febrero | F79: Marzo | G79: Abril | H79: Mayo | I79: Junio | J79: Julio | K79: Agosto | L79: Septiembre | M79: Octubre | N79: Noviembre | O79: Diciembre | P79: Total TC
C80: 03-SANTA FE | D80: =SUMIF($C$2:$C$49,$C80,F$2:F$49) -> 0 | E80: 0 | F80: 0 | G80: 0 | H80: 0 | I80: 0 | J80: 1 | K80: 0 | L80: 0 | M80: 0 | N80: 0 | O80: 0 | P80: 1
C81: 04-SAN CRISTOBAL | D81: 1,069 | E81: 1,221 | F81: 1,042 | G81: 998 | H81: 1,118 | I81: 1,056 | J81: 1,074 | K81: 1,142 | L81: 0 | M81: 0 | N81: 0 | O81: 0 | P81: 8,720
C82: 14-LOS MARTIRES | D82: 673 | E82: 657 | F82: 709 | G82: 608 | H82: 578 | I82: 650 | J82: 588 | K82: 575 | L82: 0 | M82: 0 | N82: 0 | O82: 0 | P82: 5,038
C83: 15-ANTONIO NARIÑO | D83: 0 | E83: 0 | F83: 0 | G83: 0 | H83: 0 | I83: 0 | J83: 0 | K83: 1 | L83: 0 | M83: 0 | N83: 0 | O83: 0 | P83: 1
C84: 17-LA CANDELARIA | D84: 0 | E84: 0 | F84: 0 | G84: 0 | H84: 0 | I84: 0 | J84: 0 | K84: 0 | L84: 0 | M84: 0 | N84: 0 | O84: 0 | P84: 0
C85: 18-RAFAEL URIBE URIBE | D85: 373 | E85: 356 | F85: 371 | G85: 321 | H85: 273 | I85: 354 | J85: 381 | K85: 429 | L85: 0 | M85: 0 | N85: 0 | O85: 0 | P85: 2,858
C86: TOTAL TC SUBRED CENTRO ORIENTE | D86: =SUM(D80:D85) -> 2,115 | E86: =SUM(E80:E85) -> 2,234 | F86: 2,122 | G86: 1,927 | H86: 1,969 | I86: 2,060 | J86: 2,044 | K86: 2,147 | L86: 0 | M86: 0 | N86: 0 | O86: 0 | P86: 16,618
C87: TOTAL INFORME SIS 151 SUBRED CENTRO ORIENTE
C88: DIFERENCIA | D88: =+D86-D87 -> 2,115 | E88: =+E86-E87 -> 2,234 | F88: 2,122 | G88: 1,927 | H88: 1,969 | I88: 2,060 | J88: 2,044 | K88: 2,147 | L88: 0 | M88: 0 | N88: 0 | O88: 0 | P88: 16,618
C91: Localidad | D91: Enero | E91: Febrero | F91: Marzo | G91: Abril | H91: Mayo | I91: Junio | J91: Julio | K91: Agosto | L91: Septiembre | M91: Octubre | N91: Noviembre | O91: Diciembre | P91: Total TC
C92: 05-USME | D92: =SUMIF($C$2:$C$49,$C92,F$2:F$49) -> 0 | E92: 0 | F92: 0 | G92: 0 | H92: 0 | I92: 0 | J92: 0 | K92: 0 | L92: 0 | M92: 0 | N92: 0 | O92: 0 | P92: 0
C93: 06-TUNJUELITO | D93: 0 | E93: 0 | F93: 0 | G93: 0 | H93: 0 | I93: 0 | J93: 0 | K93: 0 | L93: 0 | M93: 0 | N93: 0 | O93: 0 | P93: 0
C94: 19-CIUDAD BOLIVAR | D94: 556 | E94: 477 | F94: 501 | G94: 492 | H94: 518 | I94: 467 | J94: 506 | K94: 464 | L94: 0 | M94: 0 | N94: 0 | O94: 0 | P94: 3,981
C95: 20-SUMAPAZ | D95: 0 | E95: 0 | F95: 0 | G95: 0 | H95: 0 | I95: 0 | J95: 0 | K95: 0 | L95: 0 | M95: 0 | N95: 0 | O95: 0 | P95: =SUM(D95:O95) -> 0
C96: TOTAL TC SUBRED SUR | D96: =SUM(D92:D95) -> 556 | E96: =SUM(E92:E95) -> 477 | F96: 501 | G96: 492 | H96: 518 | I96: 467 | J96: 506 | K96: 464 | L96: 0 | M96: 0 | N96: 0 | O96: 0 | P96: 3,981
C97: TOTAL INFORME SIS 151 SUBRED SUR
C98: DIFERENCIA | D98: =+D96-D97 -> 556 | E98: =+E96-E97 -> 477 | F98: 501 | G98: 492 | H98: 518 | I98: 467 | J98: 506 | K98: 464 | L98: 0 | M98: 0 | N98: 0 | O98: 0 | P98: 3,981
C102: TOTAL LOCALIDADES | D102: =+D64+D74+D86+D96 -> 8,045 | E102: 7,625 | F102: 7,675 | G102: 7,348 | H102: 7,530 | I102: 7,383 | J102: 7,992 | K102: 7,780 | L102: 0 | M102: 0 | N102: 0 | O102: 0 | P102: =SUM(P58:P101) -> 184,134
D104: =SUM(F2:F49) -> 8045 | E104: =SUM(G2:G49) -> 7625 | F104: 7675 | G104: 7348 | H104: 7530 | I104: 7383 | J104: 7992 | K104: 7780 | L104: 0 | M104: 0 | N104: 0 | O104: 0

Sheet PENTA1
A1: EAPB | B1: EPS O ESE | C1: IPS | D1: Localidad | E1: Meta Anual Menor de 1 Año | F1: Meta Mensual | G1: Enero | H1: Febrero | I1: Marzo | J1: Abril | K1: Mayo | L1: Junio | M1: Julio | N1: Agosto | O1: Septiembre | P1: Octubre | Q1: Noviembre | R1: Diciembre | S1: Total | T1: % Cobertura | U1: Deficit
A2: CAPITAL SALUD | B2: CAPITAL SALUD | C2: UPA SAN CRISTOBAL | D2: 01-USAQUEN | E2: 124 | F2: =+E2/12 -> 10 | G2: 7 | H2: 7 | I2: 3 | J2: 7 | K2: 7 | L2: 13 | M2: 12 | N2: 10 | S2: =SUM(G2:R2) -> 66 | T2: =IF(E2=0,0,+S2/E2) -> 53.2% | U2: =IF(COUNT(G2:R2)*(E2/12)-S2<0,"",COUNT(G2:R2)*(E2/12)-S2) -> 17
A3: CAPITAL SALUD | B3: CAPITAL SALUD | C3: UPA USAQUEN | D3: 01-USAQUEN | E3: 10 | F3: =+E3/12 -> 1 | G3: 0 | H3: 1 | I3: 0 | J3: 0 | K3: 0 | L3: 0 | M3: 0 | N3: 0 | S3: =SUM(G3:R3) -> 1 | T3: 10.0% | U3: 6
A4: CAPITAL SALUD | B4: CAPITAL SALUD | C4: UPA ORQUIDEAS | D4: 01-USAQUEN | E4: 11 | F4: 1 | G4: 1 | H4: 3 | I4: 2 | J4: 2 | K4: 5 | L4: 3 | M4: 2 | N4: 0 | S4: 18 | T4: 163.6%
A5: CAPITAL SALUD | B5: CAPITAL SALUD | C5: UPA CODITO | D5: 01-USAQUEN | E5: 107 | F5: 9 | G5: 7 | H5: 4 | I5: 11 | J5: 4 | K5: 5 | L5: 12 | M5: 4 | N5: 6 | S5: 53 | T5: 49.5% | U5: 18
A6: CAPITAL SALUD | B6: CAPITAL SALUD | C6: CAMI VERBENAL | D6: 01-USAQUEN | E6: 87 | F6: 7 | G6: 10 | H6: 4 | I6: 11 | J6: 5 | K6: 4 | L6: 5 | M6: 6 | N6: 11 | S6: 56 | T6: 64.4% | U6: 2
A7: CAPITAL SALUD | B7: CAPITAL SALUD | C7: HOSPITAL SIMON BOLIVAR | D7: 01-USAQUEN | E7: 36 | F7: 3 | G7: 22 | H7: 11 | I7: 6 | J7: 0 | K7: 2 | L7: 3 | M7: 2 | N7: 4 | S7: 50 | T7: 138.9%
A8: 01-USAQUEN | B8: 01-USAQUEN | C8: EXTRAMURAL USAQUEN | D8: 01-USAQUEN | E8: 0 | F8: 0 | G8: 5 | H8: 6 | I8: 5 | J8: 18 | K8: 40 | L8: 20 | M8: 26 | N8: 22 | S8: 142 | T8: 0.0%
A9: ALIANSALUD | B9: ALIANSALUD | C9: CENTRO MEDICO COLMEDICA SANTA BARBARA | D9: 01-USAQUEN | E9: 580 | F9: 48 | G9: 63 | H9: 43 | I9: 43 | J9: 34 | K9: 48 | L9: 32 | M9: 55 | N9: 36 | S9: 354 | T9: 61.0% | U9: 33
A10: COMPENSAR | B10: COMPENSAR | C10: USS CALLE 134 | D10: 01-USAQUEN | E10: 372 | F10: 31 | G10: 17 | H10: 21 | I10: 15 | J10: 11 | K10: 23 | L10: 21 | M10: 23 | N10: 20 | S10: 151 | T10: 40.6% | U10: 97
A11: COMPENSAR | B11: COMPENSAR | C11: USS CALLE 145 | D11: 01-USAQUEN | E11: 173 | F11: 14 | G11: 11 | H11: 10 | I11: 23 | J11: 8 | K11: 20 | L11: 17 | M11: 7 | N11: 12 | S11: 108 | T11: 62.4% | U11: 7
A12: COMPENSAR | B12: COMPENSAR | C12: JAVESALUD TOBERIN | D12: 01-USAQUEN | E12: 372 | F12: 31 | G12: 6 | H12: 12 | I12: 14 | J12: 11 | K12: 10 | L12: 10 | M12: 13 | N12: 13 | S12: 89 | T12: 23.9% | U12: 159
A13: COOMEVA | B13: COOMEVA | C13: SINERGIA UNIDAD INTEGRAL EN SALUD | D13: 01-USAQUEN | E13: 44 | F13: 4 | G13: 5 | H13: 4 | I13: 5 | J13: 4 | K13: 5 | L13: 3 | M13: 1 | N13: 2 | S13: 29 | T13: 65.9% | U13: 0
A14: FAMISANAR | B14: FAMI- COLSB | C14: CENTRO MEDICO COLSUBSIDIO USAQUEN | D14: 01-USAQUEN | E14: 298 | F14: 25 | G14: 38 | H14: 45 | I14: 25 | J14: 20 | K14: 25 | L14: 35 | M14: 53 | N14: 49 | S14: 290 | T14: 97.3%
A15: MILITAR | B15: MILITAR | C15: DISPENSARIO MEDICO CANTON NORTE | D15: 01-USAQUEN | E15: 205 | F15: 17 | G15: 8 | H15: 4 | I15: 6 | J15: 6 | K15: 8 | L15: 10 | M15: 6 | N15: 7 | S15: 55 | T15: 26.8% | U15: 82
A16: NUEVA EPS | B16: NUEVA EPS | C16: IPS VIVA 1A SEDE TOBERIN | D16: 01-USAQUEN | E16: 147 | F16: 12 | G16: 9 | H16: 9 | I16: 6 | J16: 5 | K16: 2 | L16: 9 | M16: 13 | N16: 6 | S16: 59 | T16: 40.1% | U16: 39
A17: NUEVA EPS | B17: NUEVA EPS | C17: CAFAM GRANADA HILLS | D17: 01-USAQUEN | E17: 44 | F17: 4 | G17: 2 | H17: 2 | I17: 1 | J17: 2 | K17: 1 | L17: 3 | M17: 4 | N17: 1 | S17: 16 | T17: 36.4% | U17: 13
A18: SANITAS | B18: SANITAS | C18: UAP SANITAS TOBERIN | D18: 01-USAQUEN | E18: 511 | F18: 43 | G18: 26 | H18: 38 | I18: 34 | J18: 27 | K18: 18 | L18: 11 | M18: 12 | N18: 17 | S18: 183 | T18: 35.8% | U18: 158
A19: SANITAS | B19: SANITAS | C19: MEDIKA IPS SANITAS UAP USAQUEN | D19: 01-USAQUEN | E19: 188 | F19: 16 | G19: 4 | H19: 2 | I19: 3 | J19: 0 | K19: 2 | L19: 2 | M19: 6 | N19: 8 | S19: 27 | T19: 14.4% | U19: 98
A20: SANITAS | B20: SANITAS | C20: UAP SANTA BARBARA | D20: 01-USAQUEN | E20: 796 | F20: 66 | G20: 92 | H20: 113 | I20: 115 | J20: 65 | K20: 57 | L20: 59 | M20: 46 | N20: 45 | S20: 592 | T20: 74.4%
A21: SANITAS | B21: SANITAS | C21: SANITAS BANCO DE LA REPUBLICA | D21: 01-USAQUEN | E21: 0 | F21: 0 | G21: 3 | H21: 3 | I21: 5 | J21: 5 | K21: 4 | L21: 2 | M21: 3 | N21: 3 | S21: 28 | T21: 0.0%
A22: SALUD TOTAL | B22: SALUD TOTAL | C22: VIRREY SOLIS TOBERÍN | D22: 01-USAQUEN | E22: 384 | F22: 32 | G22: 24 | H22: 13 | I22: 19 | J22: 14 | K22: 11 | L22: 9 | M22: 18 | N22: 11 | S22: 119 | T22: 31.0% | U22: 137
A23: SURA | B23: SURA | C23: IPS JAVESALUD SANTA BEATRIZ | D23: 01-USAQUEN | E23: 355 | F23: 30 | G23: 20 | H23: 14 | I23: 12 | J23: 4 | K23: 15 | L23: 15 | M23: 10 | N23: 13 | S23: 103 | T23: 29.0% | U23: 134
A24: ECOPETROL | B24: ECOPETROL | C24: IPS CLINICOS PALATINO | D24: 01-USAQUEN | E24: 87 | F24: 7 | G24: 6 | H24: 10 | I24: 7 | J24: 5 | K24: 6 | L24: 3 | M24: 5 | N24: 12 | S24: 54 | T24: 62.1% | U24: 4
A25: PARTICULAR | B25: PARTICULAR | C25: CLINICA PEDIATRICA COLSANITAS | D25: 01-USAQUEN | E25: 830 | F25: 69 | G25: 58 | H25: 57 | I25: 48 | J25: 51 | K25: 38 | L25: 69 | M25: 43 | N25: 32 | S25: 396 | T25: 47.7% | U25: 157
A26: PARTICULAR | B26: PARTICULAR | C26: CENTRO MEDICO COLSANITAS LA CALLEJA | D26: 01-USAQUEN | E26: 120 | F26: 10 | G26: 5 | H26: 15 | I26: 6 | J26: 5 | K26: 3 | L26: 5 | M26: 2 | N26: 3 | S26: 44 | T26: 36.7% | U26: 36
A27: PARTICULAR | B27: PARTICULAR | C27: CENTRO MEDICO COLSANITAS 108 | D27: 01-USAQUEN | E27: 40 | F27: 3 | G27: 5 | H27: 3 | I27: 0 | J27: 0 | K27: 0 | L27: 0 | M27: 0 | N27: 0 | S27: 8 | T27: 20.0% | U27: 19
A28: PARTICULAR | B28: PARTICULAR | C28: CENTRO MEDICO COLSANITAS SANTA ANA | D28: 01-USAQUEN | E28: 4 | F28: 0 | G28: 1 | H28: 3 | I28: 4 | J28: 0 | K28: 0 | L28: 0 | M28: 0 | N28: 0 | S28: 8 | T28: 200.0%
A29: PARTICULAR | B29: PARTICULAR | C29: FUNDACIÓN CARDIO INFANTIL | D29: 01-USAQUEN | E29: 0 | F29: 0 | G29: 7 | H29: 19 | I29: 5 | J29: 6 | K29: 5 | L29: 3 | M29: 5 | N29: 7 | S29: 57 | T29: 0.0%
A30: PARTICULAR | B30: PARTICULAR | C30: ENFASO USAQUEN | D30: 01-USAQUEN | E30: 0 | F30: 0 | G30: 9 | H30: 13 | I30: 1 | J30: 0 | K30: 6 | L30: 6 | M30: 8 | N30: 7 | S30: 50 | T30: 0.0%
A31: PARTICULAR | B31: PARTICULAR | C31: UNIDAD DE VACUNACIÓN INTERNACIONAL | D31: 01-USAQUEN | E31: 0 | F31: 0 | G31: 6 | H31: 6 | I31: 3 | J31: 3 | K31: 1 | L31: 1 | M31: 4 | N31: 3 | S31: 27 | T31: 0.0%
A32: PARTICULAR | B32: PARTICULAR | C32: INMUNOLOGÍA Y DIAGNÓSTICO ESPECIALIZADO LTDA. | D32: 01-USAQUEN | E32: 0 | F32: 0 | G32: 2 | H32: 0 | I32: 2 | J32: 0 | K32: 0 | L32: 0 | M32: 0 | N32: 0 | S32: 4 | T32: 0.0%
A33: PARTICULAR | B33: PARTICULAR | C33: PROTEGER HEALHT CARE | D33: 01-USAQUEN | E33: 0 | F33: 0 | G33: 2 | H33: 6 | I33: 1 | J33: 1 | K33: 3 | L33: 4 | M33: 4 | N33: 7 | S33: 28 | T33: 0.0%
A34: PARTICULAR | B34: PARTICULAR | C34: FUNDACION SANTA FE DE BOGOTA | D34: 01-USAQUEN | E34: 0 | F34: 0 | G34: 4 | H34: 2 | I34: 0 | J34: 2 | K34: 0 | L34: 0 | M34: 1 | N34: 2 | S34: 11 | T34: 0.0%
A35: PARTICULAR | B35: PARTICULAR | C35: IPS CRUZ ROJA SEDE UNICENTRO | D35: 01-USAQUEN | E35: 0 | F35: 0 | G35: 0 | H35: 0 | I35: 0 | J35: 0 | K35: 0 | L35: 0 | M35: 0 | N35: 0 | S35: 0 | T35: 0.0% | U35: 0
A36: PARTICULAR | B36: PARTICULAR | C36: IPS CRUZ ROJA SAMU CALLE 145 | D36: 01-USAQUEN | E36: 0 | F36: 0 | G36: 0 | H36: 0 | I36: 0 | J36: 0 | K36: 1 | L36: 0 | M36: 0 | N36: 0 | S36: 1 | T36: 0.0%
A37: PEDIATRAS | B37: PEDIATRAS | C37: DR. ALEJANDRO LÓPEZ | D37: 01-USAQUEN | E37: 0 | F37: 0 | G37: 0 | H37: 3 | I37: 0 | J37: 1 | K37: 0 | L37: 0 | M37: 0 | N37: 0 | S37: 4 | T37: 0.0%
A38: PEDIATRAS | B38: PEDIATRAS | C38: DR. CARLOS NEFTALI TORRES | D38: 01-USAQUEN | E38: 0 | F38: 0 | G38: 0 | H38: 4 | I38: 4 | J38: 4 | K38: 3 | L38: 0 | M38: 3 | N38: 1 | S38: 19 | T38: 0.0%
A39: PEDIATRAS | B39: PEDIATRAS | C39: DR. FRANCISCO NUÑEZ | D39: 01-USAQUEN | E39: 0 | F39: 0 | G39: 4 | H39: 1 | I39: 0 | J39: 0 | K39: 1 | L39: 1 | M39: 3 | N39: 2 | S39: 12 | T39: 0.0%
A40: PEDIATRAS | B40: PEDIATRAS | C40: DR. FERNANDO GOMEZ | D40: 01-USAQUEN | E40: 0 | F40: 0 | G40: 0 | H40: 0 | I40: 0 | J40: 0 | K40: 0 | L40: 0 | M40: 0 | N40: 0 | S40: 0 | T40: 0.0% | U40: 0
A41: PEDIATRAS | B41: PEDIATRAS | C41: DR. FERNANDO ZARATE MORENO | D41: 01-USAQUEN | E41: 0 | F41: 0 | G41: 1 | H41: 1 | I41: 0 | J41: 1 | K41: 0 | L41: 0 | M41: 0 | N41: 1 | S41: 4 | T41: 0.0%
A42: PEDIATRAS | B42: PEDIATRAS | C42: DR. GONZALO GARCIA | D42: 01-USAQUEN | E42: 0 | F42: 0 | G42: 1 | H42: 0 | I42: 1 | J42: 0 | K42: 1 | L42: 0 | M42: 0 | N42: 1 | S42: 4 | T42: 0.0%
A43: PEDIATRAS | B43: PEDIATRAS | C43: DR. GUSTAVO MORALES | D43: 01-USAQUEN | E43: 0 | F43: 0 | G43: 2 | H43: 1 | I43: 2 | J43: 2 | K43: 4 | L43: 0 | M43: 0 | N43: 1 | S43: 12 | T43: 0.0%
A44: PEDIATRAS | B44: PEDIATRAS | C44: DR. JAIME OSPINA | D44: 01-USAQUEN | E44: 0 | F44: 0 | G44: 1 | H44: 0 | I44: 0 | J44: 3 | K44: 0 | L44: 2 | M44: 1 | N44: 1 | S44: 8 | T44: 0.0%
A45: PEDIATRAS | B45: PEDIATRAS | C45: DR. JORGE URIBE | D45: 01-USAQUEN | E45: 0 | F45: 0 | G45: 0 | H45: 0 | I45: 1 | J45: 0 | K45: 0 | L45: 0 | M45: 1 | N45: 3 | S45: 5 | T45: 0.0%
A46: PEDIATRAS | B46: PEDIATRAS | C46: DR. JUAN LUIS FIGUEROA | D46: 01-USAQUEN | E46: 0 | F46: 0 | G46: 2 | H46: 0 | I46: 0 | J46: 0 | K46: 2 | L46: 1 | M46: 0 | N46: 1 | S46: 6 | T46: 0.0%
A47: PEDIATRAS | B47: PEDIATRAS | C47: DR. LUIS AUGUSTO PERNA | D47: 01-USAQUEN | E47: 0 | F47: 0 | G47: 4 | H47: 1 | I47: 5 | J47: 0 | K47: 2 | L47: 3 | M47: 3 | N47: 5 | S47: 23 | T47: 0.0%
A48: PEDIATRAS | B48: PEDIATRAS | C48: DR. LIBARDO ELI TRIANA | D48: 01-USAQUEN | E48: 0 | F48: 0 | G48: 0 | H48: 1 | I48: 1 | J48: 1 | K48: 0 | L48: 0 | M48: 1 | N48: 1 | S48: 5 | T48: 0.0%
A49: PEDIATRAS | B49: PEDIATRAS | C49: DR. OSWALDO MERCADO HOYOS | D49: 01-USAQUEN | E49: 0 | F49: 0 | G49: 2 | H49: 3 | I49: 1 | J49: 0 | K49: 2 | L49: 1 | M49: 0 | N49: 1 | S49: 10 | T49: 0.0%
A50: PEDIATRAS | B50: PEDIATRAS | C50: DR. ROBERTO BENIRO | D50: 01-USAQUEN | E50: 0 | F50: 0 | G50: 0 | H50: 0 | I50: 0 | J50: 0 | K50: 0 | L50: 1 | M50: 2 | N50: 0 | S50: 3 | T50: 0.0%
A51: PEDIATRAS | B51: PEDIATRAS | C51: DR. SERGIO ISAZA | D51: 01-USAQUEN | E51: 0 | F51: 0 | G51: 0 | H51: 0 | I51: 0 | J51: 0 | K51: 0 | L51: 0 | M51: 0 | N51: 0 | S51: 0 | T51: 0.0% | U51: 0
A52: PEDIATRAS | B52: PEDIATRAS | C52: DR. SANTIAGO UCROS | D52: 01-USAQUEN | E52: 0 | F52: 0 | G52: 0 | H52: 0 | I52: 0 | J52: 0 | K52: 0 | L52: 0 | M52: 0 | N52: 0 | S52: 0 | T52: 0.0% | U52: 0
A53: PEDIATRAS | B53: PEDIATRAS | C53: DR. GERMAN SILVA | D53: 01-USAQUEN | E53: 0 | F53: 0 | G53: 0 | H53: 0 | I53: 0 | J53: 0 | K53: 0 | L53: 0 | M53: 0 | N53: 0 | S53: 0 | T53: 0.0% | U53: 0
A54: PEDIATRAS | B54: PEDIATRAS | C54: DR. DANIEL ABRIL | D54: 01-USAQUEN | E54: 0 | F54: 0 | G54: 0 | H54: 0 | I54: 0 | J54: 0 | K54: 0 | L54: 0 | M54: 0 | N54: 0 | S54: 0 | T54: 0.0% | U54: 0
A55: PEDIATRAS | B55: PEDIATRAS | C55: DR. CARLOS EDUARDO OLMOS | D55: 01-USAQUEN | E55: 0 | F55: 0 | G55: 0 | H55: 0 | I55: 0 | J55: 0 | K55: 0 | L55: 0 | M55: 0 | N55: 0 | S55: 0 | T55: 0.0% | U55: 0
A56: PEDIATRAS | B56: PEDIATRAS | C56: DR. EDGARDO CHATMAN | D56: 01-USAQUEN | E56: 0 | F56: 0 | G56: 0 | H56: 0 | I56: 0 | J56: 0 | K56: 0 | L56: 0 | M56: 0 | N56: 0 | S56: 0 | T56: 0.0% | U56: 0
A57: PEDIATRAS | B57: PEDIATRAS | C57: DR. JORGE FLOREZ OTERO | D57: 01-USAQUEN | E57: 0 | F57: 0 | G57: 0 | H57: 0 | I57: 0 | J57: 0 | K57: 0 | L57: 0 | M57: 0 | N57: 0 | S57: 0 | T57: 0.0% | U57: 0
A58: PEDIATRAS | B58: PEDIATRAS | C58: DRA. ALEJANDRA MARIA VALENCIA | D58: 01-USAQUEN | E58: 0 | F58: 0 | G58: 0 | H58: 0 | I58: 0 | J58: 0 | K58: 0 | L58: 0 | M58: 0 | N58: 0 | S58: 0 | T58: 0.0% | U58: 0
A59: PEDIATRAS | B59: PEDIATRAS | C59: DRA. ANA MARIA GOYENECHE | D59: 01-USAQUEN | E59: 0 | F59: 0 | G59: 0 | H59: 0 | I59: 0 | J59: 0 | K59: 0 | L59: 0 | M59: 0 | N59: 0 | S59: 0 | T59: 0.0% | U59: 0
A60: PEDIATRAS | B60: PEDIATRAS | C60: DRA. JIMENA VARELA | D60: 01-USAQUEN | E60: 0 | F60: 0 | G60: 0 | H60: 0 | I60: 0 | J60: 0 | K60: 0 | L60: 0 | M60: 0 | N60: 1 | S60: 1 | T60: 0.0%
A61: PEDIATRAS | B61: PEDIATRAS | C61: DRA. LIA SAN MIGUEL | D61: 01-USAQUEN | E61: 0 | F61: 0 | G61: 0 | H61: 0 | I61: 0 | J61: 1 | K61: 0 | L61: 1 | M61: 2 | N61: 0 | S61: 4 | T61: 0.0%
A62: PEDIATRAS | B62: PEDIATRAS | C62: DRA. LIBIA SEGURA | D62: 01-USAQUEN | E62: 0 | F62: 0 | G62: 2 | H62: 0 | I62: 1 | J62: 1 | K62: 0 | L62: 0 | M62: 0 | N62: 0 | S62: 4 | T62: 0.0%
A63: PEDIATRAS | B63: PEDIATRAS | C63: DRA. MARÍA JOSÉ PEDRAZA | D63: 01-USAQUEN | E63: 0 | F63: 0 | G63: 0 | H63: 0 | I63: 0 | J63: 0 | K63: 0 | L63: 0 | M63: 0 | N63: 0 | S63: 0 | T63: 0.0% | U63: 0
A64: PEDIATRAS | B64: PEDIATRAS | C64: DRA. MARTHA LUCIA SANCHEZ | D64: 01-USAQUEN | E64: 0 | F64: 0 | G64: 0 | H64: 0 | I64: 0 | J64: 0 | K64: 0 | L64: 0 | M64: 0 | N64: 0 | S64: 0 | T64: 0.0% | U64: 0
A65: PEDIATRAS | B65: PEDIATRAS | C65: DRA. OLGA LUCÍA SÁNCHEZ | D65: 01-USAQUEN | E65: 0 | F65: 0 | G65: 0 | H65: 0 | I65: 0 | J65: 0 | K65: 0 | L65: 0 | M65: 0 | N65: 0 | S65: 0 | T65: 0.0% | U65: 0
A66: PEDIATRAS | B66: PEDIATRAS | C66: DRA. SANDRA BELTRAN | D66: 01-USAQUEN | E66: 0 | F66: 0 | G66: 1 | H66: 1 | I66: 1 | J66: 0 | K66: 0 | L66: 2 | M66: 2 | N66: 2 | S66: 9 | T66: =IF(E66=0,0,+S66/E66) -> 0.0% | U66: =IF(COUNT(G66:R66)*(E66/12)-S66<0,"",COUNT(G66:R66)*(E66/12)-S66) -> 
A67: PEDIATRAS | B67: PEDIATRAS | C67: DRA. IVANA CABRERA | D67: 01-USAQUEN | E67: 0 | F67: =+E67/12 -> 0 | G67: 0 | H67: 0 | I67: 0 | J67: 0 | K67: 0 | L67: 0 | M67: 1 | N67: 0 | S67: =SUM(G67:R67) -> 1 | T67: 0.0%
A68: PEDIATRAS | B68: PEDIATRAS | C68: DRA. NAYITA ALARCON | D68: 01-USAQUEN | E68: 0 | F68: 0 | G68: 0 | H68: 0 | I68: 0 | J68: 0 | K68: 0 | L68: 0 | M68: 0 | N68: 0 | S68: 0 | T68: 0.0% | U68: 0
A69: PEDIATRAS | B69: PEDIATRAS | C69: DRA. ELIZABETH GARCIA | D69: 01-USAQUEN | E69: 0 | F69: 0 | G69: 0 | H69: 0 | I69: 0 | J69: 0 | K69: 0 | L69: 0 | M69: 0 | N69: 0 | S69: 0 | T69: 0.0% | U69: 0
A70: PEDIATRAS | B70: PEDIATRAS | C70: DRA. BERTHA CALDERON DE RAMOS | D70: 01-USAQUEN | E70: 0 | F70: 0 | G70: 0 | H70: 0 | I70: 0 | J70: 0 | K70: 0 | L70: 0 | M70: 0 | N70: 0 | S70: 0 | T70: 0.0% | U70: 0
A71: PEDIATRAS | B71: PEDIATRAS | C71: DRA. MIRYAM CORREA | D71: 01-USAQUEN | E71: 0 | F71: 0 | G71: 0 | H71: 1 | I71: 0 | J71: 0 | K71: 0 | L71: 0 | M71: 0 | N71: 0 | S71: 1 | T71: 0.0%
A72: 01-USAQUEN | B72: UNICAJAS | C72: UPA SAN CRISTOBAL | D72: 01-USAQUEN | E72: 6 | F72: 1 | G72: 1 | H72: 0 | I72: 0 | J72: 1 | K72: 0 | L72: 0 | M72: 0 | N72: 0 | S72: 2 | T72: 33.3% | U72: 2
A73: UNICAJAS | B73: UNICAJAS | C73: UPA USAQUEN | D73: 01-USAQUEN | E73: 9 | F73: 1 | G73: 0 | H73: 0 | I73: 0 | J73: 0 | K73: 0 | L73: 0 | M73: 0 | N73: 0 | S73: 0 | T73: 0.0% | U73: 6
A74: UNICAJAS | B74: UNICAJAS | C74: UPA ORQUIDEAS | D74: 01-USAQUEN | E74: 6 | F74: 1 | G74: 0 | H74: 0 | I74: 0 | J74: 0 | K74: 1 | L74: 0 | M74: 0 | N74: 1 | S74: 2 | T74: 33.3% | U74: 2
A75: UNICAJAS | B75: UNICAJAS | C75: UPA CODITO | D75: 01-USAQUEN | E75: 5 | F75: 0 | G75: 0 | H75: 0 | I75: 0 | J75: 0 | K75: 0 | L75: 0 | M75: 0 | N75: 1 | S75: 1 | T75: 20.0% | U75: 2
A76: UNICAJAS | B76: UNICAJAS | C76: CAMI VERBENAL | D76: 01-USAQUEN | E76: 6 | F76: 1 | G76: 0 | H76: 0 | I76: 2 | J76: 1 | K76: 1 | L76: 1 | M76: 0 | N76: 0 | S76: 5 | T76: 83.3%
A77: 01-USAQUEN | B77: UNICAJAS | C77: HOSPITAL SIMON BOLIVAR | D77: 01-USAQUEN | E77: 6 | F77: 1 | G77: 1 | H77: 1 | I77: 0 | J77: 1 | K77: 0 | L77: 0 | M77: 1 | N77: 0 | S77: 4 | T77: 66.7% | U77: 0
A78: 01-USAQUEN | B78: OTROS | C78: UPA SAN CRISTOBAL | D78: 01-USAQUEN | E78: 300 | F78: 25 | G78: 1 | H78: 3 | I78: 2 | J78: 3 | K78: 1 | L78: 11 | M78: 4 | N78: 3 | S78: 28 | T78: 9.3% | U78: 172
A79: 01-USAQUEN | B79: OTROS | C79: UPA USAQUEN | D79: 01-USAQUEN | E79: 100 | F79: 8 | G79: 0 | H79: 0 | I79: 0 | J79: 0 | K79: 0 | L79: 0 | M79: 0 | N79: 0 | S79: 0 | T79: 0.0% | U79: 67
A80: 01-USAQUEN | B80: OTROS | C80: UPA ORQUIDEAS | D80: 01-USAQUEN | E80: 120 | F80: 10 | G80: 1 | H80: 0 | I80: 0 | J80: 2 | K80: 1 | L80: 2 | M80: 1 | N80: 0 | S80: 7 | T80: 5.8% | U80: 73
A81: 01-USAQUEN | B81: OTROS | C81: UPA CODITO | D81: 01-USAQUEN | E81: 218 | F81: 18 | G81: 4 | H81: 0 | I81: 1 | J81: 1 | K81: 0 | L81: 1 | M81: 8 | N81: 4 | S81: 19 | T81: 8.7% | U81: 126
A82: 01-USAQUEN | B82: OTROS | C82: CAMI VERBENAL | D82: 01-USAQUEN | E82: 309 | F82: 26 | G82: 4 | H82: 3 | I82: 2 | J82: 1 | K82: 1 | L82: 4 | M82: 5 | N82: 3 | S82: 23 | T82: 7.4% | U82: 183
A83: 01-USAQUEN | B83: OTROS | C83: HOSPITAL SIMON BOLIVAR | D83: 01-USAQUEN | E83: 480 | F83: 40 | G83: 8 | H83: 11 | I83: 8 | J83: 4 | K83: 1 | L83: 2 | M83: 5 | N83: 8 | S83: 47 | T83: 9.8% | U83: 273
A84: 01-USAQUEN | B84: DEMAS EAPB | C84: UPA SAN CRISTOBAL | D84: 01-USAQUEN | E84: 0 | F84: 0 | G84: 10 | H84: 8 | I84: 11 | J84: 8 | K84: 8 | L84: 6 | M84: 3 | N84: 10 | S84: 64 | T84: 0.0%
A85: 01-USAQUEN | B85: DEMAS EAPB | C85: UPA USAQUEN | D85: 01-USAQUEN | E85: 0 | F85: 0 | G85: 2 | H85: 0 | I85: 0 | J85: 0 | K85: 0 | L85: 0 | M85: 0 | N85: 0 | S85: 2 | T85: 0.0%
A86: 01-USAQUEN | B86: DEMAS EAPB | C86: UPA ORQUIDEAS | D86: 01-USAQUEN | E86: 0 | F86: 0 | G86: 2 | H86: 2 | I86: 4 | J86: 6 | K86: 3 | L86: 1 | M86: 2 | N86: 3 | S86: 23 | T86: 0.0%
A87: 01-USAQUEN | B87: DEMAS EAPB | C87: UPA CODITO | D87: 01-USAQUEN | E87: 0 | F87: 0 | G87: 7 | H87: 11 | I87: 12 | J87: 11 | K87: 11 | L87: 12 | M87: 9 | N87: 5 | S87: 78 | T87: 0.0%
A88: 01-USAQUEN | B88: DEMAS EAPB | C88: CAMI VERBENAL | D88: 01-USAQUEN | E88: 0 | F88: 0 | G88: 4 | H88: 12 | I88: 12 | J88: 9 | K88: 21 | L88: 6 | M88: 5 | N88: 14 | S88: 83 | T88: 0.0%
A89: 01-USAQUEN | B89: DEMAS EAPB | C89: HOSPITAL SIMON BOLIVAR | D89: 01-USAQUEN | E89: 0 | F89: 0 | G89: 16 | H89: 20 | I89: 6 | J89: 9 | K89: 11 | L89: 2 | M89: 3 | N89: 2 | S89: 69 | T89: 0.0%
A90: MEDIMAS | B90: MEDIMAS | C90: Corvesalud S.A.S - I P S Chico | D90: 01-USAQUEN | E90: 320 | F90: 27 | G90: 5 | H90: 5 | I90: 7 | M90: 1 | N90: 1 | S90: 19 | T90: 5.9% | U90: 114
A91: FAMISANAR | B91: COLSUBSIDIO | C91: Sura PAC Santa Bárbara | D91: 01-USAQUEN | E91: 0 | F91: 0 | S91: 0 | T91: 0.0% | U91: 0
A92: CAPITAL SALUD | B92: CAPITAL SALUD | C92: UPA SAN LUIS | D92: 02-CHAPINERO | E92: 12 | F92: 1 | G92: 4 | H92: 2 | I92: 2 | J92: 0 | K92: 2 | L92: 3 | M92: 4 | N92: 0 | S92: 17 | T92: 141.7%
A93: 02-CHAPINERO | B93: 02-CHAPINERO | C93: EXTRAMURAL CHAPINERO | D93: 02-CHAPINERO | E93: 0 | F93: 0 | G93: 1 | H93: 1 | I93: 2 | J93: 13 | K93: 19 | L93: 10 | M93: 8 | N93: 12 | S93: 66 | T93: 0.0%
A94: COMPENSAR | B94: COMPENSAR | C94: USS CALLE 42 | D94: 02-CHAPINERO | E94: 612 | F94: 51 | G94: 29 | H94: 43 | I94: 25 | J94: 36 | K94: 28 | L94: 51 | M94: 37 | N94: 40 | S94: 289 | T94: 47.2% | U94: 119
A95: COMPENSAR | B95: COMPENSAR | C95: USS CALLE 67 | D95: 02-CHAPINERO | E95: 0 | F95: 0 | G95: 0 | H95: 0 | I95: 0 | J95: 0 | K95: 0 | L95: 0 | M95: 0 | N95: 0 | S95: 0 | T95: 0.0% | U95: 0
A96: COMPENSAR | B96: COMPENSAR | C96: USS CALLE 94 | D96: 02-CHAPINERO | E96: 369 | F96: 31 | G96: 35 | H96: 41 | I96: 27 | J96: 46 | K96: 63 | L96: 81 | M96: 62 | N96: 66 | S96: 421 | T96: 114.1%
A97: COMPENSAR | B97: COMPENSAR | C97: VIVA 1A IPS CHAPINERO | D97: 02-CHAPINERO | E97: 73 | F97: 6 | G97: 4 | H97: 6 | I97: 6 | J97: 2 | K97: 3 | L97: 6 | M97: 9 | N97: 2 | S97: 38 | T97: 52.1% | U97: 11
A98: COOMEVA | B98: COOMEVA | C98: SINERGIA UNIDAD BASICA LOURDES | D98: 02-CHAPINERO | E98: 217 | F98: 18 | G98: 9 | H98: 10 | I98: 10 | J98: 3 | K98: 0 | L98: 0 | M98: 0 | N98: 4 | S98: 36 | T98: 16.6% | U98: 109
A99: FAMISANAR | B99: FAMI- CAFAM | C99: CENTRO DE ATENCION EN SALUD CAFAM CALLE 48 | D99: 02-CHAPINERO | E99: 1050 | F99: 88 | G99: 31 | H99: 35 | I99: 21 | J99: 19 | K99: 31 | L99: 32 | M99: 32 | N99: 34 | S99: 235 | T99: 22.4% | U99: 465
A100: FAMISANAR | B100: FAMI- CAFAM | C100: CENTRO DE ATENCION EN SALUD CAFAM CALLE 90 | D100: 02-CHAPINERO | E100: 200 | F100: 17 | G100: 11 | H100: 7 | I100: 20 | J100: 5 | K100: 10 | L100: 8 | M100: 5 | N100: 9 | S100: 75 | T100: 37.5% | U100: 58
A101: FAMISANAR | B101: FAMI- COLSB | C101: CLINICA COLSUBSIDIO EL LAGO | D101: 02-CHAPINERO | E101: 392 | F101: 33 | G101: 10 | H101: 11 | I101: 6 | J101: 5 | K101: 7 | L101: 5 | M101: 5 | N101: 5 | S101: 54 | T101: 13.8% | U101: 207
A102: MILITAR | B102: MILITAR | C102: HOSPITAL MILITAR CENTRAL | D102: 02-CHAPINERO | E102: 70 | F102: 6 | G102: 10 | H102: 11 | I102: 4 | J102: 6 | K102: 3 | L102: 5 | M102: 3 | N102: 6 | S102: 48 | T102: 68.6%
A103: POLICIA | B103: POLICIA | C103: POLICIA NACIONAL ESPAM CHAPINERO | D103: 02-CHAPINERO | E103: 117 | F103: 10 | G103: 4 | H103: 0 | I103: 9 | J103: 32 | K103: 25 | L103: 24 | M103: 18 | N103: 26 | S103: 138 | T103: 117.9%
A104: NUEVA EPS | B104: NUEVA EPS | C104: IPS VIVA 1A SEDE MARLY | D104: 02-CHAPINERO | E104: 131 | F104: 11 | G104: 9 | H104: 5 | I104: 2 | J104: 2 | K104: 4 | L104: 3 | M104: 4 | N104: 3 | S104: 32 | T104: 24.4% | U104: 55
A105: SANITAS | B105: SANITAS | C105: EPS SANITAS CENTRO MEDICO TEUSAQUILLO | D105: 02-CHAPINERO | E105: 579 | F105: 48 | G105: 28 | H105: 23 | I105: 28 | J105: 12 | K105: 14 | L105: 15 | M105: 18 | N105: 18 | S105: 156 | T105: 26.9% | U105: 230
A106: SALUD TOTAL | B106: SALUD TOTAL | C106: VIRREY SOLIS CHAPINERO | D106: 02-CHAPINERO | E106: 337 | F106: 28 | G106: 16 | H106: 13 | I106: 16 | J106: 9 | K106: 16 | L106: 31 | M106: 25 | N106: 42 | S106: 168 | T106: 49.9% | U106: 57
A107: SURA | B107: SURA | C107: PUNTO DE SALUD CHAPINERO | D107: 02-CHAPINERO | E107: 237 | F107: 20 | G107: 13 | H107: 9 | I107: 14 | J107: 5 | K107: 14 | L107: 10 | M107: 1 | N107: 0 | S107: 66 | T107: 27.8% | U107: 92
A108: SURA | B108: SURA | C108: SALUD SURA | D108: 02-CHAPINERO | E108: 454 | F108: 38 | G108: 47 | H108: 29 | I108: 36 | J108: 14 | K108: 32 | L108: 26 | M108: 24 | N108: 26 | S108: 234 | T108: 51.5% | U108: 69
A109: PARTICULAR | B109: PARTICULAR | C109: CENTRO MEDICO COLSANITAS CALLE 96 | D109: 02-CHAPINERO | E109: 24 | F109: 2 | G109: 2 | H109: 1 | I109: 2 | J109: 16 | K109: 12 | L109: 15 | M109: 13 | N109: 18 | S109: 79 | T109: 329.2%
A110: PARTICULAR | B110: PARTICULAR | C110: CENTRO DE ESPECIALISTAS MEDICOS AXA COLPATRIA | D110: 02-CHAPINERO | E110: 0 | F110: 0 | G110: 5 | H110: 6 | I110: 5 | J110: 5 | K110: 9 | L110: 9 | M110: 10 | N110: 12 | S110: 61 | T110: 0.0%
A111: PARTICULAR | B111: PARTICULAR | C111: CLINICA DE LA MUJER | D111: 02-CHAPINERO | E111: 0 | F111: 0 | G111: 46 | H111: 39 | I111: 48 | J111: 24 | K111: 39 | L111: 48 | M111: 44 | N111: 35 | S111: 323 | T111: 0.0%
A112: PARTICULAR | B112: PARTICULAR | C112: VACUNARTE IPS | D112: 02-CHAPINERO | E112: 0 | F112: 0 | G112: 0 | H112: 3 | I112: 1 | J112: 1 | K112: 1 | L112: 2 | M112: 1 | N112: 2 | S112: 11 | T112: 0.0%
A113: PARTICULAR | B113: PARTICULAR | C113: UNIMARLY | D113: 02-CHAPINERO | E113: 0 | F113: 0 | G113: 0 | H113: 0 | I113: 0 | J113: 0 | K113: 0 | L113: 0 | M113: 0 | N113: 0 | S113: 0 | T113: 0.0% | U113: 0
A114: PARTICULAR | B114: PARTICULAR | C114: HOSPITAL SAN IGNACIO | D114: 02-CHAPINERO | E114: 0 | F114: 0 | G114: 13 | H114: 7 | I114: 4 | J114: 5 | K114: 0 | L114: 3 | M114: 3 | N114: 4 | S114: 39 | T114: 0.0%
A115: PARTICULAR | B115: PARTICULAR | C115: PROGRAMA MADRE CANGURO HOSPITAL SAN IGNACIO | D115: 02-CHAPINERO | E115: 0 | F115: 0 | G115: 92 | H115: 100 | I115: 80 | J115: 74 | K115: 66 | L115: 74 | M115: 84 | N115: 79 | S115: 649 | T115: 0.0%
A116: PARTICULAR | B116: PARTICULAR | C116: IPS AVENIR | D116: 02-CHAPINERO | E116: 0 | F116: 0 | G116: 0 | H116: 0 | I116: 0 | J116: 0 | K116: 0 | L116: 0 | M116: 0 | N116: 0 | S116: 0 | T116: 0.0% | U116: 0
A117: PARTICULAR | B117: PARTICULAR | C117: IPS INMUNOLOGIA Y DIAGNOSTICO ESPECIALIZADO | D117: 02-CHAPINERO | E117: 0 | F117: 0 | G117: 0 | H117: 1 | I117: 1 | J117: 0 | K117: 4 | L117: 1 | M117: 2 | N117: 2 | S117: 11 | T117: 0.0%
A118: PARTICULAR | B118: PARTICULAR | C118: ASOCIACION PEDIATRICA DE LOS ANDES | D118: 02-CHAPINERO | E118: 0 | F118: 0 | G118: 1 | H118: 0 | I118: 0 | J118: 0 | K118: 0 | L118: 0 | M118: 0 | N118: 0 | S118: 1 | T118: 0.0%
A119: PARTICULAR | B119: PARTICULAR | C119: CRUZ ROJA SEDE ANDINO | D119: 02-CHAPINERO | E119: 0 | F119: 0 | G119: 0 | H119: 0 | I119: 0 | J119: 0 | K119: 0 | L119: 0 | M119: 0 | N119: 0 | S119: 0 | T119: 0.0% | U119: 0
A120: PARTICULAR | B120: PARTICULAR | C120: CENTRO MEDICO SANTA MONICA | D120: 02-CHAPINERO | E120: 0 | F120: 0 | G120: 0 | H120: 0 | I120: 0 | J120: 6 | K120: 8 | L120: 10 | M120: 0 | N120: 0 | S120: 24 | T120: 0.0%
A121: PEDIATRAS | B121: PEDIATRAS | C121: DR. JUAN OSCAR TAMAYO | D121: 02-CHAPINERO | E121: 0 | F121: 0 | G121: 0 | H121: 0 | I121: 0 | J121: 0 | K121: 0 | L121: 0 | M121: 0 | N121: 0 | S121: 0 | T121: 0.0% | U121: 0
A122: PEDIATRAS | B122: PEDIATRAS | C122: DR. ROBERTO SUAREZ | D122: 02-CHAPINERO | E122: 0 | F122: 0 | G122: 0 | H122: 0 | I122: 0 | J122: 0 | K122: 0 | L122: 0 | M122: 0 | N122: 0 | S122: 0 | T122: 0.0% | U122: 0
A123: PEDIATRAS | B123: PEDIATRAS | C123: DR. WILLIAM RICARDO CABRA | D123: 02-CHAPINERO | E123: 0 | F123: 0 | G123: 3 | H123: 2 | I123: 0 | J123: 2 | K123: 0 | L123: 1 | M123: 2 | N123: 0 | S123: 10 | T123: 0.0%
A124: PEDIATRAS | B124: PEDIATRAS | C124: DR. EDGAR CASTRO | D124: 02-CHAPINERO | E124: 0 | F124: 0 | G124: 5 | H124: 2 | I124: 0 | J124: 7 | K124: 5 | L124: 2 | M124: 1 | N124: 3 | S124: 25 | T124: 0.0%
A125: PEDIATRAS | B125: PEDIATRAS | C125: DR. PABLO KRAUSS | D125: 02-CHAPINERO | E125: 0 | F125: 0 | G125: 3 | H125: 1 | I125: 1 | J125: 0 | K125: 0 | L125: 0 | M125: 0 | N125: 0 | S125: 5 | T125: 0.0%
A126: PEDIATRAS | B126: PEDIATRAS | C126: DR. HERNAN ROBLES | D126: 02-CHAPINERO | E126: 0 | F126: 0 | G126: 4 | H126: 3 | I126: 6 | J126: 4 | K126: 3 | L126: 5 | M126: 7 | N126: 10 | S126: 42 | T126: 0.0%
A127: PEDIATRAS | B127: PEDIATRAS | C127: DR. RAFAEL GAMBOA CASABLANCA | D127: 02-CHAPINERO | E127: 0 | F127: 0 | G127: 13 | H127: 5 | I127: 9 | J127: 4 | K127: 5 | L127: 3 | M127: 6 | N127: 4 | S127: 49 | T127: 0.0%
A128: PEDIATRAS | B128: PEDIATRAS | C128: DR. JAVIER MEJIA | D128: 02-CHAPINERO | E128: 0 | F128: 0 | G128: 2 | H128: 2 | I128: 4 | J128: 2 | K128: 2 | L128: 4 | M128: 5 | N128: 2 | S128: 23 | T128: 0.0%
A129: PEDIATRAS | B129: PEDIATRAS | C129: DR. CARLOS CORTAZAR | D129: 02-CHAPINERO | E129: 0 | F129: 0 | G129: 0 | H129: 0 | I129: 0 | J129: 0 | K129: 0 | L129: 0 | M129: 0 | N129: 0 | S129: 0 | T129: 0.0% | U129: 0
A130: PEDIATRAS | B130: PEDIATRAS | C130: DR. NELSON PARDO | D130: 02-CHAPINERO | E130: 0 | F130: 0 | G130: 2 | H130: 1 | I130: 4 | J130: 0 | K130: 0 | L130: 3 | M130: 0 | N130: 0 | S130: 10 | T130: =IF(E130=0,0,+S130/E130) -> 0.0% | U130: =IF(COUNT(G130:R130)*(E130/12)-S130<0,"",COUNT(G130:R130)*(E130/12)-S130) -> 
A131: PEDIATRAS | B131: PEDIATRAS | C131: DR. ALVARO JACOME | D131: 02-CHAPINERO | E131: 0 | F131: =+E131/12 -> 0 | G131: 3 | H131: 1 | I131: 0 | J131: 4 | K131: 1 | L131: 0 | M131: 0 | N131: 0 | S131: =SUM(G131:R131) -> 9 | T131: 0.0%
A132: PEDIATRAS | B132: PEDIATRAS | C132: DR. SILVIO COPO | D132: 02-CHAPINERO | E132: 0 | F132: 0 | G132: 0 | H132: 1 | I132: 0 | J132: 0 | K132: 0 | L132: 0 | M132: 0 | N132: 0 | S132: 1 | T132: 0.0%
A133: PEDIATRAS | B133: PEDIATRAS | C133: DR. HECTOR FERNANDO MENDOZA | D133: 02-CHAPINERO | E133: 0 | F133: 0 | G133: 0 | H133: 0 | I133: 0 | J133: 0 | K133: 1 | L133: 0 | M133: 1 | N133: 0 | S133: 2 | T133: 0.0%
A134: PEDIATRAS | B134: PEDIATRAS | C134: DR. DIMITRIOS | D134: 02-CHAPINERO | E134: 0 | F134: 0 | G134: 0 | H134: 1 | I134: 0 | J134: 1 | K134: 0 | L134: 0 | M134: 0 | N134: 0 | S134: 2 | T134: 0.0%
A135: PEDIATRAS | B135: PEDIATRAS | C135: DR. ALVARO MARIÑO | D135: 02-CHAPINERO | E135: 0 | F135: 0 | G135: 0 | H135: 1 | I135: 0 | J135: 0 | K135: 0 | L135: 0 | M135: 0 | N135: 0 | S135: 1 | T135: 0.0%
A136: PEDIATRAS | B136: PEDIATRAS | C136: DR. ANDRES VARGAS | D136: 02-CHAPINERO | E136: 0 | F136: 0 | G136: 2 | H136: 1 | I136: 1 | J136: 0 | K136: 1 | L136: 1 | M136: 3 | N136: 1 | S136: 10 | T136: 0.0%
A137: PEDIATRAS | B137: PEDIATRAS | C137: DR. JORGE CAMILO LUNA | D137: 02-CHAPINERO | E137: 0 | F137: 0 | G137: 1 | H137: 5 | I137: 1 | J137: 18 | K137: 5 | L137: 8 | M137: 16 | N137: 13 | S137: 67 | T137: 0.0%
A138: PEDIATRAS | B138: PEDIATRAS | C138: DR. BERNARDO HUERTAS | D138: 02-CHAPINERO | E138: 0 | F138: 0 | G138: 6 | H138: 10 | I138: 9 | J138: 11 | K138: 3 | L138: 4 | M138: 6 | N138: 9 | S138: 58 | T138: 0.0%
A139: PEDIATRAS | B139: PEDIATRAS | C139: DR. CARLOS M CASTILLO | D139: 02-CHAPINERO | E139: 0 | F139: 0 | G139: 0 | H139: 0 | I139: 0 | J139: 0 | K139: 0 | L139: 0 | M139: 0 | N139: 0 | S139: 0 | T139: 0.0% | U139: 0
A140: PEDIATRAS | B140: PEDIATRAS | C140: DR. HEINZ OTTO PFALZGRAF | D140: 02-CHAPINERO | E140: 0 | F140: 0 | G140: 0 | H140: 0 | I140: 0 | J140: 0 | K140: 0 | L140: 0 | M140: 0 | N140: 0 | S140: 0 | T140: 0.0% | U140: 0
A141: PEDIATRAS | B141: PEDIATRAS | C141: DR. GONZALEZ BALLESTEROS | D141: 02-CHAPINERO | E141: 0 | F141: 0 | G141: 0 | H141: 0 | I141: 0 | J141: 0 | K141: 0 | L141: 0 | M141: 0 | N141: 0 | S141: 0 | T141: 0.0% | U141: 0
A142: PEDIATRAS | B142: PEDIATRAS | C142: DR. NORBERTO SALAMANCA | D142: 02-CHAPINERO | E142: 0 | F142: 0 | G142: 0 | H142: 0 | I142: 0 | J142: 0 | K142: 0 | L142: 0 | M142: 0 | N142: 1 | S142: 1 | T142: 0.0%
A143: PEDIATRAS | B143: PEDIATRAS | C143: DR. CAMILO ENRIQUE SOTOMAYOR | D143: 02-CHAPINERO | E143: 0 | F143: 0 | G143: 0 | H143: 2 | I143: 0 | J143: 0 | K143: 0 | L143: 2 | M143: 1 | N143: 1 | S143: 6 | T143: 0.0%
A144: PEDIATRAS | B144: PEDIATRAS | C144: DR. SANTIAGO RUEDA SAIZ | D144: 02-CHAPINERO | E144: 0 | F144: 0 | G144: 0 | H144: 2 | I144: 0 | J144: 0 | K144: 4 | L144: 0 | M144: 0 | N144: 0 | S144: 6 | T144: 0.0%
A145: PEDIATRAS | B145: PEDIATRAS | C145: DR. HENRY HERNANDO SANCHEZ ESCOBAR | D145: 02-CHAPINERO | E145: 0 | F145: 0 | G145: 1 | H145: 1 | I145: 0 | J145: 0 | K145: 1 | L145: 1 | M145: 0 | N145: 1 | S145: 5 | T145: 0.0%
A146: PEDIATRAS | B146: PEDIATRAS | C146: DR. RUBEN DARIO TAMAYO | D146: 02-CHAPINERO | E146: 0 | F146: 0 | G146: 2 | H146: 2 | I146: 0 | J146: 0 | K146: 1 | L146: 2 | M146: 3 | N146: 3 | S146: 13 | T146: 0.0%
A147: PEDIATRAS | B147: PEDIATRAS | C147: DR. JAIME MAURICIO MATALLANA | D147: 02-CHAPINERO | E147: 0 | F147: 0 | G147: 6 | H147: 4 | I147: 8 | J147: 3 | K147: 5 | L147: 6 | M147: 6 | N147: 5 | S147: 43 | T147: 0.0%
A148: PEDIATRAS | B148: PEDIATRAS | C148: DR. RODRIGO GARCIA | D148: 02-CHAPINERO | E148: 0 | F148: 0 | G148: 0 | H148: 0 | I148: 0 | J148: 0 | K148: 0 | L148: 0 | M148: 0 | N148: 0 | S148: 0 | T148: 0.0% | U148: 0
A149: PEDIATRAS | B149: PEDIATRAS | C149: DR. FELIPE ROBAYO | D149: 02-CHAPINERO | E149: 0 | F149: 0 | G149: 0 | H149: 0 | I149: 0 | J149: 0 | K149: 0 | L149: 0 | M149: 0 | N149: 0 | S149: 0 | T149: 0.0% | U149: 0
A150: PEDIATRAS | B150: PEDIATRAS | C150: DR. RUBEN FRANCO | D150: 02-CHAPINERO | E150: 0 | F150: 0 | G150: 0 | H150: 0 | I150: 1 | J150: 4 | K150: 0 | L150: 0 | M150: 0 | N150: 0 | S150: 5 | T150: 0.0%
A151: PEDIATRAS | B151: PEDIATRAS | C151: DR. ORLANDO RODRIGUEZ RAMIREZ | D151: 02-CHAPINERO | E151: 0 | F151: 0 | G151: 2 | H151: 0 | I151: 0 | J151: 0 | K151: 3 | L151: 3 | M151: 0 | N151: 2 | S151: 10 | T151: 0.0%
A152: PEDIATRAS | B152: PEDIATRAS | C152: DR. ARTURO MORENO | D152: 02-CHAPINERO | E152: 0 | F152: 0 | G152: 0 | H152: 0 | I152: 0 | J152: 0 | K152: 0 | L152: 0 | M152: 0 | N152: 0 | S152: 0 | T152: 0.0% | U152: 0
A153: PEDIATRAS | B153: PEDIATRAS | C153: DR. FRANCISCO LEAL QUEVEDO | D153: 02-CHAPINERO | E153: 0 | F153: 0 | G153: 0 | H153: 0 | I153: 0 | J153: 0 | K153: 0 | L153: 0 | M153: 0 | N153: 0 | S153: 0 | T153: 0.0% | U153: 0
A154: PEDIATRAS | B154: PEDIATRAS | C154: DR. CARLOS DIAZ PUENTES | D154: 02-CHAPINERO | E154: 0 | F154: 0 | G154: 0 | H154: 0 | I154: 0 | J154: 0 | K154: 0 | L154: 0 | M154: 0 | N154: 0 | S154: 0 | T154: 0.0% | U154: 0
A155: PEDIATRAS | B155: PEDIATRAS | C155: DR. PEDRO ERASMO MENDOZA | D155: 02-CHAPINERO | E155: 0 | F155: 0 | G155: 0 | H155: 0 | I155: 0 | J155: 0 | K155: 0 | L155: 0 | M155: 0 | N155: 0 | S155: 0 | T155: 0.0% | U155: 0
A156: PEDIATRAS | B156: PEDIATRAS | C156: DR. DIMAS ROSAS | D156: 02-CHAPINERO | E156: 0 | F156: 0 | G156: 0 | H156: 0 | I156: 0 | J156: 0 | K156: 0 | L156: 0 | M156: 0 | N156: 0 | S156: 0 | T156: 0.0% | U156: 0
A157: PEDIATRAS | B157: PEDIATRAS | C157: DR. JAVIER BRITO MORENO | D157: 02-CHAPINERO | E157: 0 | F157: 0 | G157: 0 | H157: 0 | I157: 0 | J157: 0 | K157: 0 | L157: 0 | M157: 0 | N157: 0 | S157: 0 | T157: 0.0% | U157: 0
A158: PEDIATRAS | B158: PEDIATRAS | C158: DR. GUSTAVO CORTÉS | D158: 02-CHAPINERO | E158: 0 | F158: 0 | G158: 0 | H158: 0 | I158: 0 | J158: 0 | K158: 0 | L158: 0 | M158: 0 | N158: 0 | S158: 0 | T158: 0.0% | U158: 0
A159: PEDIATRAS | B159: PEDIATRAS | C159: DR. CARLOS VELASQUEZ | D159: 02-CHAPINERO | E159: 0 | F159: 0 | G159: 0 | H159: 0 | I159: 0 | J159: 0 | K159: 0 | L159: 0 | M159: 0 | N159: 0 | S159: 0 | T159: 0.0% | U159: 0
A160: PEDIATRAS | B160: PEDIATRAS | C160: DR. RICARDO GOMEZ | D160: 02-CHAPINERO | E160: 0 | F160: 0 | G160: 0 | H160: 0 | I160: 0 | J160: 0 | K160: 0 | L160: 0 | M160: 0 | N160: 1 | S160: 1 | T160: 0.0%
A161: PEDIATRAS | B161: PEDIATRAS | C161: DR. SARA BERNAL | D161: 02-CHAPINERO | E161: 0 | F161: 0 | G161: 1 | H161: 2 | I161: 2 | J161: 0 | K161: 0 | L161: 0 | M161: 0 | N161: 2 | S161: 7 | T161: 0.0%
A162: PEDIATRAS | B162: PEDIATRAS | C162: DRA. MARIA PATRICIA AGUALIMPIA | D162: 02-CHAPINERO | E162: 0 | F162: 0 | G162: 0 | H162: 0 | I162: 0 | J162: 0 | K162: 0 | L162: 0 | M162: 0 | N162: 0 | S162: 0 | T162: 0.0% | U162: 0
A163: PEDIATRAS | B163: PEDIATRAS | C163: DRA. LUISA FERNANDA FORERO ACOSTA | D163: 02-CHAPINERO | E163: 0 | F163: 0 | G163: 0 | H163: 0 | I163: 0 | J163: 0 | K163: 0 | L163: 0 | M163: 0 | N163: 0 | S163: 0 | T163: 0.0% | U163: 0
A164: PEDIATRAS | B164: PEDIATRAS | C164: DRA. MARIA CLARA CASAS PARDO | D164: 02-CHAPINERO | E164: 0 | F164: 0 | G164: 0 | H164: 0 | I164: 0 | J164: 0 | K164: 0 | L164: 0 | M164: 0 | N164: 0 | S164: 0 | T164: 0.0% | U164: 0
A165: PEDIATRAS | B165: PEDIATRAS | C165: DRA. MARTHA EUGENIA RONDEROS DE FORERO | D165: 02-CHAPINERO | E165: 0 | F165: 0 | G165: 0 | H165: 0 | I165: 0 | J165: 0 | K165: 0 | L165: 0 | M165: 0 | N165: 0 | S165: 0 | T165: 0.0% | U165: 0
A166: PEDIATRAS | B166: PEDIATRAS | C166: DRA. MARIA ISABEL USCHER | D166: 02-CHAPINERO | E166: 0 | F166: 0 | G166: 4 | H166: 3 | I166: 2 | J166: 0 | K166: 4 | L166: 0 | M166: 3 | N166: 3 | S166: 19 | T166: 0.0%
A167: PEDIATRAS | B167: PEDIATRAS | C167: DRA. MARIA DE LOS ANGELES MUÑOZ | D167: 02-CHAPINERO | E167: 0 | F167: 0 | G167: 3 | H167: 0 | I167: 3 | J167: 0 | K167: 3 | L167: 2 | M167: 5 | N167: 0 | S167: 16 | T167: 0.0%
A168: PEDIATRAS | B168: PEDIATRAS | C168: DRA. CLARA ABELLO REYES | D168: 02-CHAPINERO | E168: 0 | F168: 0 | G168: 2 | H168: 1 | I168: 0 | J168: 0 | K168: 1 | L168: 0 | M168: 0 | N168: 0 | S168: 4 | T168: 0.0%
A169: PEDIATRAS | B169: PEDIATRAS | C169: DRA. PATRICIA CONTRERAS | D169: 02-CHAPINERO | E169: 0 | F169: 0 | G169: 0 | H169: 0 | I169: 3 | J169: 2 | K169: 2 | L169: 7 | M169: 5 | N169: 3 | S169: 22 | T169: 0.0%
A170: PEDIATRAS | B170: PEDIATRAS | C170: DRA. CLAUDIA ZOPPI | D170: 02-CHAPINERO | E170: 0 | F170: 0 | G170: 0 | H170: 0 | I170: 0 | J170: 1 | K170: 0 | L170: 0 | M170: 0 | N170: 0 | S170: 1 | T170: 0.0%
A171: PEDIATRAS | B171: PEDIATRAS | C171: DRA. MARIA DE LOS ANGELES FERNANDEZ LUQUE | D171: 02-CHAPINERO | E171: 0 | F171: 0 | G171: 0 | H171: 3 | I171: 0 | J171: 0 | K171: 0 | L171: 0 | M171: 0 | N171: 0 | S171: 3 | T171: 0.0%
A172: PEDIATRAS | B172: PEDIATRAS | C172: DRA. RUTH CORDOBA CORDOBA | D172: 02-CHAPINERO | E172: 0 | F172: 0 | G172: 0 | H172: 0 | I172: 0 | J172: 0 | K172: 0 | L172: 0 | M172: 0 | N172: 0 | S172: 0 | T172: 0.0% | U172: 0
A173: PEDIATRAS | B173: PEDIATRAS | C173: DRA. LUZ ESTELA CORTES | D173: 02-CHAPINERO | E173: 0 | F173: 0 | G173: 0 | H173: 0 | I173: 0 | J173: 0 | K173: 0 | L173: 0 | M173: 0 | N173: 0 | S173: 0 | T173: 0.0% | U173: 0
A174: UNICAJAS | B174: UNICAJAS | C174: UPA SAN LUIS | D174: 02-CHAPINERO | E174: 18 | F174: 2 | G174: 0 | H174: 0 | I174: 0 | J174: 0 | K174: 1 | L174: 0 | M174: 0 | N174: 0 | S174: 1 | T174: 5.6% | U174: 11
A175: 02-CHAPINERO | B175: OTROS | C175: UPA SAN LUIS | D175: 02-CHAPINERO | E175: 325 | F175: 27 | G175: 2 | H175: 1 | I175: 1 | J175: 3 | K175: 0 | L175: 1 | M175: 0 | N175: 1 | S175: 9 | T175: 2.8% | U175: 208
A176: 02-CHAPINERO | B176: DEMAS EAPB | C176: UPA SAN LUIS | D176: 02-CHAPINERO | E176: 0 | F176: 0 | G176: 6 | H176: 3 | I176: 5 | J176: 1 | K176: 8 | L176: 7 | M176: 3 | N176: 7 | S176: 40 | T176: 0.0%
A177: UNICAJAS | B177: UNICAJAS | C177: COMFASALUD SEDE CENTRO | D177: 03-SANTA FE | E177: 50 | F177: 4 | G177: 2 | H177: 1 | I177: 2 | J177: 1 | K177: 0 | L177: 0 | M177: 0 | N177: 0 | S177: 6 | T177: 12.0% | U177: 27
A178: MEDIMAS | B178: MEDIMAS | C178: CORVESALUD TEUSAQUILLO | D178: 03-SANTA FE | E178: 193 | F178: 16 | G178: 6 | H178: 7 | I178: 2 | J178: 0 | K178: 0 | L178: 0 | M178: 1 | N178: 1 | S178: 17 | T178: 8.8% | U178: 112
A179: 03-SANTA FE | B179: CAPITAL SALUD | C179: EXTRAMURAL SANTA FE | D179: 03-SANTA FE | E179: 0 | F179: 0 | G179: 7 | H179: 2 | I179: 11 | J179: 11 | K179: 11 | L179: 17 | M179: 9 | N179: 14 | S179: 82 | T179: 0.0%
A180: 03-SANTA FE | B180: DEMAS EAPB | C180: EXTRAMURAL SANTA FE | D180: 03-SANTA FE | E180: 0 | F180: 0 | G180: 0 | H180: 1 | I180: 10 | J180: 30 | K180: 17 | L180: 6 | M180: 12 | N180: 12 | S180: 88 | T180: 0.0%
A181: 03-SANTA FE | B181: OTROS | C181: EXTRAMURAL SANTA FE | D181: 03-SANTA FE | E181: 0 | F181: 0 | G181: 9 | H181: 8 | I181: 11 | J181: 6 | K181: 9 | L181: 17 | M181: 11 | N181: 18 | S181: 89 | T181: 0.0%
A182: 03-SANTA FE | B182: UNICAJAS | C182: EXTRAMURAL SANTA FE | D182: 03-SANTA FE | E182: 0 | F182: 0 | G182: 0 | H182: 0 | I182: 2 | J182: 3 | K182: 1 | L182: 0 | M182: 2 | N182: 0 | S182: 8 | T182: 0.0%
A183: 03-SANTA FE | B183: CAPITAL SALUD | C183: USS LACHES | D183: 03-SANTA FE | E183: 54 | F183: 5 | G183: 7 | H183: 12 | I183: 7 | J183: 0 | K183: 5 | L183: 2 | M183: 3 | N183: 4 | S183: 40 | T183: 74.1%
A184: 03-SANTA FE | B184: DEMAS EAPB | C184: USS LACHES | D184: 03-SANTA FE | E184: 0 | F184: 0 | G184: 7 | H184: 6 | I184: 10 | J184: 6 | K184: 5 | L184: 4 | M184: 3 | N184: 7 | S184: 48 | T184: 0.0%
A185: 03-SANTA FE | B185: OTROS | C185: USS LACHES | D185: 03-SANTA FE | E185: 260 | F185: 22 | G185: 4 | H185: 4 | I185: 1 | J185: 1 | K185: 1 | L185: 1 | M185: 1 | N185: 2 | S185: 15 | T185: 5.8% | U185: 158
A186: 03-SANTA FE | B186: UNICAJAS | C186: USS LACHES | D186: 03-SANTA FE | E186: 17 | F186: 1 | G186: 1 | H186: 0 | I186: 0 | J186: 1 | K186: 0 | L186: 0 | M186: 0 | N186: 1 | S186: 3 | T186: 17.6% | U186: 8
A187: 03-SANTA FE | B187: CAPITAL SALUD | C187: USS LAS CRUCES | D187: 03-SANTA FE | E187: 44 | F187: 4 | G187: 6 | H187: 8 | I187: 3 | J187: 6 | K187: 1 | L187: 2 | M187: 3 | N187: 2 | S187: 31 | T187: 70.5%
A188: 03-SANTA FE | B188: DEMAS EAPB | C188: USS LAS CRUCES | D188: 03-SANTA FE | E188: 0 | F188: 0 | G188: 4 | H188: 5 | I188: 7 | J188: 1 | K188: 2 | L188: 0 | M188: 2 | N188: 0 | S188: 21 | T188: 0.0%
A189: 03-SANTA FE | B189: OTROS | C189: USS LAS CRUCES | D189: 03-SANTA FE | E189: 211 | F189: 18 | G189: 3 | H189: 2 | I189: 1 | J189: 0 | K189: 2 | L189: 1 | M189: 1 | N189: 2 | S189: 12 | T189: 5.7% | U189: 129
A190: 03-SANTA FE | B190: UNICAJAS | C190: USS LAS CRUCES | D190: 03-SANTA FE | E190: 14 | F190: 1 | G190: 1 | H190: 1 | I190: 1 | J190: 0 | K190: 0 | L190: 1 | M190: 0 | N190: 0 | S190: 4 | T190: 28.6% | U190: 5
A191: 03-SANTA FE | B191: CAPITAL SALUD | C191: USS PERSEVERANCIA | D191: 03-SANTA FE | E191: 6 | F191: 1 | G191: 1 | H191: 1 | I191: 0 | J191: 0 | K191: 0 | L191: 0 | M191: 0 | N191: 1 | S191: 3 | T191: 50.0% | U191: 1
A192: 03-SANTA FE | B192: DEMAS EAPB | C192: USS PERSEVERANCIA | D192: 03-SANTA FE | E192: 0 | F192: 0 | G192: 1 | H192: 2 | I192: 0 | J192: 0 | K192: 2 | L192: 2 | M192: 0 | N192: 1 | S192: 8 | T192: 0.0%
A193: 03-SANTA FE | B193: OTROS | C193: USS PERSEVERANCIA | D193: 03-SANTA FE | E193: 30 | F193: 3 | G193: 1 | H193: 1 | I193: 2 | J193: 1 | K193: 1 | L193: 0 | M193: 1 | N193: 1 | S193: 8 | T193: 26.7% | U193: 12
A194: 03-SANTA FE | B194: UNICAJAS | C194: USS PERSEVERANCIA | D194: 03-SANTA FE | E194: 2 | F194: 0 | G194: 0 | H194: 0 | I194: 0 | J194: 0 | K194: 0 | L194: 0 | M194: 0 | N194: 0 | S194: 0 | T194: =IF(E194=0,0,+S194/E194) -> 0.0% | U194: =IF(COUNT(G194:R194)*(E194/12)-S194<0,"",COUNT(G194:R194)*(E194/12)-S194) -> 1
A195: PARTICULAR | B195: PARTICULAR | C195: CLINICA SAN RAFAEL | D195: 04-SAN CRISTOBAL | E195: 375 | F195: =+E195/12 -> 31 | G195: 32 | H195: 52 | I195: 35 | J195: 29 | K195: 28 | L195: 19 | M195: 22 | N195: 15 | S195: =SUM(G195:R195) -> 232 | T195: 61.9% | U195: 18
A196: FAMISANAR | B196: FAMI- COLSB | C196: CENTRO MEDICO COLSUBSIDIO 20 DE JULIO | D196: 04-SAN CRISTOBAL | E196: 0 | F196: 0 | S196: 0 | T196: 0.0% | U196: 0
A197: 04-SAN CRISTOBAL | B197: CAPITAL SALUD | C197: EXTRAMURAL SAN CRISTOBAL | D197: 04-SAN CRISTOBAL | E197: 0 | F197: 0 | G197: 22 | H197: 30 | I197: 78 | J197: 68 | K197: 70 | L197: 76 | M197: 62 | N197: 69 | S197: 475 | T197: 0.0%
A198: 04-SAN CRISTOBAL | B198: DEMAS EAPB | C198: EXTRAMURAL SAN CRISTOBAL | D198: 04-SAN CRISTOBAL | E198: 0 | F198: 0 | G198: 31 | H198: 16 | I198: 77 | J198: 140 | K198: 59 | L198: 72 | M198: 109 | N198: 72 | S198: 576 | T198: 0.0%
A199: 04-SAN CRISTOBAL | B199: OTROS | C199: EXTRAMURAL SAN CRISTOBAL | D199: 04-SAN CRISTOBAL | E199: 0 | F199: 0 | G199: 15 | H199: 10 | I199: 31 | J199: 27 | K199: 38 | L199: 38 | M199: 60 | N199: 51 | S199: 270 | T199: 0.0%
A200: 04-SAN CRISTOBAL | B200: UNICAJAS | C200: EXTRAMURAL SAN CRISTOBAL | D200: 04-SAN CRISTOBAL | E200: 0 | F200: 0 | G200: 3 | H200: 1 | I200: 6 | J200: 10 | K200: 11 | L200: 6 | M200: 16 | N200: 6 | S200: 59 | T200: 0.0%
... 620 more rows

Sheet PENTA2
A1: EAPB | B1: EPS O ESE | C1: IPS | D1: Localidad | E1: Meta Anual Menor de 1 Año | F1: Meta Mensual | G1: Enero | H1: Febrero | I1: Marzo | J1: Abril | K1: Mayo | L1: Junio | M1: Julio | N1: Agosto | O1: Septiembre | P1: Octubre | Q1: Noviembre | R1: Diciembre | S1: Total | T1: % Cobertura | U1: Deficit
A2: CAPITAL SALUD | B2: CAPITAL SALUD | C2: UPA SAN CRISTOBAL | D2: 01-USAQUEN | E2: 124 | F2: =+E2/12 -> 10 | G2: 7 | H2: 3 | I2: 7 | J2: 6 | K2: 3 | L2: 8 | M2: 9 | N2: 11 | S2: =SUM(G2:R2) -> 54 | T2: =IF(E2=0,0,+S2/E2) -> 43.5% | U2: =IF(COUNT(G2:R2)*(E2/12)-S2<0,"",COUNT(G2:R2)*(E2/12)-S2) -> 29
A3: CAPITAL SALUD | B3: CAPITAL SALUD | C3: UPA USAQUEN | D3: 01-USAQUEN | E3: 10 | F3: =+E3/12 -> 1 | G3: 0 | H3: 0 | I3: 0 | J3: 0 | K3: 0 | L3: 0 | M3: 0 | N3: 0 | S3: =SUM(G3:R3) -> 0 | T3: 0.0% | U3: 7
A4: CAPITAL SALUD | B4: CAPITAL SALUD | C4: UPA ORQUIDEAS | D4: 01-USAQUEN | E4: 11 | F4: 1 | G4: 3 | H4: 0 | I4: 1 | J4: 4 | K4: 2 | L4: 0 | M4: 4 | N4: 1 | S4: 15 | T4: 136.4%
A5: CAPITAL SALUD | B5: CAPITAL SALUD | C5: UPA CODITO | D5: 01-USAQUEN | E5: 107 | F5: 9 | G5: 8 | H5: 2 | I5: 3 | J5: 3 | K5: 7 | L5: 5 | M5: 6 | N5: 9 | S5: 43 | T5: 40.2% | U5: 28
A6: CAPITAL SALUD | B6: CAPITAL SALUD | C6: CAMI VERBENAL | D6: 01-USAQUEN | E6: 87 | F6: 7 | G6: 8 | H6: 3 | I6: 8 | J6: 3 | K6: 7 | L6: 6 | M6: 6 | N6: 5 | S6: 46 | T6: 52.9% | U6: 12
A7: CAPITAL SALUD | B7: CAPITAL SALUD | C7: HOSPITAL SIMON BOLIVAR | D7: 01-USAQUEN | E7: 36 | F7: 3 | G7: 9 | H7: 17 | I7: 11 | J7: 5 | K7: 5 | L7: 0 | M7: 4 | N7: 3 | S7: 54 | T7: 150.0%
A8: 01-USAQUEN | B8: 01-USAQUEN | C8: EXTRAMURAL USAQUEN | D8: 01-USAQUEN | E8: 0 | F8: 0 | G8: 12 | H8: 8 | I8: 18 | J8: 51 | K8: 41 | L8: 27 | M8: 42 | N8: 25 | S8: 224 | T8: 0.0%
A9: ALIANSALUD | B9: ALIANSALUD | C9: CENTRO MEDICO COLMEDICA SANTA BARBARA | D9: 01-USAQUEN | E9: 580 | F9: 48 | G9: 79 | H9: 56 | I9: 59 | J9: 36 | K9: 36 | L9: 35 | M9: 42 | N9: 41 | S9: 384 | T9: 66.2% | U9: 3
A10: COMPENSAR | B10: COMPENSAR | C10: USS CALLE 134 | D10: 01-USAQUEN | E10: 372 | F10: 31 | G10: 17 | H10: 16 | I10: 13 | J10: 6 | K10: 11 | L10: 12 | M10: 17 | N10: 26 | S10: 118 | T10: 31.7% | U10: 130
A11: COMPENSAR | B11: COMPENSAR | C11: USS CALLE 145 | D11: 01-USAQUEN | E11: 173 | F11: 14 | G11: 17 | H11: 16 | I11: 17 | J11: 10 | K11: 16 | L11: 7 | M11: 26 | N11: 18 | S11: 127 | T11: 73.4%
A12: COMPENSAR | B12: COMPENSAR | C12: JAVESALUD TOBERIN | D12: 01-USAQUEN | E12: 372 | F12: 31 | G12: 3 | H12: 3 | I12: 2 | J12: 9 | K12: 14 | L12: 11 | M12: 7 | N12: 8 | S12: 57 | T12: 15.3% | U12: 191
A13: COOMEVA | B13: COOMEVA | C13: SINERGIA UNIDAD INTEGRAL EN SALUD | D13: 01-USAQUEN | E13: 44 | F13: 4 | G13: 6 | H13: 5 | I13: 8 | J13: 5 | K13: 5 | L13: 3 | M13: 6 | N13: 5 | S13: 43 | T13: 97.7%
A14: FAMISANAR | B14: FAMI- COLSB | C14: CENTRO MEDICO COLSUBSIDIO USAQUEN | D14: 01-USAQUEN | E14: 298 | F14: 25 | G14: 30 | H14: 31 | I14: 27 | J14: 20 | K14: 13 | L14: 31 | M14: 30 | N14: 37 | S14: 219 | T14: 73.5%
A15: MILITAR | B15: MILITAR | C15: DISPENSARIO MEDICO CANTON NORTE | D15: 01-USAQUEN | E15: 205 | F15: 17 | G15: 3 | H15: 9 | I15: 4 | J15: 6 | K15: 6 | L15: 4 | M15: 9 | N15: 8 | S15: 49 | T15: 23.9% | U15: 88
A16: NUEVA EPS | B16: NUEVA EPS | C16: IPS VIVA 1A SEDE TOBERIN | D16: 01-USAQUEN | E16: 147 | F16: 12 | G16: 6 | H16: 7 | I16: 9 | J16: 6 | K16: 5 | L16: 4 | M16: 3 | N16: 6 | S16: 46 | T16: 31.3% | U16: 52
A17: NUEVA EPS | B17: NUEVA EPS | C17: CAFAM GRANADA HILLS | D17: 01-USAQUEN | E17: 44 | F17: 4 | G17: 6 | H17: 4 | I17: 0 | J17: 6 | K17: 2 | L17: 1 | M17: 2 | N17: 3 | S17: 24 | T17: 54.5% | U17: 5
A18: SANITAS | B18: SANITAS | C18: UAP SANITAS TOBERIN | D18: 01-USAQUEN | E18: 511 | F18: 43 | G18: 56 | H18: 41 | I18: 22 | J18: 42 | K18: 36 | L18: 23 | M18: 16 | N18: 20 | S18: 256 | T18: 50.1% | U18: 85
A19: SANITAS | B19: SANITAS | C19: MEDIKA IPS SANITAS UAP USAQUEN | D19: 01-USAQUEN | E19: 188 | F19: 16 | G19: 3 | H19: 1 | I19: 0 | J19: 1 | K19: 1 | L19: 0 | M19: 2 | N19: 2 | S19: 10 | T19: 5.3% | U19: 115
A20: SANITAS | B20: SANITAS | C20: UAP SANTA BARBARA | D20: 01-USAQUEN | E20: 796 | F20: 66 | G20: 85 | H20: 67 | I20: 72 | J20: 56 | K20: 52 | L20: 62 | M20: 57 | N20: 66 | S20: 517 | T20: 64.9% | U20: 14
A21: SANITAS | B21: SANITAS | C21: SANITAS BANCO DE LA REPUBLICA | D21: 01-USAQUEN | E21: 0 | F21: 0 | G21: 4 | H21: 1 | I21: 4 | J21: 3 | K21: 3 | L21: 4 | M21: 6 | N21: 1 | S21: 26 | T21: 0.0%
A22: SALUD TOTAL | B22: SALUD TOTAL | C22: VIRREY SOLIS TOBERÍN | D22: 01-USAQUEN | E22: 384 | F22: 32 | G22: 21 | H22: 20 | I22: 20 | J22: 12 | K22: 14 | L22: 13 | M22: 9 | N22: 8 | S22: 117 | T22: 30.5% | U22: 139
A23: SURA | B23: SURA | C23: IPS JAVESALUD SANTA BEATRIZ | D23: 01-USAQUEN | E23: 355 | F23: 30 | G23: 12 | H23: 9 | I23: 16 | J23: 8 | K23: 11 | L23: 6 | M23: 15 | N23: 13 | S23: 90 | T23: 25.4% | U23: 147
A24: ECOPETROL | B24: ECOPETROL | C24: IPS CLINICOS PALATINO | D24: 01-USAQUEN | E24: 87 | F24: 7 | G24: 9 | H24: 11 | I24: 9 | J24: 8 | K24: 6 | L24: 3 | M24: 4 | N24: 5 | S24: 55 | T24: 63.2% | U24: 3
A25: PARTICULAR | B25: PARTICULAR | C25: CLINICA PEDIATRICA COLSANITAS | D25: 01-USAQUEN | E25: 830 | F25: 69 | G25: 101 | H25: 91 | I25: 52 | J25: 53 | K25: 42 | L25: 51 | M25: 41 | N25: 49 | S25: 480 | T25: 57.8% | U25: 73
A26: PARTICULAR | B26: PARTICULAR | C26: CENTRO MEDICO COLSANITAS LA CALLEJA | D26: 01-USAQUEN | E26: 120 | F26: 10 | G26: 23 | H26: 16 | I26: 6 | J26: 6 | K26: 4 | L26: 1 | M26: 4 | N26: 5 | S26: 65 | T26: 54.2% | U26: 15
A27: PARTICULAR | B27: PARTICULAR | C27: CENTRO MEDICO COLSANITAS 108 | D27: 01-USAQUEN | E27: 40 | F27: 3 | G27: 4 | H27: 4 | I27: 4 | J27: 0 | K27: 0 | L27: 0 | M27: 0 | N27: 0 | S27: 12 | T27: 30.0% | U27: 15
A28: PARTICULAR | B28: PARTICULAR | C28: CENTRO MEDICO COLSANITAS SANTA ANA | D28: 01-USAQUEN | E28: 4 | F28: 0 | G28: 2 | H28: 0 | I28: 1 | J28: 0 | K28: 0 | L28: 0 | M28: 0 | N28: 0 | S28: 3 | T28: 75.0%
A29: PARTICULAR | B29: PARTICULAR | C29: FUNDACIÓN CARDIO INFANTIL | D29: 01-USAQUEN | E29: 0 | F29: 0 | G29: 11 | H29: 7 | I29: 3 | J29: 9 | K29: 4 | L29: 3 | M29: 4 | N29: 3 | S29: 44 | T29: 0.0%
A30: PARTICULAR | B30: PARTICULAR | C30: ENFASO USAQUEN | D30: 01-USAQUEN | E30: 0 | F30: 0 | G30: 9 | H30: 13 | I30: 3 | J30: 12 | K30: 4 | L30: 4 | M30: 5 | N30: 6 | S30: 56 | T30: 0.0%
A31: PARTICULAR | B31: PARTICULAR | C31: UNIDAD DE VACUNACIÓN INTERNACIONAL | D31: 01-USAQUEN | E31: 0 | F31: 0 | G31: 4 | H31: 7 | I31: 5 | J31: 0 | K31: 1 | L31: 0 | M31: 2 | N31: 2 | S31: 21 | T31: 0.0%
A32: PARTICULAR | B32: PARTICULAR | C32: INMUNOLOGÍA Y DIAGNÓSTICO ESPECIALIZADO LTDA. | D32: 01-USAQUEN | E32: 0 | F32: 0 | G32: 0 | H32: 0 | I32: 0 | J32: 0 | K32: 0 | L32: 0 | M32: 0 | N32: 0 | S32: 0 | T32: 0.0% | U32: 0
A33: PARTICULAR | B33: PARTICULAR | C33: PROTEGER HEALHT CARE | D33: 01-USAQUEN | E33: 0 | F33: 0 | G33: 1 | H33: 0 | I33: 2 | J33: 10 | K33: 3 | L33: 2 | M33: 3 | N33: 5 | S33: 26 | T33: 0.0%
A34: PARTICULAR | B34: PARTICULAR | C34: FUNDACION SANTA FE DE BOGOTA | D34: 01-USAQUEN | E34: 0 | F34: 0 | G34: 0 | H34: 0 | I34: 0 | J34: 0 | K34: 0 | L34: 0 | M34: 1 | N34: 0 | S34: 1 | T34: 0.0%
A35: PARTICULAR | B35: PARTICULAR | C35: IPS CRUZ ROJA SEDE UNICENTRO | D35: 01-USAQUEN | E35: 0 | F35: 0 | G35: 0 | H35: 0 | I35: 0 | J35: 0 | K35: 0 | L35: 0 | M35: 0 | N35: 0 | S35: 0 | T35: 0.0% | U35: 0
A36: PARTICULAR | B36: PARTICULAR | C36: IPS CRUZ ROJA SAMU CALLE 145 | D36: 01-USAQUEN | E36: 0 | F36: 0 | G36: 0 | H36: 0 | I36: 0 | J36: 1 | K36: 0 | L36: 0 | M36: 0 | N36: 0 | S36: 1 | T36: 0.0%
A37: PEDIATRAS | B37: PEDIATRAS | C37: DR. ALEJANDRO LÓPEZ | D37: 01-USAQUEN | E37: 0 | F37: 0 | G37: 2 | H37: 0 | I37: 0 | J37: 0 | K37: 0 | L37: 0 | M37: 0 | N37: 0 | S37: 2 | T37: 0.0%
A38: PEDIATRAS | B38: PEDIATRAS | C38: DR. CARLOS NEFTALI TORRES | D38: 01-USAQUEN | E38: 0 | F38: 0 | G38: 6 | H38: 7 | I38: 0 | J38: 2 | K38: 4 | L38: 4 | M38: 4 | N38: 0 | S38: 27 | T38: 0.0%
A39: PEDIATRAS | B39: PEDIATRAS | C39: DR. FRANCISCO NUÑEZ | D39: 01-USAQUEN | E39: 0 | F39: 0 | G39: 0 | H39: 1 | I39: 1 | J39: 0 | K39: 0 | L39: 0 | M39: 3 | N39: 3 | S39: 8 | T39: 0.0%
A40: PEDIATRAS | B40: PEDIATRAS | C40: DR. FERNANDO GOMEZ | D40: 01-USAQUEN | E40: 0 | F40: 0 | G40: 0 | H40: 0 | I40: 0 | J40: 0 | K40: 0 | L40: 0 | M40: 0 | N40: 0 | S40: 0 | T40: 0.0% | U40: 0
A41: PEDIATRAS | B41: PEDIATRAS | C41: DR. FERNANDO ZARATE MORENO | D41: 01-USAQUEN | E41: 0 | F41: 0 | G41: 0 | H41: 2 | I41: 1 | J41: 1 | K41: 0 | L41: 0 | M41: 0 | N41: 1 | S41: 5 | T41: 0.0%
A42: PEDIATRAS | B42: PEDIATRAS | C42: DR. GONZALO GARCIA | D42: 01-USAQUEN | E42: 0 | F42: 0 | G42: 0 | H42: 0 | I42: 1 | J42: 0 | K42: 1 | L42: 0 | M42: 1 | N42: 0 | S42: 3 | T42: 0.0%
A43: PEDIATRAS | B43: PEDIATRAS | C43: DR. GUSTAVO MORALES | D43: 01-USAQUEN | E43: 0 | F43: 0 | G43: 2 | H43: 4 | I43: 1 | J43: 2 | K43: 3 | L43: 0 | M43: 5 | N43: 0 | S43: 17 | T43: 0.0%
A44: PEDIATRAS | B44: PEDIATRAS | C44: DR. JAIME OSPINA | D44: 01-USAQUEN | E44: 0 | F44: 0 | G44: 0 | H44: 0 | I44: 5 | J44: 1 | K44: 0 | L44: 2 | M44: 1 | N44: 2 | S44: 11 | T44: 0.0%
A45: PEDIATRAS | B45: PEDIATRAS | C45: DR. JORGE URIBE | D45: 01-USAQUEN | E45: 0 | F45: 0 | G45: 0 | H45: 0 | I45: 0 | J45: 0 | K45: 1 | L45: 0 | M45: 0 | N45: 0 | S45: 1 | T45: 0.0%
A46: PEDIATRAS | B46: PEDIATRAS | C46: DR. JUAN LUIS FIGUEROA | D46: 01-USAQUEN | E46: 0 | F46: 0 | G46: 1 | H46: 2 | I46: 0 | J46: 0 | K46: 2 | L46: 2 | M46: 1 | N46: 1 | S46: 9 | T46: 0.0%
A47: PEDIATRAS | B47: PEDIATRAS | C47: DR. LUIS AUGUSTO PERNA | D47: 01-USAQUEN | E47: 0 | F47: 0 | G47: 4 | H47: 5 | I47: 5 | J47: 3 | K47: 4 | L47: 0 | M47: 2 | N47: 3 | S47: 26 | T47: 0.0%
A48: PEDIATRAS | B48: PEDIATRAS | C48: DR. LIBARDO ELI TRIANA | D48: 01-USAQUEN | E48: 0 | F48: 0 | G48: 0 | H48: 1 | I48: 0 | J48: 1 | K48: 2 | L48: 0 | M48: 0 | N48: 0 | S48: 4 | T48: 0.0%
A49: PEDIATRAS | B49: PEDIATRAS | C49: DR. OSWALDO MERCADO HOYOS | D49: 01-USAQUEN | E49: 0 | F49: 0 | G49: 2 | H49: 3 | I49: 0 | J49: 3 | K49: 0 | L49: 0 | M49: 2 | N49: 2 | S49: 12 | T49: 0.0%
A50: PEDIATRAS | B50: PEDIATRAS | C50: DR. ROBERTO BENIRO | D50: 01-USAQUEN | E50: 0 | F50: 0 | G50: 0 | H50: 0 | I50: 0 | J50: 0 | K50: 1 | L50: 1 | M50: 0 | N50: 1 | S50: 3 | T50: 0.0%
A51: PEDIATRAS | B51: PEDIATRAS | C51: DR. SERGIO ISAZA | D51: 01-USAQUEN | E51: 0 | F51: 0 | G51: 2 | H51: 0 | I51: 0 | J51: 0 | K51: 0 | L51: 0 | M51: 0 | N51: 0 | S51: 2 | T51: 0.0%
A52: PEDIATRAS | B52: PEDIATRAS | C52: DR. SANTIAGO UCROS | D52: 01-USAQUEN | E52: 0 | F52: 0 | G52: 0 | H52: 0 | I52: 0 | J52: 0 | K52: 0 | L52: 0 | M52: 0 | N52: 0 | S52: 0 | T52: 0.0% | U52: 0
A53: PEDIATRAS | B53: PEDIATRAS | C53: DR. GERMAN SILVA | D53: 01-USAQUEN | E53: 0 | F53: 0 | G53: 0 | H53: 0 | I53: 0 | J53: 0 | K53: 0 | L53: 0 | M53: 0 | N53: 0 | S53: 0 | T53: 0.0% | U53: 0
A54: PEDIATRAS | B54: PEDIATRAS | C54: DR. DANIEL ABRIL | D54: 01-USAQUEN | E54: 0 | F54: 0 | G54: 0 | H54: 0 | I54: 0 | J54: 0 | K54: 0 | L54: 0 | M54: 0 | N54: 0 | S54: 0 | T54: 0.0% | U54: 0
A55: PEDIATRAS | B55: PEDIATRAS | C55: DR. CARLOS EDUARDO OLMOS | D55: 01-USAQUEN | E55: 0 | F55: 0 | G55: 0 | H55: 0 | I55: 0 | J55: 0 | K55: 0 | L55: 0 | M55: 0 | N55: 0 | S55: 0 | T55: 0.0% | U55: 0
A56: PEDIATRAS | B56: PEDIATRAS | C56: DR. EDGARDO CHATMAN | D56: 01-USAQUEN | E56: 0 | F56: 0 | G56: 0 | H56: 0 | I56: 0 | J56: 0 | K56: 0 | L56: 0 | M56: 0 | N56: 0 | S56: 0 | T56: 0.0% | U56: 0
A57: PEDIATRAS | B57: PEDIATRAS | C57: DR. JORGE FLOREZ OTERO | D57: 01-USAQUEN | E57: 0 | F57: 0 | G57: 0 | H57: 0 | I57: 0 | J57: 0 | K57: 0 | L57: 0 | M57: 0 | N57: 0 | S57: 0 | T57: 0.0% | U57: 0
A58: PEDIATRAS | B58: PEDIATRAS | C58: DRA. ALEJANDRA MARIA VALENCIA | D58: 01-USAQUEN | E58: 0 | F58: 0 | G58: 0 | H58: 0 | I58: 0 | J58: 0 | K58: 0 | L58: 0 | M58: 0 | N58: 0 | S58: 0 | T58: 0.0% | U58: 0
A59: PEDIATRAS | B59: PEDIATRAS | C59: DRA. ANA MARIA GOYENECHE | D59: 01-USAQUEN | E59: 0 | F59: 0 | G59: 0 | H59: 0 | I59: 0 | J59: 0 | K59: 0 | L59: 0 | M59: 0 | N59: 0 | S59: 0 | T59: 0.0% | U59: 0
A60: PEDIATRAS | B60: PEDIATRAS | C60: DRA. JIMENA VARELA | D60: 01-USAQUEN | E60: 0 | F60: 0 | G60: 0 | H60: 1 | I60: 0 | J60: 0 | K60: 0 | L60: 2 | M60: 0 | N60: 0 | S60: 3 | T60: 0.0%
A61: PEDIATRAS | B61: PEDIATRAS | C61: DRA. LIA SAN MIGUEL | D61: 01-USAQUEN | E61: 0 | F61: 0 | G61: 0 | H61: 0 | I61: 0 | J61: 0 | K61: 0 | L61: 1 | M61: 0 | N61: 0 | S61: 1 | T61: 0.0%
A62: PEDIATRAS | B62: PEDIATRAS | C62: DRA. LIBIA SEGURA | D62: 01-USAQUEN | E62: 0 | F62: 0 | G62: 1 | H62: 1 | I62: 0 | J62: 0 | K62: 0 | L62: 0 | M62: 1 | N62: 0 | S62: 3 | T62: 0.0%
A63: PEDIATRAS | B63: PEDIATRAS | C63: DRA. MARÍA JOSÉ PEDRAZA | D63: 01-USAQUEN | E63: 0 | F63: 0 | G63: 0 | H63: 0 | I63: 0 | J63: 0 | K63: 0 | L63: 0 | M63: 0 | N63: 0 | S63: 0 | T63: 0.0% | U63: 0
A64: PEDIATRAS | B64: PEDIATRAS | C64: DRA. MARTHA LUCIA SANCHEZ | D64: 01-USAQUEN | E64: 0 | F64: 0 | G64: 0 | H64: 0 | I64: 0 | J64: 0 | K64: 0 | L64: 0 | M64: 0 | N64: 0 | S64: 0 | T64: 0.0% | U64: 0
A65: PEDIATRAS | B65: PEDIATRAS | C65: DRA. OLGA LUCÍA SÁNCHEZ | D65: 01-USAQUEN | E65: 0 | F65: 0 | G65: 0 | H65: 0 | I65: 0 | J65: 0 | K65: 0 | L65: 0 | M65: 0 | N65: 0 | S65: 0 | T65: 0.0% | U65: 0
A66: PEDIATRAS | B66: PEDIATRAS | C66: DRA. SANDRA BELTRAN | D66: 01-USAQUEN | E66: 0 | F66: 0 | G66: 0 | H66: 0 | I66: 1 | J66: 0 | K66: 0 | L66: 1 | M66: 1 | N66: 1 | S66: 4 | T66: =IF(E66=0,0,+S66/E66) -> 0.0% | U66: =IF(COUNT(G66:R66)*(E66/12)-S66<0,"",COUNT(G66:R66)*(E66/12)-S66) -> 
A67: PEDIATRAS | B67: PEDIATRAS | C67: DRA. IVANA CABRERA | D67: 01-USAQUEN | E67: 0 | F67: =+E67/12 -> 0 | G67: 0 | H67: 0 | I67: 0 | J67: 0 | K67: 0 | L67: 0 | M67: 0 | N67: 0 | S67: =SUM(G67:R67) -> 0 | T67: 0.0% | U67: 0
A68: PEDIATRAS | B68: PEDIATRAS | C68: DRA. NAYITA ALARCON | D68: 01-USAQUEN | E68: 0 | F68: 0 | G68: 0 | H68: 0 | I68: 0 | J68: 0 | K68: 0 | L68: 0 | M68: 0 | N68: 0 | S68: 0 | T68: 0.0% | U68: 0
A69: PEDIATRAS | B69: PEDIATRAS | C69: DRA. ELIZABETH GARCIA | D69: 01-USAQUEN | E69: 0 | F69: 0 | G69: 0 | H69: 0 | I69: 0 | J69: 0 | K69: 0 | L69: 0 | M69: 0 | N69: 0 | S69: 0 | T69: 0.0% | U69: 0
A70: PEDIATRAS | B70: PEDIATRAS | C70: DRA. BERTHA CALDERON DE RAMOS | D70: 01-USAQUEN | E70: 0 | F70: 0 | G70: 0 | H70: 0 | I70: 0 | J70: 0 | K70: 0 | L70: 0 | M70: 0 | N70: 0 | S70: 0 | T70: 0.0% | U70: 0
A71: PEDIATRAS | B71: PEDIATRAS | C71: DRA. MIRYAM CORREA | D71: 01-USAQUEN | E71: 0 | F71: 0 | G71: 0 | H71: 1 | I71: 0 | J71: 0 | K71: 0 | L71: 0 | M71: 0 | N71: 0 | S71: 1 | T71: 0.0%
A72: 01-USAQUEN | B72: UNICAJAS | C72: UPA SAN CRISTOBAL | D72: 01-USAQUEN | E72: 6 | F72: 1 | G72: 1 | H72: 0 | I72: 0 | J72: 0 | K72: 0 | L72: 0 | M72: 1 | N72: 0 | S72: 2 | T72: 33.3% | U72: 2
A73: UNICAJAS | B73: UNICAJAS | C73: UPA USAQUEN | D73: 01-USAQUEN | E73: 9 | F73: 1 | G73: 0 | H73: 0 | I73: 0 | J73: 0 | K73: 0 | L73: 0 | M73: 0 | N73: 0 | S73: 0 | T73: 0.0% | U73: 6
A74: UNICAJAS | B74: UNICAJAS | C74: UPA ORQUIDEAS | D74: 01-USAQUEN | E74: 6 | F74: 1 | G74: 0 | H74: 0 | I74: 0 | J74: 0 | K74: 0 | L74: 0 | M74: 0 | N74: 0 | S74: 0 | T74: 0.0% | U74: 4
A75: UNICAJAS | B75: UNICAJAS | C75: UPA CODITO | D75: 01-USAQUEN | E75: 5 | F75: 0 | G75: 1 | H75: 0 | I75: 0 | J75: 1 | K75: 0 | L75: 0 | M75: 0 | N75: 0 | S75: 2 | T75: 40.0% | U75: 1
A76: UNICAJAS | B76: UNICAJAS | C76: CAMI VERBENAL | D76: 01-USAQUEN | E76: 6 | F76: 1 | G76: 2 | H76: 0 | I76: 0 | J76: 0 | K76: 1 | L76: 1 | M76: 0 | N76: 1 | S76: 5 | T76: 83.3%
A77: 01-USAQUEN | B77: UNICAJAS | C77: HOSPITAL SIMON BOLIVAR | D77: 01-USAQUEN | E77: 6 | F77: 1 | H77: 0 | I77: 0 | J77: 1 | K77: 0 | L77: 2 | M77: 0 | N77: 1 | S77: 4 | T77: 66.7%
A78: 01-USAQUEN | B78: OTROS | C78: UPA SAN CRISTOBAL | D78: 01-USAQUEN | E78: 300 | F78: 25 | G78: 9 | H78: 2 | I78: 2 | J78: 1 | K78: 0 | L78: 7 | M78: 3 | N78: 6 | S78: 30 | T78: 10.0% | U78: 170
A79: 01-USAQUEN | B79: OTROS | C79: UPA USAQUEN | D79: 01-USAQUEN | E79: 100 | F79: 8 | G79: 0 | H79: 0 | I79: 0 | J79: 0 | K79: 0 | L79: 0 | M79: 0 | N79: 0 | S79: 0 | T79: 0.0% | U79: 67
A80: 01-USAQUEN | B80: OTROS | C80: UPA ORQUIDEAS | D80: 01-USAQUEN | E80: 120 | F80: 10 | G80: 5 | H80: 0 | I80: 1 | J80: 1 | K80: 3 | L80: 2 | M80: 0 | N80: 2 | S80: 14 | T80: 11.7% | U80: 66
A81: 01-USAQUEN | B81: OTROS | C81: UPA CODITO | D81: 01-USAQUEN | E81: 218 | F81: 18 | G81: 4 | H81: 2 | I81: 0 | J81: 2 | K81: 0 | L81: 1 | M81: 3 | N81: 1 | S81: 13 | T81: 6.0% | U81: 132
A82: 01-USAQUEN | B82: OTROS | C82: CAMI VERBENAL | D82: 01-USAQUEN | E82: 309 | F82: 26 | G82: 5 | H82: 1 | I82: 0 | J82: 2 | K82: 4 | L82: 3 | M82: 6 | N82: 2 | S82: 23 | T82: 7.4% | U82: 183
A83: 01-USAQUEN | B83: OTROS | C83: HOSPITAL SIMON BOLIVAR | D83: 01-USAQUEN | E83: 480 | F83: 40 | G83: 10 | H83: 13 | I83: 3 | J83: 2 | K83: 2 | L83: 3 | M83: 5 | N83: 1 | S83: 39 | T83: 8.1% | U83: 281
A84: 01-USAQUEN | B84: DEMAS EAPB | C84: UPA SAN CRISTOBAL | D84: 01-USAQUEN | F84: 0 | G84: 15 | H84: 7 | I84: 12 | J84: 17 | K84: 17 | L84: 11 | M84: 9 | N84: 5 | S84: 93 | T84: 0.0%
A85: 01-USAQUEN | B85: DEMAS EAPB | C85: UPA USAQUEN | D85: 01-USAQUEN | F85: 0 | G85: 1 | H85: 1 | I85: 4 | J85: 0 | K85: 0 | L85: 0 | M85: 0 | N85: 0 | S85: 6 | T85: 0.0%
A86: 01-USAQUEN | B86: DEMAS EAPB | C86: UPA ORQUIDEAS | D86: 01-USAQUEN | F86: 0 | G86: 1 | H86: 1 | I86: 5 | J86: 3 | K86: 0 | L86: 2 | M86: 2 | N86: 2 | S86: 16 | T86: 0.0%
A87: 01-USAQUEN | B87: DEMAS EAPB | C87: UPA CODITO | D87: 01-USAQUEN | F87: 0 | G87: 12 | H87: 18 | I87: 8 | J87: 20 | K87: 7 | L87: 12 | M87: 14 | N87: 6 | S87: 97 | T87: 0.0%
A88: 01-USAQUEN | B88: DEMAS EAPB | C88: CAMI VERBENAL | D88: 01-USAQUEN | F88: 0 | G88: 15 | H88: 9 | I88: 11 | J88: 15 | K88: 9 | L88: 7 | M88: 14 | N88: 9 | S88: 89 | T88: 0.0%
A89: 01-USAQUEN | B89: DEMAS EAPB | C89: HOSPITAL SIMON BOLIVAR | D89: 01-USAQUEN | F89: 0 | G89: 20 | H89: 21 | I89: 17 | J89: 6 | K89: 3 | L89: 2 | M89: 3 | N89: 3 | S89: 75 | T89: 0.0%
A90: MEDIMAS | B90: MEDIMAS | C90: Corvesalud S.A.S - I P S Chico | D90: 01-USAQUEN | E90: 320 | F90: 27 | G90: 2 | H90: 2 | I90: 5 | M90: 0 | N90: 1 | S90: 10 | T90: 3.1% | U90: 123
A91: FAMISANAR | B91: COLSUBSIDIO | C91: Sura PAC Santa Bárbara | D91: 01-USAQUEN | F91: 0 | S91: 0 | T91: 0.0% | U91: 0
A92: CAPITAL SALUD | B92: CAPITAL SALUD | C92: UPA SAN LUIS | D92: 02-CHAPINERO | E92: 12 | F92: 1 | G92: 6 | H92: 2 | I92: 2 | J92: 2 | K92: 1 | L92: 1 | M92: 3 | N92: 2 | S92: 19 | T92: 158.3%
A93: 02-CHAPINERO | B93: 02-CHAPINERO | C93: EXTRAMURAL CHAPINERO | D93: 02-CHAPINERO | E93: 0 | F93: 0 | G93: 5 | H93: 5 | I93: 5 | J93: 25 | K93: 28 | L93: 10 | M93: 32 | N93: 11 | S93: 121 | T93: 0.0%
A94: COMPENSAR | B94: COMPENSAR | C94: USS CALLE 42 | D94: 02-CHAPINERO | E94: 612 | F94: 51 | G94: 34 | H94: 37 | I94: 19 | J94: 27 | K94: 23 | L94: 39 | M94: 30 | N94: 43 | S94: 252 | T94: 41.2% | U94: 156
A95: COMPENSAR | B95: COMPENSAR | C95: USS CALLE 67 | D95: 02-CHAPINERO | E95: 0 | F95: 0 | G95: 0 | H95: 0 | I95: 0 | J95: 0 | K95: 0 | L95: 0 | M95: 0 | N95: 0 | S95: 0 | T95: 0.0% | U95: 0
A96: COMPENSAR | B96: COMPENSAR | C96: USS CALLE 94 | D96: 02-CHAPINERO | E96: 369 | F96: 31 | G96: 43 | H96: 52 | I96: 40 | J96: 46 | K96: 48 | L96: 52 | M96: 77 | N96: 92 | S96: 450 | T96: 122.0%
A97: COMPENSAR | B97: COMPENSAR | C97: VIVA 1A IPS CHAPINERO | D97: 02-CHAPINERO | E97: 73 | F97: 6 | G97: 4 | H97: 0 | I97: 2 | J97: 5 | K97: 3 | L97: 3 | M97: 3 | N97: 8 | S97: 28 | T97: 38.4% | U97: 21
A98: COOMEVA | B98: COOMEVA | C98: SINERGIA UNIDAD BASICA LOURDES | D98: 02-CHAPINERO | E98: 217 | F98: 18 | G98: 7 | H98: 5 | I98: 8 | J98: 0 | K98: 0 | L98: 0 | M98: 0 | N98: 0 | S98: 20 | T98: 9.2% | U98: 125
A99: FAMISANAR | B99: FAMI- CAFAM | C99: CENTRO DE ATENCION EN SALUD CAFAM CALLE 48 | D99: 02-CHAPINERO | E99: 1050 | F99: 88 | G99: 31 | H99: 23 | I99: 27 | J99: 12 | K99: 15 | L99: 10 | M99: 12 | N99: 24 | S99: 154 | T99: 14.7% | U99: 546
A100: FAMISANAR | B100: FAMI- CAFAM | C100: CENTRO DE ATENCION EN SALUD CAFAM CALLE 90 | D100: 02-CHAPINERO | E100: 200 | F100: 17 | G100: 14 | H100: 8 | I100: 13 | J100: 7 | K100: 22 | L100: 8 | M100: 11 | N100: 12 | S100: 95 | T100: 47.5% | U100: 38
A101: FAMISANAR | B101: FAMI- COLSB | C101: CLINICA COLSUBSIDIO EL LAGO | D101: 02-CHAPINERO | E101: 392 | F101: 33 | G101: 11 | H101: 9 | I101: 13 | J101: 4 | K101: 4 | L101: 5 | M101: 7 | N101: 5 | S101: 58 | T101: 14.8% | U101: 203
A102: MILITAR | B102: MILITAR | C102: HOSPITAL MILITAR CENTRAL | D102: 02-CHAPINERO | E102: 70 | F102: 6 | G102: 15 | H102: 0 | I102: 7 | J102: 7 | K102: 4 | L102: 2 | M102: 3 | N102: 2 | S102: 40 | T102: 57.1% | U102: 7
A103: POLICIA | B103: POLICIA | C103: POLICIA NACIONAL ESPAM CHAPINERO | D103: 02-CHAPINERO | E103: 117 | F103: 10 | G103: 5 | H103: 0 | I103: 9 | J103: 25 | K103: 19 | L103: 28 | M103: 15 | N103: 29 | S103: 130 | T103: 111.1%
A104: NUEVA EPS | B104: NUEVA EPS | C104: IPS VIVA 1A SEDE MARLY | D104: 02-CHAPINERO | E104: 131 | F104: 11 | G104: 10 | H104: 6 | I104: 7 | J104: 1 | K104: 0 | L104: 2 | M104: 1 | N104: 3 | S104: 30 | T104: 22.9% | U104: 57
A105: SANITAS | B105: SANITAS | C105: EPS SANITAS CENTRO MEDICO TEUSAQUILLO | D105: 02-CHAPINERO | E105: 579 | F105: 48 | G105: 30 | H105: 22 | I105: 24 | J105: 11 | K105: 10 | L105: 14 | M105: 12 | N105: 23 | S105: 146 | T105: 25.2% | U105: 240
A106: SALUD TOTAL | B106: SALUD TOTAL | C106: VIRREY SOLIS CHAPINERO | D106: 02-CHAPINERO | E106: 337 | F106: 28 | G106: 20 | H106: 12 | I106: 8 | J106: 6 | K106: 5 | L106: 11 | M106: 12 | N106: 29 | S106: 103 | T106: 30.6% | U106: 122
A107: SURA | B107: SURA | C107: PUNTO DE SALUD CHAPINERO | D107: 02-CHAPINERO | E107: 237 | F107: 20 | G107: 16 | H107: 11 | I107: 16 | J107: 7 | K107: 8 | L107: 8 | M107: 0 | N107: 0 | S107: 66 | T107: 27.8% | U107: 92
A108: SURA | B108: SURA | C108: SALUD SURA | D108: 02-CHAPINERO | E108: 454 | F108: 38 | G108: 50 | H108: 50 | I108: 43 | J108: 25 | K108: 31 | L108: 19 | M108: 30 | N108: 25 | S108: 273 | T108: 60.1% | U108: 30
A109: PARTICULAR | B109: PARTICULAR | C109: CENTRO MEDICO COLSANITAS CALLE 96 | D109: 02-CHAPINERO | E109: 24 | F109: 2 | G109: 0 | H109: 4 | I109: 2 | J109: 16 | K109: 9 | L109: 9 | M109: 13 | N109: 18 | S109: 71 | T109: 295.8%
A110: PARTICULAR | B110: PARTICULAR | C110: CENTRO DE ESPECIALISTAS MEDICOS AXA COLPATRIA | D110: 02-CHAPINERO | E110: 0 | F110: 0 | G110: 2 | H110: 4 | I110: 6 | J110: 5 | K110: 5 | L110: 6 | M110: 9 | N110: 11 | S110: 48 | T110: 0.0%
A111: PARTICULAR | B111: PARTICULAR | C111: CLINICA DE LA MUJER | D111: 02-CHAPINERO | E111: 0 | F111: 0 | G111: 62 | H111: 36 | I111: 40 | J111: 26 | K111: 36 | L111: 28 | M111: 27 | N111: 43 | S111: 298 | T111: 0.0%
A112: PARTICULAR | B112: PARTICULAR | C112: VACUNARTE IPS | D112: 02-CHAPINERO | E112: 0 | F112: 0 | G112: 5 | H112: 2 | I112: 0 | J112: 0 | K112: 1 | L112: 1 | M112: 2 | N112: 3 | S112: 14 | T112: 0.0%
A113: PARTICULAR | B113: PARTICULAR | C113: UNIMARLY | D113: 02-CHAPINERO | E113: 0 | F113: 0 | G113: 0 | H113: 0 | I113: 0 | J113: 0 | K113: 0 | L113: 0 | M113: 0 | N113: 0 | S113: 0 | T113: 0.0% | U113: 0
A114: PARTICULAR | B114: PARTICULAR | C114: HOSPITAL SAN IGNACIO | D114: 02-CHAPINERO | E114: 0 | F114: 0 | G114: 2 | H114: 10 | I114: 4 | J114: 2 | K114: 0 | L114: 2 | M114: 0 | N114: 0 | S114: 20 | T114: 0.0%
A115: PARTICULAR | B115: PARTICULAR | C115: PROGRAMA MADRE CANGURO HOSPITAL SAN IGNACIO | D115: 02-CHAPINERO | E115: 0 | F115: 0 | G115: 92 | H115: 104 | I115: 85 | J115: 82 | K115: 68 | L115: 75 | M115: 78 | N115: 78 | S115: 662 | T115: 0.0%
A116: PARTICULAR | B116: PARTICULAR | C116: IPS AVENIR | D116: 02-CHAPINERO | E116: 0 | F116: 0 | G116: 0 | H116: 0 | I116: 0 | J116: 0 | K116: 0 | L116: 0 | M116: 0 | N116: 0 | S116: 0 | T116: 0.0% | U116: 0
A117: PARTICULAR | B117: PARTICULAR | C117: IPS INMUNOLOGIA Y DIAGNOSTICO ESPECIALIZADO | D117: 02-CHAPINERO | E117: 0 | F117: 0 | G117: 1 | H117: 0 | I117: 1 | J117: 0 | K117: 3 | L117: 0 | M117: 6 | N117: 2 | S117: 13 | T117: 0.0%
A118: PARTICULAR | B118: PARTICULAR | C118: ASOCIACION PEDIATRICA DE LOS ANDES | D118: 02-CHAPINERO | E118: 0 | F118: 0 | G118: 0 | H118: 0 | I118: 0 | J118: 0 | K118: 0 | L118: 0 | M118: 0 | N118: 0 | S118: 0 | T118: 0.0% | U118: 0
A119: PARTICULAR | B119: PARTICULAR | C119: CRUZ ROJA SEDE ANDINO | D119: 02-CHAPINERO | E119: 0 | F119: 0 | G119: 0 | H119: 0 | I119: 0 | J119: 0 | K119: 0 | L119: 0 | M119: 0 | N119: 0 | S119: 0 | T119: 0.0% | U119: 0
A120: PARTICULAR | B120: PARTICULAR | C120: CENTRO MEDICO SANTA MONICA | D120: 02-CHAPINERO | E120: 0 | F120: 0 | H120: 0 | I120: 0 | J120: 12 | K120: 7 | L120: 9 | M120: 0 | N120: 0 | S120: 28 | T120: 0.0%
A121: PEDIATRAS | B121: PEDIATRAS | C121: DR. JUAN OSCAR TAMAYO | D121: 02-CHAPINERO | E121: 0 | F121: 0 | G121: 1 | H121: 2 | I121: 0 | J121: 0 | K121: 0 | L121: 0 | M121: 0 | N121: 0 | S121: 3 | T121: 0.0%
A122: PEDIATRAS | B122: PEDIATRAS | C122: DR. ROBERTO SUAREZ | D122: 02-CHAPINERO | E122: 0 | F122: 0 | G122: 0 | H122: 0 | I122: 0 | J122: 0 | K122: 0 | L122: 0 | M122: 0 | N122: 0 | S122: 0 | T122: 0.0% | U122: 0
A123: PEDIATRAS | B123: PEDIATRAS | C123: DR. WILLIAM RICARDO CABRA | D123: 02-CHAPINERO | E123: 0 | F123: 0 | G123: 3 | H123: 5 | I123: 1 | J123: 3 | K123: 2 | L123: 2 | M123: 0 | N123: 1 | S123: 17 | T123: 0.0%
A124: PEDIATRAS | B124: PEDIATRAS | C124: DR. EDGAR CASTRO | D124: 02-CHAPINERO | E124: 0 | F124: 0 | G124: 2 | H124: 2 | I124: 0 | J124: 6 | K124: 1 | L124: 5 | M124: 7 | N124: 1 | S124: 24 | T124: 0.0%
A125: PEDIATRAS | B125: PEDIATRAS | C125: DR. PABLO KRAUSS | D125: 02-CHAPINERO | E125: 0 | F125: 0 | G125: 5 | H125: 1 | I125: 3 | J125: 0 | K125: 0 | L125: 0 | M125: 0 | N125: 0 | S125: 9 | T125: 0.0%
A126: PEDIATRAS | B126: PEDIATRAS | C126: DR. HERNAN ROBLES | D126: 02-CHAPINERO | E126: 0 | F126: 0 | G126: 4 | H126: 4 | I126: 2 | J126: 3 | K126: 9 | L126: 3 | M126: 6 | N126: 2 | S126: 33 | T126: 0.0%
A127: PEDIATRAS | B127: PEDIATRAS | C127: DR. RAFAEL GAMBOA CASABLANCA | D127: 02-CHAPINERO | E127: 0 | F127: 0 | G127: 7 | H127: 4 | I127: 11 | J127: 5 | K127: 12 | L127: 11 | M127: 4 | N127: 4 | S127: 58 | T127: 0.0%
A128: PEDIATRAS | B128: PEDIATRAS | C128: DR. JAVIER MEJIA | D128: 02-CHAPINERO | E128: 0 | F128: 0 | G128: 2 | H128: 1 | I128: 2 | J128: 3 | K128: 3 | L128: 3 | M128: 2 | N128: 5 | S128: 21 | T128: 0.0%
A129: PEDIATRAS | B129: PEDIATRAS | C129: DR. CARLOS CORTAZAR | D129: 02-CHAPINERO | E129: 0 | F129: 0 | G129: 0 | H129: 0 | I129: 0 | J129: 0 | K129: 0 | L129: 0 | M129: 0 | N129: 0 | S129: 0 | T129: 0.0% | U129: 0
A130: PEDIATRAS | B130: PEDIATRAS | C130: DR. NELSON PARDO | D130: 02-CHAPINERO | E130: 0 | F130: 0 | G130: 2 | H130: 0 | I130: 1 | J130: 0 | K130: 0 | L130: 6 | M130: 1 | N130: 1 | S130: 11 | T130: =IF(E130=0,0,+S130/E130) -> 0.0% | U130: =IF(COUNT(G130:R130)*(E130/12)-S130<0,"",COUNT(G130:R130)*(E130/12)-S130) -> 
A131: PEDIATRAS | B131: PEDIATRAS | C131: DR. ALVARO JACOME | D131: 02-CHAPINERO | E131: 0 | F131: =+E131/12 -> 0 | G131: 0 | H131: 1 | I131: 3 | J131: 5 | K131: 0 | L131: 0 | M131: 1 | N131: 1 | S131: =SUM(G131:R131) -> 11 | T131: 0.0%
A132: PEDIATRAS | B132: PEDIATRAS | C132: DR. SILVIO COPO | D132: 02-CHAPINERO | E132: 0 | F132: 0 | G132: 0 | H132: 0 | I132: 0 | J132: 0 | K132: 0 | L132: 0 | M132: 0 | N132: 0 | S132: 0 | T132: 0.0% | U132: 0
A133: PEDIATRAS | B133: PEDIATRAS | C133: DR. HECTOR FERNANDO MENDOZA | D133: 02-CHAPINERO | E133: 0 | F133: 0 | G133: 1 | H133: 0 | I133: 0 | J133: 0 | K133: 0 | L133: 0 | M133: 1 | N133: 1 | S133: 3 | T133: 0.0%
A134: PEDIATRAS | B134: PEDIATRAS | C134: DR. DIMITRIOS | D134: 02-CHAPINERO | E134: 0 | F134: 0 | G134: 1 | H134: 2 | I134: 0 | J134: 0 | K134: 0 | L134: 0 | M134: 0 | N134: 0 | S134: 3 | T134: 0.0%
A135: PEDIATRAS | B135: PEDIATRAS | C135: DR. ALVARO MARIÑO | D135: 02-CHAPINERO | E135: 0 | F135: 0 | G135: 0 | H135: 0 | I135: 0 | J135: 0 | K135: 0 | L135: 2 | M135: 0 | N135: 0 | S135: 2 | T135: 0.0%
A136: PEDIATRAS | B136: PEDIATRAS | C136: DR. ANDRES VARGAS | D136: 02-CHAPINERO | E136: 0 | F136: 0 | G136: 1 | H136: 1 | I136: 2 | J136: 2 | K136: 1 | L136: 0 | M136: 1 | N136: 1 | S136: 9 | T136: 0.0%
A137: PEDIATRAS | B137: PEDIATRAS | C137: DR. JORGE CAMILO LUNA | D137: 02-CHAPINERO | E137: 0 | F137: 0 | G137: 0 | H137: 13 | I137: 0 | J137: 11 | K137: 3 | L137: 5 | M137: 14 | N137: 8 | S137: 54 | T137: 0.0%
A138: PEDIATRAS | B138: PEDIATRAS | C138: DR. BERNARDO HUERTAS | D138: 02-CHAPINERO | E138: 0 | F138: 0 | G138: 13 | H138: 11 | I138: 5 | J138: 15 | K138: 10 | L138: 14 | M138: 12 | N138: 8 | S138: 88 | T138: 0.0%
A139: PEDIATRAS | B139: PEDIATRAS | C139: DR. CARLOS M CASTILLO | D139: 02-CHAPINERO | E139: 0 | F139: 0 | G139: 0 | H139: 0 | I139: 0 | J139: 0 | K139: 0 | L139: 0 | M139: 0 | N139: 0 | S139: 0 | T139: 0.0% | U139: 0
A140: PEDIATRAS | B140: PEDIATRAS | C140: DR. HEINZ OTTO PFALZGRAF | D140: 02-CHAPINERO | E140: 0 | F140: 0 | G140: 0 | H140: 0 | I140: 0 | J140: 0 | K140: 0 | L140: 0 | M140: 0 | N140: 0 | S140: 0 | T140: 0.0% | U140: 0
A141: PEDIATRAS | B141: PEDIATRAS | C141: DR. GONZALEZ BALLESTEROS | D141: 02-CHAPINERO | E141: 0 | F141: 0 | G141: 1 | H141: 0 | I141: 0 | J141: 0 | K141: 0 | L141: 0 | M141: 0 | N141: 0 | S141: 1 | T141: 0.0%
A142: PEDIATRAS | B142: PEDIATRAS | C142: DR. NORBERTO SALAMANCA | D142: 02-CHAPINERO | E142: 0 | F142: 0 | G142: 0 | H142: 0 | I142: 1 | J142: 0 | K142: 0 | L142: 0 | M142: 0 | N142: 2 | S142: 3 | T142: 0.0%
A143: PEDIATRAS | B143: PEDIATRAS | C143: DR. CAMILO ENRIQUE SOTOMAYOR | D143: 02-CHAPINERO | E143: 0 | F143: 0 | G143: 2 | H143: 1 | I143: 2 | J143: 2 | K143: 0 | L143: 0 | M143: 0 | N143: 2 | S143: 9 | T143: 0.0%
A144: PEDIATRAS | B144: PEDIATRAS | C144: DR. SANTIAGO RUEDA SAIZ | D144: 02-CHAPINERO | E144: 0 | F144: 0 | G144: 0 | H144: 2 | I144: 0 | J144: 0 | K144: 1 | L144: 0 | M144: 0 | N144: 0 | S144: 3 | T144: 0.0%
A145: PEDIATRAS | B145: PEDIATRAS | C145: DR. HENRY HERNANDO SANCHEZ ESCOBAR | D145: 02-CHAPINERO | E145: 0 | F145: 0 | G145: 0 | H145: 1 | I145: 0 | J145: 1 | K145: 0 | L145: 0 | M145: 1 | N145: 1 | S145: 4 | T145: 0.0%
A146: PEDIATRAS | B146: PEDIATRAS | C146: DR. RUBEN DARIO TAMAYO | D146: 02-CHAPINERO | E146: 0 | F146: 0 | G146: 1 | H146: 2 | I146: 0 | J146: 0 | K146: 4 | L146: 4 | M146: 1 | N146: 0 | S146: 12 | T146: 0.0%
A147: PEDIATRAS | B147: PEDIATRAS | C147: DR. JAIME MAURICIO MATALLANA | D147: 02-CHAPINERO | E147: 0 | F147: 0 | G147: 2 | H147: 5 | I147: 4 | J147: 6 | K147: 8 | L147: 4 | M147: 4 | N147: 9 | S147: 42 | T147: 0.0%
A148: PEDIATRAS | B148: PEDIATRAS | C148: DR. RODRIGO GARCIA | D148: 02-CHAPINERO | E148: 0 | F148: 0 | G148: 0 | H148: 0 | I148: 0 | J148: 0 | K148: 0 | L148: 0 | M148: 0 | N148: 0 | S148: 0 | T148: 0.0% | U148: 0
A149: PEDIATRAS | B149: PEDIATRAS | C149: DR. FELIPE ROBAYO | D149: 02-CHAPINERO | E149: 0 | F149: 0 | G149: 0 | H149: 0 | I149: 0 | J149: 0 | K149: 0 | L149: 0 | M149: 0 | N149: 0 | S149: 0 | T149: 0.0% | U149: 0
A150: PEDIATRAS | B150: PEDIATRAS | C150: DR. RUBEN FRANCO | D150: 02-CHAPINERO | E150: 0 | F150: 0 | G150: 0 | H150: 0 | I150: 3 | J150: 5 | K150: 0 | L150: 0 | M150: 0 | N150: 0 | S150: 8 | T150: 0.0%
A151: PEDIATRAS | B151: PEDIATRAS | C151: DR. ORLANDO RODRIGUEZ RAMIREZ | D151: 02-CHAPINERO | E151: 0 | F151: 0 | G151: 0 | H151: 1 | I151: 1 | J151: 1 | K151: 0 | L151: 0 | M151: 3 | N151: 2 | S151: 8 | T151: 0.0%
A152: PEDIATRAS | B152: PEDIATRAS | C152: DR. ARTURO MORENO | D152: 02-CHAPINERO | E152: 0 | F152: 0 | G152: 0 | H152: 0 | I152: 0 | J152: 0 | K152: 0 | L152: 0 | M152: 0 | N152: 0 | S152: 0 | T152: 0.0% | U152: 0
A153: PEDIATRAS | B153: PEDIATRAS | C153: DR. FRANCISCO LEAL QUEVEDO | D153: 02-CHAPINERO | E153: 0 | F153: 0 | G153: 0 | H153: 0 | I153: 0 | J153: 0 | K153: 0 | L153: 0 | M153: 0 | N153: 0 | S153: 0 | T153: 0.0% | U153: 0
A154: PEDIATRAS | B154: PEDIATRAS | C154: DR. CARLOS DIAZ PUENTES | D154: 02-CHAPINERO | E154: 0 | F154: 0 | G154: 0 | H154: 0 | I154: 0 | J154: 0 | K154: 0 | L154: 0 | M154: 0 | N154: 0 | S154: 0 | T154: 0.0% | U154: 0
A155: PEDIATRAS | B155: PEDIATRAS | C155: DR. PEDRO ERASMO MENDOZA | D155: 02-CHAPINERO | E155: 0 | F155: 0 | G155: 0 | H155: 0 | I155: 0 | J155: 0 | K155: 0 | L155: 0 | M155: 0 | N155: 0 | S155: 0 | T155: 0.0% | U155: 0
A156: PEDIATRAS | B156: PEDIATRAS | C156: DR. DIMAS ROSAS | D156: 02-CHAPINERO | E156: 0 | F156: 0 | G156: 0 | H156: 0 | I156: 0 | J156: 0 | K156: 0 | L156: 0 | M156: 0 | N156: 0 | S156: 0 | T156: 0.0% | U156: 0
A157: PEDIATRAS | B157: PEDIATRAS | C157: DR. JAVIER BRITO MORENO | D157: 02-CHAPINERO | E157: 0 | F157: 0 | G157: 0 | H157: 0 | I157: 0 | J157: 0 | K157: 0 | L157: 0 | M157: 0 | N157: 0 | S157: 0 | T157: 0.0% | U157: 0
A158: PEDIATRAS | B158: PEDIATRAS | C158: DR. GUSTAVO CORTÉS | D158: 02-CHAPINERO | E158: 0 | F158: 0 | G158: 0 | H158: 0 | I158: 0 | J158: 0 | K158: 0 | L158: 0 | M158: 0 | N158: 0 | S158: 0 | T158: 0.0% | U158: 0
A159: PEDIATRAS | B159: PEDIATRAS | C159: DR. CARLOS VELASQUEZ | D159: 02-CHAPINERO | E159: 0 | F159: 0 | G159: 0 | H159: 0 | I159: 0 | J159: 0 | K159: 0 | L159: 0 | M159: 0 | N159: 0 | S159: 0 | T159: 0.0% | U159: 0
A160: PEDIATRAS | B160: PEDIATRAS | C160: DR. RICARDO GOMEZ | D160: 02-CHAPINERO | E160: 0 | F160: 0 | G160: 0 | H160: 0 | I160: 0 | J160: 0 | K160: 0 | L160: 0 | M160: 0 | N160: 0 | S160: 0 | T160: 0.0% | U160: 0
A161: PEDIATRAS | B161: PEDIATRAS | C161: DR. SARA BERNAL | D161: 02-CHAPINERO | E161: 0 | F161: 0 | G161: 2 | H161: 2 | I161: 0 | J161: 0 | K161: 0 | L161: 0 | M161: 0 | N161: 2 | S161: 6 | T161: 0.0%
A162: PEDIATRAS | B162: PEDIATRAS | C162: DRA. MARIA PATRICIA AGUALIMPIA | D162: 02-CHAPINERO | E162: 0 | F162: 0 | G162: 0 | H162: 0 | I162: 0 | J162: 0 | K162: 0 | L162: 0 | M162: 0 | N162: 0 | S162: 0 | T162: 0.0% | U162: 0
A163: PEDIATRAS | B163: PEDIATRAS | C163: DRA. LUISA FERNANDA FORERO ACOSTA | D163: 02-CHAPINERO | E163: 0 | F163: 0 | G163: 0 | H163: 0 | I163: 0 | J163: 0 | K163: 0 | L163: 0 | M163: 0 | N163: 0 | S163: 0 | T163: 0.0% | U163: 0
A164: PEDIATRAS | B164: PEDIATRAS | C164: DRA. MARIA CLARA CASAS PARDO | D164: 02-CHAPINERO | E164: 0 | F164: 0 | G164: 0 | H164: 0 | I164: 0 | J164: 0 | K164: 0 | L164: 0 | M164: 0 | N164: 0 | S164: 0 | T164: 0.0% | U164: 0
A165: PEDIATRAS | B165: PEDIATRAS | C165: DRA. MARTHA EUGENIA RONDEROS DE FORERO | D165: 02-CHAPINERO | E165: 0 | F165: 0 | G165: 0 | H165: 0 | I165: 0 | J165: 0 | K165: 0 | L165: 0 | M165: 0 | N165: 0 | S165: 0 | T165: 0.0% | U165: 0
A166: PEDIATRAS | B166: PEDIATRAS | C166: DRA. MARIA ISABEL USCHER | D166: 02-CHAPINERO | E166: 0 | F166: 0 | G166: 1 | H166: 2 | I166: 5 | J166: 0 | K166: 7 | L166: 3 | M166: 1 | N166: 0 | S166: 19 | T166: 0.0%
A167: PEDIATRAS | B167: PEDIATRAS | C167: DRA. MARIA DE LOS ANGELES MUÑOZ | D167: 02-CHAPINERO | E167: 0 | F167: 0 | G167: 1 | H167: 0 | I167: 1 | J167: 0 | K167: 2 | L167: 4 | M167: 2 | N167: 2 | S167: 12 | T167: 0.0%
A168: PEDIATRAS | B168: PEDIATRAS | C168: DRA. CLARA ABELLO REYES | D168: 02-CHAPINERO | E168: 0 | F168: 0 | H168: 0 | I168: 1 | J168: 0 | K168: 0 | L168: 0 | M168: 1 | N168: 0 | S168: 2 | T168: 0.0%
A169: PEDIATRAS | B169: PEDIATRAS | C169: DRA. PATRICIA CONTRERAS | D169: 02-CHAPINERO | E169: 0 | F169: 0 | H169: 1 | I169: 0 | J169: 0 | K169: 3 | L169: 4 | M169: 3 | N169: 7 | S169: 18 | T169: 0.0%
A170: PEDIATRAS | B170: PEDIATRAS | C170: DRA. CLAUDIA ZOPPI | D170: 02-CHAPINERO | E170: 0 | F170: 0 | G170: 0 | H170: 0 | I170: 0 | J170: 0 | K170: 0 | L170: 0 | M170: 0 | N170: 0 | S170: 0 | T170: 0.0% | U170: 0
A171: PEDIATRAS | B171: PEDIATRAS | C171: DRA. MARIA DE LOS ANGELES FERNANDEZ LUQUE | D171: 02-CHAPINERO | E171: 0 | F171: 0 | G171: 0 | H171: 0 | I171: 0 | J171: 0 | K171: 0 | L171: 0 | M171: 0 | N171: 0 | S171: 0 | T171: 0.0% | U171: 0
A172: PEDIATRAS | B172: PEDIATRAS | C172: DRA. RUTH CORDOBA CORDOBA | D172: 02-CHAPINERO | E172: 0 | F172: 0 | G172: 0 | H172: 0 | I172: 0 | J172: 0 | K172: 0 | L172: 0 | M172: 0 | N172: 0 | S172: 0 | T172: 0.0% | U172: 0
A173: PEDIATRAS | B173: PEDIATRAS | C173: DRA. LUZ ESTELA CORTES | D173: 02-CHAPINERO | E173: 0 | F173: 0 | G173: 0 | H173: 1 | I173: 0 | J173: 0 | K173: 0 | L173: 0 | M173: 1 | N173: 0 | S173: 2 | T173: 0.0%
A174: UNICAJAS | B174: UNICAJAS | C174: UPA SAN LUIS | D174: 02-CHAPINERO | E174: 18 | F174: 2 | G174: 1 | H174: 0 | I174: 1 | J174: 0 | K174: 0 | L174: 0 | M174: 1 | N174: 0 | S174: 3 | T174: 16.7% | U174: 9
A175: 02-CHAPINERO | B175: OTROS | C175: UPA SAN LUIS | D175: 02-CHAPINERO | E175: 325 | F175: 27 | G175: 0 | H175: 2 | I175: 1 | J175: 1 | K175: 0 | L175: 0 | M175: 0 | N175: 3 | S175: 7 | T175: 2.2% | U175: 210
A176: 02-CHAPINERO | B176: DEMAS EAPB | C176: UPA SAN LUIS | D176: 02-CHAPINERO | F176: 0 | G176: 7 | H176: 2 | I176: 5 | J176: 5 | K176: 5 | L176: 3 | M176: 8 | N176: 5 | S176: 40 | T176: 0.0%
A177: UNICAJAS | B177: UNICAJAS | C177: COMFASALUD SEDE CENTRO | D177: 03-SANTA FE | E177: 50 | F177: 4 | G177: 4 | H177: 2 | I177: 4 | J177: 1 | K177: 1 | L177: 0 | M177: 1 | N177: 0 | S177: 13 | T177: 26.0% | U177: 20
A178: MEDIMAS | B178: MEDIMAS | C178: CORVESALUD TEUSAQUILLO | D178: 03-SANTA FE | E178: 193 | F178: 16 | G178: 6 | H178: 4 | I178: 2 | J178: 0 | K178: 0 | L178: 0 | M178: 0 | N178: 0 | S178: 12 | T178: 6.2% | U178: 117
A179: 03-SANTA FE | B179: CAPITAL SALUD | C179: EXTRAMURAL SANTA FE | D179: 03-SANTA FE | E179: 0 | F179: 0 | G179: 2 | H179: 5 | I179: 18 | J179: 31 | K179: 19 | L179: 9 | M179: 18 | N179: 24 | S179: 126 | T179: 0.0%
A180: 03-SANTA FE | B180: DEMAS EAPB | C180: EXTRAMURAL SANTA FE | D180: 03-SANTA FE | E180: 0 | F180: 0 | G180: 6 | H180: 4 | I180: 17 | J180: 36 | K180: 22 | L180: 25 | M180: 19 | N180: 11 | S180: 140 | T180: 0.0%
A181: 03-SANTA FE | B181: OTROS | C181: EXTRAMURAL SANTA FE | D181: 03-SANTA FE | E181: 0 | F181: 0 | G181: 16 | H181: 9 | I181: 9 | J181: 10 | K181: 8 | L181: 12 | M181: 19 | N181: 19 | S181: 102 | T181: 0.0%
A182: 03-SANTA FE | B182: UNICAJAS | C182: EXTRAMURAL SANTA FE | D182: 03-SANTA FE | E182: 0 | F182: 0 | G182: 0 | H182: 0 | I182: 1 | J182: 1 | K182: 3 | L182: 3 | M182: 1 | N182: 1 | S182: 10 | T182: 0.0%
A183: 03-SANTA FE | B183: CAPITAL SALUD | C183: USS LACHES | D183: 03-SANTA FE | E183: 54 | F183: 5 | G183: 9 | H183: 3 | I183: 4 | J183: 6 | K183: 4 | L183: 2 | M183: 6 | N183: 6 | S183: 40 | T183: 74.1%
A184: 03-SANTA FE | B184: DEMAS EAPB | C184: USS LACHES | D184: 03-SANTA FE | E184: 0 | F184: 0 | G184: 12 | H184: 2 | I184: 11 | J184: 1 | K184: 6 | L184: 5 | M184: 6 | N184: 7 | S184: 50 | T184: 0.0%
A185: 03-SANTA FE | B185: OTROS | C185: USS LACHES | D185: 03-SANTA FE | E185: 260 | F185: 22 | G185: 6 | H185: 0 | I185: 4 | J185: 1 | K185: 1 | L185: 1 | M185: 1 | N185: 0 | S185: 14 | T185: 5.4% | U185: 159
A186: 03-SANTA FE | B186: UNICAJAS | C186: USS LACHES | D186: 03-SANTA FE | E186: 17 | F186: 1 | G186: 0 | H186: 2 | I186: 1 | J186: 0 | K186: 0 | L186: 1 | M186: 0 | N186: 0 | S186: 4 | T186: 23.5% | U186: 7
A187: 03-SANTA FE | B187: CAPITAL SALUD | C187: USS LAS CRUCES | D187: 03-SANTA FE | E187: 44 | F187: 4 | G187: 7 | H187: 5 | I187: 6 | J187: 3 | K187: 2 | L187: 3 | M187: 3 | N187: 4 | S187: 33 | T187: 75.0%
A188: 03-SANTA FE | B188: DEMAS EAPB | C188: USS LAS CRUCES | D188: 03-SANTA FE | E188: 0 | F188: 0 | G188: 6 | H188: 1 | I188: 4 | J188: 5 | K188: 3 | L188: 3 | M188: 2 | N188: 0 | S188: 24 | T188: 0.0%
A189: 03-SANTA FE | B189: OTROS | C189: USS LAS CRUCES | D189: 03-SANTA FE | E189: 211 | F189: 18 | G189: 5 | H189: 4 | I189: 2 | J189: 2 | K189: 2 | L189: 0 | M189: 3 | N189: 0 | S189: 18 | T189: 8.5% | U189: 123
A190: 03-SANTA FE | B190: UNICAJAS | C190: USS LAS CRUCES | D190: 03-SANTA FE | E190: 14 | F190: 1 | G190: 7 | H190: 0 | I190: 1 | J190: 0 | K190: 1 | L190: 0 | M190: 0 | N190: 0 | S190: 9 | T190: 64.3% | U190: 0
A191: 03-SANTA FE | B191: CAPITAL SALUD | C191: USS PERSEVERANCIA | D191: 03-SANTA FE | E191: 6 | F191: 1 | G191: 2 | H191: 0 | I191: 3 | J191: 0 | K191: 0 | L191: 0 | M191: 1 | N191: 2 | S191: 8 | T191: 133.3%
A192: 03-SANTA FE | B192: DEMAS EAPB | C192: USS PERSEVERANCIA | D192: 03-SANTA FE | E192: 0 | F192: 0 | G192: 0 | H192: 0 | I192: 1 | J192: 0 | K192: 0 | L192: 0 | M192: 2 | N192: 1 | S192: 4 | T192: 0.0%
A193: 03-SANTA FE | B193: OTROS | C193: USS PERSEVERANCIA | D193: 03-SANTA FE | E193: 30 | F193: 3 | G193: 2 | H193: 0 | I193: 0 | J193: 0 | K193: 2 | L193: 1 | M193: 0 | N193: 1 | S193: 6 | T193: 20.0% | U193: 14
A194: 03-SANTA FE | B194: UNICAJAS | C194: USS PERSEVERANCIA | D194: 03-SANTA FE | E194: 2 | F194: 0 | G194: 0 | H194: 0 | I194: 0 | J194: 0 | K194: 0 | L194: 0 | M194: 0 | N194: 0 | S194: 0 | T194: =IF(E194=0,0,+S194/E194) -> 0.0% | U194: =IF(COUNT(G194:R194)*(E194/12)-S194<0,"",COUNT(G194:R194)*(E194/12)-S194) -> 1
A195: PARTICULAR | B195: PARTICULAR | C195: CLINICA SAN RAFAEL | D195: 04-SAN CRISTOBAL | E195: 375 | F195: =+E195/12 -> 31 | G195: 35 | H195: 26 | I195: 24 | J195: 17 | K195: 25 | L195: 27 | M195: 10 | N195: 15 | S195: =SUM(G195:R195) -> 179 | T195: 47.7% | U195: 71
A196: FAMISANAR | B196: FAMI- COLSB | C196: CENTRO MEDICO COLSUBSIDIO 20 DE JULIO | D196: 04-SAN CRISTOBAL | F196: 0 | S196: 0 | T196: 0.0% | U196: 0
A197: 04-SAN CRISTOBAL | B197: CAPITAL SALUD | C197: EXTRAMURAL SAN CRISTOBAL | D197: 04-SAN CRISTOBAL | E197: 0 | F197: 0 | G197: 28 | H197: 28 | I197: 66 | J197: 43 | K197: 70 | L197: 69 | M197: 63 | N197: 70 | S197: 437 | T197: 0.0%
A198: 04-SAN CRISTOBAL | B198: DEMAS EAPB | C198: EXTRAMURAL SAN CRISTOBAL | D198: 04-SAN CRISTOBAL | E198: 0 | F198: 0 | G198: 37 | H198: 26 | I198: 105 | J198: 118 | K198: 107 | L198: 95 | M198: 113 | N198: 78 | S198: 679 | T198: 0.0%
A199: 04-SAN CRISTOBAL | B199: OTROS | C199: EXTRAMURAL SAN CRISTOBAL | D199: 04-SAN CRISTOBAL | E199: 0 | F199: 0 | G199: 12 | H199: 7 | I199: 25 | J199: 22 | K199: 27 | L199: 22 | M199: 29 | N199: 31 | S199: 175 | T199: 0.0%
A200: 04-SAN CRISTOBAL | B200: UNICAJAS | C200: EXTRAMURAL SAN CRISTOBAL | D200: 04-SAN CRISTOBAL | E200: 0 | F200: 0 | G200: 0 | H200: 2 | I200: 14 | J200: 6 | K200: 11 | L200: 9 | M200: 12 | N200: 6 | S200: 60 | T200: 0.0%
... 620 more rows

Sheet PENTA3
A1: EAPB | B1: EPS O ESE | C1: IPS | D1: Localidad | E1: Meta Anual Menor de 1 Año | F1: Meta Mensual | G1: Enero | H1: Febrero | I1: Marzo | J1: Abril | K1: Mayo | L1: Junio | M1: Julio | N1: Agosto | O1: Septiembre | P1: Octubre | Q1: Noviembre | R1: Diciembre | S1: Total | T1: % Cobertura | U1: Deficit
A2: CAPITAL SALUD | B2: CAPITAL SALUD | C2: UPA SAN CRISTOBAL | D2: 01-USAQUEN | E2: 124 | F2: =+E2/12 -> 10 | G2: 6 | H2: 3 | I2: 3 | J2: 4 | K2: 6 | L2: 8 | M2: 5 | N2: 8 | S2: =SUM(G2:R2) -> 43 | T2: =IF(E2=0,0,+S2/E2) -> 34.7% | U2: =IF(COUNT(G2:R2)*(E2/12)-S2<0,"",COUNT(G2:R2)*(E2/12)-S2) -> 40
A3: CAPITAL SALUD | B3: CAPITAL SALUD | C3: UPA USAQUEN | D3: 01-USAQUEN | E3: 10 | F3: =+E3/12 -> 1 | G3: 0 | H3: 0 | I3: 0 | J3: 0 | K3: 0 | L3: 0 | M3: 0 | N3: 0 | S3: =SUM(G3:R3) -> 0 | T3: 0.0% | U3: 7
A4: CAPITAL SALUD | B4: CAPITAL SALUD | C4: UPA ORQUIDEAS | D4: 01-USAQUEN | E4: 11 | F4: 1 | G4: 0 | H4: 0 | I4: 3 | J4: 2 | K4: 0 | L4: 6 | M4: 3 | N4: 0 | S4: 14 | T4: 127.3%
A5: CAPITAL SALUD | B5: CAPITAL SALUD | C5: UPA CODITO | D5: 01-USAQUEN | E5: 107 | F5: 9 | G5: 7 | H5: 2 | I5: 4 | J5: 4 | K5: 5 | L5: 2 | M5: 5 | N5: 3 | S5: 32 | T5: 29.9% | U5: 39
A6: CAPITAL SALUD | B6: CAPITAL SALUD | C6: CAMI VERBENAL | D6: 01-USAQUEN | E6: 87 | F6: 7 | G6: 7 | H6: 10 | I6: 3 | J6: 4 | K6: 7 | L6: 1 | M6: 9 | N6: 6 | S6: 47 | T6: 54.0% | U6: 11
A7: CAPITAL SALUD | B7: CAPITAL SALUD | C7: HOSPITAL SIMON BOLIVAR | D7: 01-USAQUEN | E7: 36 | F7: 3 | G7: 10 | H7: 6 | I7: 6 | J7: 2 | K7: 3 | L7: 4 | M7: 2 | N7: 1 | S7: 34 | T7: 94.4%
A8: 01-USAQUEN | B8: 01-USAQUEN | C8: EXTRAMURAL USAQUEN | D8: 01-USAQUEN | E8: 0 | F8: 0 | G8: 21 | H8: 34 | I8: 34 | J8: 110 | K8: 47 | L8: 46 | M8: 60 | N8: 38 | S8: 390 | T8: 0.0%
A9: ALIANSALUD | B9: ALIANSALUD | C9: CENTRO MEDICO COLMEDICA SANTA BARBARA | D9: 01-USAQUEN | E9: 580 | F9: 48 | G9: 71 | H9: 69 | I9: 66 | J9: 39 | K9: 53 | L9: 26 | M9: 45 | N9: 27 | S9: 396 | T9: 68.3%
A10: COMPENSAR | B10: COMPENSAR | C10: USS CALLE 134 | D10: 01-USAQUEN | E10: 372 | F10: 31 | G10: 20 | H10: 9 | I10: 14 | J10: 8 | K10: 9 | L10: 15 | M10: 12 | N10: 12 | S10: 99 | T10: 26.6% | U10: 149
A11: COMPENSAR | B11: COMPENSAR | C11: USS CALLE 145 | D11: 01-USAQUEN | E11: 173 | F11: 14 | G11: 22 | H11: 14 | I11: 16 | J11: 11 | K11: 14 | L11: 13 | M11: 22 | N11: 13 | S11: 125 | T11: 72.3%
A12: COMPENSAR | B12: COMPENSAR | C12: JAVESALUD TOBERIN | D12: 01-USAQUEN | E12: 372 | F12: 31 | G12: 0 | H12: 9 | I12: 3 | J12: 7 | K12: 10 | L12: 7 | M12: 9 | N12: 10 | S12: 55 | T12: 14.8% | U12: 193
A13: COOMEVA | B13: COOMEVA | C13: SINERGIA UNIDAD INTEGRAL EN SALUD | D13: 01-USAQUEN | E13: 44 | F13: 4 | G13: 12 | H13: 13 | I13: 5 | J13: 2 | K13: 7 | L13: 8 | M13: 5 | N13: 3 | S13: 55 | T13: 125.0%
A14: FAMISANAR | B14: FAMI- COLSB | C14: CENTRO MEDICO COLSUBSIDIO USAQUEN | D14: 01-USAQUEN | E14: 298 | F14: 25 | G14: 26 | H14: 25 | I14: 19 | J14: 14 | K14: 28 | L14: 31 | M14: 22 | N14: 30 | S14: 195 | T14: 65.4% | U14: 4
A15: MILITAR | B15: MILITAR | C15: DISPENSARIO MEDICO CANTON NORTE | D15: 01-USAQUEN | E15: 205 | F15: 17 | G15: 8 | H15: 6 | I15: 3 | J15: 11 | K15: 4 | L15: 5 | M15: 4 | N15: 7 | S15: 48 | T15: 23.4% | U15: 89
A16: NUEVA EPS | B16: NUEVA EPS | C16: IPS VIVA 1A SEDE TOBERIN | D16: 01-USAQUEN | E16: 147 | F16: 12 | G16: 11 | H16: 7 | I16: 7 | J16: 1 | K16: 6 | L16: 4 | M16: 6 | N16: 4 | S16: 46 | T16: 31.3% | U16: 52
A17: NUEVA EPS | B17: NUEVA EPS | C17: CAFAM GRANADA HILLS | D17: 01-USAQUEN | E17: 44 | F17: 4 | G17: 0 | H17: 3 | I17: 7 | J17: 4 | K17: 1 | L17: 5 | M17: 1 | N17: 1 | S17: 22 | T17: 50.0% | U17: 7
A18: SANITAS | B18: SANITAS | C18: UAP SANITAS TOBERIN | D18: 01-USAQUEN | E18: 511 | F18: 43 | G18: 33 | H18: 27 | I18: 37 | J18: 22 | K18: 10 | L18: 15 | M18: 17 | N18: 9 | S18: 170 | T18: 33.3% | U18: 171
A19: SANITAS | B19: SANITAS | C19: MEDIKA IPS SANITAS UAP USAQUEN | D19: 01-USAQUEN | E19: 188 | F19: 16 | G19: 1 | H19: 2 | I19: 1 | J19: 0 | K19: 1 | L19: 4 | M19: 3 | N19: 1 | S19: 13 | T19: 6.9% | U19: 112
A20: SANITAS | B20: SANITAS | C20: UAP SANTA BARBARA | D20: 01-USAQUEN | E20: 796 | F20: 66 | G20: 77 | H20: 69 | I20: 62 | J20: 33 | K20: 18 | L20: 26 | M20: 36 | N20: 17 | S20: 338 | T20: 42.5% | U20: 193
A21: SANITAS | B21: SANITAS | C21: SANITAS BANCO DE LA REPUBLICA | D21: 01-USAQUEN | E21: 0 | F21: 0 | G21: 1 | H21: 5 | I21: 4 | J21: 1 | K21: 4 | L21: 3 | M21: 5 | N21: 4 | S21: 27 | T21: 0.0%
A22: SALUD TOTAL | B22: SALUD TOTAL | C22: VIRREY SOLIS TOBERÍN | D22: 01-USAQUEN | E22: 384 | F22: 32 | G22: 18 | H22: 19 | I22: 20 | J22: 12 | K22: 20 | L22: 8 | M22: 12 | N22: 14 | S22: 123 | T22: 32.0% | U22: 133
A23: SURA | B23: SURA | C23: IPS JAVESALUD SANTA BEATRIZ | D23: 01-USAQUEN | E23: 355 | F23: 30 | G23: 10 | H23: 18 | I23: 13 | J23: 5 | K23: 11 | L23: 10 | M23: 12 | N23: 3 | S23: 82 | T23: 23.1% | U23: 155
A24: ECOPETROL | B24: ECOPETROL | C24: IPS CLINICOS PALATINO | D24: 01-USAQUEN | E24: 87 | F24: 7 | G24: 4 | H24: 9 | I24: 10 | J24: 15 | K24: 6 | L24: 12 | M24: 4 | N24: 5 | S24: 65 | T24: 74.7%
A25: PARTICULAR | B25: PARTICULAR | C25: CLINICA PEDIATRICA COLSANITAS | D25: 01-USAQUEN | E25: 830 | F25: 69 | G25: 88 | H25: 58 | I25: 68 | J25: 52 | K25: 34 | L25: 47 | M25: 37 | N25: 45 | S25: 429 | T25: 51.7% | U25: 124
A26: PARTICULAR | B26: PARTICULAR | C26: CENTRO MEDICO COLSANITAS LA CALLEJA | D26: 01-USAQUEN | E26: 120 | F26: 10 | G26: 10 | H26: 18 | I26: 17 | J26: 7 | K26: 6 | L26: 7 | M26: 2 | N26: 3 | S26: 70 | T26: 58.3% | U26: 10
A27: PARTICULAR | B27: PARTICULAR | C27: CENTRO MEDICO COLSANITAS 108 | D27: 01-USAQUEN | E27: 40 | F27: 3 | G27: 3 | H27: 3 | I27: 5 | J27: 0 | K27: 0 | L27: 0 | M27: 0 | N27: 0 | S27: 11 | T27: 27.5% | U27: 16
A28: PARTICULAR | B28: PARTICULAR | C28: CENTRO MEDICO COLSANITAS SANTA ANA | D28: 01-USAQUEN | E28: 4 | F28: 0 | G28: 2 | H28: 3 | I28: 3 | J28: 0 | K28: 0 | L28: 0 | M28: 0 | N28: 0 | S28: 8 | T28: 200.0%
A29: PARTICULAR | B29: PARTICULAR | C29: FUNDACIÓN CARDIO INFANTIL | D29: 01-USAQUEN | E29: 0 | F29: 0 | G29: 10 | H29: 12 | I29: 7 | J29: 3 | K29: 2 | L29: 8 | M29: 7 | N29: 1 | S29: 50 | T29: 0.0%
A30: PARTICULAR | B30: PARTICULAR | C30: ENFASO USAQUEN | D30: 01-USAQUEN | E30: 0 | F30: 0 | G30: 9 | H30: 8 | I30: 8 | J30: 8 | K30: 2 | L30: 15 | M30: 5 | N30: 4 | S30: 59 | T30: 0.0%
A31: PARTICULAR | B31: PARTICULAR | C31: UNIDAD DE VACUNACIÓN INTERNACIONAL | D31: 01-USAQUEN | E31: 0 | F31: 0 | G31: 5 | H31: 5 | I31: 3 | J31: 2 | K31: 5 | L31: 1 | M31: 0 | N31: 2 | S31: 23 | T31: 0.0%
A32: PARTICULAR | B32: PARTICULAR | C32: INMUNOLOGÍA Y DIAGNÓSTICO ESPECIALIZADO LTDA. | D32: 01-USAQUEN | E32: 0 | F32: 0 | G32: 1 | H32: 0 | I32: 0 | J32: 0 | K32: 0 | L32: 0 | M32: 0 | N32: 0 | S32: 1 | T32: 0.0%
A33: PARTICULAR | B33: PARTICULAR | C33: PROTEGER HEALHT CARE | D33: 01-USAQUEN | E33: 0 | F33: 0 | G33: 1 | H33: 1 | I33: 0 | J33: 4 | K33: 6 | L33: 9 | M33: 5 | N33: 5 | S33: 31 | T33: 0.0%
A34: PARTICULAR | B34: PARTICULAR | C34: FUNDACION SANTA FE DE BOGOTA | D34: 01-USAQUEN | E34: 0 | F34: 0 | G34: 0 | H34: 0 | I34: 0 | J34: 0 | K34: 0 | L34: 0 | M34: 1 | N34: 0 | S34: 1 | T34: 0.0%
A35: PARTICULAR | B35: PARTICULAR | C35: IPS CRUZ ROJA SEDE UNICENTRO | D35: 01-USAQUEN | E35: 0 | F35: 0 | G35: 0 | H35: 1 | I35: 0 | J35: 0 | K35: 0 | L35: 0 | M35: 0 | N35: 0 | S35: 1 | T35: 0.0%
A36: PARTICULAR | B36: PARTICULAR | C36: IPS CRUZ ROJA SAMU CALLE 145 | D36: 01-USAQUEN | E36: 0 | F36: 0 | G36: 0 | H36: 0 | I36: 0 | J36: 0 | K36: 0 | L36: 0 | M36: 0 | N36: 0 | S36: 0 | T36: 0.0% | U36: 0
A37: PEDIATRAS | B37: PEDIATRAS | C37: DR. ALEJANDRO LÓPEZ | D37: 01-USAQUEN | E37: 0 | F37: 0 | G37: 4 | H37: 2 | I37: 1 | J37: 1 | K37: 0 | L37: 0 | M37: 0 | N37: 1 | S37: 9 | T37: 0.0%
A38: PEDIATRAS | B38: PEDIATRAS | C38: DR. CARLOS NEFTALI TORRES | D38: 01-USAQUEN | E38: 0 | F38: 0 | G38: 5 | H38: 7 | I38: 6 | J38: 6 | K38: 1 | L38: 2 | M38: 3 | N38: 6 | S38: 36 | T38: 0.0%
A39: PEDIATRAS | B39: PEDIATRAS | C39: DR. FRANCISCO NUÑEZ | D39: 01-USAQUEN | E39: 0 | F39: 0 | G39: 0 | H39: 0 | I39: 0 | J39: 0 | K39: 1 | L39: 0 | M39: 0 | N39: 0 | S39: 1 | T39: 0.0%
A40: PEDIATRAS | B40: PEDIATRAS | C40: DR. FERNANDO GOMEZ | D40: 01-USAQUEN | E40: 0 | F40: 0 | G40: 0 | H40: 0 | I40: 0 | J40: 0 | K40: 0 | L40: 0 | M40: 0 | N40: 0 | S40: 0 | T40: 0.0% | U40: 0
A41: PEDIATRAS | B41: PEDIATRAS | C41: DR. FERNANDO ZARATE MORENO | D41: 01-USAQUEN | E41: 0 | F41: 0 | G41: 0 | H41: 1 | I41: 0 | J41: 2 | K41: 1 | L41: 1 | M41: 0 | N41: 1 | S41: 6 | T41: 0.0%
A42: PEDIATRAS | B42: PEDIATRAS | C42: DR. GONZALO GARCIA | D42: 01-USAQUEN | E42: 0 | F42: 0 | G42: 1 | H42: 0 | I42: 1 | J42: 0 | K42: 1 | L42: 0 | M42: 1 | N42: 0 | S42: 4 | T42: 0.0%
A43: PEDIATRAS | B43: PEDIATRAS | C43: DR. GUSTAVO MORALES | D43: 01-USAQUEN | E43: 0 | F43: 0 | G43: 2 | H43: 3 | I43: 2 | J43: 1 | K43: 3 | L43: 1 | M43: 2 | N43: 2 | S43: 16 | T43: 0.0%
A44: PEDIATRAS | B44: PEDIATRAS | C44: DR. JAIME OSPINA | D44: 01-USAQUEN | E44: 0 | F44: 0 | G44: 6 | H44: 0 | I44: 0 | J44: 2 | K44: 4 | L44: 1 | M44: 1 | N44: 2 | S44: 16 | T44: 0.0%
A45: PEDIATRAS | B45: PEDIATRAS | C45: DR. JORGE URIBE | D45: 01-USAQUEN | E45: 0 | F45: 0 | G45: 0 | H45: 0 | I45: 0 | J45: 0 | K45: 0 | L45: 0 | M45: 1 | N45: 0 | S45: 1 | T45: 0.0%
A46: PEDIATRAS | B46: PEDIATRAS | C46: DR. JUAN LUIS FIGUEROA | D46: 01-USAQUEN | E46: 0 | F46: 0 | G46: 1 | H46: 3 | I46: 1 | J46: 0 | K46: 1 | L46: 0 | M46: 0 | N46: 0 | S46: 6 | T46: 0.0%
A47: PEDIATRAS | B47: PEDIATRAS | C47: DR. LUIS AUGUSTO PERNA | D47: 01-USAQUEN | E47: 0 | F47: 0 | G47: 6 | H47: 3 | I47: 5 | J47: 5 | K47: 8 | L47: 0 | M47: 4 | N47: 0 | S47: 31 | T47: 0.0%
A48: PEDIATRAS | B48: PEDIATRAS | C48: DR. LIBARDO ELI TRIANA | D48: 01-USAQUEN | E48: 0 | F48: 0 | G48: 0 | H48: 0 | I48: 0 | J48: 0 | K48: 0 | L48: 0 | M48: 1 | N48: 0 | S48: 1 | T48: 0.0%
A49: PEDIATRAS | B49: PEDIATRAS | C49: DR. OSWALDO MERCADO HOYOS | D49: 01-USAQUEN | E49: 0 | F49: 0 | G49: 0 | H49: 0 | I49: 1 | J49: 2 | K49: 2 | L49: 3 | M49: 2 | N49: 1 | S49: 11 | T49: 0.0%
A50: PEDIATRAS | B50: PEDIATRAS | C50: DR. ROBERTO BENIRO | D50: 01-USAQUEN | E50: 0 | F50: 0 | G50: 0 | H50: 0 | I50: 0 | J50: 0 | K50: 1 | L50: 1 | M50: 0 | N50: 0 | S50: 2 | T50: 0.0%
A51: PEDIATRAS | B51: PEDIATRAS | C51: DR. SERGIO ISAZA | D51: 01-USAQUEN | E51: 0 | F51: 0 | G51: 0 | H51: 0 | I51: 0 | J51: 0 | K51: 0 | L51: 0 | M51: 0 | N51: 0 | S51: 0 | T51: 0.0% | U51: 0
A52: PEDIATRAS | B52: PEDIATRAS | C52: DR. SANTIAGO UCROS | D52: 01-USAQUEN | E52: 0 | F52: 0 | G52: 0 | H52: 0 | I52: 0 | J52: 0 | K52: 0 | L52: 0 | M52: 0 | N52: 0 | S52: 0 | T52: 0.0% | U52: 0
A53: PEDIATRAS | B53: PEDIATRAS | C53: DR. GERMAN SILVA | D53: 01-USAQUEN | E53: 0 | F53: 0 | G53: 0 | H53: 0 | I53: 0 | J53: 0 | K53: 0 | L53: 0 | M53: 0 | N53: 0 | S53: 0 | T53: 0.0% | U53: 0
A54: PEDIATRAS | B54: PEDIATRAS | C54: DR. DANIEL ABRIL | D54: 01-USAQUEN | E54: 0 | F54: 0 | G54: 0 | H54: 0 | I54: 0 | J54: 0 | K54: 0 | L54: 0 | M54: 0 | N54: 0 | S54: 0 | T54: 0.0% | U54: 0
A55: PEDIATRAS | B55: PEDIATRAS | C55: DR. CARLOS EDUARDO OLMOS | D55: 01-USAQUEN | E55: 0 | F55: 0 | G55: 0 | H55: 0 | I55: 0 | J55: 0 | K55: 0 | L55: 0 | M55: 0 | N55: 0 | S55: 0 | T55: 0.0% | U55: 0
A56: PEDIATRAS | B56: PEDIATRAS | C56: DR. EDGARDO CHATMAN | D56: 01-USAQUEN | E56: 0 | F56: 0 | G56: 0 | H56: 0 | I56: 0 | J56: 0 | K56: 0 | L56: 0 | M56: 0 | N56: 0 | S56: 0 | T56: 0.0% | U56: 0
A57: PEDIATRAS | B57: PEDIATRAS | C57: DR. JORGE FLOREZ OTERO | D57: 01-USAQUEN | E57: 0 | F57: 0 | G57: 0 | H57: 0 | I57: 0 | J57: 0 | K57: 0 | L57: 0 | M57: 0 | N57: 0 | S57: 0 | T57: 0.0% | U57: 0
A58: PEDIATRAS | B58: PEDIATRAS | C58: DRA. ALEJANDRA MARIA VALENCIA | D58: 01-USAQUEN | E58: 0 | F58: 0 | G58: 0 | H58: 0 | I58: 0 | J58: 0 | K58: 0 | L58: 0 | M58: 0 | N58: 0 | S58: 0 | T58: 0.0% | U58: 0
A59: PEDIATRAS | B59: PEDIATRAS | C59: DRA. ANA MARIA GOYENECHE | D59: 01-USAQUEN | E59: 0 | F59: 0 | G59: 0 | H59: 0 | I59: 0 | J59: 0 | K59: 0 | L59: 0 | M59: 0 | N59: 0 | S59: 0 | T59: 0.0% | U59: 0
A60: PEDIATRAS | B60: PEDIATRAS | C60: DRA. JIMENA VARELA | D60: 01-USAQUEN | E60: 0 | F60: 0 | G60: 1 | H60: 0 | I60: 0 | J60: 0 | K60: 1 | L60: 0 | M60: 0 | N60: 3 | S60: 5 | T60: 0.0%
A61: PEDIATRAS | B61: PEDIATRAS | C61: DRA. LIA SAN MIGUEL | D61: 01-USAQUEN | E61: 0 | F61: 0 | G61: 0 | H61: 0 | I61: 0 | J61: 1 | K61: 0 | L61: 0 | M61: 0 | N61: 0 | S61: 1 | T61: 0.0%
A62: PEDIATRAS | B62: PEDIATRAS | C62: DRA. LIBIA SEGURA | D62: 01-USAQUEN | E62: 0 | F62: 0 | G62: 0 | H62: 0 | I62: 1 | J62: 1 | K62: 0 | L62: 0 | M62: 0 | N62: 1 | S62: 3 | T62: 0.0%
A63: PEDIATRAS | B63: PEDIATRAS | C63: DRA. MARÍA JOSÉ PEDRAZA | D63: 01-USAQUEN | E63: 0 | F63: 0 | G63: 0 | H63: 0 | I63: 0 | J63: 0 | K63: 0 | L63: 0 | M63: 0 | N63: 0 | S63: 0 | T63: 0.0% | U63: 0
A64: PEDIATRAS | B64: PEDIATRAS | C64: DRA. MARTHA LUCIA SANCHEZ | D64: 01-USAQUEN | E64: 0 | F64: 0 | G64: 0 | H64: 0 | I64: 0 | J64: 0 | K64: 0 | L64: 0 | M64: 0 | N64: 0 | S64: 0 | T64: 0.0% | U64: 0
A65: PEDIATRAS | B65: PEDIATRAS | C65: DRA. OLGA LUCÍA SÁNCHEZ | D65: 01-USAQUEN | E65: 0 | F65: 0 | G65: 0 | H65: 0 | I65: 0 | J65: 0 | K65: 0 | L65: 0 | M65: 0 | N65: 0 | S65: 0 | T65: 0.0% | U65: 0
A66: PEDIATRAS | B66: PEDIATRAS | C66: DRA. SANDRA BELTRAN | D66: 01-USAQUEN | E66: 0 | F66: 0 | G66: 0 | H66: 0 | I66: 0 | J66: 0 | K66: 0 | L66: 0 | M66: 0 | N66: 1 | S66: 1 | T66: =IF(E66=0,0,+S66/E66) -> 0.0% | U66: =IF(COUNT(G66:R66)*(E66/12)-S66<0,"",COUNT(G66:R66)*(E66/12)-S66) -> 
A67: PEDIATRAS | B67: PEDIATRAS | C67: DRA. IVANA CABRERA | D67: 01-USAQUEN | E67: 0 | F67: =+E67/12 -> 0 | G67: 0 | H67: 0 | I67: 0 | J67: 0 | K67: 0 | L67: 0 | M67: 0 | N67: 0 | S67: =SUM(G67:R67) -> 0 | T67: 0.0% | U67: 0
A68: PEDIATRAS | B68: PEDIATRAS | C68: DRA. NAYITA ALARCON | D68: 01-USAQUEN | E68: 0 | F68: 0 | G68: 0 | H68: 0 | I68: 0 | J68: 0 | K68: 0 | L68: 0 | M68: 0 | N68: 0 | S68: 0 | T68: 0.0% | U68: 0
A69: PEDIATRAS | B69: PEDIATRAS | C69: DRA. ELIZABETH GARCIA | D69: 01-USAQUEN | E69: 0 | F69: 0 | G69: 0 | H69: 0 | I69: 0 | J69: 0 | K69: 0 | L69: 0 | M69: 0 | N69: 0 | S69: 0 | T69: 0.0% | U69: 0
A70: PEDIATRAS | B70: PEDIATRAS | C70: DRA. BERTHA CALDERON DE RAMOS | D70: 01-USAQUEN | E70: 0 | F70: 0 | G70: 0 | H70: 0 | I70: 0 | J70: 0 | K70: 0 | L70: 0 | M70: 0 | N70: 0 | S70: 0 | T70: 0.0% | U70: 0
A71: PEDIATRAS | B71: PEDIATRAS | C71: DRA. MIRYAM CORREA | D71: 01-USAQUEN | E71: 0 | F71: 0 | G71: 0 | H71: 0 | I71: 0 | J71: 0 | K71: 0 | L71: 0 | M71: 0 | N71: 0 | S71: 0 | T71: 0.0% | U71: 0
A72: 01-USAQUEN | B72: UNICAJAS | C72: UPA SAN CRISTOBAL | D72: 01-USAQUEN | E72: 6 | F72: 1 | G72: 0 | H72: 1 | I72: 1 | J72: 0 | K72: 0 | L72: 0 | M72: 0 | N72: 1 | S72: 3 | T72: 50.0% | U72: 1
A73: UNICAJAS | B73: UNICAJAS | C73: UPA USAQUEN | D73: 01-USAQUEN | E73: 9 | F73: 1 | G73: 0 | H73: 0 | I73: 0 | J73: 0 | K73: 0 | L73: 0 | M73: 0 | N73: 0 | S73: 0 | T73: 0.0% | U73: 6
A74: UNICAJAS | B74: UNICAJAS | C74: UPA ORQUIDEAS | D74: 01-USAQUEN | E74: 6 | F74: 1 | G74: 0 | H74: 0 | I74: 0 | J74: 0 | K74: 0 | L74: 0 | M74: 0 | N74: 0 | S74: 0 | T74: 0.0% | U74: 4
A75: UNICAJAS | B75: UNICAJAS | C75: UPA CODITO | D75: 01-USAQUEN | E75: 5 | F75: 0 | G75: 1 | H75: 0 | I75: 1 | J75: 0 | K75: 0 | L75: 0 | M75: 0 | N75: 0 | S75: 2 | T75: 40.0% | U75: 1
A76: UNICAJAS | B76: UNICAJAS | C76: CAMI VERBENAL | D76: 01-USAQUEN | E76: 6 | F76: 1 | G76: 2 | H76: 1 | I76: 2 | J76: 0 | K76: 0 | L76: 0 | M76: 1 | N76: 1 | S76: 7 | T76: 116.7%
A77: 01-USAQUEN | B77: UNICAJAS | C77: HOSPITAL SIMON BOLIVAR | D77: 01-USAQUEN | E77: 6 | F77: 1 | G77: 1 | H77: 0 | I77: 0 | J77: 0 | K77: 0 | L77: 0 | M77: 0 | N77: 0 | S77: 1 | T77: 16.7% | U77: 3
A78: 01-USAQUEN | B78: OTROS | C78: UPA SAN CRISTOBAL | D78: 01-USAQUEN | E78: 300 | F78: 25 | G78: 5 | H78: 1 | I78: 5 | J78: 1 | K78: 0 | L78: 5 | M78: 5 | N78: 5 | S78: 27 | T78: 9.0% | U78: 173
A79: 01-USAQUEN | B79: OTROS | C79: UPA USAQUEN | D79: 01-USAQUEN | E79: 100 | F79: 8 | G79: 0 | H79: 0 | I79: 0 | J79: 0 | K79: 0 | L79: 0 | M79: 0 | N79: 0 | S79: 0 | T79: 0.0% | U79: 67
A80: 01-USAQUEN | B80: OTROS | C80: UPA ORQUIDEAS | D80: 01-USAQUEN | E80: 120 | F80: 10 | G80: 0 | H80: 1 | I80: 1 | J80: 1 | K80: 0 | L80: 0 | M80: 1 | N80: 2 | S80: 6 | T80: 5.0% | U80: 74
A81: 01-USAQUEN | B81: OTROS | C81: UPA CODITO | D81: 01-USAQUEN | E81: 218 | F81: 18 | G81: 4 | H81: 1 | I81: 0 | J81: 0 | K81: 0 | L81: 2 | M81: 3 | N81: 0 | S81: 10 | T81: 4.6% | U81: 135
A82: 01-USAQUEN | B82: OTROS | C82: CAMI VERBENAL | D82: 01-USAQUEN | E82: 309 | F82: 26 | G82: 5 | H82: 1 | I82: 1 | J82: 0 | K82: 1 | L82: 2 | M82: 3 | N82: 0 | S82: 13 | T82: 4.2% | U82: 193
A83: 01-USAQUEN | B83: OTROS | C83: HOSPITAL SIMON BOLIVAR | D83: 01-USAQUEN | E83: 480 | F83: 40 | G83: 5 | H83: 9 | I83: 3 | J83: 4 | K83: 0 | L83: 1 | M83: 3 | N83: 1 | S83: 26 | T83: 5.4% | U83: 294
A84: 01-USAQUEN | B84: DEMAS EAPB | C84: UPA SAN CRISTOBAL | D84: 01-USAQUEN | F84: 0 | G84: 8 | H84: 10 | I84: 13 | J84: 5 | K84: 15 | L84: 12 | M84: 16 | N84: 11 | S84: 90 | T84: 0.0%
A85: 01-USAQUEN | B85: DEMAS EAPB | C85: UPA USAQUEN | D85: 01-USAQUEN | F85: 0 | G85: 1 | H85: 1 | I85: 1 | J85: 1 | K85: 0 | L85: 0 | M85: 0 | N85: 0 | S85: 4 | T85: 0.0%
A86: 01-USAQUEN | B86: DEMAS EAPB | C86: UPA ORQUIDEAS | D86: 01-USAQUEN | F86: 0 | G86: 2 | H86: 0 | I86: 2 | J86: 0 | K86: 3 | L86: 1 | M86: 2 | N86: 4 | S86: 14 | T86: 0.0%
A87: 01-USAQUEN | B87: DEMAS EAPB | C87: UPA CODITO | D87: 01-USAQUEN | F87: 0 | G87: 11 | H87: 15 | I87: 13 | J87: 14 | K87: 5 | L87: 17 | M87: 7 | N87: 7 | S87: 89 | T87: 0.0%
A88: 01-USAQUEN | B88: DEMAS EAPB | C88: CAMI VERBENAL | D88: 01-USAQUEN | F88: 0 | G88: 26 | H88: 11 | I88: 16 | J88: 9 | K88: 13 | L88: 13 | M88: 10 | N88: 5 | S88: 103 | T88: 0.0%
A89: 01-USAQUEN | B89: DEMAS EAPB | C89: HOSPITAL SIMON BOLIVAR | D89: 01-USAQUEN | F89: 0 | G89: 15 | H89: 11 | I89: 11 | J89: 6 | K89: 3 | L89: 4 | M89: 2 | N89: 1 | S89: 53 | T89: 0.0%
A90: MEDIMAS | B90: MEDIMAS | C90: Corvesalud S.A.S - I P S Chico | D90: 01-USAQUEN | E90: 320 | F90: 27 | G90: 3 | H90: 2 | I90: 3 | M90: 1 | N90: 2 | S90: 11 | T90: 3.4% | U90: 122
A91: FAMISANAR | B91: COLSUBSIDIO | C91: Sura PAC Santa Bárbara | D91: 01-USAQUEN | F91: 0 | S91: 0 | T91: 0.0% | U91: 0
A92: CAPITAL SALUD | B92: CAPITAL SALUD | C92: UPA SAN LUIS | D92: 02-CHAPINERO | E92: 12 | F92: 1 | G92: 2 | H92: 3 | I92: 5 | J92: 0 | K92: 1 | L92: 4 | M92: 3 | N92: 0 | S92: 18 | T92: 150.0%
A93: 02-CHAPINERO | B93: 02-CHAPINERO | C93: EXTRAMURAL CHAPINERO | D93: 02-CHAPINERO | E93: 0 | F93: 0 | G93: 0 | H93: 3 | I93: 10 | J93: 30 | K93: 30 | L93: 7 | M93: 30 | N93: 17 | S93: 127 | T93: 0.0%
A94: COMPENSAR | B94: COMPENSAR | C94: USS CALLE 42 | D94: 02-CHAPINERO | E94: 612 | F94: 51 | G94: 29 | H94: 31 | I94: 17 | J94: 19 | K94: 32 | L94: 31 | M94: 28 | N94: 47 | S94: 234 | T94: 38.2% | U94: 174
A95: COMPENSAR | B95: COMPENSAR | C95: USS CALLE 67 | D95: 02-CHAPINERO | E95: 0 | F95: 0 | G95: 0 | H95: 0 | I95: 0 | J95: 0 | K95: 0 | L95: 0 | M95: 0 | N95: 0 | S95: 0 | T95: 0.0% | U95: 0
A96: COMPENSAR | B96: COMPENSAR | C96: USS CALLE 94 | D96: 02-CHAPINERO | E96: 369 | F96: 31 | G96: 57 | H96: 54 | I96: 43 | J96: 47 | K96: 62 | L96: 70 | M96: 60 | N96: 62 | S96: 455 | T96: 123.3%
A97: COMPENSAR | B97: COMPENSAR | C97: VIVA 1A IPS CHAPINERO | D97: 02-CHAPINERO | E97: 73 | F97: 6 | G97: 1 | H97: 2 | I97: 1 | J97: 0 | K97: 1 | L97: 8 | M97: 4 | N97: 3 | S97: 20 | T97: 27.4% | U97: 29
A98: COOMEVA | B98: COOMEVA | C98: SINERGIA UNIDAD BASICA LOURDES | D98: 02-CHAPINERO | E98: 217 | F98: 18 | G98: 7 | H98: 6 | I98: 5 | J98: 1 | K98: 1 | L98: 0 | M98: 0 | N98: 2 | S98: 22 | T98: 10.1% | U98: 123
A99: FAMISANAR | B99: FAMI- CAFAM | C99: CENTRO DE ATENCION EN SALUD CAFAM CALLE 48 | D99: 02-CHAPINERO | E99: 1050 | F99: 88 | G99: 23 | H99: 19 | I99: 19 | J99: 10 | K99: 15 | L99: 16 | M99: 11 | N99: 16 | S99: 129 | T99: 12.3% | U99: 571
A100: FAMISANAR | B100: FAMI- CAFAM | C100: CENTRO DE ATENCION EN SALUD CAFAM CALLE 90 | D100: 02-CHAPINERO | E100: 200 | F100: 17 | G100: 16 | H100: 11 | I100: 16 | J100: 9 | K100: 10 | L100: 10 | M100: 26 | N100: 7 | S100: 105 | T100: 52.5% | U100: 28
A101: FAMISANAR | B101: FAMI- COLSB | C101: CLINICA COLSUBSIDIO EL LAGO | D101: 02-CHAPINERO | E101: 392 | F101: 33 | G101: 4 | H101: 5 | I101: 10 | J101: 1 | K101: 9 | L101: 5 | M101: 6 | N101: 4 | S101: 44 | T101: 11.2% | U101: 217
A102: MILITAR | B102: MILITAR | C102: HOSPITAL MILITAR CENTRAL | D102: 02-CHAPINERO | E102: 70 | F102: 6 | G102: 6 | H102: 7 | I102: 8 | J102: 1 | K102: 0 | L102: 6 | M102: 3 | N102: 1 | S102: 32 | T102: 45.7% | U102: 15
A103: POLICIA | B103: POLICIA | C103: POLICIA NACIONAL ESPAM CHAPINERO | D103: 02-CHAPINERO | E103: 117 | F103: 10 | G103: 1 | H103: 0 | I103: 5 | J103: 17 | K103: 13 | L103: 17 | M103: 11 | N103: 26 | S103: 90 | T103: 76.9%
A104: NUEVA EPS | B104: NUEVA EPS | C104: IPS VIVA 1A SEDE MARLY | D104: 02-CHAPINERO | E104: 131 | F104: 11 | G104: 2 | H104: 6 | I104: 7 | J104: 2 | K104: 3 | L104: 2 | M104: 1 | N104: 2 | S104: 25 | T104: 19.1% | U104: 62
A105: SANITAS | B105: SANITAS | C105: EPS SANITAS CENTRO MEDICO TEUSAQUILLO | D105: 02-CHAPINERO | E105: 579 | F105: 48 | G105: 20 | H105: 24 | I105: 26 | J105: 10 | K105: 7 | L105: 9 | M105: 12 | N105: 10 | S105: 118 | T105: 20.4% | U105: 268
A106: SALUD TOTAL | B106: SALUD TOTAL | C106: VIRREY SOLIS CHAPINERO | D106: 02-CHAPINERO | E106: 337 | F106: 28 | G106: 13 | H106: 11 | I106: 13 | J106: 7 | K106: 14 | L106: 11 | M106: 12 | N106: 21 | S106: 102 | T106: 30.3% | U106: 123
A107: SURA | B107: SURA | C107: PUNTO DE SALUD CHAPINERO | D107: 02-CHAPINERO | E107: 237 | F107: 20 | G107: 13 | H107: 25 | I107: 13 | J107: 8 | K107: 9 | L107: 12 | M107: 3 | N107: 0 | S107: 83 | T107: 35.0% | U107: 75
A108: SURA | B108: SURA | C108: SALUD SURA | D108: 02-CHAPINERO | E108: 454 | F108: 38 | G108: 52 | H108: 46 | I108: 32 | J108: 23 | K108: 34 | L108: 27 | M108: 32 | N108: 24 | S108: 270 | T108: 59.5% | U108: 33
A109: PARTICULAR | B109: PARTICULAR | C109: CENTRO MEDICO COLSANITAS CALLE 96 | D109: 02-CHAPINERO | E109: 24 | F109: 2 | G109: 2 | H109: 3 | I109: 3 | J109: 23 | K109: 10 | L109: 10 | M109: 14 | N109: 10 | S109: 75 | T109: 312.5%
A110: PARTICULAR | B110: PARTICULAR | C110: CENTRO DE ESPECIALISTAS MEDICOS AXA COLPATRIA | D110: 02-CHAPINERO | E110: 0 | F110: 0 | G110: 4 | H110: 1 | I110: 2 | J110: 6 | K110: 3 | L110: 5 | M110: 6 | N110: 10 | S110: 37 | T110: 0.0%
A111: PARTICULAR | B111: PARTICULAR | C111: CLINICA DE LA MUJER | D111: 02-CHAPINERO | E111: 0 | F111: 0 | G111: 39 | H111: 35 | I111: 41 | J111: 23 | K111: 25 | L111: 31 | M111: 30 | N111: 27 | S111: 251 | T111: 0.0%
A112: PARTICULAR | B112: PARTICULAR | C112: VACUNARTE IPS | D112: 02-CHAPINERO | E112: 0 | F112: 0 | G112: 2 | H112: 2 | I112: 1 | J112: 1 | K112: 2 | L112: 0 | M112: 1 | N112: 1 | S112: 10 | T112: 0.0%
A113: PARTICULAR | B113: PARTICULAR | C113: UNIMARLY | D113: 02-CHAPINERO | E113: 0 | F113: 0 | G113: 0 | H113: 0 | I113: 0 | J113: 0 | K113: 0 | L113: 0 | M113: 0 | N113: 0 | S113: 0 | T113: 0.0% | U113: 0
A114: PARTICULAR | B114: PARTICULAR | C114: HOSPITAL SAN IGNACIO | D114: 02-CHAPINERO | E114: 0 | F114: 0 | G114: 2 | H114: 6 | I114: 0 | J114: 7 | K114: 5 | L114: 5 | M114: 5 | N114: 5 | S114: 35 | T114: 0.0%
A115: PARTICULAR | B115: PARTICULAR | C115: PROGRAMA MADRE CANGURO HOSPITAL SAN IGNACIO | D115: 02-CHAPINERO | E115: 0 | F115: 0 | G115: 25 | H115: 23 | I115: 13 | J115: 13 | K115: 16 | L115: 24 | M115: 20 | N115: 7 | S115: 141 | T115: 0.0%
A116: PARTICULAR | B116: PARTICULAR | C116: IPS AVENIR | D116: 02-CHAPINERO | E116: 0 | F116: 0 | G116: 0 | H116: 0 | I116: 0 | J116: 0 | K116: 0 | L116: 0 | M116: 0 | N116: 0 | S116: 0 | T116: 0.0% | U116: 0
A117: PARTICULAR | B117: PARTICULAR | C117: IPS INMUNOLOGIA Y DIAGNOSTICO ESPECIALIZADO | D117: 02-CHAPINERO | E117: 0 | F117: 0 | G117: 0 | H117: 0 | I117: 1 | J117: 3 | K117: 3 | L117: 0 | M117: 4 | N117: 1 | S117: 12 | T117: 0.0%
A118: PARTICULAR | B118: PARTICULAR | C118: ASOCIACION PEDIATRICA DE LOS ANDES | D118: 02-CHAPINERO | E118: 0 | F118: 0 | G118: 1 | H118: 0 | I118: 0 | J118: 0 | K118: 0 | L118: 0 | M118: 0 | N118: 0 | S118: 1 | T118: 0.0%
A119: PARTICULAR | B119: PARTICULAR | C119: CRUZ ROJA SEDE ANDINO | D119: 02-CHAPINERO | E119: 0 | F119: 0 | G119: 0 | H119: 0 | I119: 1 | J119: 0 | K119: 0 | L119: 0 | M119: 0 | N119: 0 | S119: 1 | T119: 0.0%
A120: PARTICULAR | B120: PARTICULAR | C120: CENTRO MEDICO SANTA MONICA | D120: 02-CHAPINERO | E120: 0 | F120: 0 | H120: 0 | I120: 0 | J120: 7 | K120: 8 | L120: 12 | M120: 0 | N120: 0 | S120: 27 | T120: 0.0%
A121: PEDIATRAS | B121: PEDIATRAS | C121: DR. JUAN OSCAR TAMAYO | D121: 02-CHAPINERO | E121: 0 | F121: 0 | G121: 0 | H121: 0 | I121: 1 | J121: 0 | K121: 0 | L121: 0 | M121: 0 | N121: 0 | S121: 1 | T121: 0.0%
A122: PEDIATRAS | B122: PEDIATRAS | C122: DR. ROBERTO SUAREZ | D122: 02-CHAPINERO | E122: 0 | F122: 0 | G122: 0 | H122: 0 | I122: 0 | J122: 0 | K122: 0 | L122: 0 | M122: 0 | N122: 0 | S122: 0 | T122: 0.0% | U122: 0
A123: PEDIATRAS | B123: PEDIATRAS | C123: DR. WILLIAM RICARDO CABRA | D123: 02-CHAPINERO | E123: 0 | F123: 0 | G123: 1 | H123: 2 | I123: 2 | J123: 1 | K123: 4 | L123: 4 | M123: 3 | N123: 3 | S123: 20 | T123: 0.0%
A124: PEDIATRAS | B124: PEDIATRAS | C124: DR. EDGAR CASTRO | D124: 02-CHAPINERO | E124: 0 | F124: 0 | G124: 3 | H124: 2 | I124: 0 | J124: 4 | K124: 7 | L124: 5 | M124: 3 | N124: 5 | S124: 29 | T124: 0.0%
A125: PEDIATRAS | B125: PEDIATRAS | C125: DR. PABLO KRAUSS | D125: 02-CHAPINERO | E125: 0 | F125: 0 | G125: 3 | H125: 4 | I125: 1 | J125: 0 | K125: 0 | L125: 0 | M125: 0 | N125: 0 | S125: 8 | T125: 0.0%
A126: PEDIATRAS | B126: PEDIATRAS | C126: DR. HERNAN ROBLES | D126: 02-CHAPINERO | E126: 0 | F126: 0 | G126: 5 | H126: 1 | I126: 4 | J126: 7 | K126: 4 | L126: 2 | M126: 11 | N126: 4 | S126: 38 | T126: 0.0%
A127: PEDIATRAS | B127: PEDIATRAS | C127: DR. RAFAEL GAMBOA CASABLANCA | D127: 02-CHAPINERO | E127: 0 | F127: 0 | G127: 2 | H127: 0 | I127: 5 | J127: 11 | K127: 4 | L127: 5 | M127: 4 | N127: 12 | S127: 43 | T127: 0.0%
A128: PEDIATRAS | B128: PEDIATRAS | C128: DR. JAVIER MEJIA | D128: 02-CHAPINERO | E128: 0 | F128: 0 | G128: 3 | H128: 4 | I128: 1 | J128: 4 | K128: 4 | L128: 2 | M128: 5 | N128: 0 | S128: 23 | T128: 0.0%
A129: PEDIATRAS | B129: PEDIATRAS | C129: DR. CARLOS CORTAZAR | D129: 02-CHAPINERO | E129: 0 | F129: 0 | G129: 0 | H129: 0 | I129: 0 | J129: 0 | K129: 0 | L129: 0 | M129: 0 | N129: 0 | S129: 0 | T129: 0.0% | U129: 0
A130: PEDIATRAS | B130: PEDIATRAS | C130: DR. NELSON PARDO | D130: 02-CHAPINERO | E130: 0 | F130: 0 | G130: 1 | H130: 1 | I130: 2 | J130: 0 | K130: 0 | L130: 2 | M130: 2 | N130: 1 | S130: 9 | T130: =IF(E130=0,0,+S130/E130) -> 0.0% | U130: =IF(COUNT(G130:R130)*(E130/12)-S130<0,"",COUNT(G130:R130)*(E130/12)-S130) -> 
A131: PEDIATRAS | B131: PEDIATRAS | C131: DR. ALVARO JACOME | D131: 02-CHAPINERO | E131: 0 | F131: =+E131/12 -> 0 | G131: 0 | H131: 1 | I131: 0 | J131: 4 | K131: 3 | L131: 3 | M131: 0 | N131: 0 | S131: =SUM(G131:R131) -> 11 | T131: 0.0%
A132: PEDIATRAS | B132: PEDIATRAS | C132: DR. SILVIO COPO | D132: 02-CHAPINERO | E132: 0 | F132: 0 | G132: 0 | H132: 1 | I132: 0 | J132: 0 | K132: 0 | L132: 0 | M132: 0 | N132: 0 | S132: 1 | T132: 0.0%
A133: PEDIATRAS | B133: PEDIATRAS | C133: DR. HECTOR FERNANDO MENDOZA | D133: 02-CHAPINERO | E133: 0 | F133: 0 | G133: 1 | H133: 1 | I133: 0 | J133: 1 | K133: 1 | L133: 0 | M133: 0 | N133: 0 | S133: 4 | T133: 0.0%
A134: PEDIATRAS | B134: PEDIATRAS | C134: DR. DIMITRIOS | D134: 02-CHAPINERO | E134: 0 | F134: 0 | G134: 0 | H134: 0 | I134: 0 | J134: 0 | K134: 1 | L134: 0 | M134: 0 | N134: 0 | S134: 1 | T134: 0.0%
A135: PEDIATRAS | B135: PEDIATRAS | C135: DR. ALVARO MARIÑO | D135: 02-CHAPINERO | E135: 0 | F135: 0 | G135: 0 | H135: 0 | I135: 0 | J135: 0 | K135: 0 | L135: 0 | M135: 1 | N135: 0 | S135: 1 | T135: 0.0%
A136: PEDIATRAS | B136: PEDIATRAS | C136: DR. ANDRES VARGAS | D136: 02-CHAPINERO | E136: 0 | F136: 0 | G136: 0 | H136: 1 | I136: 0 | J136: 3 | K136: 1 | L136: 0 | M136: 1 | N136: 0 | S136: 6 | T136: 0.0%
A137: PEDIATRAS | B137: PEDIATRAS | C137: DR. JORGE CAMILO LUNA | D137: 02-CHAPINERO | E137: 0 | F137: 0 | G137: 0 | H137: 4 | I137: 1 | J137: 22 | K137: 3 | L137: 6 | M137: 11 | N137: 11 | S137: 58 | T137: 0.0%
A138: PEDIATRAS | B138: PEDIATRAS | C138: DR. BERNARDO HUERTAS | D138: 02-CHAPINERO | E138: 0 | F138: 0 | G138: 9 | H138: 7 | I138: 14 | J138: 11 | K138: 5 | L138: 17 | M138: 12 | N138: 14 | S138: 89 | T138: 0.0%
A139: PEDIATRAS | B139: PEDIATRAS | C139: DR. CARLOS M CASTILLO | D139: 02-CHAPINERO | E139: 0 | F139: 0 | G139: 0 | H139: 0 | I139: 0 | J139: 0 | K139: 0 | L139: 0 | M139: 0 | N139: 0 | S139: 0 | T139: 0.0% | U139: 0
A140: PEDIATRAS | B140: PEDIATRAS | C140: DR. HEINZ OTTO PFALZGRAF | D140: 02-CHAPINERO | E140: 0 | F140: 0 | G140: 0 | H140: 0 | I140: 0 | J140: 0 | K140: 0 | L140: 0 | M140: 0 | N140: 0 | S140: 0 | T140: 0.0% | U140: 0
A141: PEDIATRAS | B141: PEDIATRAS | C141: DR. GONZALEZ BALLESTEROS | D141: 02-CHAPINERO | E141: 0 | F141: 0 | G141: 0 | H141: 0 | I141: 0 | J141: 0 | K141: 0 | L141: 0 | M141: 0 | N141: 0 | S141: 0 | T141: 0.0% | U141: 0
A142: PEDIATRAS | B142: PEDIATRAS | C142: DR. NORBERTO SALAMANCA | D142: 02-CHAPINERO | E142: 0 | F142: 0 | G142: 0 | H142: 0 | I142: 0 | J142: 0 | K142: 0 | L142: 0 | M142: 0 | N142: 1 | S142: 1 | T142: 0.0%
A143: PEDIATRAS | B143: PEDIATRAS | C143: DR. CAMILO ENRIQUE SOTOMAYOR | D143: 02-CHAPINERO | E143: 0 | F143: 0 | G143: 1 | H143: 0 | I143: 1 | J143: 0 | K143: 1 | L143: 1 | M143: 1 | N143: 0 | S143: 5 | T143: 0.0%
A144: PEDIATRAS | B144: PEDIATRAS | C144: DR. SANTIAGO RUEDA SAIZ | D144: 02-CHAPINERO | E144: 0 | F144: 0 | G144: 5 | H144: 1 | I144: 1 | J144: 0 | K144: 0 | L144: 0 | M144: 0 | N144: 0 | S144: 7 | T144: 0.0%
A145: PEDIATRAS | B145: PEDIATRAS | C145: DR. HENRY HERNANDO SANCHEZ ESCOBAR | D145: 02-CHAPINERO | E145: 0 | F145: 0 | G145: 1 | H145: 1 | I145: 0 | J145: 0 | K145: 1 | L145: 1 | M145: 0 | N145: 0 | S145: 4 | T145: 0.0%
A146: PEDIATRAS | B146: PEDIATRAS | C146: DR. RUBEN DARIO TAMAYO | D146: 02-CHAPINERO | E146: 0 | F146: 0 | G146: 1 | H146: 0 | I146: 0 | J146: 0 | K146: 4 | L146: 2 | M146: 2 | N146: 1 | S146: 10 | T146: 0.0%
A147: PEDIATRAS | B147: PEDIATRAS | C147: DR. JAIME MAURICIO MATALLANA | D147: 02-CHAPINERO | E147: 0 | F147: 0 | G147: 5 | H147: 4 | I147: 6 | J147: 2 | K147: 4 | L147: 7 | M147: 8 | N147: 4 | S147: 40 | T147: 0.0%
A148: PEDIATRAS | B148: PEDIATRAS | C148: DR. RODRIGO GARCIA | D148: 02-CHAPINERO | E148: 0 | F148: 0 | G148: 0 | H148: 0 | I148: 0 | J148: 0 | K148: 0 | L148: 0 | M148: 0 | N148: 0 | S148: 0 | T148: 0.0% | U148: 0
A149: PEDIATRAS | B149: PEDIATRAS | C149: DR. FELIPE ROBAYO | D149: 02-CHAPINERO | E149: 0 | F149: 0 | G149: 0 | H149: 0 | I149: 0 | J149: 0 | K149: 0 | L149: 0 | M149: 0 | N149: 0 | S149: 0 | T149: 0.0% | U149: 0
A150: PEDIATRAS | B150: PEDIATRAS | C150: DR. RUBEN FRANCO | D150: 02-CHAPINERO | E150: 0 | F150: 0 | G150: 0 | H150: 0 | I150: 1 | J150: 3 | K150: 0 | L150: 0 | M150: 0 | N150: 0 | S150: 4 | T150: 0.0%
A151: PEDIATRAS | B151: PEDIATRAS | C151: DR. ORLANDO RODRIGUEZ RAMIREZ | D151: 02-CHAPINERO | E151: 0 | F151: 0 | G151: 2 | H151: 0 | I151: 1 | J151: 1 | K151: 2 | L151: 1 | M151: 0 | N151: 0 | S151: 7 | T151: 0.0%
A152: PEDIATRAS | B152: PEDIATRAS | C152: DR. ARTURO MORENO | D152: 02-CHAPINERO | E152: 0 | F152: 0 | G152: 0 | H152: 0 | I152: 0 | J152: 0 | K152: 0 | L152: 0 | M152: 0 | N152: 0 | S152: 0 | T152: 0.0% | U152: 0
A153: PEDIATRAS | B153: PEDIATRAS | C153: DR. FRANCISCO LEAL QUEVEDO | D153: 02-CHAPINERO | E153: 0 | F153: 0 | G153: 0 | H153: 0 | I153: 0 | J153: 0 | K153: 0 | L153: 0 | M153: 0 | N153: 0 | S153: 0 | T153: 0.0% | U153: 0
A154: PEDIATRAS | B154: PEDIATRAS | C154: DR. CARLOS DIAZ PUENTES | D154: 02-CHAPINERO | E154: 0 | F154: 0 | G154: 0 | H154: 0 | I154: 0 | J154: 0 | K154: 0 | L154: 0 | M154: 0 | N154: 0 | S154: 0 | T154: 0.0% | U154: 0
A155: PEDIATRAS | B155: PEDIATRAS | C155: DR. PEDRO ERASMO MENDOZA | D155: 02-CHAPINERO | E155: 0 | F155: 0 | G155: 0 | H155: 0 | I155: 0 | J155: 0 | K155: 0 | L155: 0 | M155: 0 | N155: 0 | S155: 0 | T155: 0.0% | U155: 0
A156: PEDIATRAS | B156: PEDIATRAS | C156: DR. DIMAS ROSAS | D156: 02-CHAPINERO | E156: 0 | F156: 0 | G156: 0 | H156: 0 | I156: 0 | J156: 0 | K156: 0 | L156: 0 | M156: 0 | N156: 0 | S156: 0 | T156: 0.0% | U156: 0
A157: PEDIATRAS | B157: PEDIATRAS | C157: DR. JAVIER BRITO MORENO | D157: 02-CHAPINERO | E157: 0 | F157: 0 | G157: 0 | H157: 0 | I157: 0 | J157: 0 | K157: 0 | L157: 0 | M157: 0 | N157: 0 | S157: 0 | T157: 0.0% | U157: 0
A158: PEDIATRAS | B158: PEDIATRAS | C158: DR. GUSTAVO CORTÉS | D158: 02-CHAPINERO | E158: 0 | F158: 0 | G158: 0 | H158: 0 | I158: 0 | J158: 0 | K158: 0 | L158: 0 | M158: 0 | N158: 0 | S158: 0 | T158: 0.0% | U158: 0
A159: PEDIATRAS | B159: PEDIATRAS | C159: DR. CARLOS VELASQUEZ | D159: 02-CHAPINERO | E159: 0 | F159: 0 | G159: 0 | H159: 0 | I159: 0 | J159: 0 | K159: 0 | L159: 0 | M159: 0 | N159: 0 | S159: 0 | T159: 0.0% | U159: 0
A160: PEDIATRAS | B160: PEDIATRAS | C160: DR. RICARDO GOMEZ | D160: 02-CHAPINERO | E160: 0 | F160: 0 | G160: 0 | H160: 0 | I160: 0 | J160: 0 | K160: 0 | L160: 0 | M160: 0 | N160: 1 | S160: 1 | T160: 0.0%
A161: PEDIATRAS | B161: PEDIATRAS | C161: DR. SARA BERNAL | D161: 02-CHAPINERO | E161: 0 | F161: 0 | G161: 1 | H161: 0 | I161: 0 | J161: 0 | K161: 2 | L161: 0 | M161: 0 | N161: 0 | S161: 3 | T161: 0.0%
A162: PEDIATRAS | B162: PEDIATRAS | C162: DRA. MARIA PATRICIA AGUALIMPIA | D162: 02-CHAPINERO | E162: 0 | F162: 0 | G162: 0 | H162: 0 | I162: 0 | J162: 0 | K162: 0 | L162: 0 | M162: 0 | N162: 0 | S162: 0 | T162: 0.0% | U162: 0
A163: PEDIATRAS | B163: PEDIATRAS | C163: DRA. LUISA FERNANDA FORERO ACOSTA | D163: 02-CHAPINERO | E163: 0 | F163: 0 | G163: 0 | H163: 0 | I163: 0 | J163: 0 | K163: 0 | L163: 0 | M163: 0 | N163: 0 | S163: 0 | T163: 0.0% | U163: 0
A164: PEDIATRAS | B164: PEDIATRAS | C164: DRA. MARIA CLARA CASAS PARDO | D164: 02-CHAPINERO | E164: 0 | F164: 0 | G164: 0 | H164: 0 | I164: 0 | J164: 0 | K164: 0 | L164: 0 | M164: 0 | N164: 0 | S164: 0 | T164: 0.0% | U164: 0
A165: PEDIATRAS | B165: PEDIATRAS | C165: DRA. MARTHA EUGENIA RONDEROS DE FORERO | D165: 02-CHAPINERO | E165: 0 | F165: 0 | G165: 0 | H165: 0 | I165: 0 | J165: 0 | K165: 0 | L165: 0 | M165: 0 | N165: 0 | S165: 0 | T165: 0.0% | U165: 0
A166: PEDIATRAS | B166: PEDIATRAS | C166: DRA. MARIA ISABEL USCHER | D166: 02-CHAPINERO | E166: 0 | F166: 0 | G166: 5 | H166: 5 | I166: 1 | J166: 0 | K166: 8 | L166: 5 | M166: 2 | N166: 4 | S166: 30 | T166: 0.0%
A167: PEDIATRAS | B167: PEDIATRAS | C167: DRA. MARIA DE LOS ANGELES MUÑOZ | D167: 02-CHAPINERO | E167: 0 | F167: 0 | G167: 2 | H167: 0 | I167: 0 | J167: 0 | K167: 1 | L167: 2 | M167: 1 | N167: 1 | S167: 7 | T167: 0.0%
A168: PEDIATRAS | B168: PEDIATRAS | C168: DRA. CLARA ABELLO REYES | D168: 02-CHAPINERO | E168: 0 | F168: 0 | G168: 1 | H168: 1 | I168: 0 | J168: 0 | K168: 0 | L168: 1 | M168: 0 | N168: 0 | S168: 3 | T168: 0.0%
A169: PEDIATRAS | B169: PEDIATRAS | C169: DRA. PATRICIA CONTRERAS | D169: 02-CHAPINERO | E169: 0 | F169: 0 | G169: 1 | H169: 1 | I169: 1 | J169: 2 | K169: 1 | L169: 1 | M169: 5 | N169: 3 | S169: 15 | T169: 0.0%
A170: PEDIATRAS | B170: PEDIATRAS | C170: DRA. CLAUDIA ZOPPI | D170: 02-CHAPINERO | E170: 0 | F170: 0 | G170: 0 | H170: 0 | I170: 0 | J170: 0 | K170: 0 | L170: 0 | M170: 0 | N170: 0 | S170: 0 | T170: 0.0% | U170: 0
A171: PEDIATRAS | B171: PEDIATRAS | C171: DRA. MARIA DE LOS ANGELES FERNANDEZ LUQUE | D171: 02-CHAPINERO | E171: 0 | F171: 0 | G171: 0 | H171: 0 | I171: 0 | J171: 0 | K171: 0 | L171: 0 | M171: 0 | N171: 0 | S171: 0 | T171: 0.0% | U171: 0
A172: PEDIATRAS | B172: PEDIATRAS | C172: DRA. RUTH CORDOBA CORDOBA | D172: 02-CHAPINERO | E172: 0 | F172: 0 | G172: 0 | H172: 0 | I172: 0 | J172: 0 | K172: 0 | L172: 0 | M172: 0 | N172: 0 | S172: 0 | T172: 0.0% | U172: 0
A173: PEDIATRAS | B173: PEDIATRAS | C173: DRA. LUZ ESTELA CORTES | D173: 02-CHAPINERO | E173: 0 | F173: 0 | G173: 0 | H173: 0 | I173: 0 | J173: 0 | K173: 0 | L173: 0 | M173: 0 | N173: 0 | S173: 0 | T173: 0.0% | U173: 0
A174: UNICAJAS | B174: UNICAJAS | C174: UPA SAN LUIS | D174: 02-CHAPINERO | E174: 18 | F174: 2 | G174: 0 | H174: 0 | I174: 0 | J174: 0 | K174: 1 | L174: 0 | M174: 0 | N174: 0 | S174: 1 | T174: 5.6% | U174: 11
A175: 02-CHAPINERO | B175: OTROS | C175: UPA SAN LUIS | D175: 02-CHAPINERO | E175: 325 | F175: 27 | G175: 0 | H175: 4 | I175: 1 | J175: 1 | K175: 0 | L175: 0 | M175: 0 | N175: 0 | S175: 6 | T175: 1.8% | U175: 211
A176: 02-CHAPINERO | B176: DEMAS EAPB | C176: UPA SAN LUIS | D176: 02-CHAPINERO | F176: 0 | G176: 5 | H176: 1 | I176: 8 | J176: 4 | K176: 7 | L176: 8 | M176: 4 | N176: 5 | S176: 42 | T176: 0.0%
A177: UNICAJAS | B177: UNICAJAS | C177: COMFASALUD SEDE CENTRO | D177: 03-SANTA FE | E177: 50 | F177: 4 | G177: 5 | H177: 1 | I177: 2 | J177: 1 | K177: 2 | L177: 1 | M177: 1 | N177: 0 | S177: 13 | T177: 26.0% | U177: 20
A178: MEDIMAS | B178: MEDIMAS | C178: CORVESALUD TEUSAQUILLO | D178: 03-SANTA FE | E178: 193 | F178: 16 | G178: 4 | H178: 1 | I178: 1 | J178: 0 | K178: 0 | L178: 0 | M178: 0 | N178: 2 | S178: 8 | T178: 4.1% | U178: 121
A179: 03-SANTA FE | B179: CAPITAL SALUD | C179: EXTRAMURAL SANTA FE | D179: 03-SANTA FE | E179: 0 | F179: 0 | G179: 6 | H179: 11 | I179: 19 | J179: 25 | K179: 15 | L179: 34 | M179: 21 | N179: 9 | S179: 140 | T179: 0.0%
A180: 03-SANTA FE | B180: DEMAS EAPB | C180: EXTRAMURAL SANTA FE | D180: 03-SANTA FE | E180: 0 | F180: 0 | G180: 8 | H180: 12 | I180: 24 | J180: 25 | K180: 28 | L180: 23 | M180: 29 | N180: 18 | S180: 167 | T180: 0.0%
A181: 03-SANTA FE | B181: OTROS | C181: EXTRAMURAL SANTA FE | D181: 03-SANTA FE | E181: 0 | F181: 0 | G181: 4 | H181: 9 | I181: 9 | J181: 11 | K181: 10 | L181: 12 | M181: 9 | N181: 9 | S181: 73 | T181: 0.0%
A182: 03-SANTA FE | B182: UNICAJAS | C182: EXTRAMURAL SANTA FE | D182: 03-SANTA FE | E182: 0 | F182: 0 | G182: 0 | H182: 0 | I182: 3 | J182: 3 | K182: 3 | L182: 2 | M182: 3 | N182: 2 | S182: 16 | T182: 0.0%
A183: 03-SANTA FE | B183: CAPITAL SALUD | C183: USS LACHES | D183: 03-SANTA FE | E183: 54 | F183: 5 | G183: 6 | H183: 5 | I183: 5 | J183: 2 | K183: 2 | L183: 4 | M183: 4 | N183: 5 | S183: 33 | T183: 61.1% | U183: 3
A184: 03-SANTA FE | B184: DEMAS EAPB | C184: USS LACHES | D184: 03-SANTA FE | E184: 0 | F184: 0 | G184: 9 | H184: 7 | I184: 9 | J184: 1 | K184: 3 | L184: 3 | M184: 5 | N184: 6 | S184: 43 | T184: 0.0%
A185: 03-SANTA FE | B185: OTROS | C185: USS LACHES | D185: 03-SANTA FE | E185: 260 | F185: 22 | G185: 0 | H185: 0 | I185: 1 | J185: 0 | K185: 1 | L185: 0 | M185: 0 | N185: 0 | S185: 2 | T185: 0.8% | U185: 171
A186: 03-SANTA FE | B186: UNICAJAS | C186: USS LACHES | D186: 03-SANTA FE | E186: 17 | F186: 1 | G186: 4 | H186: 0 | I186: 0 | J186: 0 | K186: 1 | L186: 0 | M186: 0 | N186: 1 | S186: 6 | T186: 35.3% | U186: 5
A187: 03-SANTA FE | B187: CAPITAL SALUD | C187: USS LAS CRUCES | D187: 03-SANTA FE | E187: 44 | F187: 4 | G187: 5 | H187: 4 | I187: 3 | J187: 0 | K187: 2 | L187: 2 | M187: 2 | N187: 3 | S187: 21 | T187: 47.7% | U187: 8
A188: 03-SANTA FE | B188: DEMAS EAPB | C188: USS LAS CRUCES | D188: 03-SANTA FE | E188: 0 | F188: 0 | G188: 4 | H188: 4 | I188: 3 | J188: 1 | K188: 2 | L188: 5 | M188: 3 | N188: 2 | S188: 24 | T188: 0.0%
A189: 03-SANTA FE | B189: OTROS | C189: USS LAS CRUCES | D189: 03-SANTA FE | E189: 211 | F189: 18 | G189: 2 | H189: 2 | I189: 4 | J189: 3 | K189: 1 | L189: 0 | M189: 0 | N189: 1 | S189: 13 | T189: 6.2% | U189: 128
A190: 03-SANTA FE | B190: UNICAJAS | C190: USS LAS CRUCES | D190: 03-SANTA FE | E190: 14 | F190: 1 | G190: 1 | H190: 0 | I190: 3 | J190: 0 | K190: 1 | L190: 0 | M190: 0 | N190: 0 | S190: 5 | T190: 35.7% | U190: 4
A191: 03-SANTA FE | B191: CAPITAL SALUD | C191: USS PERSEVERANCIA | D191: 03-SANTA FE | E191: 6 | F191: 1 | G191: 1 | H191: 2 | I191: 3 | J191: 1 | K191: 1 | L191: 0 | M191: 0 | N191: 1 | S191: 9 | T191: 150.0%
A192: 03-SANTA FE | B192: DEMAS EAPB | C192: USS PERSEVERANCIA | D192: 03-SANTA FE | E192: 0 | F192: 0 | G192: 3 | H192: 2 | I192: 2 | J192: 0 | K192: 1 | L192: 3 | M192: 0 | N192: 0 | S192: 11 | T192: 0.0%
A193: 03-SANTA FE | B193: OTROS | C193: USS PERSEVERANCIA | D193: 03-SANTA FE | E193: 30 | F193: 3 | G193: 1 | H193: 1 | I193: 1 | J193: 0 | K193: 0 | L193: 2 | M193: 0 | N193: 0 | S193: 5 | T193: 16.7% | U193: 15
A194: 03-SANTA FE | B194: UNICAJAS | C194: USS PERSEVERANCIA | D194: 03-SANTA FE | E194: 2 | F194: 0 | G194: 1 | H194: 0 | I194: 0 | J194: 0 | K194: 0 | L194: 0 | M194: 0 | N194: 0 | S194: 1 | T194: =IF(E194=0,0,+S194/E194) -> 50.0% | U194: =IF(COUNT(G194:R194)*(E194/12)-S194<0,"",COUNT(G194:R194)*(E194/12)-S194) -> 0
A195: PARTICULAR | B195: PARTICULAR | C195: CLINICA SAN RAFAEL | D195: 04-SAN CRISTOBAL | E195: 375 | F195: =+E195/12 -> 31 | G195: 19 | H195: 13 | I195: 13 | J195: 10 | K195: 9 | L195: 13 | M195: 21 | N195: 18 | S195: =SUM(G195:R195) -> 116 | T195: 30.9% | U195: 134
A196: FAMISANAR | B196: FAMI- COLSB | C196: CENTRO MEDICO COLSUBSIDIO 20 DE JULIO | D196: 04-SAN CRISTOBAL | F196: 0 | S196: 0 | T196: 0.0% | U196: 0
A197: 04-SAN CRISTOBAL | B197: CAPITAL SALUD | C197: EXTRAMURAL SAN CRISTOBAL | D197: 04-SAN CRISTOBAL | E197: 0 | F197: 0 | G197: 39 | H197: 36 | I197: 72 | J197: 51 | K197: 68 | L197: 53 | M197: 73 | N197: 52 | S197: 444 | T197: 0.0%
A198: 04-SAN CRISTOBAL | B198: DEMAS EAPB | C198: EXTRAMURAL SAN CRISTOBAL | D198: 04-SAN CRISTOBAL | E198: 0 | F198: 0 | G198: 73 | H198: 51 | I198: 151 | J198: 138 | K198: 136 | L198: 116 | M198: 125 | N198: 80 | S198: 870 | T198: 0.0%
A199: 04-SAN CRISTOBAL | B199: OTROS | C199: EXTRAMURAL SAN CRISTOBAL | D199: 04-SAN CRISTOBAL | E199: 0 | F199: 0 | G199: 5 | H199: 14 | I199: 17 | J199: 13 | K199: 17 | L199: 17 | M199: 14 | N199: 15 | S199: 112 | T199: 0.0%
A200: 04-SAN CRISTOBAL | B200: UNICAJAS | C200: EXTRAMURAL SAN CRISTOBAL | D200: 04-SAN CRISTOBAL | E200: 0 | F200: 0 | G200: 4 | H200: 2 | I200: 13 | J200: 5 | K200: 9 | L200: 6 | M200: 8 | N200: 7 | S200: 54 | T200: 0.0%
... 620 more rows

Sheet ROTAVIRUS1
A1: EAPB | B1: EPS O ESE | C1: IPS | D1: Localidad | E1: Meta Anual Menor de 1 Año | F1: Meta Mensual | G1: Enero | H1: Febrero | I1: Marzo | J1: Abril | K1: Mayo | L1: Junio | M1: Julio | N1: Agosto | O1: Septiembre | P1: Octubre | Q1: Noviembre | R1: Diciembre | S1: Total | T1: % Cobertura | U1: Deficit
A2: CAPITAL SALUD | B2: CAPITAL SALUD | C2: UPA SAN CRISTOBAL | D2: 01-USAQUEN | E2: 124 | F2: =+E2/12 -> 10 | G2: 6 | H2: 7 | I2: 3 | J2: 7 | K2: 7 | L2: 12 | M2: 12 | N2: 10 | S2: =SUM(G2:R2) -> 64 | T2: =IF(E2=0,0,+S2/E2) -> 51.6% | U2: =IF(COUNT(G2:R2)*(E2/12)-S2<0,"",COUNT(G2:R2)*(E2/12)-S2) -> 19
A3: CAPITAL SALUD | B3: CAPITAL SALUD | C3: UPA USAQUEN | D3: 01-USAQUEN | E3: 10 | F3: =+E3/12 -> 1 | G3: 0 | H3: 1 | I3: 0 | J3: 0 | K3: 0 | L3: 0 | M3: 0 | N3: 0 | S3: =SUM(G3:R3) -> 1 | T3: 10.0% | U3: 6
A4: CAPITAL SALUD | B4: CAPITAL SALUD | C4: UPA ORQUIDEAS | D4: 01-USAQUEN | E4: 11 | F4: 1 | G4: 1 | H4: 3 | I4: 2 | J4: 2 | K4: 5 | L4: 3 | M4: 2 | N4: 0 | S4: 18 | T4: 163.6%
A5: CAPITAL SALUD | B5: CAPITAL SALUD | C5: UPA CODITO | D5: 01-USAQUEN | E5: 107 | F5: 9 | G5: 7 | H5: 4 | I5: 11 | J5: 4 | K5: 5 | L5: 12 | M5: 4 | N5: 6 | S5: 53 | T5: 49.5% | U5: 18
A6: CAPITAL SALUD | B6: CAPITAL SALUD | C6: CAMI VERBENAL | D6: 01-USAQUEN | E6: 87 | F6: 7 | G6: 10 | H6: 4 | I6: 11 | J6: 5 | K6: 3 | L6: 4 | M6: 6 | N6: 10 | S6: 53 | T6: 60.9% | U6: 5
A7: CAPITAL SALUD | B7: CAPITAL SALUD | C7: HOSPITAL SIMON BOLIVAR | D7: 01-USAQUEN | E7: 36 | F7: 3 | G7: 22 | H7: 9 | I7: 6 | J7: 0 | K7: 2 | L7: 3 | M7: 2 | N7: 4 | S7: 48 | T7: 133.3%
A8: 01-USAQUEN | B8: 01-USAQUEN | C8: EXTRAMURAL USAQUEN | D8: 01-USAQUEN | E8: 0 | F8: 0 | G8: 5 | H8: 3 | I8: 5 | J8: 18 | K8: 38 | L8: 16 | M8: 26 | N8: 21 | S8: 132 | T8: 0.0%
A9: ALIANSALUD | B9: ALIANSALUD | C9: CENTRO MEDICO COLMEDICA SANTA BARBARA | D9: 01-USAQUEN | E9: 580 | F9: 48 | G9: 63 | H9: 43 | I9: 43 | J9: 34 | K9: 49 | L9: 32 | M9: 55 | N9: 36 | S9: 355 | T9: 61.2% | U9: 32
A10: COMPENSAR | B10: COMPENSAR | C10: USS CALLE 134 | D10: 01-USAQUEN | E10: 372 | F10: 31 | G10: 17 | H10: 21 | I10: 15 | J10: 11 | K10: 22 | L10: 22 | M10: 22 | N10: 20 | S10: 150 | T10: 40.3% | U10: 98
A11: COMPENSAR | B11: COMPENSAR | C11: USS CALLE 145 | D11: 01-USAQUEN | E11: 173 | F11: 14 | G11: 12 | H11: 10 | I11: 22 | J11: 8 | K11: 20 | L11: 17 | M11: 7 | N11: 12 | S11: 108 | T11: 62.4% | U11: 7
A12: COMPENSAR | B12: COMPENSAR | C12: JAVESALUD TOBERIN | D12: 01-USAQUEN | E12: 372 | F12: 31 | G12: 6 | H12: 12 | I12: 14 | J12: 11 | K12: 10 | L12: 10 | M12: 13 | N12: 13 | S12: 89 | T12: 23.9% | U12: 159
A13: COOMEVA | B13: COOMEVA | C13: SINERGIA UNIDAD INTEGRAL EN SALUD | D13: 01-USAQUEN | E13: 44 | F13: 4 | G13: 5 | H13: 4 | I13: 5 | J13: 4 | K13: 5 | L13: 5 | M13: 1 | N13: 2 | S13: 31 | T13: 70.5%
A14: FAMISANAR | B14: FAMI- COLSB | C14: CENTRO MEDICO COLSUBSIDIO USAQUEN | D14: 01-USAQUEN | E14: 298 | F14: 25 | G14: 37 | H14: 45 | I14: 25 | J14: 20 | K14: 23 | L14: 33 | M14: 52 | N14: 48 | S14: 283 | T14: 95.0%
A15: MILITAR | B15: MILITAR | C15: DISPENSARIO MEDICO CANTON NORTE | D15: 01-USAQUEN | E15: 205 | F15: 17 | G15: 8 | H15: 4 | I15: 6 | J15: 6 | K15: 8 | L15: 10 | M15: 6 | N15: 7 | S15: 55 | T15: 26.8% | U15: 82
A16: NUEVA EPS | B16: NUEVA EPS | C16: IPS VIVA 1A SEDE TOBERIN | D16: 01-USAQUEN | E16: 147 | F16: 12 | G16: 9 | H16: 9 | I16: 6 | J16: 5 | K16: 2 | L16: 8 | M16: 11 | N16: 6 | S16: 56 | T16: 38.1% | U16: 42
A17: NUEVA EPS | B17: NUEVA EPS | C17: CAFAM GRANADA HILLS | D17: 01-USAQUEN | E17: 44 | F17: 4 | G17: 2 | H17: 2 | I17: 1 | J17: 2 | K17: 1 | L17: 3 | M17: 4 | N17: 1 | S17: 16 | T17: 36.4% | U17: 13
A18: SANITAS | B18: SANITAS | C18: UAP SANITAS TOBERIN | D18: 01-USAQUEN | E18: 511 | F18: 43 | G18: 25 | H18: 38 | I18: 34 | J18: 27 | K18: 18 | L18: 11 | M18: 11 | N18: 17 | S18: 181 | T18: 35.4% | U18: 160
A19: SANITAS | B19: SANITAS | C19: MEDIKA IPS SANITAS UAP USAQUEN | D19: 01-USAQUEN | E19: 188 | F19: 16 | G19: 4 | H19: 2 | I19: 3 | J19: 1 | K19: 2 | L19: 2 | M19: 6 | N19: 8 | S19: 28 | T19: 14.9% | U19: 97
A20: SANITAS | B20: SANITAS | C20: UAP SANTA BARBARA | D20: 01-USAQUEN | E20: 796 | F20: 66 | G20: 93 | H20: 113 | I20: 117 | J20: 65 | K20: 58 | L20: 59 | M20: 48 | N20: 45 | S20: 598 | T20: 75.1%
A21: SANITAS | B21: SANITAS | C21: SANITAS BANCO DE LA REPUBLICA | D21: 01-USAQUEN | E21: 0 | F21: 0 | G21: 3 | H21: 3 | I21: 5 | J21: 5 | K21: 4 | L21: 2 | M21: 3 | N21: 3 | S21: 28 | T21: 0.0%
A22: SALUD TOTAL | B22: SALUD TOTAL | C22: VIRREY SOLIS TOBERÍN | D22: 01-USAQUEN | E22: 384 | F22: 32 | G22: 24 | H22: 13 | I22: 19 | J22: 14 | K22: 11 | L22: 9 | M22: 18 | N22: 11 | S22: 119 | T22: 31.0% | U22: 137
A23: SURA | B23: SURA | C23: IPS JAVESALUD SANTA BEATRIZ | D23: 01-USAQUEN | E23: 355 | F23: 30 | G23: 20 | H23: 13 | I23: 12 | J23: 4 | K23: 15 | L23: 15 | M23: 10 | N23: 13 | S23: 102 | T23: 28.7% | U23: 135
A24: ECOPETROL | B24: ECOPETROL | C24: IPS CLINICOS PALATINO | D24: 01-USAQUEN | E24: 87 | F24: 7 | G24: 6 | H24: 9 | I24: 7 | J24: 5 | K24: 6 | L24: 4 | M24: 5 | N24: 12 | S24: 54 | T24: 62.1% | U24: 4
A25: PARTICULAR | B25: PARTICULAR | C25: CLINICA PEDIATRICA COLSANITAS | D25: 01-USAQUEN | E25: 830 | F25: 69 | G25: 59 | H25: 57 | I25: 46 | J25: 51 | K25: 38 | L25: 68 | M25: 41 | N25: 32 | S25: 392 | T25: 47.2% | U25: 161
A26: PARTICULAR | B26: PARTICULAR | C26: CENTRO MEDICO COLSANITAS LA CALLEJA | D26: 01-USAQUEN | E26: 120 | F26: 10 | G26: 5 | H26: 15 | I26: 6 | J26: 5 | K26: 3 | L26: 5 | M26: 2 | N26: 3 | S26: 44 | T26: 36.7% | U26: 36
A27: PARTICULAR | B27: PARTICULAR | C27: CENTRO MEDICO COLSANITAS 108 | D27: 01-USAQUEN | E27: 40 | F27: 3 | G27: 4 | H27: 3 | I27: 0 | J27: 0 | K27: 0 | L27: 0 | M27: 0 | N27: 0 | S27: 7 | T27: 17.5% | U27: 20
A28: PARTICULAR | B28: PARTICULAR | C28: CENTRO MEDICO COLSANITAS SANTA ANA | D28: 01-USAQUEN | E28: 4 | F28: 0 | G28: 1 | H28: 3 | I28: 3 | J28: 0 | K28: 0 | L28: 0 | M28: 0 | N28: 0 | S28: 7 | T28: 175.0%
A29: PARTICULAR | B29: PARTICULAR | C29: FUNDACIÓN CARDIO INFANTIL | D29: 01-USAQUEN | E29: 0 | F29: 0 | G29: 5 | H29: 16 | I29: 6 | J29: 2 | K29: 3 | L29: 2 | M29: 5 | N29: 5 | S29: 44 | T29: 0.0%
A30: PARTICULAR | B30: PARTICULAR | C30: ENFASO USAQUEN | D30: 01-USAQUEN | E30: 0 | F30: 0 | G30: 9 | H30: 13 | I30: 1 | J30: 0 | K30: 6 | L30: 6 | M30: 8 | N30: 7 | S30: 50 | T30: 0.0%
A31: PARTICULAR | B31: PARTICULAR | C31: UNIDAD DE VACUNACIÓN INTERNACIONAL | D31: 01-USAQUEN | E31: 0 | F31: 0 | G31: 6 | H31: 5 | I31: 3 | J31: 3 | K31: 0 | L31: 0 | M31: 4 | N31: 2 | S31: 23 | T31: 0.0%
A32: PARTICULAR | B32: PARTICULAR | C32: INMUNOLOGÍA Y DIAGNÓSTICO ESPECIALIZADO LTDA. | D32: 01-USAQUEN | E32: 0 | F32: 0 | G32: 2 | H32: 0 | I32: 2 | J32: 0 | K32: 0 | L32: 0 | M32: 0 | N32: 0 | S32: 4 | T32: 0.0%
A33: PARTICULAR | B33: PARTICULAR | C33: PROTEGER HEALHT CARE | D33: 01-USAQUEN | E33: 0 | F33: 0 | G33: 1 | H33: 6 | I33: 1 | J33: 1 | K33: 3 | L33: 4 | M33: 3 | N33: 6 | S33: 25 | T33: 0.0%
A34: PARTICULAR | B34: PARTICULAR | C34: FUNDACION SANTA FE DE BOGOTA | D34: 01-USAQUEN | E34: 0 | F34: 0 | G34: 0 | H34: 1 | I34: 0 | J34: 0 | K34: 0 | L34: 0 | M34: 0 | N34: 0 | S34: 1 | T34: 0.0%
A35: PARTICULAR | B35: PARTICULAR | C35: IPS CRUZ ROJA SEDE UNICENTRO | D35: 01-USAQUEN | E35: 0 | F35: 0 | G35: 0 | H35: 0 | I35: 0 | J35: 0 | K35: 0 | L35: 0 | M35: 0 | N35: 0 | S35: 0 | T35: 0.0% | U35: 0
A36: PARTICULAR | B36: PARTICULAR | C36: IPS CRUZ ROJA SAMU CALLE 145 | D36: 01-USAQUEN | E36: 0 | F36: 0 | G36: 0 | H36: 0 | I36: 0 | J36: 0 | K36: 0 | L36: 0 | M36: 0 | N36: 0 | S36: 0 | T36: 0.0% | U36: 0
A37: PEDIATRAS | B37: PEDIATRAS | C37: DR. ALEJANDRO LÓPEZ | D37: 01-USAQUEN | E37: 0 | F37: 0 | G37: 0 | H37: 3 | I37: 0 | J37: 1 | K37: 0 | L37: 0 | M37: 0 | N37: 0 | S37: 4 | T37: 0.0%
A38: PEDIATRAS | B38: PEDIATRAS | C38: DR. CARLOS NEFTALI TORRES | D38: 01-USAQUEN | E38: 0 | F38: 0 | G38: 1 | H38: 4 | I38: 2 | J38: 6 | K38: 3 | L38: 0 | M38: 5 | N38: 3 | S38: 24 | T38: 0.0%
A39: PEDIATRAS | B39: PEDIATRAS | C39: DR. FRANCISCO NUÑEZ | D39: 01-USAQUEN | E39: 0 | F39: 0 | G39: 1 | H39: 1 | I39: 0 | J39: 0 | K39: 1 | L39: 1 | M39: 3 | N39: 2 | S39: 9 | T39: 0.0%
A40: PEDIATRAS | B40: PEDIATRAS | C40: DR. FERNANDO GOMEZ | D40: 01-USAQUEN | E40: 0 | F40: 0 | G40: 0 | H40: 0 | I40: 0 | J40: 0 | K40: 0 | L40: 0 | M40: 0 | N40: 0 | S40: 0 | T40: 0.0% | U40: 0
A41: PEDIATRAS | B41: PEDIATRAS | C41: DR. FERNANDO ZARATE MORENO | D41: 01-USAQUEN | E41: 0 | F41: 0 | G41: 1 | H41: 1 | I41: 0 | J41: 1 | K41: 0 | L41: 0 | M41: 0 | N41: 1 | S41: 4 | T41: 0.0%
A42: PEDIATRAS | B42: PEDIATRAS | C42: DR. GONZALO GARCIA | D42: 01-USAQUEN | E42: 0 | F42: 0 | G42: 1 | H42: 0 | I42: 1 | J42: 0 | K42: 1 | L42: 0 | M42: 0 | N42: 1 | S42: 4 | T42: 0.0%
A43: PEDIATRAS | B43: PEDIATRAS | C43: DR. GUSTAVO MORALES | D43: 01-USAQUEN | E43: 0 | F43: 0 | G43: 2 | H43: 1 | I43: 2 | J43: 0 | K43: 4 | L43: 0 | M43: 0 | N43: 1 | S43: 10 | T43: 0.0%
A44: PEDIATRAS | B44: PEDIATRAS | C44: DR. JAIME OSPINA | D44: 01-USAQUEN | E44: 0 | F44: 0 | G44: 1 | H44: 0 | I44: 0 | J44: 3 | K44: 0 | L44: 2 | M44: 1 | N44: 1 | S44: 8 | T44: 0.0%
A45: PEDIATRAS | B45: PEDIATRAS | C45: DR. JORGE URIBE | D45: 01-USAQUEN | E45: 0 | F45: 0 | G45: 0 | H45: 1 | I45: 1 | J45: 0 | K45: 0 | L45: 0 | M45: 0 | N45: 1 | S45: 3 | T45: 0.0%
A46: PEDIATRAS | B46: PEDIATRAS | C46: DR. JUAN LUIS FIGUEROA | D46: 01-USAQUEN | E46: 0 | F46: 0 | G46: 2 | H46: 1 | I46: 0 | J46: 0 | K46: 2 | L46: 1 | M46: 0 | N46: 1 | S46: 7 | T46: 0.0%
A47: PEDIATRAS | B47: PEDIATRAS | C47: DR. LUIS AUGUSTO PERNA | D47: 01-USAQUEN | E47: 0 | F47: 0 | G47: 4 | H47: 2 | I47: 5 | J47: 0 | K47: 2 | L47: 3 | M47: 3 | N47: 5 | S47: 24 | T47: 0.0%
A48: PEDIATRAS | B48: PEDIATRAS | C48: DR. LIBARDO ELI TRIANA | D48: 01-USAQUEN | E48: 0 | F48: 0 | G48: 0 | H48: 1 | I48: 1 | J48: 1 | K48: 0 | L48: 0 | M48: 1 | N48: 1 | S48: 5 | T48: 0.0%
A49: PEDIATRAS | B49: PEDIATRAS | C49: DR. OSWALDO MERCADO HOYOS | D49: 01-USAQUEN | E49: 0 | F49: 0 | G49: 3 | H49: 3 | I49: 1 | J49: 0 | K49: 2 | L49: 1 | M49: 0 | N49: 1 | S49: 11 | T49: 0.0%
A50: PEDIATRAS | B50: PEDIATRAS | C50: DR. ROBERTO BENIRO | D50: 01-USAQUEN | E50: 0 | F50: 0 | G50: 0 | H50: 0 | I50: 0 | J50: 0 | K50: 0 | L50: 1 | M50: 2 | N50: 0 | S50: 3 | T50: 0.0%
A51: PEDIATRAS | B51: PEDIATRAS | C51: DR. SERGIO ISAZA | D51: 01-USAQUEN | E51: 0 | F51: 0 | G51: 0 | H51: 0 | I51: 0 | J51: 0 | K51: 0 | L51: 0 | M51: 0 | N51: 0 | S51: 0 | T51: 0.0% | U51: 0
A52: PEDIATRAS | B52: PEDIATRAS | C52: DR. SANTIAGO UCROS | D52: 01-USAQUEN | E52: 0 | F52: 0 | G52: 0 | H52: 0 | I52: 0 | J52: 0 | K52: 0 | L52: 0 | M52: 0 | N52: 0 | S52: 0 | T52: 0.0% | U52: 0
A53: PEDIATRAS | B53: PEDIATRAS | C53: DR. GERMAN SILVA | D53: 01-USAQUEN | E53: 0 | F53: 0 | G53: 0 | H53: 0 | I53: 0 | J53: 0 | K53: 0 | L53: 0 | M53: 0 | N53: 0 | S53: 0 | T53: 0.0% | U53: 0
A54: PEDIATRAS | B54: PEDIATRAS | C54: DR. DANIEL ABRIL | D54: 01-USAQUEN | E54: 0 | F54: 0 | G54: 0 | H54: 0 | I54: 0 | J54: 0 | K54: 0 | L54: 0 | M54: 0 | N54: 0 | S54: 0 | T54: 0.0% | U54: 0
A55: PEDIATRAS | B55: PEDIATRAS | C55: DR. CARLOS EDUARDO OLMOS | D55: 01-USAQUEN | E55: 0 | F55: 0 | G55: 0 | H55: 0 | I55: 0 | J55: 0 | K55: 0 | L55: 0 | M55: 0 | N55: 0 | S55: 0 | T55: 0.0% | U55: 0
A56: PEDIATRAS | B56: PEDIATRAS | C56: DR. EDGARDO CHATMAN | D56: 01-USAQUEN | E56: 0 | F56: 0 | G56: 0 | H56: 0 | I56: 0 | J56: 0 | K56: 0 | L56: 0 | M56: 0 | N56: 0 | S56: 0 | T56: 0.0% | U56: 0
A57: PEDIATRAS | B57: PEDIATRAS | C57: DR. JORGE FLOREZ OTERO | D57: 01-USAQUEN | E57: 0 | F57: 0 | G57: 0 | H57: 0 | I57: 0 | J57: 0 | K57: 0 | L57: 0 | M57: 0 | N57: 0 | S57: 0 | T57: 0.0% | U57: 0
A58: PEDIATRAS | B58: PEDIATRAS | C58: DRA. ALEJANDRA MARIA VALENCIA | D58: 01-USAQUEN | E58: 0 | F58: 0 | G58: 0 | H58: 0 | I58: 0 | J58: 0 | K58: 0 | L58: 0 | M58: 0 | N58: 0 | S58: 0 | T58: 0.0% | U58: 0
A59: PEDIATRAS | B59: PEDIATRAS | C59: DRA. ANA MARIA GOYENECHE | D59: 01-USAQUEN | E59: 0 | F59: 0 | G59: 0 | H59: 0 | I59: 0 | J59: 0 | K59: 0 | L59: 0 | M59: 0 | N59: 0 | S59: 0 | T59: 0.0% | U59: 0
A60: PEDIATRAS | B60: PEDIATRAS | C60: DRA. JIMENA VARELA | D60: 01-USAQUEN | E60: 0 | F60: 0 | G60: 0 | H60: 0 | I60: 0 | J60: 0 | K60: 0 | L60: 0 | M60: 0 | N60: 1 | S60: 1 | T60: 0.0%
A61: PEDIATRAS | B61: PEDIATRAS | C61: DRA. LIA SAN MIGUEL | D61: 01-USAQUEN | E61: 0 | F61: 0 | G61: 0 | H61: 0 | I61: 0 | J61: 0 | K61: 0 | L61: 1 | M61: 2 | N61: 0 | S61: 3 | T61: 0.0%
A62: PEDIATRAS | B62: PEDIATRAS | C62: DRA. LIBIA SEGURA | D62: 01-USAQUEN | E62: 0 | F62: 0 | G62: 0 | H62: 0 | I62: 1 | J62: 1 | K62: 0 | L62: 0 | M62: 0 | N62: 0 | S62: 2 | T62: 0.0%
A63: PEDIATRAS | B63: PEDIATRAS | C63: DRA. MARÍA JOSÉ PEDRAZA | D63: 01-USAQUEN | E63: 0 | F63: 0 | G63: 0 | H63: 0 | I63: 0 | J63: 0 | K63: 0 | L63: 0 | M63: 0 | N63: 0 | S63: 0 | T63: 0.0% | U63: 0
A64: PEDIATRAS | B64: PEDIATRAS | C64: DRA. MARTHA LUCIA SANCHEZ | D64: 01-USAQUEN | E64: 0 | F64: 0 | G64: 0 | H64: 0 | I64: 0 | J64: 0 | K64: 0 | L64: 0 | M64: 0 | N64: 0 | S64: 0 | T64: 0.0% | U64: 0
A65: PEDIATRAS | B65: PEDIATRAS | C65: DRA. OLGA LUCÍA SÁNCHEZ | D65: 01-USAQUEN | E65: 0 | F65: 0 | G65: 0 | H65: 0 | I65: 0 | J65: 0 | K65: 0 | L65: 0 | M65: 0 | N65: 0 | S65: 0 | T65: 0.0% | U65: 0
A66: PEDIATRAS | B66: PEDIATRAS | C66: DRA. SANDRA BELTRAN | D66: 01-USAQUEN | E66: 0 | F66: 0 | G66: 0 | H66: 0 | I66: 1 | J66: 0 | K66: 0 | L66: 1 | M66: 0 | N66: 0 | S66: 2 | T66: =IF(E66=0,0,+S66/E66) -> 0.0% | U66: =IF(COUNT(G66:R66)*(E66/12)-S66<0,"",COUNT(G66:R66)*(E66/12)-S66) -> 
A67: PEDIATRAS | B67: PEDIATRAS | C67: DRA. IVANA CABRERA | D67: 01-USAQUEN | E67: 0 | F67: =+E67/12 -> 0 | G67: 0 | H67: 0 | I67: 0 | J67: 0 | K67: 0 | L67: 0 | M67: 1 | N67: 0 | S67: =SUM(G67:R67) -> 1 | T67: 0.0%
A68: PEDIATRAS | B68: PEDIATRAS | C68: DRA. NAYITA ALARCON | D68: 01-USAQUEN | E68: 0 | F68: 0 | G68: 0 | H68: 0 | I68: 0 | J68: 0 | K68: 0 | L68: 0 | M68: 0 | N68: 0 | S68: 0 | T68: 0.0% | U68: 0
A69: PEDIATRAS | B69: PEDIATRAS | C69: DRA. ELIZABETH GARCIA | D69: 01-USAQUEN | E69: 0 | F69: 0 | G69: 0 | H69: 0 | I69: 0 | J69: 0 | K69: 0 | L69: 0 | M69: 0 | N69: 0 | S69: 0 | T69: 0.0% | U69: 0
A70: PEDIATRAS | B70: PEDIATRAS | C70: DRA. BERTHA CALDERON DE RAMOS | D70: 01-USAQUEN | E70: 0 | F70: 0 | G70: 0 | H70: 0 | I70: 0 | J70: 0 | K70: 0 | L70: 0 | M70: 0 | N70: 0 | S70: 0 | T70: 0.0% | U70: 0
A71: PEDIATRAS | B71: PEDIATRAS | C71: DRA. MIRYAM CORREA | D71: 01-USAQUEN | E71: 0 | F71: 0 | G71: 0 | H71: 1 | I71: 0 | J71: 0 | K71: 0 | L71: 0 | M71: 0 | N71: 0 | S71: 1 | T71: 0.0%
A72: 01-USAQUEN | B72: UNICAJAS | C72: UPA SAN CRISTOBAL | D72: 01-USAQUEN | E72: 6 | F72: 1 | G72: 1 | H72: 0 | I72: 0 | J72: 1 | K72: 0 | L72: 0 | M72: 0 | N72: 0 | S72: 2 | T72: 33.3% | U72: 2
A73: UNICAJAS | B73: UNICAJAS | C73: UPA USAQUEN | D73: 01-USAQUEN | E73: 9 | F73: 1 | G73: 0 | H73: 0 | I73: 0 | J73: 0 | K73: 0 | L73: 0 | M73: 0 | N73: 0 | S73: 0 | T73: 0.0% | U73: 6
A74: UNICAJAS | B74: UNICAJAS | C74: UPA ORQUIDEAS | D74: 01-USAQUEN | E74: 6 | F74: 1 | G74: 0 | H74: 0 | I74: 0 | J74: 0 | K74: 1 | L74: 0 | M74: 0 | N74: 1 | S74: 2 | T74: 33.3% | U74: 2
A75: UNICAJAS | B75: UNICAJAS | C75: UPA CODITO | D75: 01-USAQUEN | E75: 5 | F75: 0 | G75: 0 | H75: 0 | I75: 0 | J75: 0 | K75: 0 | L75: 0 | M75: 0 | N75: 1 | S75: 1 | T75: 20.0% | U75: 2
A76: UNICAJAS | B76: UNICAJAS | C76: CAMI VERBENAL | D76: 01-USAQUEN | E76: 6 | F76: 1 | G76: 0 | H76: 0 | I76: 2 | J76: 1 | K76: 1 | L76: 1 | M76: 0 | N76: 0 | S76: 5 | T76: 83.3%
A77: 01-USAQUEN | B77: UNICAJAS | C77: HOSPITAL SIMON BOLIVAR | D77: 01-USAQUEN | E77: 6 | F77: 1 | G77: 1 | H77: 1 | I77: 0 | J77: 1 | K77: 0 | L77: 0 | M77: 1 | N77: 0 | S77: 4 | T77: 66.7% | U77: 0
A78: 01-USAQUEN | B78: OTROS | C78: UPA SAN CRISTOBAL | D78: 01-USAQUEN | E78: 300 | F78: 25 | G78: 0 | H78: 2 | I78: 2 | J78: 2 | K78: 1 | L78: 11 | M78: 3 | N78: 2 | S78: 23 | T78: 7.7% | U78: 177
A79: 01-USAQUEN | B79: OTROS | C79: UPA USAQUEN | D79: 01-USAQUEN | E79: 100 | F79: 8 | G79: 0 | H79: 0 | I79: 0 | J79: 0 | K79: 0 | L79: 0 | M79: 0 | N79: 0 | S79: 0 | T79: 0.0% | U79: 67
A80: 01-USAQUEN | B80: OTROS | C80: UPA ORQUIDEAS | D80: 01-USAQUEN | E80: 120 | F80: 10 | G80: 0 | H80: 0 | I80: 0 | J80: 2 | K80: 1 | L80: 2 | M80: 1 | N80: 0 | S80: 6 | T80: 5.0% | U80: 74
A81: 01-USAQUEN | B81: OTROS | C81: UPA CODITO | D81: 01-USAQUEN | E81: 218 | F81: 18 | G81: 4 | H81: 0 | I81: 1 | J81: 1 | K81: 0 | L81: 1 | M81: 8 | N81: 4 | S81: 19 | T81: 8.7% | U81: 126
A82: 01-USAQUEN | B82: OTROS | C82: CAMI VERBENAL | D82: 01-USAQUEN | E82: 309 | F82: 26 | G82: 4 | H82: 2 | I82: 2 | J82: 1 | K82: 1 | L82: 3 | M82: 5 | N82: 3 | S82: 21 | T82: 6.8% | U82: 185
A83: 01-USAQUEN | B83: OTROS | C83: HOSPITAL SIMON BOLIVAR | D83: 01-USAQUEN | E83: 480 | F83: 40 | G83: 8 | H83: 12 | I83: 7 | J83: 4 | K83: 1 | L83: 2 | M83: 5 | N83: 8 | S83: 47 | T83: 9.8% | U83: 273
A84: 01-USAQUEN | B84: DEMAS EAPB | C84: UPA SAN CRISTOBAL | D84: 01-USAQUEN | F84: 0 | G84: 10 | H84: 9 | I84: 11 | J84: 8 | K84: 8 | L84: 6 | M84: 3 | N84: 10 | S84: 65 | T84: 0.0%
A85: 01-USAQUEN | B85: DEMAS EAPB | C85: UPA USAQUEN | D85: 01-USAQUEN | F85: 0 | G85: 3 | H85: 0 | I85: 0 | J85: 0 | K85: 0 | L85: 0 | M85: 0 | N85: 0 | S85: 3 | T85: 0.0%
A86: 01-USAQUEN | B86: DEMAS EAPB | C86: UPA ORQUIDEAS | D86: 01-USAQUEN | F86: 0 | G86: 2 | H86: 2 | I86: 3 | J86: 6 | K86: 3 | L86: 1 | M86: 2 | N86: 3 | S86: 22 | T86: 0.0%
A87: 01-USAQUEN | B87: DEMAS EAPB | C87: UPA CODITO | D87: 01-USAQUEN | F87: 0 | G87: 7 | H87: 10 | I87: 12 | J87: 11 | K87: 10 | L87: 12 | M87: 9 | N87: 5 | S87: 76 | T87: 0.0%
A88: 01-USAQUEN | B88: DEMAS EAPB | C88: CAMI VERBENAL | D88: 01-USAQUEN | F88: 0 | G88: 3 | H88: 12 | I88: 12 | J88: 9 | K88: 20 | L88: 6 | M88: 5 | N88: 13 | S88: 80 | T88: 0.0%
A89: 01-USAQUEN | B89: DEMAS EAPB | C89: HOSPITAL SIMON BOLIVAR | D89: 01-USAQUEN | F89: 0 | G89: 20 | H89: 20 | I89: 4 | J89: 9 | K89: 11 | L89: 1 | M89: 3 | N89: 4 | S89: 72 | T89: 0.0%
A90: MEDIMAS | B90: MEDIMAS | C90: Corvesalud S.A.S - I P S Chico | D90: 01-USAQUEN | E90: 320 | F90: 27 | G90: 5 | H90: 5 | I90: 7 | M90: 1 | N90: 1 | S90: 19 | T90: 5.9% | U90: 114
A91: FAMISANAR | B91: COLSUBSIDIO | C91: Sura PAC Santa Bárbara | D91: 01-USAQUEN | F91: 0 | S91: 0 | T91: 0.0% | U91: 0
A92: CAPITAL SALUD | B92: CAPITAL SALUD | C92: UPA SAN LUIS | D92: 02-CHAPINERO | E92: 12 | F92: 1 | G92: 4 | H92: 2 | I92: 1 | J92: 0 | K92: 2 | L92: 2 | M92: 4 | N92: 0 | S92: 15 | T92: 125.0%
A93: 02-CHAPINERO | B93: 02-CHAPINERO | C93: EXTRAMURAL CHAPINERO | D93: 02-CHAPINERO | E93: 0 | F93: 0 | G93: 1 | H93: 0 | I93: 1 | J93: 13 | K93: 17 | L93: 8 | M93: 6 | N93: 10 | S93: 56 | T93: 0.0%
A94: COMPENSAR | B94: COMPENSAR | C94: USS CALLE 42 | D94: 02-CHAPINERO | E94: 612 | F94: 51 | G94: 29 | H94: 43 | I94: 26 | J94: 36 | K94: 28 | L94: 51 | M94: 37 | N94: 40 | S94: 290 | T94: 47.4% | U94: 118
A95: COMPENSAR | B95: COMPENSAR | C95: USS CALLE 67 | D95: 02-CHAPINERO | E95: 0 | F95: 0 | G95: 0 | H95: 0 | I95: 0 | J95: 0 | K95: 0 | L95: 0 | M95: 0 | N95: 0 | S95: 0 | T95: 0.0% | U95: 0
A96: COMPENSAR | B96: COMPENSAR | C96: USS CALLE 94 | D96: 02-CHAPINERO | E96: 369 | F96: 31 | G96: 35 | H96: 41 | I96: 26 | J96: 46 | K96: 63 | L96: 79 | M96: 62 | N96: 66 | S96: 418 | T96: 113.3%
A97: COMPENSAR | B97: COMPENSAR | C97: VIVA 1A IPS CHAPINERO | D97: 02-CHAPINERO | E97: 73 | F97: 6 | G97: 4 | H97: 6 | I97: 6 | J97: 2 | K97: 3 | L97: 6 | M97: 9 | N97: 2 | S97: 38 | T97: 52.1% | U97: 11
A98: COOMEVA | B98: COOMEVA | C98: SINERGIA UNIDAD BASICA LOURDES | D98: 02-CHAPINERO | E98: 217 | F98: 18 | G98: 9 | H98: 10 | I98: 9 | J98: 2 | K98: 0 | L98: 0 | M98: 0 | N98: 4 | S98: 34 | T98: 15.7% | U98: 111
A99: FAMISANAR | B99: FAMI- CAFAM | C99: CENTRO DE ATENCION EN SALUD CAFAM CALLE 48 | D99: 02-CHAPINERO | E99: 1050 | F99: 88 | G99: 31 | H99: 36 | I99: 21 | J99: 19 | K99: 31 | L99: 32 | M99: 32 | N99: 34 | S99: 236 | T99: 22.5% | U99: 464
A100: FAMISANAR | B100: FAMI- CAFAM | C100: CENTRO DE ATENCION EN SALUD CAFAM CALLE 90 | D100: 02-CHAPINERO | E100: 200 | F100: 17 | G100: 11 | H100: 7 | I100: 20 | J100: 5 | K100: 10 | L100: 8 | M100: 5 | N100: 9 | S100: 75 | T100: 37.5% | U100: 58
A101: FAMISANAR | B101: FAMI- COLSB | C101: CLINICA COLSUBSIDIO EL LAGO | D101: 02-CHAPINERO | E101: 392 | F101: 33 | G101: 8 | H101: 11 | I101: 6 | J101: 5 | K101: 7 | L101: 5 | M101: 6 | N101: 4 | S101: 52 | T101: 13.3% | U101: 209
A102: MILITAR | B102: MILITAR | C102: HOSPITAL MILITAR CENTRAL | D102: 02-CHAPINERO | E102: 70 | F102: 6 | G102: 10 | H102: 11 | I102: 4 | J102: 6 | K102: 3 | L102: 5 | M102: 3 | N102: 6 | S102: 48 | T102: 68.6%
A103: POLICIA | B103: POLICIA | C103: POLICIA NACIONAL ESPAM CHAPINERO | D103: 02-CHAPINERO | E103: 117 | F103: 10 | G103: 4 | H103: 0 | I103: 9 | J103: 32 | K103: 25 | L103: 24 | M103: 18 | N103: 26 | S103: 138 | T103: 117.9%
A104: NUEVA EPS | B104: NUEVA EPS | C104: IPS VIVA 1A SEDE MARLY | D104: 02-CHAPINERO | E104: 131 | F104: 11 | G104: 9 | H104: 5 | I104: 2 | J104: 2 | K104: 4 | L104: 3 | M104: 3 | N104: 2 | S104: 30 | T104: 22.9% | U104: 57
A105: SANITAS | B105: SANITAS | C105: EPS SANITAS CENTRO MEDICO TEUSAQUILLO | D105: 02-CHAPINERO | E105: 579 | F105: 48 | G105: 28 | H105: 22 | I105: 28 | J105: 12 | K105: 14 | L105: 15 | M105: 17 | N105: 16 | S105: 152 | T105: 26.3% | U105: 234
A106: SALUD TOTAL | B106: SALUD TOTAL | C106: VIRREY SOLIS CHAPINERO | D106: 02-CHAPINERO | E106: 337 | F106: 28 | G106: 16 | H106: 13 | I106: 16 | J106: 9 | K106: 16 | L106: 31 | M106: 25 | N106: 42 | S106: 168 | T106: 49.9% | U106: 57
A107: SURA | B107: SURA | C107: PUNTO DE SALUD CHAPINERO | D107: 02-CHAPINERO | E107: 237 | F107: 20 | G107: 13 | H107: 10 | I107: 13 | J107: 5 | K107: 14 | L107: 10 | M107: 1 | N107: 0 | S107: 66 | T107: 27.8% | U107: 92
A108: SURA | B108: SURA | C108: SALUD SURA | D108: 02-CHAPINERO | E108: 454 | F108: 38 | G108: 46 | H108: 30 | I108: 35 | J108: 14 | K108: 32 | L108: 25 | M108: 24 | N108: 26 | S108: 232 | T108: 51.1% | U108: 71
A109: PARTICULAR | B109: PARTICULAR | C109: CENTRO MEDICO COLSANITAS CALLE 96 | D109: 02-CHAPINERO | E109: 24 | F109: 2 | G109: 2 | H109: 0 | I109: 2 | J109: 16 | K109: 12 | L109: 15 | M109: 13 | N109: 18 | S109: 78 | T109: 325.0%
A110: PARTICULAR | B110: PARTICULAR | C110: CENTRO DE ESPECIALISTAS MEDICOS AXA COLPATRIA | D110: 02-CHAPINERO | E110: 0 | F110: 0 | G110: 5 | H110: 6 | I110: 5 | J110: 5 | K110: 9 | L110: 9 | M110: 10 | N110: 12 | S110: 61 | T110: 0.0%
A111: PARTICULAR | B111: PARTICULAR | C111: CLINICA DE LA MUJER | D111: 02-CHAPINERO | E111: 0 | F111: 0 | G111: 54 | H111: 42 | I111: 51 | J111: 24 | K111: 39 | L111: 49 | M111: 48 | N111: 37 | S111: 344 | T111: 0.0%
A112: PARTICULAR | B112: PARTICULAR | C112: VACUNARTE IPS | D112: 02-CHAPINERO | E112: 0 | F112: 0 | G112: 1 | H112: 3 | I112: 1 | J112: 1 | K112: 1 | L112: 2 | M112: 1 | N112: 3 | S112: 13 | T112: 0.0%
A113: PARTICULAR | B113: PARTICULAR | C113: UNIMARLY | D113: 02-CHAPINERO | E113: 0 | F113: 0 | G113: 0 | H113: 0 | I113: 0 | J113: 0 | K113: 0 | L113: 0 | M113: 0 | N113: 0 | S113: 0 | T113: 0.0% | U113: 0
A114: PARTICULAR | B114: PARTICULAR | C114: HOSPITAL SAN IGNACIO | D114: 02-CHAPINERO | E114: 0 | F114: 0 | G114: 9 | H114: 5 | I114: 2 | J114: 2 | K114: 1 | L114: 1 | M114: 1 | N114: 3 | S114: 24 | T114: 0.0%
A115: PARTICULAR | B115: PARTICULAR | C115: PROGRAMA MADRE CANGURO HOSPITAL SAN IGNACIO | D115: 02-CHAPINERO | E115: 0 | F115: 0 | G115: 96 | H115: 100 | I115: 80 | J115: 74 | K115: 65 | L115: 74 | M115: 81 | N115: 79 | S115: 649 | T115: 0.0%
A116: PARTICULAR | B116: PARTICULAR | C116: IPS AVENIR | D116: 02-CHAPINERO | E116: 0 | F116: 0 | G116: 0 | H116: 0 | I116: 0 | J116: 0 | K116: 0 | L116: 0 | M116: 0 | N116: 0 | S116: 0 | T116: 0.0% | U116: 0
A117: PARTICULAR | B117: PARTICULAR | C117: IPS INMUNOLOGIA Y DIAGNOSTICO ESPECIALIZADO | D117: 02-CHAPINERO | E117: 0 | F117: 0 | G117: 0 | H117: 0 | I117: 0 | J117: 0 | K117: 4 | L117: 1 | M117: 2 | N117: 2 | S117: 9 | T117: 0.0%
A118: PARTICULAR | B118: PARTICULAR | C118: ASOCIACION PEDIATRICA DE LOS ANDES | D118: 02-CHAPINERO | E118: 0 | F118: 0 | G118: 1 | H118: 0 | I118: 0 | J118: 0 | K118: 0 | L118: 0 | M118: 0 | N118: 0 | S118: 1 | T118: 0.0%
A119: PARTICULAR | B119: PARTICULAR | C119: CRUZ ROJA SEDE ANDINO | D119: 02-CHAPINERO | E119: 0 | F119: 0 | G119: 0 | H119: 0 | I119: 0 | J119: 0 | K119: 0 | L119: 0 | M119: 0 | N119: 0 | S119: 0 | T119: 0.0% | U119: 0
A120: PARTICULAR | B120: PARTICULAR | C120: CENTRO MEDICO SANTA MONICA | D120: 02-CHAPINERO | E120: 0 | F120: 0 | H120: 0 | I120: 0 | J120: 7 | K120: 8 | L120: 11 | M120: 0 | N120: 0 | S120: 26 | T120: 0.0%
A121: PEDIATRAS | B121: PEDIATRAS | C121: DR. JUAN OSCAR TAMAYO | D121: 02-CHAPINERO | E121: 0 | F121: 0 | G121: 0 | H121: 0 | I121: 0 | J121: 0 | K121: 0 | L121: 0 | M121: 0 | N121: 0 | S121: 0 | T121: 0.0% | U121: 0
A122: PEDIATRAS | B122: PEDIATRAS | C122: DR. ROBERTO SUAREZ | D122: 02-CHAPINERO | E122: 0 | F122: 0 | G122: 0 | H122: 0 | I122: 0 | J122: 0 | K122: 0 | L122: 0 | M122: 0 | N122: 0 | S122: 0 | T122: 0.0% | U122: 0
A123: PEDIATRAS | B123: PEDIATRAS | C123: DR. WILLIAM RICARDO CABRA | D123: 02-CHAPINERO | E123: 0 | F123: 0 | G123: 3 | H123: 2 | I123: 0 | J123: 2 | K123: 0 | L123: 0 | M123: 1 | N123: 0 | S123: 8 | T123: 0.0%
A124: PEDIATRAS | B124: PEDIATRAS | C124: DR. EDGAR CASTRO | D124: 02-CHAPINERO | E124: 0 | F124: 0 | G124: 5 | H124: 2 | I124: 0 | J124: 6 | K124: 5 | L124: 2 | M124: 1 | N124: 3 | S124: 24 | T124: 0.0%
A125: PEDIATRAS | B125: PEDIATRAS | C125: DR. PABLO KRAUSS | D125: 02-CHAPINERO | E125: 0 | F125: 0 | G125: 4 | H125: 1 | I125: 1 | J125: 0 | K125: 0 | L125: 0 | M125: 0 | N125: 0 | S125: 6 | T125: 0.0%
A126: PEDIATRAS | B126: PEDIATRAS | C126: DR. HERNAN ROBLES | D126: 02-CHAPINERO | E126: 0 | F126: 0 | G126: 5 | H126: 3 | I126: 6 | J126: 4 | K126: 3 | L126: 5 | M126: 7 | N126: 10 | S126: 43 | T126: 0.0%
A127: PEDIATRAS | B127: PEDIATRAS | C127: DR. RAFAEL GAMBOA CASABLANCA | D127: 02-CHAPINERO | E127: 0 | F127: 0 | G127: 15 | H127: 11 | I127: 5 | J127: 1 | K127: 8 | L127: 5 | M127: 2 | N127: 6 | S127: 53 | T127: 0.0%
A128: PEDIATRAS | B128: PEDIATRAS | C128: DR. JAVIER MEJIA | D128: 02-CHAPINERO | E128: 0 | F128: 0 | G128: 2 | H128: 2 | I128: 4 | J128: 2 | K128: 2 | L128: 4 | M128: 5 | N128: 2 | S128: 23 | T128: 0.0%
A129: PEDIATRAS | B129: PEDIATRAS | C129: DR. CARLOS CORTAZAR | D129: 02-CHAPINERO | E129: 0 | F129: 0 | G129: 0 | H129: 0 | I129: 0 | J129: 0 | K129: 0 | L129: 0 | M129: 0 | N129: 0 | S129: 0 | T129: 0.0% | U129: 0
A130: PEDIATRAS | B130: PEDIATRAS | C130: DR. NELSON PARDO | D130: 02-CHAPINERO | E130: 0 | F130: 0 | G130: 2 | H130: 1 | I130: 4 | J130: 0 | K130: 0 | L130: 3 | M130: 0 | N130: 0 | S130: 10 | T130: =IF(E130=0,0,+S130/E130) -> 0.0% | U130: =IF(COUNT(G130:R130)*(E130/12)-S130<0,"",COUNT(G130:R130)*(E130/12)-S130) -> 
A131: PEDIATRAS | B131: PEDIATRAS | C131: DR. ALVARO JACOME | D131: 02-CHAPINERO | E131: 0 | F131: =+E131/12 -> 0 | G131: 2 | H131: 1 | I131: 0 | J131: 4 | K131: 1 | L131: 0 | M131: 0 | N131: 0 | S131: =SUM(G131:R131) -> 8 | T131: 0.0%
A132: PEDIATRAS | B132: PEDIATRAS | C132: DR. SILVIO COPO | D132: 02-CHAPINERO | E132: 0 | F132: 0 | G132: 0 | H132: 1 | I132: 0 | J132: 0 | K132: 0 | L132: 0 | M132: 0 | N132: 0 | S132: 1 | T132: 0.0%
A133: PEDIATRAS | B133: PEDIATRAS | C133: DR. HECTOR FERNANDO MENDOZA | D133: 02-CHAPINERO | E133: 0 | F133: 0 | G133: 0 | H133: 0 | I133: 0 | J133: 0 | K133: 1 | L133: 0 | M133: 1 | N133: 0 | S133: 2 | T133: 0.0%
A134: PEDIATRAS | B134: PEDIATRAS | C134: DR. DIMITRIOS | D134: 02-CHAPINERO | E134: 0 | F134: 0 | G134: 0 | H134: 1 | I134: 0 | J134: 1 | K134: 0 | L134: 0 | M134: 0 | N134: 0 | S134: 2 | T134: 0.0%
A135: PEDIATRAS | B135: PEDIATRAS | C135: DR. ALVARO MARIÑO | D135: 02-CHAPINERO | E135: 0 | F135: 0 | G135: 0 | H135: 1 | I135: 0 | J135: 0 | K135: 0 | L135: 0 | M135: 0 | N135: 0 | S135: 1 | T135: 0.0%
A136: PEDIATRAS | B136: PEDIATRAS | C136: DR. ANDRES VARGAS | D136: 02-CHAPINERO | E136: 0 | F136: 0 | G136: 2 | H136: 1 | I136: 1 | J136: 0 | K136: 1 | L136: 1 | M136: 3 | N136: 1 | S136: 10 | T136: 0.0%
A137: PEDIATRAS | B137: PEDIATRAS | C137: DR. JORGE CAMILO LUNA | D137: 02-CHAPINERO | E137: 0 | F137: 0 | G137: 1 | H137: 7 | I137: 2 | J137: 18 | K137: 5 | L137: 7 | M137: 16 | N137: 12 | S137: 68 | T137: 0.0%
A138: PEDIATRAS | B138: PEDIATRAS | C138: DR. BERNARDO HUERTAS | D138: 02-CHAPINERO | E138: 0 | F138: 0 | G138: 13 | H138: 13 | I138: 8 | J138: 11 | K138: 11 | L138: 5 | M138: 8 | N138: 17 | S138: 86 | T138: 0.0%
A139: PEDIATRAS | B139: PEDIATRAS | C139: DR. CARLOS M CASTILLO | D139: 02-CHAPINERO | E139: 0 | F139: 0 | G139: 0 | H139: 0 | I139: 0 | J139: 0 | K139: 0 | L139: 0 | M139: 0 | N139: 0 | S139: 0 | T139: 0.0% | U139: 0
A140: PEDIATRAS | B140: PEDIATRAS | C140: DR. HEINZ OTTO PFALZGRAF | D140: 02-CHAPINERO | E140: 0 | F140: 0 | G140: 0 | H140: 0 | I140: 0 | J140: 0 | K140: 0 | L140: 0 | M140: 0 | N140: 0 | S140: 0 | T140: 0.0% | U140: 0
A141: PEDIATRAS | B141: PEDIATRAS | C141: DR. GONZALEZ BALLESTEROS | D141: 02-CHAPINERO | E141: 0 | F141: 0 | G141: 0 | H141: 0 | I141: 0 | J141: 0 | K141: 0 | L141: 0 | M141: 0 | N141: 0 | S141: 0 | T141: 0.0% | U141: 0
A142: PEDIATRAS | B142: PEDIATRAS | C142: DR. NORBERTO SALAMANCA | D142: 02-CHAPINERO | E142: 0 | F142: 0 | G142: 0 | H142: 0 | I142: 0 | J142: 0 | K142: 0 | L142: 0 | M142: 0 | N142: 1 | S142: 1 | T142: 0.0%
A143: PEDIATRAS | B143: PEDIATRAS | C143: DR. CAMILO ENRIQUE SOTOMAYOR | D143: 02-CHAPINERO | E143: 0 | F143: 0 | G143: 0 | H143: 2 | I143: 0 | J143: 0 | K143: 0 | L143: 2 | M143: 1 | N143: 1 | S143: 6 | T143: 0.0%
A144: PEDIATRAS | B144: PEDIATRAS | C144: DR. SANTIAGO RUEDA SAIZ | D144: 02-CHAPINERO | E144: 0 | F144: 0 | G144: 0 | H144: 1 | I144: 0 | J144: 0 | K144: 4 | L144: 0 | M144: 0 | N144: 0 | S144: 5 | T144: 0.0%
A145: PEDIATRAS | B145: PEDIATRAS | C145: DR. HENRY HERNANDO SANCHEZ ESCOBAR | D145: 02-CHAPINERO | E145: 0 | F145: 0 | G145: 1 | H145: 1 | I145: 0 | J145: 0 | K145: 2 | L145: 1 | M145: 0 | N145: 1 | S145: 6 | T145: 0.0%
A146: PEDIATRAS | B146: PEDIATRAS | C146: DR. RUBEN DARIO TAMAYO | D146: 02-CHAPINERO | E146: 0 | F146: 0 | G146: 2 | H146: 2 | I146: 0 | J146: 0 | K146: 1 | L146: 1 | M146: 3 | N146: 3 | S146: 12 | T146: 0.0%
A147: PEDIATRAS | B147: PEDIATRAS | C147: DR. JAIME MAURICIO MATALLANA | D147: 02-CHAPINERO | E147: 0 | F147: 0 | G147: 5 | H147: 4 | I147: 8 | J147: 3 | K147: 5 | L147: 6 | M147: 5 | N147: 5 | S147: 41 | T147: 0.0%
A148: PEDIATRAS | B148: PEDIATRAS | C148: DR. RODRIGO GARCIA | D148: 02-CHAPINERO | E148: 0 | F148: 0 | G148: 0 | H148: 0 | I148: 0 | J148: 0 | K148: 0 | L148: 0 | M148: 0 | N148: 0 | S148: 0 | T148: 0.0% | U148: 0
A149: PEDIATRAS | B149: PEDIATRAS | C149: DR. FELIPE ROBAYO | D149: 02-CHAPINERO | E149: 0 | F149: 0 | G149: 0 | H149: 0 | I149: 0 | J149: 0 | K149: 0 | L149: 0 | M149: 0 | N149: 0 | S149: 0 | T149: 0.0% | U149: 0
A150: PEDIATRAS | B150: PEDIATRAS | C150: DR. RUBEN FRANCO | D150: 02-CHAPINERO | E150: 0 | F150: 0 | G150: 0 | H150: 0 | I150: 1 | J150: 4 | K150: 0 | L150: 0 | M150: 0 | N150: 0 | S150: 5 | T150: 0.0%
A151: PEDIATRAS | B151: PEDIATRAS | C151: DR. ORLANDO RODRIGUEZ RAMIREZ | D151: 02-CHAPINERO | E151: 0 | F151: 0 | G151: 2 | H151: 0 | I151: 0 | J151: 0 | K151: 3 | L151: 3 | M151: 0 | N151: 2 | S151: 10 | T151: 0.0%
A152: PEDIATRAS | B152: PEDIATRAS | C152: DR. ARTURO MORENO | D152: 02-CHAPINERO | E152: 0 | F152: 0 | G152: 0 | H152: 0 | I152: 0 | J152: 0 | K152: 0 | L152: 0 | M152: 0 | N152: 0 | S152: 0 | T152: 0.0% | U152: 0
A153: PEDIATRAS | B153: PEDIATRAS | C153: DR. FRANCISCO LEAL QUEVEDO | D153: 02-CHAPINERO | E153: 0 | F153: 0 | G153: 0 | H153: 0 | I153: 0 | J153: 0 | K153: 0 | L153: 0 | M153: 0 | N153: 0 | S153: 0 | T153: 0.0% | U153: 0
A154: PEDIATRAS | B154: PEDIATRAS | C154: DR. CARLOS DIAZ PUENTES | D154: 02-CHAPINERO | E154: 0 | F154: 0 | G154: 0 | H154: 0 | I154: 0 | J154: 0 | K154: 0 | L154: 0 | M154: 0 | N154: 0 | S154: 0 | T154: 0.0% | U154: 0
A155: PEDIATRAS | B155: PEDIATRAS | C155: DR. PEDRO ERASMO MENDOZA | D155: 02-CHAPINERO | E155: 0 | F155: 0 | G155: 0 | H155: 0 | I155: 0 | J155: 0 | K155: 0 | L155: 0 | M155: 0 | N155: 0 | S155: 0 | T155: 0.0% | U155: 0
A156: PEDIATRAS | B156: PEDIATRAS | C156: DR. DIMAS ROSAS | D156: 02-CHAPINERO | E156: 0 | F156: 0 | G156: 0 | H156: 0 | I156: 0 | J156: 0 | K156: 0 | L156: 0 | M156: 0 | N156: 0 | S156: 0 | T156: 0.0% | U156: 0
A157: PEDIATRAS | B157: PEDIATRAS | C157: DR. JAVIER BRITO MORENO | D157: 02-CHAPINERO | E157: 0 | F157: 0 | G157: 0 | H157: 0 | I157: 0 | J157: 0 | K157: 0 | L157: 0 | M157: 0 | N157: 0 | S157: 0 | T157: 0.0% | U157: 0
A158: PEDIATRAS | B158: PEDIATRAS | C158: DR. GUSTAVO CORTÉS | D158: 02-CHAPINERO | E158: 0 | F158: 0 | G158: 0 | H158: 0 | I158: 0 | J158: 0 | K158: 0 | L158: 0 | M158: 0 | N158: 0 | S158: 0 | T158: 0.0% | U158: 0
A159: PEDIATRAS | B159: PEDIATRAS | C159: DR. CARLOS VELASQUEZ | D159: 02-CHAPINERO | E159: 0 | F159: 0 | G159: 0 | H159: 0 | I159: 0 | J159: 0 | K159: 0 | L159: 0 | M159: 0 | N159: 0 | S159: 0 | T159: 0.0% | U159: 0
A160: PEDIATRAS | B160: PEDIATRAS | C160: DR. RICARDO GOMEZ | D160: 02-CHAPINERO | E160: 0 | F160: 0 | G160: 0 | H160: 0 | I160: 0 | J160: 0 | K160: 0 | L160: 0 | M160: 0 | N160: 1 | S160: 1 | T160: 0.0%
A161: PEDIATRAS | B161: PEDIATRAS | C161: DR. SARA BERNAL | D161: 02-CHAPINERO | E161: 0 | F161: 0 | G161: 0 | H161: 2 | I161: 2 | J161: 0 | K161: 0 | L161: 0 | M161: 0 | N161: 2 | S161: 6 | T161: 0.0%
A162: PEDIATRAS | B162: PEDIATRAS | C162: DRA. MARIA PATRICIA AGUALIMPIA | D162: 02-CHAPINERO | E162: 0 | F162: 0 | G162: 0 | H162: 0 | I162: 0 | J162: 0 | K162: 0 | L162: 0 | M162: 0 | N162: 0 | S162: 0 | T162: 0.0% | U162: 0
A163: PEDIATRAS | B163: PEDIATRAS | C163: DRA. LUISA FERNANDA FORERO ACOSTA | D163: 02-CHAPINERO | E163: 0 | F163: 0 | G163: 0 | H163: 0 | I163: 0 | J163: 0 | K163: 0 | L163: 0 | M163: 0 | N163: 0 | S163: 0 | T163: 0.0% | U163: 0
A164: PEDIATRAS | B164: PEDIATRAS | C164: DRA. MARIA CLARA CASAS PARDO | D164: 02-CHAPINERO | E164: 0 | F164: 0 | G164: 0 | H164: 0 | I164: 0 | J164: 0 | K164: 0 | L164: 0 | M164: 0 | N164: 0 | S164: 0 | T164: 0.0% | U164: 0
A165: PEDIATRAS | B165: PEDIATRAS | C165: DRA. MARTHA EUGENIA RONDEROS DE FORERO | D165: 02-CHAPINERO | E165: 0 | F165: 0 | G165: 0 | H165: 0 | I165: 0 | J165: 0 | K165: 0 | L165: 0 | M165: 0 | N165: 0 | S165: 0 | T165: 0.0% | U165: 0
A166: PEDIATRAS | B166: PEDIATRAS | C166: DRA. MARIA ISABEL USCHER | D166: 02-CHAPINERO | E166: 0 | F166: 0 | G166: 0 | H166: 0 | I166: 0 | J166: 0 | K166: 2 | L166: 0 | M166: 3 | N166: 1 | S166: 6 | T166: 0.0%
A167: PEDIATRAS | B167: PEDIATRAS | C167: DRA. MARIA DE LOS ANGELES MUÑOZ | D167: 02-CHAPINERO | E167: 0 | F167: 0 | G167: 3 | H167: 0 | I167: 3 | J167: 0 | K167: 3 | L167: 2 | M167: 5 | N167: 0 | S167: 16 | T167: 0.0%
A168: PEDIATRAS | B168: PEDIATRAS | C168: DRA. CLARA ABELLO REYES | D168: 02-CHAPINERO | E168: 0 | F168: 0 | G168: 2 | H168: 1 | I168: 0 | J168: 0 | K168: 1 | L168: 0 | M168: 0 | N168: 0 | S168: 4 | T168: 0.0%
A169: PEDIATRAS | B169: PEDIATRAS | C169: DRA. PATRICIA CONTRERAS | D169: 02-CHAPINERO | E169: 0 | F169: 0 | G169: 0 | H169: 0 | I169: 3 | J169: 2 | K169: 2 | L169: 6 | M169: 2 | N169: 1 | S169: 16 | T169: 0.0%
A170: PEDIATRAS | B170: PEDIATRAS | C170: DRA. CLAUDIA ZOPPI | D170: 02-CHAPINERO | E170: 0 | F170: 0 | G170: 0 | H170: 0 | I170: 2 | J170: 1 | K170: 0 | L170: 0 | M170: 0 | N170: 0 | S170: 3 | T170: 0.0%
A171: PEDIATRAS | B171: PEDIATRAS | C171: DRA. MARIA DE LOS ANGELES FERNANDEZ LUQUE | D171: 02-CHAPINERO | E171: 0 | F171: 0 | G171: 0 | H171: 3 | I171: 0 | J171: 0 | K171: 0 | L171: 0 | M171: 0 | N171: 0 | S171: 3 | T171: 0.0%
A172: PEDIATRAS | B172: PEDIATRAS | C172: DRA. RUTH CORDOBA CORDOBA | D172: 02-CHAPINERO | E172: 0 | F172: 0 | G172: 0 | H172: 0 | I172: 0 | J172: 0 | K172: 0 | L172: 0 | M172: 0 | N172: 0 | S172: 0 | T172: 0.0% | U172: 0
A173: PEDIATRAS | B173: PEDIATRAS | C173: DRA. LUZ ESTELA CORTES | D173: 02-CHAPINERO | E173: 0 | F173: 0 | G173: 0 | H173: 0 | I173: 0 | J173: 0 | K173: 0 | L173: 0 | M173: 0 | N173: 0 | S173: 0 | T173: 0.0% | U173: 0
A174: UNICAJAS | B174: UNICAJAS | C174: UPA SAN LUIS | D174: 02-CHAPINERO | E174: 18 | F174: 2 | G174: 0 | H174: 0 | I174: 0 | J174: 0 | K174: 1 | L174: 0 | M174: 0 | N174: 0 | S174: 1 | T174: 5.6% | U174: 11
A175: 02-CHAPINERO | B175: OTROS | C175: UPA SAN LUIS | D175: 02-CHAPINERO | E175: 325 | F175: 27 | G175: 2 | H175: 1 | I175: 0 | J175: 1 | K175: 0 | L175: 0 | M175: 0 | N175: 1 | S175: 5 | T175: 1.5% | U175: 212
A176: 02-CHAPINERO | B176: DEMAS EAPB | C176: UPA SAN LUIS | D176: 02-CHAPINERO | F176: 0 | G176: 6 | H176: 3 | I176: 5 | J176: 1 | K176: 8 | L176: 7 | M176: 3 | N176: 6 | S176: 39 | T176: 0.0%
A177: UNICAJAS | B177: UNICAJAS | C177: COMFASALUD SEDE CENTRO | D177: 03-SANTA FE | E177: 50 | F177: 4 | G177: 2 | H177: 1 | I177: 2 | J177: 1 | K177: 0 | L177: 0 | M177: 0 | N177: 0 | S177: 6 | T177: 12.0% | U177: 27
A178: MEDIMAS | B178: MEDIMAS | C178: CORVESALUD TEUSAQUILLO | D178: 03-SANTA FE | E178: 193 | F178: 16 | G178: 6 | H178: 7 | I178: 2 | J178: 0 | K178: 0 | L178: 0 | M178: 1 | N178: 1 | S178: 17 | T178: 8.8% | U178: 112
A179: 03-SANTA FE | B179: CAPITAL SALUD | C179: EXTRAMURAL SANTA FE | D179: 03-SANTA FE | E179: 0 | F179: 0 | G179: 7 | H179: 2 | I179: 11 | J179: 11 | K179: 11 | L179: 15 | M179: 8 | N179: 13 | S179: 78 | T179: 0.0%
A180: 03-SANTA FE | B180: DEMAS EAPB | C180: EXTRAMURAL SANTA FE | D180: 03-SANTA FE | E180: 0 | F180: 0 | G180: 0 | H180: 1 | I180: 10 | J180: 30 | K180: 17 | L180: 6 | M180: 12 | N180: 12 | S180: 88 | T180: 0.0%
A181: 03-SANTA FE | B181: OTROS | C181: EXTRAMURAL SANTA FE | D181: 03-SANTA FE | E181: 0 | F181: 0 | G181: 8 | H181: 6 | I181: 9 | J181: 6 | K181: 9 | L181: 13 | M181: 11 | N181: 17 | S181: 79 | T181: 0.0%
A182: 03-SANTA FE | B182: UNICAJAS | C182: EXTRAMURAL SANTA FE | D182: 03-SANTA FE | E182: 0 | F182: 0 | G182: 0 | H182: 0 | I182: 2 | J182: 3 | K182: 1 | L182: 0 | M182: 2 | N182: 0 | S182: 8 | T182: 0.0%
A183: 03-SANTA FE | B183: CAPITAL SALUD | C183: USS LACHES | D183: 03-SANTA FE | E183: 54 | F183: 5 | G183: 7 | H183: 12 | I183: 7 | J183: 0 | K183: 5 | L183: 2 | M183: 3 | N183: 3 | S183: 39 | T183: 72.2%
A184: 03-SANTA FE | B184: DEMAS EAPB | C184: USS LACHES | D184: 03-SANTA FE | E184: 0 | F184: 0 | G184: 7 | H184: 6 | I184: 10 | J184: 6 | K184: 5 | L184: 4 | M184: 3 | N184: 7 | S184: 48 | T184: 0.0%
A185: 03-SANTA FE | B185: OTROS | C185: USS LACHES | D185: 03-SANTA FE | E185: 260 | F185: 22 | G185: 2 | H185: 3 | I185: 1 | J185: 1 | K185: 1 | L185: 1 | M185: 1 | N185: 2 | S185: 12 | T185: 4.6% | U185: 161
A186: 03-SANTA FE | B186: UNICAJAS | C186: USS LACHES | D186: 03-SANTA FE | E186: 17 | F186: 1 | G186: 1 | H186: 0 | I186: 0 | J186: 1 | K186: 0 | L186: 0 | M186: 0 | N186: 1 | S186: 3 | T186: 17.6% | U186: 8
A187: 03-SANTA FE | B187: CAPITAL SALUD | C187: USS LAS CRUCES | D187: 03-SANTA FE | E187: 44 | F187: 4 | G187: 6 | H187: 8 | I187: 3 | J187: 6 | K187: 1 | L187: 2 | M187: 3 | N187: 2 | S187: 31 | T187: 70.5%
A188: 03-SANTA FE | B188: DEMAS EAPB | C188: USS LAS CRUCES | D188: 03-SANTA FE | E188: 0 | F188: 0 | G188: 4 | H188: 5 | I188: 6 | J188: 1 | K188: 2 | L188: 0 | M188: 2 | N188: 0 | S188: 20 | T188: 0.0%
A189: 03-SANTA FE | B189: OTROS | C189: USS LAS CRUCES | D189: 03-SANTA FE | E189: 211 | F189: 18 | G189: 2 | H189: 2 | I189: 1 | J189: 0 | K189: 2 | L189: 1 | M189: 1 | N189: 1 | S189: 10 | T189: 4.7% | U189: 131
A190: 03-SANTA FE | B190: UNICAJAS | C190: USS LAS CRUCES | D190: 03-SANTA FE | E190: 14 | F190: 1 | G190: 1 | H190: 1 | I190: 1 | J190: 0 | K190: 0 | L190: 1 | M190: 0 | N190: 0 | S190: 4 | T190: 28.6% | U190: 5
A191: 03-SANTA FE | B191: CAPITAL SALUD | C191: USS PERSEVERANCIA | D191: 03-SANTA FE | E191: 6 | F191: 1 | G191: 1 | H191: 1 | I191: 0 | J191: 0 | K191: 0 | L191: 0 | M191: 0 | N191: 1 | S191: 3 | T191: 50.0% | U191: 1
A192: 03-SANTA FE | B192: DEMAS EAPB | C192: USS PERSEVERANCIA | D192: 03-SANTA FE | E192: 0 | F192: 0 | G192: 1 | H192: 2 | I192: 0 | J192: 0 | K192: 2 | L192: 2 | M192: 0 | N192: 1 | S192: 8 | T192: 0.0%
A193: 03-SANTA FE | B193: OTROS | C193: USS PERSEVERANCIA | D193: 03-SANTA FE | E193: 30 | F193: 3 | G193: 1 | H193: 0 | I193: 2 | J193: 0 | K193: 1 | L193: 0 | M193: 1 | N193: 0 | S193: 5 | T193: 16.7% | U193: 15
A194: 03-SANTA FE | B194: UNICAJAS | C194: USS PERSEVERANCIA | D194: 03-SANTA FE | E194: 2 | F194: 0 | G194: 0 | H194: 0 | I194: 0 | J194: 0 | K194: 0 | L194: 0 | M194: 0 | N194: 0 | S194: 0 | T194: =IF(E194=0,0,+S194/E194) -> 0.0% | U194: =IF(COUNT(G194:R194)*(E194/12)-S194<0,"",COUNT(G194:R194)*(E194/12)-S194) -> 1
A195: PARTICULAR | B195: PARTICULAR | C195: CLINICA SAN RAFAEL | D195: 04-SAN CRISTOBAL | E195: 375 | F195: =+E195/12 -> 31 | G195: 31 | H195: 52 | I195: 35 | J195: 29 | K195: 27 | L195: 19 | M195: 22 | N195: 15 | S195: =SUM(G195:R195) -> 230 | T195: 61.3% | U195: 20
A196: FAMISANAR | B196: FAMI- COLSB | C196: CENTRO MEDICO COLSUBSIDIO 20 DE JULIO | D196: 04-SAN CRISTOBAL | F196: 0 | S196: 0 | T196: 0.0% | U196: 0
A197: 04-SAN CRISTOBAL | B197: CAPITAL SALUD | C197: EXTRAMURAL SAN CRISTOBAL | D197: 04-SAN CRISTOBAL | E197: 0 | F197: 0 | G197: 22 | H197: 30 | I197: 78 | J197: 65 | K197: 68 | L197: 74 | M197: 61 | N197: 65 | S197: 463 | T197: 0.0%
A198: 04-SAN CRISTOBAL | B198: DEMAS EAPB | C198: EXTRAMURAL SAN CRISTOBAL | D198: 04-SAN CRISTOBAL | E198: 0 | F198: 0 | G198: 31 | H198: 16 | I198: 77 | J198: 140 | K198: 58 | L198: 73 | M198: 108 | N198: 71 | S198: 574 | T198: 0.0%
A199: 04-SAN CRISTOBAL | B199: OTROS | C199: EXTRAMURAL SAN CRISTOBAL | D199: 04-SAN CRISTOBAL | E199: 0 | F199: 0 | G199: 14 | H199: 10 | I199: 29 | J199: 26 | K199: 37 | L199: 38 | M199: 58 | N199: 51 | S199: 263 | T199: 0.0%
A200: 04-SAN CRISTOBAL | B200: UNICAJAS | C200: EXTRAMURAL SAN CRISTOBAL | D200: 04-SAN CRISTOBAL | E200: 0 | F200: 0 | G200: 3 | H200: 1 | I200: 6 | J200: 10 | K200: 11 | L200: 6 | M200: 15 | N200: 6 | S200: 58 | T200: 0.0%
... 620 more rows

Sheet ROTAVIRUS2
A1: EAPB | B1: EPS O ESE | C1: IPS | D1: Localidad | E1: Meta Anual Menor de 1 Año | F1: Meta Mensual | G1: Enero | H1: Febrero | I1: Marzo | J1: Abril | K1: Mayo | L1: Junio | M1: Julio | N1: Agosto | O1: Septiembre | P1: Octubre | Q1: Noviembre | R1: Diciembre | S1: Total | T1: % Cobertura | U1: Deficit
A2: CAPITAL SALUD | B2: CAPITAL SALUD | C2: UPA SAN CRISTOBAL | D2: 01-USAQUEN | E2: 124 | F2: =+E2/12 -> 10 | G2: 6 | H2: 3 | I2: 7 | J2: 6 | K2: 3 | L2: 8 | M2: 9 | N2: 11 | S2: =SUM(G2:R2) -> 53 | T2: =IF(E2=0,0,+S2/E2) -> 42.7% | U2: =IF(COUNT(G2:R2)*(E2/12)-S2<0,"",COUNT(G2:R2)*(E2/12)-S2) -> 30
A3: CAPITAL SALUD | B3: CAPITAL SALUD | C3: UPA USAQUEN | D3: 01-USAQUEN | E3: 10 | F3: =+E3/12 -> 1 | G3: 0 | H3: 0 | I3: 0 | J3: 0 | K3: 0 | L3: 0 | M3: 0 | N3: 0 | S3: =SUM(G3:R3) -> 0 | T3: 0.0% | U3: 7
A4: CAPITAL SALUD | B4: CAPITAL SALUD | C4: UPA ORQUIDEAS | D4: 01-USAQUEN | E4: 11 | F4: 1 | G4: 3 | H4: 0 | I4: 1 | J4: 4 | K4: 2 | L4: 0 | M4: 4 | N4: 1 | S4: 15 | T4: 136.4%
A5: CAPITAL SALUD | B5: CAPITAL SALUD | C5: UPA CODITO | D5: 01-USAQUEN | E5: 107 | F5: 9 | G5: 8 | H5: 2 | I5: 3 | J5: 3 | K5: 6 | L5: 5 | M5: 6 | N5: 9 | S5: 42 | T5: 39.3% | U5: 29
A6: CAPITAL SALUD | B6: CAPITAL SALUD | C6: CAMI VERBENAL | D6: 01-USAQUEN | E6: 87 | F6: 7 | G6: 8 | H6: 4 | I6: 8 | J6: 3 | K6: 8 | L6: 6 | M6: 5 | N6: 5 | S6: 47 | T6: 54.0% | U6: 11
A7: CAPITAL SALUD | B7: CAPITAL SALUD | C7: HOSPITAL SIMON BOLIVAR | D7: 01-USAQUEN | E7: 36 | F7: 3 | G7: 9 | H7: 18 | I7: 11 | J7: 4 | K7: 6 | L7: 1 | M7: 4 | N7: 3 | S7: 56 | T7: 155.6%
A8: 01-USAQUEN | B8: 01-USAQUEN | C8: EXTRAMURAL USAQUEN | D8: 01-USAQUEN | E8: 0 | F8: 0 | G8: 10 | H8: 7 | I8: 18 | J8: 48 | K8: 42 | L8: 25 | M8: 39 | N8: 24 | S8: 213 | T8: 0.0%
A9: ALIANSALUD | B9: ALIANSALUD | C9: CENTRO MEDICO COLMEDICA SANTA BARBARA | D9: 01-USAQUEN | E9: 580 | F9: 48 | G9: 89 | H9: 61 | I9: 40 | J9: 30 | K9: 39 | L9: 31 | M9: 34 | N9: 25 | S9: 349 | T9: 60.2% | U9: 38
A10: COMPENSAR | B10: COMPENSAR | C10: USS CALLE 134 | D10: 01-USAQUEN | E10: 372 | F10: 31 | G10: 16 | H10: 18 | I10: 13 | J10: 6 | K10: 9 | L10: 13 | M10: 19 | N10: 25 | S10: 119 | T10: 32.0% | U10: 129
A11: COMPENSAR | B11: COMPENSAR | C11: USS CALLE 145 | D11: 01-USAQUEN | E11: 173 | F11: 14 | G11: 15 | H11: 17 | I11: 18 | J11: 10 | K11: 13 | L11: 8 | M11: 23 | N11: 19 | S11: 123 | T11: 71.1%
A12: COMPENSAR | B12: COMPENSAR | C12: JAVESALUD TOBERIN | D12: 01-USAQUEN | E12: 372 | F12: 31 | G12: 3 | H12: 3 | I12: 2 | J12: 9 | K12: 14 | L12: 11 | M12: 7 | N12: 8 | S12: 57 | T12: 15.3% | U12: 191
A13: COOMEVA | B13: COOMEVA | C13: SINERGIA UNIDAD INTEGRAL EN SALUD | D13: 01-USAQUEN | E13: 44 | F13: 4 | G13: 7 | H13: 6 | I13: 7 | J13: 4 | K13: 5 | L13: 3 | M13: 7 | N13: 5 | S13: 44 | T13: 100.0%
A14: FAMISANAR | B14: FAMI- COLSB | C14: CENTRO MEDICO COLSUBSIDIO USAQUEN | D14: 01-USAQUEN | E14: 298 | F14: 25 | G14: 30 | H14: 30 | I14: 27 | J14: 20 | K14: 14 | L14: 31 | M14: 28 | N14: 36 | S14: 216 | T14: 72.5%
A15: MILITAR | B15: MILITAR | C15: DISPENSARIO MEDICO CANTON NORTE | D15: 01-USAQUEN | E15: 205 | F15: 17 | G15: 3 | H15: 9 | I15: 4 | J15: 6 | K15: 6 | L15: 4 | M15: 9 | N15: 8 | S15: 49 | T15: 23.9% | U15: 88
A16: NUEVA EPS | B16: NUEVA EPS | C16: IPS VIVA 1A SEDE TOBERIN | D16: 01-USAQUEN | E16: 147 | F16: 12 | G16: 6 | H16: 7 | I16: 9 | J16: 6 | K16: 5 | L16: 4 | M16: 3 | N16: 6 | S16: 46 | T16: 31.3% | U16: 52
A17: NUEVA EPS | B17: NUEVA EPS | C17: CAFAM GRANADA HILLS | D17: 01-USAQUEN | E17: 44 | F17: 4 | G17: 6 | H17: 4 | I17: 0 | J17: 6 | K17: 2 | L17: 1 | M17: 2 | N17: 3 | S17: 24 | T17: 54.5% | U17: 5
A18: SANITAS | B18: SANITAS | C18: UAP SANITAS TOBERIN | D18: 01-USAQUEN | E18: 511 | F18: 43 | G18: 56 | H18: 41 | I18: 21 | J18: 42 | K18: 36 | L18: 23 | M18: 16 | N18: 20 | S18: 255 | T18: 49.9% | U18: 86
A19: SANITAS | B19: SANITAS | C19: MEDIKA IPS SANITAS UAP USAQUEN | D19: 01-USAQUEN | E19: 188 | F19: 16 | G19: 3 | H19: 1 | I19: 0 | J19: 1 | K19: 1 | L19: 0 | M19: 2 | N19: 2 | S19: 10 | T19: 5.3% | U19: 115
A20: SANITAS | B20: SANITAS | C20: UAP SANTA BARBARA | D20: 01-USAQUEN | E20: 796 | F20: 66 | G20: 87 | H20: 70 | I20: 74 | J20: 55 | K20: 52 | L20: 62 | M20: 57 | N20: 66 | S20: 523 | T20: 65.7% | U20: 8
A21: SANITAS | B21: SANITAS | C21: SANITAS BANCO DE LA REPUBLICA | D21: 01-USAQUEN | E21: 0 | F21: 0 | G21: 4 | H21: 1 | I21: 4 | J21: 3 | K21: 3 | L21: 4 | M21: 6 | N21: 1 | S21: 26 | T21: 0.0%
A22: SALUD TOTAL | B22: SALUD TOTAL | C22: VIRREY SOLIS TOBERÍN | D22: 01-USAQUEN | E22: 384 | F22: 32 | G22: 21 | H22: 20 | I22: 20 | J22: 12 | K22: 14 | L22: 13 | M22: 9 | N22: 8 | S22: 117 | T22: 30.5% | U22: 139
A23: SURA | B23: SURA | C23: IPS JAVESALUD SANTA BEATRIZ | D23: 01-USAQUEN | E23: 355 | F23: 30 | G23: 12 | H23: 9 | I23: 16 | J23: 8 | K23: 11 | L23: 6 | M23: 15 | N23: 13 | S23: 90 | T23: 25.4% | U23: 147
A24: ECOPETROL | B24: ECOPETROL | C24: IPS CLINICOS PALATINO | D24: 01-USAQUEN | E24: 87 | F24: 7 | G24: 9 | H24: 12 | I24: 9 | J24: 10 | K24: 5 | L24: 3 | M24: 5 | N24: 6 | S24: 59 | T24: 67.8%
A25: PARTICULAR | B25: PARTICULAR | C25: CLINICA PEDIATRICA COLSANITAS | D25: 01-USAQUEN | E25: 830 | F25: 69 | G25: 106 | H25: 92 | I25: 47 | J25: 50 | K25: 38 | L25: 53 | M25: 40 | N25: 42 | S25: 468 | T25: 56.4% | U25: 85
A26: PARTICULAR | B26: PARTICULAR | C26: CENTRO MEDICO COLSANITAS LA CALLEJA | D26: 01-USAQUEN | E26: 120 | F26: 10 | G26: 23 | H26: 16 | I26: 10 | J26: 8 | K26: 5 | L26: 1 | M26: 3 | N26: 6 | S26: 72 | T26: 60.0% | U26: 8
A27: PARTICULAR | B27: PARTICULAR | C27: CENTRO MEDICO COLSANITAS 108 | D27: 01-USAQUEN | E27: 40 | F27: 3 | G27: 2 | H27: 1 | I27: 3 | J27: 0 | K27: 0 | L27: 0 | M27: 0 | N27: 0 | S27: 6 | T27: 15.0% | U27: 21
A28: PARTICULAR | B28: PARTICULAR | C28: CENTRO MEDICO COLSANITAS SANTA ANA | D28: 01-USAQUEN | E28: 4 | F28: 0 | G28: 1 | H28: 2 | I28: 1 | J28: 0 | K28: 0 | L28: 0 | M28: 0 | N28: 0 | S28: 4 | T28: 100.0%
A29: PARTICULAR | B29: PARTICULAR | C29: FUNDACIÓN CARDIO INFANTIL | D29: 01-USAQUEN | E29: 0 | F29: 0 | G29: 8 | H29: 8 | I29: 3 | J29: 9 | K29: 3 | L29: 4 | M29: 3 | N29: 3 | S29: 41 | T29: 0.0%
A30: PARTICULAR | B30: PARTICULAR | C30: ENFASO USAQUEN | D30: 01-USAQUEN | E30: 0 | F30: 0 | G30: 9 | H30: 15 | I30: 2 | J30: 5 | K30: 3 | L30: 14 | M30: 6 | N30: 5 | S30: 59 | T30: 0.0%
A31: PARTICULAR | B31: PARTICULAR | C31: UNIDAD DE VACUNACIÓN INTERNACIONAL | D31: 01-USAQUEN | E31: 0 | F31: 0 | G31: 2 | H31: 4 | I31: 1 | J31: 1 | K31: 4 | L31: 1 | M31: 0 | N31: 2 | S31: 15 | T31: 0.0%
A32: PARTICULAR | B32: PARTICULAR | C32: INMUNOLOGÍA Y DIAGNÓSTICO ESPECIALIZADO LTDA. | D32: 01-USAQUEN | E32: 0 | F32: 0 | G32: 0 | H32: 0 | I32: 1 | J32: 0 | K32: 0 | L32: 0 | M32: 0 | N32: 0 | S32: 1 | T32: 0.0%
A33: PARTICULAR | B33: PARTICULAR | C33: PROTEGER HEALHT CARE | D33: 01-USAQUEN | E33: 0 | F33: 0 | G33: 0 | H33: 0 | I33: 0 | J33: 1 | K33: 5 | L33: 7 | M33: 5 | N33: 4 | S33: 22 | T33: 0.0%
A34: PARTICULAR | B34: PARTICULAR | C34: FUNDACION SANTA FE DE BOGOTA | D34: 01-USAQUEN | E34: 0 | F34: 0 | G34: 0 | H34: 0 | I34: 0 | J34: 0 | K34: 0 | L34: 0 | M34: 0 | N34: 0 | S34: 0 | T34: 0.0% | U34: 0
A35: PARTICULAR | B35: PARTICULAR | C35: IPS CRUZ ROJA SEDE UNICENTRO | D35: 01-USAQUEN | E35: 0 | F35: 0 | G35: 0 | H35: 0 | I35: 0 | J35: 0 | K35: 0 | L35: 0 | M35: 0 | N35: 0 | S35: 0 | T35: 0.0% | U35: 0
A36: PARTICULAR | B36: PARTICULAR | C36: IPS CRUZ ROJA SAMU CALLE 145 | D36: 01-USAQUEN | E36: 0 | F36: 0 | G36: 0 | H36: 0 | I36: 0 | J36: 0 | K36: 0 | L36: 0 | M36: 0 | N36: 0 | S36: 0 | T36: 0.0% | U36: 0
A37: PEDIATRAS | B37: PEDIATRAS | C37: DR. ALEJANDRO LÓPEZ | D37: 01-USAQUEN | E37: 0 | F37: 0 | G37: 3 | H37: 2 | I37: 1 | J37: 0 | K37: 0 | L37: 0 | M37: 0 | N37: 0 | S37: 6 | T37: 0.0%
A38: PEDIATRAS | B38: PEDIATRAS | C38: DR. CARLOS NEFTALI TORRES | D38: 01-USAQUEN | E38: 0 | F38: 0 | G38: 0 | H38: 9 | I38: 4 | J38: 12 | K38: 2 | L38: 2 | M38: 3 | N38: 5 | S38: 37 | T38: 0.0%
A39: PEDIATRAS | B39: PEDIATRAS | C39: DR. FRANCISCO NUÑEZ | D39: 01-USAQUEN | E39: 0 | F39: 0 | G39: 2 | H39: 1 | I39: 1 | J39: 0 | K39: 0 | L39: 0 | M39: 1 | N39: 2 | S39: 7 | T39: 0.0%
A40: PEDIATRAS | B40: PEDIATRAS | C40: DR. FERNANDO GOMEZ | D40: 01-USAQUEN | E40: 0 | F40: 0 | G40: 0 | H40: 0 | I40: 0 | J40: 0 | K40: 0 | L40: 0 | M40: 0 | N40: 0 | S40: 0 | T40: 0.0% | U40: 0
A41: PEDIATRAS | B41: PEDIATRAS | C41: DR. FERNANDO ZARATE MORENO | D41: 01-USAQUEN | E41: 0 | F41: 0 | G41: 0 | H41: 1 | I41: 0 | J41: 2 | K41: 1 | L41: 1 | M41: 0 | N41: 1 | S41: 6 | T41: 0.0%
A42: PEDIATRAS | B42: PEDIATRAS | C42: DR. GONZALO GARCIA | D42: 01-USAQUEN | E42: 0 | F42: 0 | G42: 1 | H42: 0 | I42: 1 | J42: 0 | K42: 2 | L42: 0 | M42: 2 | N42: 0 | S42: 6 | T42: 0.0%
A43: PEDIATRAS | B43: PEDIATRAS | C43: DR. GUSTAVO MORALES | D43: 01-USAQUEN | E43: 0 | F43: 0 | G43: 2 | H43: 7 | I43: 1 | J43: 0 | K43: 2 | L43: 0 | M43: 4 | N43: 1 | S43: 17 | T43: 0.0%
A44: PEDIATRAS | B44: PEDIATRAS | C44: DR. JAIME OSPINA | D44: 01-USAQUEN | E44: 0 | F44: 0 | G44: 6 | H44: 0 | I44: 0 | J44: 2 | K44: 4 | L44: 1 | M44: 1 | N44: 2 | S44: 16 | T44: 0.0%
A45: PEDIATRAS | B45: PEDIATRAS | C45: DR. JORGE URIBE | D45: 01-USAQUEN | E45: 0 | F45: 0 | G45: 0 | H45: 0 | I45: 0 | J45: 0 | K45: 0 | L45: 0 | M45: 1 | N45: 0 | S45: 1 | T45: 0.0%
A46: PEDIATRAS | B46: PEDIATRAS | C46: DR. JUAN LUIS FIGUEROA | D46: 01-USAQUEN | E46: 0 | F46: 0 | G46: 2 | H46: 3 | I46: 0 | J46: 0 | K46: 1 | L46: 0 | M46: 0 | N46: 0 | S46: 6 | T46: 0.0%
A47: PEDIATRAS | B47: PEDIATRAS | C47: DR. LUIS AUGUSTO PERNA | D47: 01-USAQUEN | E47: 0 | F47: 0 | G47: 1 | H47: 2 | I47: 3 | J47: 7 | K47: 6 | L47: 0 | M47: 4 | N47: 0 | S47: 23 | T47: 0.0%
A48: PEDIATRAS | B48: PEDIATRAS | C48: DR. LIBARDO ELI TRIANA | D48: 01-USAQUEN | E48: 0 | F48: 0 | G48: 0 | H48: 0 | I48: 0 | J48: 0 | K48: 0 | L48: 0 | M48: 1 | N48: 0 | S48: 1 | T48: 0.0%
A49: PEDIATRAS | B49: PEDIATRAS | C49: DR. OSWALDO MERCADO HOYOS | D49: 01-USAQUEN | E49: 0 | F49: 0 | G49: 0 | H49: 0 | I49: 1 | J49: 2 | K49: 2 | L49: 3 | M49: 2 | N49: 1 | S49: 11 | T49: 0.0%
A50: PEDIATRAS | B50: PEDIATRAS | C50: DR. ROBERTO BENIRO | D50: 01-USAQUEN | E50: 0 | F50: 0 | G50: 0 | H50: 0 | I50: 0 | J50: 0 | K50: 0 | L50: 1 | M50: 0 | N50: 0 | S50: 1 | T50: 0.0%
A51: PEDIATRAS | B51: PEDIATRAS | C51: DR. SERGIO ISAZA | D51: 01-USAQUEN | E51: 0 | F51: 0 | G51: 0 | H51: 0 | I51: 0 | J51: 0 | K51: 0 | L51: 0 | M51: 0 | N51: 0 | S51: 0 | T51: 0.0% | U51: 0
A52: PEDIATRAS | B52: PEDIATRAS | C52: DR. SANTIAGO UCROS | D52: 01-USAQUEN | E52: 0 | F52: 0 | G52: 0 | H52: 0 | I52: 0 | J52: 0 | K52: 0 | L52: 0 | M52: 0 | N52: 0 | S52: 0 | T52: 0.0% | U52: 0
A53: PEDIATRAS | B53: PEDIATRAS | C53: DR. GERMAN SILVA | D53: 01-USAQUEN | E53: 0 | F53: 0 | G53: 0 | H53: 0 | I53: 0 | J53: 0 | K53: 0 | L53: 0 | M53: 0 | N53: 0 | S53: 0 | T53: 0.0% | U53: 0
A54: PEDIATRAS | B54: PEDIATRAS | C54: DR. DANIEL ABRIL | D54: 01-USAQUEN | E54: 0 | F54: 0 | G54: 0 | H54: 0 | I54: 0 | J54: 0 | K54: 0 | L54: 0 | M54: 0 | N54: 0 | S54: 0 | T54: 0.0% | U54: 0
A55: PEDIATRAS | B55: PEDIATRAS | C55: DR. CARLOS EDUARDO OLMOS | D55: 01-USAQUEN | E55: 0 | F55: 0 | G55: 0 | H55: 0 | I55: 0 | J55: 0 | K55: 0 | L55: 0 | M55: 0 | N55: 0 | S55: 0 | T55: 0.0% | U55: 0
A56: PEDIATRAS | B56: PEDIATRAS | C56: DR. EDGARDO CHATMAN | D56: 01-USAQUEN | E56: 0 | F56: 0 | G56: 0 | H56: 0 | I56: 0 | J56: 0 | K56: 0 | L56: 0 | M56: 0 | N56: 0 | S56: 0 | T56: 0.0% | U56: 0
A57: PEDIATRAS | B57: PEDIATRAS | C57: DR. JORGE FLOREZ OTERO | D57: 01-USAQUEN | E57: 0 | F57: 0 | G57: 0 | H57: 0 | I57: 0 | J57: 0 | K57: 0 | L57: 0 | M57: 0 | N57: 0 | S57: 0 | T57: 0.0% | U57: 0
A58: PEDIATRAS | B58: PEDIATRAS | C58: DRA. ALEJANDRA MARIA VALENCIA | D58: 01-USAQUEN | E58: 0 | F58: 0 | G58: 0 | H58: 0 | I58: 0 | J58: 0 | K58: 0 | L58: 0 | M58: 0 | N58: 0 | S58: 0 | T58: 0.0% | U58: 0
A59: PEDIATRAS | B59: PEDIATRAS | C59: DRA. ANA MARIA GOYENECHE | D59: 01-USAQUEN | E59: 0 | F59: 0 | G59: 0 | H59: 0 | I59: 0 | J59: 0 | K59: 0 | L59: 0 | M59: 0 | N59: 0 | S59: 0 | T59: 0.0% | U59: 0
A60: PEDIATRAS | B60: PEDIATRAS | C60: DRA. JIMENA VARELA | D60: 01-USAQUEN | E60: 0 | F60: 0 | G60: 1 | H60: 0 | I60: 0 | J60: 0 | K60: 1 | L60: 0 | M60: 0 | N60: 3 | S60: 5 | T60: 0.0%
A61: PEDIATRAS | B61: PEDIATRAS | C61: DRA. LIA SAN MIGUEL | D61: 01-USAQUEN | E61: 0 | F61: 0 | G61: 0 | H61: 0 | I61: 0 | J61: 1 | K61: 0 | L61: 1 | M61: 0 | N61: 0 | S61: 2 | T61: 0.0%
A62: PEDIATRAS | B62: PEDIATRAS | C62: DRA. LIBIA SEGURA | D62: 01-USAQUEN | E62: 0 | F62: 0 | G62: 0 | H62: 0 | I62: 0 | J62: 1 | K62: 0 | L62: 0 | M62: 0 | N62: 1 | S62: 2 | T62: 0.0%
A63: PEDIATRAS | B63: PEDIATRAS | C63: DRA. MARÍA JOSÉ PEDRAZA | D63: 01-USAQUEN | E63: 0 | F63: 0 | G63: 0 | H63: 0 | I63: 0 | J63: 0 | K63: 0 | L63: 0 | M63: 0 | N63: 0 | S63: 0 | T63: 0.0% | U63: 0
A64: PEDIATRAS | B64: PEDIATRAS | C64: DRA. MARTHA LUCIA SANCHEZ | D64: 01-USAQUEN | E64: 0 | F64: 0 | G64: 0 | H64: 0 | I64: 0 | J64: 0 | K64: 0 | L64: 0 | M64: 0 | N64: 0 | S64: 0 | T64: 0.0% | U64: 0
A65: PEDIATRAS | B65: PEDIATRAS | C65: DRA. OLGA LUCÍA SÁNCHEZ | D65: 01-USAQUEN | E65: 0 | F65: 0 | G65: 0 | H65: 0 | I65: 0 | J65: 0 | K65: 0 | L65: 0 | M65: 0 | N65: 0 | S65: 0 | T65: 0.0% | U65: 0
A66: PEDIATRAS | B66: PEDIATRAS | C66: DRA. SANDRA BELTRAN | D66: 01-USAQUEN | E66: 0 | F66: 0 | G66: 0 | H66: 0 | I66: 0 | J66: 0 | K66: 0 | L66: 0 | M66: 0 | N66: 1 | S66: 1 | T66: =IF(E66=0,0,+S66/E66) -> 0.0% | U66: =IF(COUNT(G66:R66)*(E66/12)-S66<0,"",COUNT(G66:R66)*(E66/12)-S66) -> 
A67: PEDIATRAS | B67: PEDIATRAS | C67: DRA. IVANA CABRERA | D67: 01-USAQUEN | E67: 0 | F67: =+E67/12 -> 0 | G67: 0 | H67: 0 | I67: 0 | J67: 0 | K67: 0 | L67: 0 | M67: 0 | N67: 0 | S67: =SUM(G67:R67) -> 0 | T67: 0.0% | U67: 0
A68: PEDIATRAS | B68: PEDIATRAS | C68: DRA. NAYITA ALARCON | D68: 01-USAQUEN | E68: 0 | F68: 0 | G68: 0 | H68: 0 | I68: 0 | J68: 0 | K68: 0 | L68: 0 | M68: 0 | N68: 0 | S68: 0 | T68: 0.0% | U68: 0
A69: PEDIATRAS | B69: PEDIATRAS | C69: DRA. ELIZABETH GARCIA | D69: 01-USAQUEN | E69: 0 | F69: 0 | G69: 0 | H69: 0 | I69: 0 | J69: 0 | K69: 0 | L69: 0 | M69: 0 | N69: 0 | S69: 0 | T69: 0.0% | U69: 0
A70: PEDIATRAS | B70: PEDIATRAS | C70: DRA. BERTHA CALDERON DE RAMOS | D70: 01-USAQUEN | E70: 0 | F70: 0 | G70: 0 | H70: 0 | I70: 0 | J70: 0 | K70: 0 | L70: 0 | M70: 0 | N70: 0 | S70: 0 | T70: 0.0% | U70: 0
A71: PEDIATRAS | B71: PEDIATRAS | C71: DRA. MIRYAM CORREA | D71: 01-USAQUEN | E71: 0 | F71: 0 | G71: 0 | H71: 0 | I71: 0 | J71: 0 | K71: 0 | L71: 0 | M71: 0 | N71: 0 | S71: 0 | T71: 0.0% | U71: 0
A72: 01-USAQUEN | B72: UNICAJAS | C72: UPA SAN CRISTOBAL | D72: 01-USAQUEN | E72: 6 | F72: 1 | G72: 1 | H72: 0 | I72: 0 | J72: 0 | K72: 0 | L72: 0 | M72: 1 | N72: 0 | S72: 2 | T72: 33.3% | U72: 2
A73: UNICAJAS | B73: UNICAJAS | C73: UPA USAQUEN | D73: 01-USAQUEN | E73: 9 | F73: 1 | H73: 0 | I73: 0 | J73: 0 | K73: 0 | L73: 0 | M73: 0 | N73: 0 | S73: 0 | T73: 0.0% | U73: 5
A74: UNICAJAS | B74: UNICAJAS | C74: UPA ORQUIDEAS | D74: 01-USAQUEN | E74: 6 | F74: 1 | G74: 0 | H74: 0 | I74: 0 | J74: 0 | K74: 0 | L74: 0 | M74: 0 | N74: 0 | S74: 0 | T74: 0.0% | U74: 4
A75: UNICAJAS | B75: UNICAJAS | C75: UPA CODITO | D75: 01-USAQUEN | E75: 5 | F75: 0 | G75: 1 | H75: 0 | I75: 0 | J75: 1 | K75: 0 | L75: 0 | M75: 0 | N75: 0 | S75: 2 | T75: 40.0% | U75: 1
A76: UNICAJAS | B76: UNICAJAS | C76: CAMI VERBENAL | D76: 01-USAQUEN | E76: 6 | F76: 1 | G76: 2 | H76: 0 | I76: 0 | J76: 0 | K76: 1 | L76: 1 | M76: 0 | N76: 1 | S76: 5 | T76: 83.3%
A77: 01-USAQUEN | B77: UNICAJAS | C77: HOSPITAL SIMON BOLIVAR | D77: 01-USAQUEN | E77: 6 | F77: 1 | G77: 0 | H77: 0 | I77: 0 | J77: 1 | K77: 0 | L77: 2 | M77: 0 | N77: 1 | S77: 4 | T77: 66.7% | U77: 0
A78: 01-USAQUEN | B78: OTROS | C78: UPA SAN CRISTOBAL | D78: 01-USAQUEN | E78: 300 | F78: 25 | G78: 9 | H78: 2 | I78: 2 | J78: 1 | K78: 0 | L78: 7 | M78: 3 | N78: 6 | S78: 30 | T78: 10.0% | U78: 170
A79: 01-USAQUEN | B79: OTROS | C79: UPA USAQUEN | D79: 01-USAQUEN | E79: 100 | F79: 8 | H79: 0 | I79: 0 | J79: 0 | K79: 0 | L79: 0 | M79: 0 | N79: 0 | S79: 0 | T79: 0.0% | U79: 58
A80: 01-USAQUEN | B80: OTROS | C80: UPA ORQUIDEAS | D80: 01-USAQUEN | E80: 120 | F80: 10 | G80: 5 | H80: 0 | I80: 1 | J80: 1 | K80: 0 | L80: 2 | M80: 0 | N80: 2 | S80: 11 | T80: 9.2% | U80: 69
A81: 01-USAQUEN | B81: OTROS | C81: UPA CODITO | D81: 01-USAQUEN | E81: 218 | F81: 18 | G81: 3 | H81: 2 | I81: 0 | J81: 2 | K81: 0 | L81: 1 | M81: 3 | N81: 1 | S81: 12 | T81: 5.5% | U81: 133
A82: 01-USAQUEN | B82: OTROS | C82: CAMI VERBENAL | D82: 01-USAQUEN | E82: 309 | F82: 26 | G82: 5 | H82: 1 | I82: 0 | J82: 2 | K82: 4 | L82: 3 | M82: 5 | N82: 2 | S82: 22 | T82: 7.1% | U82: 184
A83: 01-USAQUEN | B83: OTROS | C83: HOSPITAL SIMON BOLIVAR | D83: 01-USAQUEN | E83: 480 | F83: 40 | G83: 10 | H83: 12 | I83: 3 | J83: 2 | K83: 1 | L83: 3 | M83: 5 | N83: 1 | S83: 37 | T83: 7.7% | U83: 283
A84: 01-USAQUEN | B84: DEMAS EAPB | C84: UPA SAN CRISTOBAL | D84: 01-USAQUEN | F84: 0 | G84: 15 | H84: 7 | I84: 12 | J84: 17 | K84: 16 | L84: 10 | M84: 9 | N84: 4 | S84: 90 | T84: 0.0%
A85: 01-USAQUEN | B85: DEMAS EAPB | C85: UPA USAQUEN | D85: 01-USAQUEN | F85: 0 | G85: 7 | H85: 3 | I85: 4 | J85: 0 | K85: 0 | L85: 0 | M85: 0 | N85: 0 | S85: 14 | T85: 0.0%
A86: 01-USAQUEN | B86: DEMAS EAPB | C86: UPA ORQUIDEAS | D86: 01-USAQUEN | F86: 0 | G86: 1 | H86: 1 | I86: 4 | J86: 3 | K86: 2 | L86: 2 | M86: 2 | N86: 2 | S86: 17 | T86: 0.0%
A87: 01-USAQUEN | B87: DEMAS EAPB | C87: UPA CODITO | D87: 01-USAQUEN | F87: 0 | G87: 12 | H87: 16 | I87: 7 | J87: 20 | K87: 7 | L87: 12 | M87: 13 | N87: 6 | S87: 93 | T87: 0.0%
A88: 01-USAQUEN | B88: DEMAS EAPB | C88: CAMI VERBENAL | D88: 01-USAQUEN | F88: 0 | G88: 13 | H88: 8 | I88: 11 | J88: 16 | K88: 8 | L88: 7 | M88: 14 | N88: 8 | S88: 85 | T88: 0.0%
A89: 01-USAQUEN | B89: DEMAS EAPB | C89: HOSPITAL SIMON BOLIVAR | D89: 01-USAQUEN | F89: 0 | G89: 20 | H89: 22 | I89: 18 | J89: 5 | K89: 5 | L89: 4 | M89: 4 | N89: 3 | S89: 81 | T89: 0.0%
A90: MEDIMAS | B90: MEDIMAS | C90: Corvesalud S.A.S - I P S Chico | D90: 01-USAQUEN | E90: 320 | F90: 27 | G90: 2 | H90: 2 | I90: 5 | M90: 0 | N90: 1 | S90: 10 | T90: 3.1% | U90: 123
A91: FAMISANAR | B91: COLSUBSIDIO | C91: Sura PAC Santa Bárbara | D91: 01-USAQUEN | F91: 0 | S91: 0 | T91: 0.0% | U91: 0
A92: CAPITAL SALUD | B92: CAPITAL SALUD | C92: UPA SAN LUIS | D92: 02-CHAPINERO | E92: 12 | F92: 1 | G92: 6 | H92: 2 | I92: 2 | J92: 2 | K92: 0 | L92: 1 | M92: 3 | N92: 2 | S92: 18 | T92: 150.0%
A93: 02-CHAPINERO | B93: 02-CHAPINERO | C93: EXTRAMURAL CHAPINERO | D93: 02-CHAPINERO | E93: 0 | F93: 0 | G93: 4 | H93: 3 | I93: 3 | J93: 23 | K93: 29 | L93: 9 | M93: 29 | N93: 12 | S93: 112 | T93: 0.0%
A94: COMPENSAR | B94: COMPENSAR | C94: USS CALLE 42 | D94: 02-CHAPINERO | E94: 612 | F94: 51 | G94: 32 | H94: 38 | I94: 22 | J94: 22 | K94: 23 | L94: 41 | M94: 29 | N94: 40 | S94: 247 | T94: 40.4% | U94: 161
A95: COMPENSAR | B95: COMPENSAR | C95: USS CALLE 67 | D95: 02-CHAPINERO | E95: 0 | F95: 0 | G95: 0 | H95: 0 | I95: 0 | J95: 0 | K95: 0 | L95: 0 | M95: 0 | N95: 0 | S95: 0 | T95: 0.0% | U95: 0
A96: COMPENSAR | B96: COMPENSAR | C96: USS CALLE 94 | D96: 02-CHAPINERO | E96: 369 | F96: 31 | G96: 47 | H96: 57 | I96: 47 | J96: 43 | K96: 41 | L96: 49 | M96: 76 | N96: 92 | S96: 452 | T96: 122.5%
A97: COMPENSAR | B97: COMPENSAR | C97: VIVA 1A IPS CHAPINERO | D97: 02-CHAPINERO | E97: 73 | F97: 6 | G97: 4 | H97: 0 | I97: 2 | J97: 5 | K97: 3 | L97: 3 | M97: 3 | N97: 8 | S97: 28 | T97: 38.4% | U97: 21
A98: COOMEVA | B98: COOMEVA | C98: SINERGIA UNIDAD BASICA LOURDES | D98: 02-CHAPINERO | E98: 217 | F98: 18 | G98: 7 | H98: 5 | I98: 8 | J98: 1 | K98: 0 | L98: 0 | M98: 0 | N98: 0 | S98: 21 | T98: 9.7% | U98: 124
A99: FAMISANAR | B99: FAMI- CAFAM | C99: CENTRO DE ATENCION EN SALUD CAFAM CALLE 48 | D99: 02-CHAPINERO | E99: 1050 | F99: 88 | G99: 31 | H99: 23 | I99: 25 | J99: 13 | K99: 15 | L99: 10 | M99: 12 | N99: 24 | S99: 153 | T99: 14.6% | U99: 547
A100: FAMISANAR | B100: FAMI- CAFAM | C100: CENTRO DE ATENCION EN SALUD CAFAM CALLE 90 | D100: 02-CHAPINERO | E100: 200 | F100: 17 | G100: 12 | H100: 8 | I100: 13 | J100: 7 | K100: 22 | L100: 8 | M100: 11 | N100: 12 | S100: 93 | T100: 46.5% | U100: 40
A101: FAMISANAR | B101: FAMI- COLSB | C101: CLINICA COLSUBSIDIO EL LAGO | D101: 02-CHAPINERO | E101: 392 | F101: 33 | G101: 11 | H101: 9 | I101: 12 | J101: 4 | K101: 4 | L101: 5 | M101: 7 | N101: 5 | S101: 57 | T101: 14.5% | U101: 204
A102: MILITAR | B102: MILITAR | C102: HOSPITAL MILITAR CENTRAL | D102: 02-CHAPINERO | E102: 70 | F102: 6 | G102: 13 | H102: 2 | I102: 6 | J102: 7 | K102: 3 | L102: 2 | M102: 3 | N102: 2 | S102: 38 | T102: 54.3% | U102: 9
A103: POLICIA | B103: POLICIA | C103: POLICIA NACIONAL ESPAM CHAPINERO | D103: 02-CHAPINERO | E103: 117 | F103: 10 | G103: 5 | H103: 0 | I103: 9 | J103: 24 | K103: 19 | L103: 28 | M103: 15 | N103: 28 | S103: 128 | T103: 109.4%
A104: NUEVA EPS | B104: NUEVA EPS | C104: IPS VIVA 1A SEDE MARLY | D104: 02-CHAPINERO | E104: 131 | F104: 11 | G104: 10 | H104: 6 | I104: 7 | J104: 1 | K104: 0 | L104: 2 | M104: 1 | N104: 3 | S104: 30 | T104: 22.9% | U104: 57
A105: SANITAS | B105: SANITAS | C105: EPS SANITAS CENTRO MEDICO TEUSAQUILLO | D105: 02-CHAPINERO | E105: 579 | F105: 48 | G105: 29 | H105: 22 | I105: 24 | J105: 11 | K105: 10 | L105: 13 | M105: 12 | N105: 23 | S105: 144 | T105: 24.9% | U105: 242
A106: SALUD TOTAL | B106: SALUD TOTAL | C106: VIRREY SOLIS CHAPINERO | D106: 02-CHAPINERO | E106: 337 | F106: 28 | G106: 19 | H106: 12 | I106: 8 | J106: 6 | K106: 5 | L106: 11 | M106: 12 | N106: 29 | S106: 102 | T106: 30.3% | U106: 123
A107: SURA | B107: SURA | C107: PUNTO DE SALUD CHAPINERO | D107: 02-CHAPINERO | E107: 237 | F107: 20 | G107: 16 | H107: 13 | I107: 15 | J107: 5 | K107: 7 | L107: 10 | M107: 0 | N107: 0 | S107: 66 | T107: 27.8% | U107: 92
A108: SURA | B108: SURA | C108: SALUD SURA | D108: 02-CHAPINERO | E108: 454 | F108: 38 | G108: 56 | H108: 55 | I108: 35 | J108: 23 | K108: 26 | L108: 20 | M108: 31 | N108: 18 | S108: 264 | T108: 58.1% | U108: 39
A109: PARTICULAR | B109: PARTICULAR | C109: CENTRO MEDICO COLSANITAS CALLE 96 | D109: 02-CHAPINERO | E109: 24 | F109: 2 | G109: 3 | H109: 1 | I109: 0 | J109: 17 | K109: 3 | L109: 12 | M109: 13 | N109: 12 | S109: 61 | T109: 254.2%
A110: PARTICULAR | B110: PARTICULAR | C110: CENTRO DE ESPECIALISTAS MEDICOS AXA COLPATRIA | D110: 02-CHAPINERO | E110: 0 | F110: 0 | G110: 3 | H110: 4 | I110: 6 | J110: 5 | K110: 6 | L110: 6 | M110: 8 | N110: 9 | S110: 47 | T110: 0.0%
A111: PARTICULAR | B111: PARTICULAR | C111: CLINICA DE LA MUJER | D111: 02-CHAPINERO | E111: 0 | F111: 0 | G111: 72 | H111: 42 | I111: 37 | J111: 28 | K111: 35 | L111: 30 | M111: 29 | N111: 47 | S111: 320 | T111: 0.0%
A112: PARTICULAR | B112: PARTICULAR | C112: VACUNARTE IPS | D112: 02-CHAPINERO | E112: 0 | F112: 0 | G112: 2 | H112: 2 | I112: 0 | J112: 1 | K112: 2 | L112: 0 | M112: 1 | N112: 1 | S112: 9 | T112: 0.0%
A113: PARTICULAR | B113: PARTICULAR | C113: UNIMARLY | D113: 02-CHAPINERO | E113: 0 | F113: 0 | G113: 0 | H113: 0 | I113: 0 | J113: 0 | K113: 0 | L113: 0 | M113: 0 | N113: 0 | S113: 0 | T113: 0.0% | U113: 0
A114: PARTICULAR | B114: PARTICULAR | C114: HOSPITAL SAN IGNACIO | D114: 02-CHAPINERO | E114: 0 | F114: 0 | G114: 2 | H114: 8 | I114: 4 | J114: 1 | K114: 0 | L114: 2 | M114: 0 | N114: 0 | S114: 17 | T114: 0.0%
A115: PARTICULAR | B115: PARTICULAR | C115: PROGRAMA MADRE CANGURO HOSPITAL SAN IGNACIO | D115: 02-CHAPINERO | E115: 0 | F115: 0 | G115: 90 | H115: 102 | I115: 85 | J115: 82 | K115: 67 | L115: 74 | M115: 76 | N115: 75 | S115: 651 | T115: 0.0%
A116: PARTICULAR | B116: PARTICULAR | C116: IPS AVENIR | D116: 02-CHAPINERO | E116: 0 | F116: 0 | G116: 0 | H116: 0 | I116: 0 | J116: 0 | K116: 0 | L116: 0 | M116: 0 | N116: 0 | S116: 0 | T116: 0.0% | U116: 0
A117: PARTICULAR | B117: PARTICULAR | C117: IPS INMUNOLOGIA Y DIAGNOSTICO ESPECIALIZADO | D117: 02-CHAPINERO | E117: 0 | F117: 0 | G117: 0 | H117: 0 | I117: 0 | J117: 0 | K117: 1 | L117: 0 | M117: 1 | N117: 0 | S117: 2 | T117: 0.0%
A118: PARTICULAR | B118: PARTICULAR | C118: ASOCIACION PEDIATRICA DE LOS ANDES | D118: 02-CHAPINERO | E118: 0 | F118: 0 | G118: 1 | H118: 0 | I118: 0 | J118: 0 | K118: 0 | L118: 0 | M118: 0 | N118: 0 | S118: 1 | T118: 0.0%
A119: PARTICULAR | B119: PARTICULAR | C119: CRUZ ROJA SEDE ANDINO | D119: 02-CHAPINERO | E119: 0 | F119: 0 | G119: 0 | H119: 0 | I119: 0 | J119: 0 | K119: 0 | L119: 0 | M119: 0 | N119: 0 | S119: 0 | T119: 0.0% | U119: 0
A120: PARTICULAR | B120: PARTICULAR | C120: CENTRO MEDICO SANTA MONICA | D120: 02-CHAPINERO | E120: 0 | F120: 0 | H120: 0 | I120: 0 | J120: 11 | K120: 5 | L120: 8 | M120: 0 | N120: 0 | S120: 24 | T120: 0.0%
A121: PEDIATRAS | B121: PEDIATRAS | C121: DR. JUAN OSCAR TAMAYO | D121: 02-CHAPINERO | E121: 0 | F121: 0 | G121: 0 | H121: 0 | I121: 1 | J121: 0 | K121: 0 | L121: 0 | M121: 0 | N121: 0 | S121: 1 | T121: 0.0%
A122: PEDIATRAS | B122: PEDIATRAS | C122: DR. ROBERTO SUAREZ | D122: 02-CHAPINERO | E122: 0 | F122: 0 | G122: 0 | H122: 0 | I122: 0 | J122: 0 | K122: 0 | L122: 0 | M122: 0 | N122: 0 | S122: 0 | T122: 0.0% | U122: 0
A123: PEDIATRAS | B123: PEDIATRAS | C123: DR. WILLIAM RICARDO CABRA | D123: 02-CHAPINERO | E123: 0 | F123: 0 | G123: 1 | H123: 2 | I123: 2 | J123: 1 | K123: 4 | L123: 2 | M123: 2 | N123: 2 | S123: 16 | T123: 0.0%
A124: PEDIATRAS | B124: PEDIATRAS | C124: DR. EDGAR CASTRO | D124: 02-CHAPINERO | E124: 0 | F124: 0 | G124: 7 | H124: 4 | I124: 0 | J124: 4 | K124: 8 | L124: 5 | M124: 3 | N124: 5 | S124: 36 | T124: 0.0%
A125: PEDIATRAS | B125: PEDIATRAS | C125: DR. PABLO KRAUSS | D125: 02-CHAPINERO | E125: 0 | F125: 0 | G125: 6 | H125: 1 | I125: 2 | J125: 0 | K125: 0 | L125: 0 | M125: 0 | N125: 0 | S125: 9 | T125: 0.0%
A126: PEDIATRAS | B126: PEDIATRAS | C126: DR. HERNAN ROBLES | D126: 02-CHAPINERO | E126: 0 | F126: 0 | G126: 4 | H126: 1 | I126: 4 | J126: 5 | K126: 3 | L126: 2 | M126: 11 | N126: 4 | S126: 34 | T126: 0.0%
A127: PEDIATRAS | B127: PEDIATRAS | C127: DR. RAFAEL GAMBOA CASABLANCA | D127: 02-CHAPINERO | E127: 0 | F127: 0 | G127: 5 | H127: 9 | I127: 1 | J127: 3 | K127: 6 | L127: 5 | M127: 16 | N127: 3 | S127: 48 | T127: 0.0%
A128: PEDIATRAS | B128: PEDIATRAS | C128: DR. JAVIER MEJIA | D128: 02-CHAPINERO | E128: 0 | F128: 0 | G128: 2 | H128: 5 | I128: 1 | J128: 4 | K128: 4 | L128: 1 | M128: 5 | N128: 0 | S128: 22 | T128: 0.0%
A129: PEDIATRAS | B129: PEDIATRAS | C129: DR. CARLOS CORTAZAR | D129: 02-CHAPINERO | E129: 0 | F129: 0 | G129: 0 | H129: 0 | I129: 0 | J129: 0 | K129: 0 | L129: 0 | M129: 0 | N129: 0 | S129: 0 | T129: 0.0% | U129: 0
A130: PEDIATRAS | B130: PEDIATRAS | C130: DR. NELSON PARDO | D130: 02-CHAPINERO | E130: 0 | F130: 0 | G130: 0 | H130: 2 | I130: 1 | J130: 0 | K130: 0 | L130: 3 | M130: 2 | N130: 1 | S130: 9 | T130: =IF(E130=0,0,+S130/E130) -> 0.0% | U130: =IF(COUNT(G130:R130)*(E130/12)-S130<0,"",COUNT(G130:R130)*(E130/12)-S130) -> 
A131: PEDIATRAS | B131: PEDIATRAS | C131: DR. ALVARO JACOME | D131: 02-CHAPINERO | E131: 0 | F131: =+E131/12 -> 0 | G131: 0 | H131: 1 | I131: 0 | J131: 4 | K131: 3 | L131: 3 | M131: 0 | N131: 0 | S131: =SUM(G131:R131) -> 11 | T131: 0.0%
A132: PEDIATRAS | B132: PEDIATRAS | C132: DR. SILVIO COPO | D132: 02-CHAPINERO | E132: 0 | F132: 0 | G132: 0 | H132: 2 | I132: 0 | J132: 0 | K132: 0 | L132: 0 | M132: 0 | N132: 0 | S132: 2 | T132: 0.0%
A133: PEDIATRAS | B133: PEDIATRAS | C133: DR. HECTOR FERNANDO MENDOZA | D133: 02-CHAPINERO | E133: 0 | F133: 0 | G133: 1 | H133: 1 | I133: 0 | J133: 0 | K133: 1 | L133: 0 | M133: 0 | N133: 0 | S133: 3 | T133: 0.0%
A134: PEDIATRAS | B134: PEDIATRAS | C134: DR. DIMITRIOS | D134: 02-CHAPINERO | E134: 0 | F134: 0 | G134: 0 | H134: 1 | I134: 0 | J134: 0 | K134: 1 | L134: 0 | M134: 0 | N134: 0 | S134: 2 | T134: 0.0%
A135: PEDIATRAS | B135: PEDIATRAS | C135: DR. ALVARO MARIÑO | D135: 02-CHAPINERO | E135: 0 | F135: 0 | G135: 0 | H135: 1 | I135: 0 | J135: 0 | K135: 0 | L135: 0 | M135: 1 | N135: 0 | S135: 2 | T135: 0.0%
A136: PEDIATRAS | B136: PEDIATRAS | C136: DR. ANDRES VARGAS | D136: 02-CHAPINERO | E136: 0 | F136: 0 | G136: 1 | H136: 0 | I136: 0 | J136: 2 | K136: 1 | L136: 0 | M136: 1 | N136: 0 | S136: 5 | T136: 0.0%
A137: PEDIATRAS | B137: PEDIATRAS | C137: DR. JORGE CAMILO LUNA | D137: 02-CHAPINERO | E137: 0 | F137: 0 | G137: 0 | H137: 1 | I137: 1 | J137: 19 | K137: 3 | L137: 6 | M137: 11 | N137: 11 | S137: 52 | T137: 0.0%
A138: PEDIATRAS | B138: PEDIATRAS | C138: DR. BERNARDO HUERTAS | D138: 02-CHAPINERO | E138: 0 | F138: 0 | G138: 4 | H138: 8 | I138: 3 | J138: 14 | K138: 6 | L138: 13 | M138: 11 | N138: 9 | S138: 68 | T138: 0.0%
A139: PEDIATRAS | B139: PEDIATRAS | C139: DR. CARLOS M CASTILLO | D139: 02-CHAPINERO | E139: 0 | F139: 0 | G139: 0 | H139: 0 | I139: 0 | J139: 0 | K139: 0 | L139: 0 | M139: 0 | N139: 0 | S139: 0 | T139: 0.0% | U139: 0
A140: PEDIATRAS | B140: PEDIATRAS | C140: DR. HEINZ OTTO PFALZGRAF | D140: 02-CHAPINERO | E140: 0 | F140: 0 | G140: 0 | H140: 0 | I140: 0 | J140: 0 | K140: 0 | L140: 0 | M140: 0 | N140: 0 | S140: 0 | T140: 0.0% | U140: 0
A141: PEDIATRAS | B141: PEDIATRAS | C141: DR. GONZALEZ BALLESTEROS | D141: 02-CHAPINERO | E141: 0 | F141: 0 | G141: 0 | H141: 0 | I141: 0 | J141: 0 | K141: 0 | L141: 0 | M141: 0 | N141: 0 | S141: 0 | T141: 0.0% | U141: 0
A142: PEDIATRAS | B142: PEDIATRAS | C142: DR. NORBERTO SALAMANCA | D142: 02-CHAPINERO | E142: 0 | F142: 0 | G142: 0 | H142: 0 | I142: 0 | J142: 0 | K142: 0 | L142: 0 | M142: 0 | N142: 1 | S142: 1 | T142: 0.0%
A143: PEDIATRAS | B143: PEDIATRAS | C143: DR. CAMILO ENRIQUE SOTOMAYOR | D143: 02-CHAPINERO | E143: 0 | F143: 0 | G143: 0 | H143: 2 | I143: 1 | J143: 0 | K143: 1 | L143: 1 | M143: 2 | N143: 0 | S143: 7 | T143: 0.0%
A144: PEDIATRAS | B144: PEDIATRAS | C144: DR. SANTIAGO RUEDA SAIZ | D144: 02-CHAPINERO | E144: 0 | F144: 0 | G144: 5 | H144: 3 | I144: 1 | J144: 0 | K144: 1 | L144: 0 | M144: 0 | N144: 0 | S144: 10 | T144: 0.0%
A145: PEDIATRAS | B145: PEDIATRAS | C145: DR. HENRY HERNANDO SANCHEZ ESCOBAR | D145: 02-CHAPINERO | E145: 0 | F145: 0 | G145: 0 | H145: 1 | I145: 0 | J145: 0 | K145: 1 | L145: 1 | M145: 0 | N145: 0 | S145: 3 | T145: 0.0%
A146: PEDIATRAS | B146: PEDIATRAS | C146: DR. RUBEN DARIO TAMAYO | D146: 02-CHAPINERO | E146: 0 | F146: 0 | G146: 0 | H146: 0 | I146: 0 | J146: 0 | K146: 3 | L146: 2 | M146: 1 | N146: 1 | S146: 7 | T146: 0.0%
A147: PEDIATRAS | B147: PEDIATRAS | C147: DR. JAIME MAURICIO MATALLANA | D147: 02-CHAPINERO | E147: 0 | F147: 0 | G147: 6 | H147: 3 | I147: 2 | J147: 2 | K147: 3 | L147: 3 | M147: 7 | N147: 4 | S147: 30 | T147: 0.0%
A148: PEDIATRAS | B148: PEDIATRAS | C148: DR. RODRIGO GARCIA | D148: 02-CHAPINERO | E148: 0 | F148: 0 | G148: 0 | H148: 0 | I148: 0 | J148: 0 | K148: 0 | L148: 0 | M148: 0 | N148: 0 | S148: 0 | T148: 0.0% | U148: 0
A149: PEDIATRAS | B149: PEDIATRAS | C149: DR. FELIPE ROBAYO | D149: 02-CHAPINERO | E149: 0 | F149: 0 | G149: 0 | H149: 0 | I149: 0 | J149: 0 | K149: 0 | L149: 0 | M149: 0 | N149: 0 | S149: 0 | T149: 0.0% | U149: 0
A150: PEDIATRAS | B150: PEDIATRAS | C150: DR. RUBEN FRANCO | D150: 02-CHAPINERO | E150: 0 | F150: 0 | G150: 0 | H150: 0 | I150: 1 | J150: 2 | K150: 0 | L150: 0 | M150: 0 | N150: 0 | S150: 3 | T150: 0.0%
A151: PEDIATRAS | B151: PEDIATRAS | C151: DR. ORLANDO RODRIGUEZ RAMIREZ | D151: 02-CHAPINERO | E151: 0 | F151: 0 | G151: 0 | H151: 1 | I151: 1 | J151: 0 | K151: 1 | L151: 1 | M151: 0 | N151: 0 | S151: 4 | T151: 0.0%
A152: PEDIATRAS | B152: PEDIATRAS | C152: DR. ARTURO MORENO | D152: 02-CHAPINERO | E152: 0 | F152: 0 | G152: 0 | H152: 0 | I152: 0 | J152: 0 | K152: 0 | L152: 0 | M152: 0 | N152: 0 | S152: 0 | T152: 0.0% | U152: 0
A153: PEDIATRAS | B153: PEDIATRAS | C153: DR. FRANCISCO LEAL QUEVEDO | D153: 02-CHAPINERO | E153: 0 | F153: 0 | G153: 0 | H153: 0 | I153: 0 | J153: 0 | K153: 0 | L153: 0 | M153: 0 | N153: 0 | S153: 0 | T153: 0.0% | U153: 0
A154: PEDIATRAS | B154: PEDIATRAS | C154: DR. CARLOS DIAZ PUENTES | D154: 02-CHAPINERO | E154: 0 | F154: 0 | G154: 0 | H154: 0 | I154: 0 | J154: 0 | K154: 0 | L154: 0 | M154: 0 | N154: 0 | S154: 0 | T154: 0.0% | U154: 0
A155: PEDIATRAS | B155: PEDIATRAS | C155: DR. PEDRO ERASMO MENDOZA | D155: 02-CHAPINERO | E155: 0 | F155: 0 | G155: 0 | H155: 0 | I155: 0 | J155: 0 | K155: 0 | L155: 0 | M155: 0 | N155: 0 | S155: 0 | T155: 0.0% | U155: 0
A156: PEDIATRAS | B156: PEDIATRAS | C156: DR. DIMAS ROSAS | D156: 02-CHAPINERO | E156: 0 | F156: 0 | G156: 0 | H156: 0 | I156: 0 | J156: 0 | K156: 0 | L156: 0 | M156: 0 | N156: 0 | S156: 0 | T156: 0.0% | U156: 0
A157: PEDIATRAS | B157: PEDIATRAS | C157: DR. JAVIER BRITO MORENO | D157: 02-CHAPINERO | E157: 0 | F157: 0 | G157: 0 | H157: 0 | I157: 0 | J157: 0 | K157: 0 | L157: 0 | M157: 0 | N157: 0 | S157: 0 | T157: 0.0% | U157: 0
A158: PEDIATRAS | B158: PEDIATRAS | C158: DR. GUSTAVO CORTÉS | D158: 02-CHAPINERO | E158: 0 | F158: 0 | G158: 0 | H158: 0 | I158: 0 | J158: 0 | K158: 0 | L158: 0 | M158: 0 | N158: 0 | S158: 0 | T158: 0.0% | U158: 0
A159: PEDIATRAS | B159: PEDIATRAS | C159: DR. CARLOS VELASQUEZ | D159: 02-CHAPINERO | E159: 0 | F159: 0 | G159: 0 | H159: 0 | I159: 0 | J159: 0 | K159: 0 | L159: 0 | M159: 0 | N159: 0 | S159: 0 | T159: 0.0% | U159: 0
A160: PEDIATRAS | B160: PEDIATRAS | C160: DR. RICARDO GOMEZ | D160: 02-CHAPINERO | E160: 0 | F160: 0 | G160: 0 | H160: 0 | I160: 0 | J160: 0 | K160: 0 | L160: 0 | M160: 0 | N160: 1 | S160: 1 | T160: 0.0%
A161: PEDIATRAS | B161: PEDIATRAS | C161: DR. SARA BERNAL | D161: 02-CHAPINERO | E161: 0 | F161: 0 | G161: 1 | H161: 0 | I161: 0 | J161: 0 | K161: 0 | L161: 0 | M161: 0 | N161: 0 | S161: 1 | T161: 0.0%
A162: PEDIATRAS | B162: PEDIATRAS | C162: DRA. MARIA PATRICIA AGUALIMPIA | D162: 02-CHAPINERO | E162: 0 | F162: 0 | G162: 0 | H162: 0 | I162: 0 | J162: 0 | K162: 0 | L162: 0 | M162: 0 | N162: 0 | S162: 0 | T162: 0.0% | U162: 0
A163: PEDIATRAS | B163: PEDIATRAS | C163: DRA. LUISA FERNANDA FORERO ACOSTA | D163: 02-CHAPINERO | E163: 0 | F163: 0 | G163: 0 | H163: 0 | I163: 0 | J163: 0 | K163: 0 | L163: 0 | M163: 0 | N163: 0 | S163: 0 | T163: 0.0% | U163: 0
A164: PEDIATRAS | B164: PEDIATRAS | C164: DRA. MARIA CLARA CASAS PARDO | D164: 02-CHAPINERO | E164: 0 | F164: 0 | G164: 0 | H164: 0 | I164: 0 | J164: 0 | K164: 0 | L164: 0 | M164: 0 | N164: 0 | S164: 0 | T164: 0.0% | U164: 0
A165: PEDIATRAS | B165: PEDIATRAS | C165: DRA. MARTHA EUGENIA RONDEROS DE FORERO | D165: 02-CHAPINERO | E165: 0 | F165: 0 | G165: 0 | H165: 0 | I165: 0 | J165: 0 | K165: 0 | L165: 0 | M165: 0 | N165: 0 | S165: 0 | T165: 0.0% | U165: 0
A166: PEDIATRAS | B166: PEDIATRAS | C166: DRA. MARIA ISABEL USCHER | D166: 02-CHAPINERO | E166: 0 | F166: 0 | G166: 1 | H166: 0 | I166: 0 | J166: 0 | K166: 2 | L166: 3 | M166: 1 | N166: 2 | S166: 9 | T166: 0.0%
A167: PEDIATRAS | B167: PEDIATRAS | C167: DRA. MARIA DE LOS ANGELES MUÑOZ | D167: 02-CHAPINERO | E167: 0 | F167: 0 | G167: 2 | H167: 0 | I167: 0 | J167: 0 | K167: 1 | L167: 2 | M167: 1 | N167: 1 | S167: 7 | T167: 0.0%
A168: PEDIATRAS | B168: PEDIATRAS | C168: DRA. CLARA ABELLO REYES | D168: 02-CHAPINERO | E168: 0 | F168: 0 | G168: 1 | H168: 1 | I168: 0 | J168: 0 | K168: 0 | L168: 1 | M168: 0 | N168: 0 | S168: 3 | T168: 0.0%
A169: PEDIATRAS | B169: PEDIATRAS | C169: DRA. PATRICIA CONTRERAS | D169: 02-CHAPINERO | E169: 0 | F169: 0 | G169: 3 | H169: 0 | I169: 1 | J169: 1 | K169: 0 | L169: 0 | M169: 2 | N169: 3 | S169: 10 | T169: 0.0%
A170: PEDIATRAS | B170: PEDIATRAS | C170: DRA. CLAUDIA ZOPPI | D170: 02-CHAPINERO | E170: 0 | F170: 0 | G170: 0 | H170: 0 | I170: 0 | J170: 0 | K170: 0 | L170: 0 | M170: 0 | N170: 0 | S170: 0 | T170: 0.0% | U170: 0
A171: PEDIATRAS | B171: PEDIATRAS | C171: DRA. MARIA DE LOS ANGELES FERNANDEZ LUQUE | D171: 02-CHAPINERO | E171: 0 | F171: 0 | G171: 0 | H171: 0 | I171: 0 | J171: 0 | K171: 0 | L171: 0 | M171: 0 | N171: 0 | S171: 0 | T171: 0.0% | U171: 0
A172: PEDIATRAS | B172: PEDIATRAS | C172: DRA. RUTH CORDOBA CORDOBA | D172: 02-CHAPINERO | E172: 0 | F172: 0 | G172: 0 | H172: 0 | I172: 0 | J172: 0 | K172: 0 | L172: 0 | M172: 0 | N172: 0 | S172: 0 | T172: 0.0% | U172: 0
A173: PEDIATRAS | B173: PEDIATRAS | C173: DRA. LUZ ESTELA CORTES | D173: 02-CHAPINERO | E173: 0 | F173: 0 | G173: 0 | H173: 0 | I173: 0 | J173: 0 | K173: 0 | L173: 0 | M173: 0 | N173: 0 | S173: 0 | T173: 0.0% | U173: 0
A174: UNICAJAS | B174: UNICAJAS | C174: UPA SAN LUIS | D174: 02-CHAPINERO | E174: 18 | F174: 2 | G174: 1 | H174: 0 | I174: 1 | J174: 0 | K174: 0 | L174: 0 | M174: 1 | N174: 0 | S174: 3 | T174: 16.7% | U174: 9
A175: 02-CHAPINERO | B175: OTROS | C175: UPA SAN LUIS | D175: 02-CHAPINERO | E175: 325 | F175: 27 | G175: 0 | H175: 2 | I175: 0 | J175: 1 | K175: 0 | L175: 0 | M175: 0 | N175: 3 | S175: 6 | T175: 1.8% | U175: 211
A176: 02-CHAPINERO | B176: DEMAS EAPB | C176: UPA SAN LUIS | D176: 02-CHAPINERO | F176: 0 | G176: 6 | H176: 2 | I176: 5 | J176: 5 | K176: 4 | L176: 3 | M176: 7 | N176: 4 | S176: 36 | T176: 0.0%
A177: UNICAJAS | B177: UNICAJAS | C177: COMFASALUD SEDE CENTRO | D177: 03-SANTA FE | E177: 50 | F177: 4 | G177: 4 | H177: 2 | I177: 4 | J177: 1 | K177: 1 | L177: 0 | M177: 1 | N177: 0 | S177: 13 | T177: 26.0% | U177: 20
A178: MEDIMAS | B178: MEDIMAS | C178: CORVESALUD TEUSAQUILLO | D178: 03-SANTA FE | E178: 193 | F178: 16 | G178: 6 | H178: 4 | I178: 2 | J178: 0 | K178: 0 | L178: 0 | M178: 0 | N178: 0 | S178: 12 | T178: 6.2% | U178: 117
A179: 03-SANTA FE | B179: CAPITAL SALUD | C179: EXTRAMURAL SANTA FE | D179: 03-SANTA FE | E179: 0 | F179: 0 | G179: 2 | H179: 4 | I179: 17 | J179: 29 | K179: 19 | L179: 9 | M179: 18 | N179: 22 | S179: 120 | T179: 0.0%
A180: 03-SANTA FE | B180: DEMAS EAPB | C180: EXTRAMURAL SANTA FE | D180: 03-SANTA FE | E180: 0 | F180: 0 | G180: 6 | H180: 4 | I180: 17 | J180: 35 | K180: 22 | L180: 25 | M180: 19 | N180: 11 | S180: 139 | T180: 0.0%
A181: 03-SANTA FE | B181: OTROS | C181: EXTRAMURAL SANTA FE | D181: 03-SANTA FE | E181: 0 | F181: 0 | G181: 13 | H181: 9 | I181: 10 | J181: 7 | K181: 6 | L181: 10 | M181: 18 | N181: 18 | S181: 91 | T181: 0.0%
A182: 03-SANTA FE | B182: UNICAJAS | C182: EXTRAMURAL SANTA FE | D182: 03-SANTA FE | E182: 0 | F182: 0 | G182: 0 | H182: 0 | I182: 1 | J182: 1 | K182: 3 | L182: 3 | M182: 1 | N182: 1 | S182: 10 | T182: 0.0%
A183: 03-SANTA FE | B183: CAPITAL SALUD | C183: USS LACHES | D183: 03-SANTA FE | E183: 54 | F183: 5 | G183: 9 | H183: 3 | I183: 4 | J183: 6 | K183: 4 | L183: 2 | M183: 6 | N183: 4 | S183: 38 | T183: 70.4%
A184: 03-SANTA FE | B184: DEMAS EAPB | C184: USS LACHES | D184: 03-SANTA FE | E184: 0 | F184: 0 | G184: 12 | H184: 2 | I184: 11 | J184: 1 | K184: 6 | L184: 5 | M184: 6 | N184: 7 | S184: 50 | T184: 0.0%
A185: 03-SANTA FE | B185: OTROS | C185: USS LACHES | D185: 03-SANTA FE | E185: 260 | F185: 22 | G185: 6 | H185: 0 | I185: 2 | J185: 0 | K185: 1 | L185: 1 | M185: 1 | N185: 0 | S185: 11 | T185: 4.2% | U185: 162
A186: 03-SANTA FE | B186: UNICAJAS | C186: USS LACHES | D186: 03-SANTA FE | E186: 17 | F186: 1 | G186: 0 | H186: 2 | I186: 1 | J186: 0 | K186: 0 | L186: 1 | M186: 0 | N186: 0 | S186: 4 | T186: 23.5% | U186: 7
A187: 03-SANTA FE | B187: CAPITAL SALUD | C187: USS LAS CRUCES | D187: 03-SANTA FE | E187: 44 | F187: 4 | G187: 7 | H187: 5 | I187: 6 | J187: 3 | K187: 2 | L187: 3 | M187: 3 | N187: 3 | S187: 32 | T187: 72.7%
A188: 03-SANTA FE | B188: DEMAS EAPB | C188: USS LAS CRUCES | D188: 03-SANTA FE | E188: 0 | F188: 0 | G188: 6 | H188: 1 | I188: 4 | J188: 5 | K188: 2 | L188: 3 | M188: 2 | N188: 0 | S188: 23 | T188: 0.0%
A189: 03-SANTA FE | B189: OTROS | C189: USS LAS CRUCES | D189: 03-SANTA FE | E189: 211 | F189: 18 | G189: 3 | H189: 2 | I189: 2 | J189: 1 | K189: 2 | L189: 0 | M189: 3 | N189: 0 | S189: 13 | T189: 6.2% | U189: 128
A190: 03-SANTA FE | B190: UNICAJAS | C190: USS LAS CRUCES | D190: 03-SANTA FE | E190: 14 | F190: 1 | G190: 7 | H190: 0 | I190: 1 | J190: 0 | K190: 1 | L190: 0 | M190: 0 | N190: 0 | S190: 9 | T190: 64.3% | U190: 0
A191: 03-SANTA FE | B191: CAPITAL SALUD | C191: USS PERSEVERANCIA | D191: 03-SANTA FE | E191: 6 | F191: 1 | G191: 2 | H191: 0 | I191: 3 | J191: 0 | K191: 0 | L191: 0 | M191: 1 | N191: 2 | S191: 8 | T191: 133.3%
A192: 03-SANTA FE | B192: DEMAS EAPB | C192: USS PERSEVERANCIA | D192: 03-SANTA FE | E192: 0 | F192: 0 | G192: 0 | H192: 0 | I192: 1 | J192: 0 | K192: 0 | L192: 0 | M192: 2 | N192: 1 | S192: 4 | T192: 0.0%
A193: 03-SANTA FE | B193: OTROS | C193: USS PERSEVERANCIA | D193: 03-SANTA FE | E193: 30 | F193: 3 | G193: 2 | H193: 0 | I193: 0 | J193: 0 | K193: 2 | L193: 0 | M193: 0 | N193: 1 | S193: 5 | T193: 16.7% | U193: 15
A194: 03-SANTA FE | B194: UNICAJAS | C194: USS PERSEVERANCIA | D194: 03-SANTA FE | E194: 2 | F194: 0 | G194: 0 | H194: 0 | I194: 0 | J194: 0 | K194: 0 | L194: 0 | M194: 0 | N194: 0 | S194: 0 | T194: =IF(E194=0,0,+S194/E194) -> 0.0% | U194: =IF(COUNT(G194:R194)*(E194/12)-S194<0,"",COUNT(G194:R194)*(E194/12)-S194) -> 1
A195: PARTICULAR | B195: PARTICULAR | C195: CLINICA SAN RAFAEL | D195: 04-SAN CRISTOBAL | E195: 375 | F195: =+E195/12 -> 31 | G195: 35 | H195: 26 | I195: 23 | J195: 17 | K195: 25 | L195: 27 | M195: 10 | N195: 15 | S195: =SUM(G195:R195) -> 178 | T195: 47.5% | U195: 72
A196: FAMISANAR | B196: FAMI- COLSB | C196: CENTRO MEDICO COLSUBSIDIO 20 DE JULIO | D196: 04-SAN CRISTOBAL | F196: 0 | S196: 0 | T196: 0.0% | U196: 0
A197: 04-SAN CRISTOBAL | B197: CAPITAL SALUD | C197: EXTRAMURAL SAN CRISTOBAL | D197: 04-SAN CRISTOBAL | E197: 0 | F197: 0 | G197: 25 | H197: 28 | I197: 65 | J197: 43 | K197: 69 | L197: 65 | M197: 63 | N197: 69 | S197: 427 | T197: 0.0%
A198: 04-SAN CRISTOBAL | B198: DEMAS EAPB | C198: EXTRAMURAL SAN CRISTOBAL | D198: 04-SAN CRISTOBAL | E198: 0 | F198: 0 | G198: 36 | H198: 26 | I198: 105 | J198: 117 | K198: 105 | L198: 95 | M198: 111 | N198: 78 | S198: 673 | T198: 0.0%
A199: 04-SAN CRISTOBAL | B199: OTROS | C199: EXTRAMURAL SAN CRISTOBAL | D199: 04-SAN CRISTOBAL | E199: 0 | F199: 0 | G199: 11 | H199: 5 | I199: 19 | J199: 18 | K199: 21 | L199: 22 | M199: 26 | N199: 30 | S199: 152 | T199: 0.0%
A200: 04-SAN CRISTOBAL | B200: UNICAJAS | C200: EXTRAMURAL SAN CRISTOBAL | D200: 04-SAN CRISTOBAL | E200: 0 | F200: 0 | G200: 0 | H200: 2 | I200: 14 | J200: 6 | K200: 11 | L200: 9 | M200: 12 | N200: 4 | S200: 58 | T200: 0.0%
... 620 more rows

Sheet NEUMOCOCO1
A1: EAPB | B1: EPS O ESE | C1: IPS | D1: Localidad | E1: Meta Anual Menor de 1 Año | F1: Meta Mensual | G1: Enero | H1: Febrero | I1: Marzo | J1: Abril | K1: Mayo | L1: Junio | M1: Julio | N1: Agosto | O1: Septiembre | P1: Octubre | Q1: Noviembre | R1: Diciembre | S1: Total | T1: % Cobertura | U1: Deficit
A2: CAPITAL SALUD | B2: CAPITAL SALUD | C2: UPA SAN CRISTOBAL | D2: 01-USAQUEN | E2: 124 | F2: =+E2/12 -> 10 | G2: 6 | H2: 7 | I2: 3 | J2: 7 | K2: 7 | L2: 13 | M2: 12 | N2: 10 | S2: =SUM(G2:R2) -> 65 | T2: =IF(E2=0,0,+S2/E2) -> 52.4% | U2: =IF(COUNT(G2:R2)*(E2/12)-S2<0,"",COUNT(G2:R2)*(E2/12)-S2) -> 18
A3: CAPITAL SALUD | B3: CAPITAL SALUD | C3: UPA USAQUEN | D3: 01-USAQUEN | E3: 10 | F3: =+E3/12 -> 1 | H3: 1 | I3: 0 | J3: 0 | K3: 0 | L3: 0 | M3: 0 | N3: 0 | S3: =SUM(G3:R3) -> 1 | T3: 10.0% | U3: 5
A4: CAPITAL SALUD | B4: CAPITAL SALUD | C4: UPA ORQUIDEAS | D4: 01-USAQUEN | E4: 11 | F4: 1 | G4: 1 | H4: 3 | I4: 2 | J4: 2 | K4: 5 | L4: 3 | M4: 2 | N4: 0 | S4: 18 | T4: 163.6%
A5: CAPITAL SALUD | B5: CAPITAL SALUD | C5: UPA CODITO | D5: 01-USAQUEN | E5: 107 | F5: 9 | G5: 7 | H5: 4 | I5: 11 | J5: 4 | K5: 6 | L5: 12 | M5: 4 | N5: 6 | S5: 54 | T5: 50.5% | U5: 17
A6: CAPITAL SALUD | B6: CAPITAL SALUD | C6: CAMI VERBENAL | D6: 01-USAQUEN | E6: 87 | F6: 7 | G6: 11 | H6: 4 | I6: 11 | J6: 5 | K6: 4 | L6: 5 | M6: 6 | N6: 11 | S6: 57 | T6: 65.5% | U6: 1
A7: CAPITAL SALUD | B7: CAPITAL SALUD | C7: HOSPITAL SIMON BOLIVAR | D7: 01-USAQUEN | E7: 36 | F7: 3 | G7: 22 | H7: 10 | I7: 6 | J7: 0 | K7: 2 | L7: 3 | M7: 2 | N7: 4 | S7: 49 | T7: 136.1%
A8: 01-USAQUEN | B8: 01-USAQUEN | C8: EXTRAMURAL USAQUEN | D8: 01-USAQUEN | E8: 0 | F8: 0 | G8: 6 | H8: 7 | I8: 5 | J8: 18 | K8: 40 | L8: 23 | M8: 26 | N8: 22 | S8: 147 | T8: 0.0%
A9: ALIANSALUD | B9: ALIANSALUD | C9: CENTRO MEDICO COLMEDICA SANTA BARBARA | D9: 01-USAQUEN | E9: 580 | F9: 48 | G9: 63 | H9: 44 | I9: 43 | J9: 34 | K9: 49 | L9: 32 | M9: 55 | N9: 36 | S9: 356 | T9: 61.4% | U9: 31
A10: COMPENSAR | B10: COMPENSAR | C10: USS CALLE 134 | D10: 01-USAQUEN | E10: 372 | F10: 31 | G10: 17 | H10: 21 | I10: 15 | J10: 11 | K10: 23 | L10: 22 | M10: 24 | N10: 20 | S10: 153 | T10: 41.1% | U10: 95
A11: COMPENSAR | B11: COMPENSAR | C11: USS CALLE 145 | D11: 01-USAQUEN | E11: 173 | F11: 14 | G11: 13 | H11: 10 | I11: 23 | J11: 8 | K11: 21 | L11: 17 | M11: 7 | N11: 12 | S11: 111 | T11: 64.2% | U11: 4
A12: COMPENSAR | B12: COMPENSAR | C12: JAVESALUD TOBERIN | D12: 01-USAQUEN | E12: 372 | F12: 31 | G12: 6 | H12: 12 | I12: 14 | J12: 11 | K12: 10 | L12: 10 | M12: 13 | N12: 13 | S12: 89 | T12: 23.9% | U12: 159
A13: COOMEVA | B13: COOMEVA | C13: SINERGIA UNIDAD INTEGRAL EN SALUD | D13: 01-USAQUEN | E13: 44 | F13: 4 | G13: 5 | H13: 5 | I13: 5 | J13: 4 | K13: 5 | L13: 3 | M13: 1 | N13: 2 | S13: 30 | T13: 68.2%
A14: FAMISANAR | B14: FAMI- COLSB | C14: CENTRO MEDICO COLSUBSIDIO USAQUEN | D14: 01-USAQUEN | E14: 298 | F14: 25 | G14: 38 | H14: 45 | I14: 25 | J14: 20 | K14: 24 | L14: 36 | M14: 53 | N14: 49 | S14: 290 | T14: 97.3%
A15: MILITAR | B15: MILITAR | C15: DISPENSARIO MEDICO CANTON NORTE | D15: 01-USAQUEN | E15: 205 | F15: 17 | G15: 8 | H15: 4 | I15: 6 | J15: 6 | K15: 8 | L15: 10 | M15: 6 | N15: 7 | S15: 55 | T15: 26.8% | U15: 82
A16: NUEVA EPS | B16: NUEVA EPS | C16: IPS VIVA 1A SEDE TOBERIN | D16: 01-USAQUEN | E16: 147 | F16: 12 | G16: 9 | H16: 9 | I16: 6 | J16: 5 | K16: 2 | L16: 9 | M16: 13 | N16: 6 | S16: 59 | T16: 40.1% | U16: 39
A17: NUEVA EPS | B17: NUEVA EPS | C17: CAFAM GRANADA HILLS | D17: 01-USAQUEN | E17: 44 | F17: 4 | G17: 2 | H17: 2 | I17: 1 | J17: 2 | K17: 1 | L17: 3 | M17: 4 | N17: 1 | S17: 16 | T17: 36.4% | U17: 13
A18: SANITAS | B18: SANITAS | C18: UAP SANITAS TOBERIN | D18: 01-USAQUEN | E18: 511 | F18: 43 | G18: 27 | H18: 38 | I18: 35 | J18: 27 | K18: 18 | L18: 11 | M18: 12 | N18: 17 | S18: 185 | T18: 36.2% | U18: 156
A19: SANITAS | B19: SANITAS | C19: MEDIKA IPS SANITAS UAP USAQUEN | D19: 01-USAQUEN | E19: 188 | F19: 16 | G19: 4 | H19: 2 | I19: 4 | J19: 0 | K19: 2 | L19: 2 | M19: 6 | N19: 8 | S19: 28 | T19: 14.9% | U19: 97
A20: SANITAS | B20: SANITAS | C20: UAP SANTA BARBARA | D20: 01-USAQUEN | E20: 796 | F20: 66 | G20: 92 | H20: 114 | I20: 117 | J20: 65 | K20: 57 | L20: 59 | M20: 48 | N20: 45 | S20: 597 | T20: 75.0%
A21: SANITAS | B21: SANITAS | C21: SANITAS BANCO DE LA REPUBLICA | D21: 01-USAQUEN | E21: 0 | F21: 0 | G21: 3 | H21: 3 | I21: 5 | J21: 5 | K21: 4 | L21: 2 | M21: 3 | N21: 3 | S21: 28 | T21: 0.0%
A22: SALUD TOTAL | B22: SALUD TOTAL | C22: VIRREY SOLIS TOBERÍN | D22: 01-USAQUEN | E22: 384 | F22: 32 | G22: 24 | H22: 13 | I22: 19 | J22: 14 | K22: 11 | L22: 9 | M22: 18 | N22: 11 | S22: 119 | T22: 31.0% | U22: 137
A23: SURA | B23: SURA | C23: IPS JAVESALUD SANTA BEATRIZ | D23: 01-USAQUEN | E23: 355 | F23: 30 | G23: 20 | H23: 14 | I23: 12 | J23: 4 | K23: 15 | L23: 15 | M23: 10 | N23: 13 | S23: 103 | T23: 29.0% | U23: 134
A24: ECOPETROL | B24: ECOPETROL | C24: IPS CLINICOS PALATINO | D24: 01-USAQUEN | E24: 87 | F24: 7 | G24: 6 | H24: 9 | I24: 7 | J24: 5 | K24: 6 | L24: 3 | M24: 5 | N24: 12 | S24: 53 | T24: 60.9% | U24: 5
A25: PARTICULAR | B25: PARTICULAR | C25: CLINICA PEDIATRICA COLSANITAS | D25: 01-USAQUEN | E25: 830 | F25: 69 | G25: 58 | H25: 57 | I25: 47 | J25: 51 | K25: 38 | L25: 68 | M25: 41 | N25: 32 | S25: 392 | T25: 47.2% | U25: 161
A26: PARTICULAR | B26: PARTICULAR | C26: CENTRO MEDICO COLSANITAS LA CALLEJA | D26: 01-USAQUEN | E26: 120 | F26: 10 | G26: 5 | H26: 15 | I26: 6 | J26: 5 | K26: 3 | L26: 5 | M26: 2 | N26: 3 | S26: 44 | T26: 36.7% | U26: 36
A27: PARTICULAR | B27: PARTICULAR | C27: CENTRO MEDICO COLSANITAS 108 | D27: 01-USAQUEN | E27: 40 | F27: 3 | G27: 4 | H27: 3 | I27: 0 | J27: 0 | K27: 0 | L27: 0 | M27: 0 | N27: 0 | S27: 7 | T27: 17.5% | U27: 20
A28: PARTICULAR | B28: PARTICULAR | C28: CENTRO MEDICO COLSANITAS SANTA ANA | D28: 01-USAQUEN | E28: 4 | F28: 0 | G28: 1 | H28: 3 | I28: 4 | J28: 0 | K28: 0 | L28: 0 | M28: 0 | N28: 0 | S28: 8 | T28: 200.0%
A29: PARTICULAR | B29: PARTICULAR | C29: FUNDACIÓN CARDIO INFANTIL | D29: 01-USAQUEN | E29: 0 | F29: 0 | G29: 8 | H29: 19 | I29: 6 | J29: 6 | K29: 4 | L29: 3 | M29: 5 | N29: 7 | S29: 58 | T29: 0.0%
A30: PARTICULAR | B30: PARTICULAR | C30: ENFASO USAQUEN | D30: 01-USAQUEN | E30: 0 | F30: 0 | G30: 9 | H30: 13 | I30: 1 | J30: 0 | K30: 6 | L30: 6 | M30: 8 | N30: 7 | S30: 50 | T30: 0.0%
A31: PARTICULAR | B31: PARTICULAR | C31: UNIDAD DE VACUNACIÓN INTERNACIONAL | D31: 01-USAQUEN | E31: 0 | F31: 0 | G31: 6 | H31: 6 | I31: 3 | J31: 3 | K31: 0 | L31: 0 | M31: 4 | N31: 2 | S31: 24 | T31: 0.0%
A32: PARTICULAR | B32: PARTICULAR | C32: INMUNOLOGÍA Y DIAGNÓSTICO ESPECIALIZADO LTDA. | D32: 01-USAQUEN | E32: 0 | F32: 0 | G32: 2 | H32: 0 | I32: 2 | J32: 0 | K32: 0 | L32: 0 | M32: 0 | N32: 0 | S32: 4 | T32: 0.0%
A33: PARTICULAR | B33: PARTICULAR | C33: PROTEGER HEALHT CARE | D33: 01-USAQUEN | E33: 0 | F33: 0 | G33: 2 | H33: 6 | I33: 1 | J33: 1 | K33: 3 | L33: 5 | M33: 3 | N33: 6 | S33: 27 | T33: 0.0%
A34: PARTICULAR | B34: PARTICULAR | C34: FUNDACION SANTA FE DE BOGOTA | D34: 01-USAQUEN | E34: 0 | F34: 0 | G34: 4 | H34: 2 | I34: 0 | J34: 2 | K34: 0 | L34: 0 | M34: 1 | N34: 2 | S34: 11 | T34: 0.0%
A35: PARTICULAR | B35: PARTICULAR | C35: IPS CRUZ ROJA SEDE UNICENTRO | D35: 01-USAQUEN | E35: 0 | F35: 0 | G35: 0 | H35: 0 | I35: 0 | J35: 0 | K35: 0 | L35: 0 | M35: 0 | N35: 0 | S35: 0 | T35: 0.0% | U35: 0
A36: PARTICULAR | B36: PARTICULAR | C36: IPS CRUZ ROJA SAMU CALLE 145 | D36: 01-USAQUEN | E36: 0 | F36: 0 | G36: 0 | H36: 0 | I36: 0 | J36: 0 | K36: 0 | L36: 0 | M36: 0 | N36: 0 | S36: 0 | T36: 0.0% | U36: 0
A37: PEDIATRAS | B37: PEDIATRAS | C37: DR. ALEJANDRO LÓPEZ | D37: 01-USAQUEN | E37: 0 | F37: 0 | G37: 0 | H37: 3 | I37: 0 | J37: 1 | K37: 0 | L37: 0 | M37: 0 | N37: 0 | S37: 4 | T37: 0.0%
A38: PEDIATRAS | B38: PEDIATRAS | C38: DR. CARLOS NEFTALI TORRES | D38: 01-USAQUEN | E38: 0 | F38: 0 | G38: 1 | H38: 2 | I38: 5 | J38: 1 | K38: 5 | L38: 2 | M38: 0 | N38: 3 | S38: 19 | T38: 0.0%
A39: PEDIATRAS | B39: PEDIATRAS | C39: DR. FRANCISCO NUÑEZ | D39: 01-USAQUEN | E39: 0 | F39: 0 | G39: 1 | H39: 1 | I39: 0 | J39: 0 | K39: 1 | L39: 1 | M39: 3 | N39: 2 | S39: 9 | T39: 0.0%
A40: PEDIATRAS | B40: PEDIATRAS | C40: DR. FERNANDO GOMEZ | D40: 01-USAQUEN | E40: 0 | F40: 0 | G40: 0 | H40: 0 | I40: 0 | J40: 0 | K40: 0 | L40: 0 | M40: 0 | N40: 0 | S40: 0 | T40: 0.0% | U40: 0
A41: PEDIATRAS | B41: PEDIATRAS | C41: DR. FERNANDO ZARATE MORENO | D41: 01-USAQUEN | E41: 0 | F41: 0 | G41: 1 | H41: 1 | I41: 0 | J41: 1 | K41: 0 | L41: 0 | M41: 0 | N41: 1 | S41: 4 | T41: 0.0%
A42: PEDIATRAS | B42: PEDIATRAS | C42: DR. GONZALO GARCIA | D42: 01-USAQUEN | E42: 0 | F42: 0 | G42: 1 | H42: 0 | I42: 1 | J42: 0 | K42: 1 | L42: 0 | M42: 0 | N42: 1 | S42: 4 | T42: 0.0%
A43: PEDIATRAS | B43: PEDIATRAS | C43: DR. GUSTAVO MORALES | D43: 01-USAQUEN | E43: 0 | F43: 0 | G43: 2 | H43: 1 | I43: 2 | J43: 2 | K43: 4 | L43: 0 | M43: 0 | N43: 1 | S43: 12 | T43: 0.0%
A44: PEDIATRAS | B44: PEDIATRAS | C44: DR. JAIME OSPINA | D44: 01-USAQUEN | E44: 0 | F44: 0 | G44: 1 | H44: 0 | I44: 0 | J44: 3 | K44: 0 | L44: 2 | M44: 1 | N44: 1 | S44: 8 | T44: 0.0%
A45: PEDIATRAS | B45: PEDIATRAS | C45: DR. JORGE URIBE | D45: 01-USAQUEN | E45: 0 | F45: 0 | G45: 0 | H45: 0 | I45: 1 | J45: 0 | K45: 0 | L45: 0 | M45: 0 | N45: 2 | S45: 3 | T45: 0.0%
A46: PEDIATRAS | B46: PEDIATRAS | C46: DR. JUAN LUIS FIGUEROA | D46: 01-USAQUEN | E46: 0 | F46: 0 | G46: 2 | H46: 0 | I46: 0 | J46: 0 | K46: 2 | L46: 1 | M46: 0 | N46: 1 | S46: 6 | T46: 0.0%
A47: PEDIATRAS | B47: PEDIATRAS | C47: DR. LUIS AUGUSTO PERNA | D47: 01-USAQUEN | E47: 0 | F47: 0 | G47: 4 | H47: 2 | I47: 5 | J47: 0 | K47: 2 | L47: 3 | M47: 3 | N47: 5 | S47: 24 | T47: 0.0%
A48: PEDIATRAS | B48: PEDIATRAS | C48: DR. LIBARDO ELI TRIANA | D48: 01-USAQUEN | E48: 0 | F48: 0 | G48: 0 | H48: 1 | I48: 1 | J48: 1 | K48: 0 | L48: 0 | M48: 1 | N48: 1 | S48: 5 | T48: 0.0%
A49: PEDIATRAS | B49: PEDIATRAS | C49: DR. OSWALDO MERCADO HOYOS | D49: 01-USAQUEN | E49: 0 | F49: 0 | G49: 2 | H49: 3 | I49: 1 | J49: 0 | K49: 2 | L49: 1 | M49: 0 | N49: 1 | S49: 10 | T49: 0.0%
A50: PEDIATRAS | B50: PEDIATRAS | C50: DR. ROBERTO BENIRO | D50: 01-USAQUEN | E50: 0 | F50: 0 | G50: 0 | H50: 0 | I50: 0 | J50: 0 | K50: 0 | L50: 1 | M50: 2 | N50: 0 | S50: 3 | T50: 0.0%
A51: PEDIATRAS | B51: PEDIATRAS | C51: DR. SERGIO ISAZA | D51: 01-USAQUEN | E51: 0 | F51: 0 | G51: 1 | H51: 0 | I51: 0 | J51: 0 | K51: 0 | L51: 0 | M51: 0 | N51: 0 | S51: 1 | T51: 0.0%
A52: PEDIATRAS | B52: PEDIATRAS | C52: DR. SANTIAGO UCROS | D52: 01-USAQUEN | E52: 0 | F52: 0 | G52: 0 | H52: 0 | I52: 0 | J52: 0 | K52: 0 | L52: 0 | M52: 0 | N52: 0 | S52: 0 | T52: 0.0% | U52: 0
A53: PEDIATRAS | B53: PEDIATRAS | C53: DR. GERMAN SILVA | D53: 01-USAQUEN | E53: 0 | F53: 0 | G53: 0 | H53: 0 | I53: 0 | J53: 0 | K53: 0 | L53: 0 | M53: 0 | N53: 0 | S53: 0 | T53: 0.0% | U53: 0
A54: PEDIATRAS | B54: PEDIATRAS | C54: DR. DANIEL ABRIL | D54: 01-USAQUEN | E54: 0 | F54: 0 | G54: 0 | H54: 0 | I54: 0 | J54: 0 | K54: 0 | L54: 0 | M54: 0 | N54: 0 | S54: 0 | T54: 0.0% | U54: 0
A55: PEDIATRAS | B55: PEDIATRAS | C55: DR. CARLOS EDUARDO OLMOS | D55: 01-USAQUEN | E55: 0 | F55: 0 | G55: 0 | H55: 0 | I55: 0 | J55: 0 | K55: 0 | L55: 0 | M55: 0 | N55: 0 | S55: 0 | T55: 0.0% | U55: 0
A56: PEDIATRAS | B56: PEDIATRAS | C56: DR. EDGARDO CHATMAN | D56: 01-USAQUEN | E56: 0 | F56: 0 | G56: 0 | H56: 0 | I56: 0 | J56: 0 | K56: 0 | L56: 0 | M56: 0 | N56: 0 | S56: 0 | T56: 0.0% | U56: 0
A57: PEDIATRAS | B57: PEDIATRAS | C57: DR. JORGE FLOREZ OTERO | D57: 01-USAQUEN | E57: 0 | F57: 0 | G57: 0 | H57: 0 | I57: 0 | J57: 0 | K57: 0 | L57: 0 | M57: 0 | N57: 0 | S57: 0 | T57: 0.0% | U57: 0
A58: PEDIATRAS | B58: PEDIATRAS | C58: DRA. ALEJANDRA MARIA VALENCIA | D58: 01-USAQUEN | E58: 0 | F58: 0 | G58: 0 | H58: 0 | I58: 0 | J58: 0 | K58: 0 | L58: 0 | M58: 0 | N58: 0 | S58: 0 | T58: 0.0% | U58: 0
A59: PEDIATRAS | B59: PEDIATRAS | C59: DRA. ANA MARIA GOYENECHE | D59: 01-USAQUEN | E59: 0 | F59: 0 | G59: 0 | H59: 0 | I59: 0 | J59: 0 | K59: 0 | L59: 0 | M59: 0 | N59: 0 | S59: 0 | T59: 0.0% | U59: 0
A60: PEDIATRAS | B60: PEDIATRAS | C60: DRA. JIMENA VARELA | D60: 01-USAQUEN | E60: 0 | F60: 0 | G60: 0 | H60: 0 | I60: 0 | J60: 0 | K60: 0 | L60: 0 | M60: 0 | N60: 1 | S60: 1 | T60: 0.0%
A61: PEDIATRAS | B61: PEDIATRAS | C61: DRA. LIA SAN MIGUEL | D61: 01-USAQUEN | E61: 0 | F61: 0 | G61: 0 | H61: 0 | I61: 0 | J61: 0 | K61: 0 | L61: 1 | M61: 2 | N61: 0 | S61: 3 | T61: 0.0%
A62: PEDIATRAS | B62: PEDIATRAS | C62: DRA. LIBIA SEGURA | D62: 01-USAQUEN | E62: 0 | F62: 0 | G62: 0 | H62: 0 | I62: 1 | J62: 1 | K62: 0 | L62: 0 | M62: 0 | N62: 0 | S62: 2 | T62: 0.0%
A63: PEDIATRAS | B63: PEDIATRAS | C63: DRA. MARÍA JOSÉ PEDRAZA | D63: 01-USAQUEN | E63: 0 | F63: 0 | G63: 0 | H63: 0 | I63: 0 | J63: 0 | K63: 0 | L63: 0 | M63: 0 | N63: 0 | S63: 0 | T63: 0.0% | U63: 0
A64: PEDIATRAS | B64: PEDIATRAS | C64: DRA. MARTHA LUCIA SANCHEZ | D64: 01-USAQUEN | E64: 0 | F64: 0 | G64: 0 | H64: 0 | I64: 0 | J64: 0 | K64: 0 | L64: 0 | M64: 0 | N64: 0 | S64: 0 | T64: 0.0% | U64: 0
A65: PEDIATRAS | B65: PEDIATRAS | C65: DRA. OLGA LUCÍA SÁNCHEZ | D65: 01-USAQUEN | E65: 0 | F65: 0 | G65: 0 | H65: 0 | I65: 0 | J65: 0 | K65: 0 | L65: 0 | M65: 0 | N65: 0 | S65: 0 | T65: 0.0% | U65: 0
A66: PEDIATRAS | B66: PEDIATRAS | C66: DRA. SANDRA BELTRAN | D66: 01-USAQUEN | E66: 0 | F66: 0 | G66: 0 | H66: 1 | I66: 1 | J66: 0 | K66: 0 | L66: 2 | M66: 0 | N66: 0 | S66: 4 | T66: =IF(E66=0,0,+S66/E66) -> 0.0% | U66: =IF(COUNT(G66:R66)*(E66/12)-S66<0,"",COUNT(G66:R66)*(E66/12)-S66) -> 
A67: PEDIATRAS | B67: PEDIATRAS | C67: DRA. IVANA CABRERA | D67: 01-USAQUEN | E67: 0 | F67: =+E67/12 -> 0 | G67: 0 | H67: 0 | I67: 0 | J67: 0 | K67: 0 | L67: 0 | M67: 1 | N67: 0 | S67: =SUM(G67:R67) -> 1 | T67: 0.0%
A68: PEDIATRAS | B68: PEDIATRAS | C68: DRA. NAYITA ALARCON | D68: 01-USAQUEN | E68: 0 | F68: 0 | G68: 0 | H68: 0 | I68: 0 | J68: 0 | K68: 0 | L68: 0 | M68: 0 | N68: 0 | S68: 0 | T68: 0.0% | U68: 0
A69: PEDIATRAS | B69: PEDIATRAS | C69: DRA. ELIZABETH GARCIA | D69: 01-USAQUEN | E69: 0 | F69: 0 | G69: 0 | H69: 0 | I69: 0 | J69: 0 | K69: 0 | L69: 0 | M69: 0 | N69: 0 | S69: 0 | T69: 0.0% | U69: 0
A70: PEDIATRAS | B70: PEDIATRAS | C70: DRA. BERTHA CALDERON DE RAMOS | D70: 01-USAQUEN | E70: 0 | F70: 0 | G70: 0 | H70: 0 | I70: 0 | J70: 0 | K70: 0 | L70: 0 | M70: 0 | N70: 0 | S70: 0 | T70: 0.0% | U70: 0
A71: PEDIATRAS | B71: PEDIATRAS | C71: DRA. MIRYAM CORREA | D71: 01-USAQUEN | E71: 0 | F71: 0 | G71: 0 | H71: 1 | I71: 0 | J71: 0 | K71: 0 | L71: 0 | M71: 0 | N71: 0 | S71: 1 | T71: 0.0%
A72: 01-USAQUEN | B72: UNICAJAS | C72: UPA SAN CRISTOBAL | D72: 01-USAQUEN | E72: 6 | F72: 1 | G72: 1 | H72: 0 | I72: 0 | J72: 1 | K72: 0 | L72: 0 | M72: 0 | N72: 0 | S72: 2 | T72: 33.3% | U72: 2
A73: UNICAJAS | B73: UNICAJAS | C73: UPA USAQUEN | D73: 01-USAQUEN | E73: 9 | F73: 1 | H73: 0 | I73: 0 | J73: 0 | K73: 0 | L73: 0 | M73: 0 | N73: 0 | S73: 0 | T73: 0.0% | U73: 5
A74: UNICAJAS | B74: UNICAJAS | C74: UPA ORQUIDEAS | D74: 01-USAQUEN | E74: 6 | F74: 1 | G74: 0 | H74: 0 | I74: 0 | J74: 0 | K74: 1 | L74: 0 | M74: 0 | N74: 1 | S74: 2 | T74: 33.3% | U74: 2
A75: UNICAJAS | B75: UNICAJAS | C75: UPA CODITO | D75: 01-USAQUEN | E75: 5 | F75: 0 | G75: 0 | H75: 0 | I75: 0 | J75: 0 | K75: 0 | L75: 0 | M75: 0 | N75: 1 | S75: 1 | T75: 20.0% | U75: 2
A76: UNICAJAS | B76: UNICAJAS | C76: CAMI VERBENAL | D76: 01-USAQUEN | E76: 6 | F76: 1 | G76: 0 | H76: 0 | I76: 2 | J76: 1 | K76: 1 | L76: 1 | M76: 0 | N76: 0 | S76: 5 | T76: 83.3%
A77: 01-USAQUEN | B77: UNICAJAS | C77: HOSPITAL SIMON BOLIVAR | D77: 01-USAQUEN | E77: 6 | F77: 1 | G77: 1 | H77: 0 | I77: 0 | J77: 3 | K77: 0 | L77: 0 | M77: 1 | N77: 0 | S77: 5 | T77: 83.3%
A78: 01-USAQUEN | B78: OTROS | C78: UPA SAN CRISTOBAL | D78: 01-USAQUEN | E78: 300 | F78: 25 | G78: 1 | H78: 3 | I78: 2 | J78: 3 | K78: 1 | L78: 11 | M78: 4 | N78: 3 | S78: 28 | T78: 9.3% | U78: 172
A79: 01-USAQUEN | B79: OTROS | C79: UPA USAQUEN | D79: 01-USAQUEN | E79: 100 | F79: 8 | H79: 0 | I79: 0 | J79: 0 | K79: 0 | L79: 0 | M79: 0 | N79: 0 | S79: 0 | T79: 0.0% | U79: 58
A80: 01-USAQUEN | B80: OTROS | C80: UPA ORQUIDEAS | D80: 01-USAQUEN | E80: 120 | F80: 10 | G80: 2 | H80: 0 | I80: 0 | J80: 2 | K80: 1 | L80: 2 | M80: 1 | N80: 0 | S80: 8 | T80: 6.7% | U80: 72
A81: 01-USAQUEN | B81: OTROS | C81: UPA CODITO | D81: 01-USAQUEN | E81: 218 | F81: 18 | G81: 4 | H81: 1 | I81: 1 | J81: 1 | K81: 0 | L81: 1 | M81: 8 | N81: 4 | S81: 20 | T81: 9.2% | U81: 125
A82: 01-USAQUEN | B82: OTROS | C82: CAMI VERBENAL | D82: 01-USAQUEN | E82: 309 | F82: 26 | G82: 4 | H82: 3 | I82: 2 | J82: 1 | K82: 1 | L82: 4 | M82: 5 | N82: 3 | S82: 23 | T82: 7.4% | U82: 183
A83: 01-USAQUEN | B83: OTROS | C83: HOSPITAL SIMON BOLIVAR | D83: 01-USAQUEN | E83: 480 | F83: 40 | G83: 9 | H83: 15 | I83: 12 | J83: 4 | K83: 1 | L83: 2 | M83: 5 | N83: 8 | S83: 56 | T83: 11.7% | U83: 264
A84: 01-USAQUEN | B84: DEMAS EAPB | C84: UPA SAN CRISTOBAL | D84: 01-USAQUEN | F84: 0 | G84: 11 | H84: 9 | I84: 11 | J84: 8 | K84: 8 | L84: 6 | M84: 3 | N84: 10 | S84: 66 | T84: 0.0%
A85: 01-USAQUEN | B85: DEMAS EAPB | C85: UPA USAQUEN | D85: 01-USAQUEN | F85: 0 | G85: 2 | H85: 0 | I85: 0 | J85: 0 | K85: 0 | L85: 0 | M85: 0 | N85: 0 | S85: 2 | T85: 0.0%
A86: 01-USAQUEN | B86: DEMAS EAPB | C86: UPA ORQUIDEAS | D86: 01-USAQUEN | F86: 0 | G86: 2 | H86: 2 | I86: 4 | J86: 6 | K86: 3 | L86: 1 | M86: 2 | N86: 3 | S86: 23 | T86: 0.0%
A87: 01-USAQUEN | B87: DEMAS EAPB | C87: UPA CODITO | D87: 01-USAQUEN | F87: 0 | G87: 7 | H87: 13 | I87: 13 | J87: 11 | K87: 11 | L87: 12 | M87: 9 | N87: 5 | S87: 81 | T87: 0.0%
A88: 01-USAQUEN | B88: DEMAS EAPB | C88: CAMI VERBENAL | D88: 01-USAQUEN | F88: 0 | G88: 4 | H88: 15 | I88: 12 | J88: 9 | K88: 21 | L88: 6 | M88: 5 | N88: 14 | S88: 86 | T88: 0.0%
A89: 01-USAQUEN | B89: DEMAS EAPB | C89: HOSPITAL SIMON BOLIVAR | D89: 01-USAQUEN | F89: 0 | G89: 17 | H89: 16 | I89: 4 | J89: 9 | K89: 11 | L89: 2 | M89: 4 | N89: 4 | S89: 67 | T89: 0.0%
A90: MEDIMAS | B90: MEDIMAS | C90: Corvesalud S.A.S - I P S Chico | D90: 01-USAQUEN | E90: 320 | F90: 27 | G90: 5 | H90: 5 | I90: 7 | M90: 1 | N90: 1 | S90: 19 | T90: 5.9% | U90: 114
A91: FAMISANAR | B91: COLSUBSIDIO | C91: Sura PAC Santa Bárbara | D91: 01-USAQUEN | F91: 0 | S91: 0 | T91: 0.0% | U91: 0
A92: CAPITAL SALUD | B92: CAPITAL SALUD | C92: UPA SAN LUIS | D92: 02-CHAPINERO | E92: 12 | F92: 1 | G92: 4 | H92: 2 | I92: 2 | J92: 0 | K92: 2 | L92: 3 | M92: 4 | N92: 0 | S92: 17 | T92: 141.7%
A93: 02-CHAPINERO | B93: 02-CHAPINERO | C93: EXTRAMURAL CHAPINERO | D93: 02-CHAPINERO | E93: 0 | F93: 0 | G93: 2 | H93: 3 | I93: 2 | J93: 13 | K93: 19 | L93: 10 | M93: 7 | N93: 12 | S93: 68 | T93: 0.0%
A94: COMPENSAR | B94: COMPENSAR | C94: USS CALLE 42 | D94: 02-CHAPINERO | E94: 612 | F94: 51 | G94: 29 | H94: 43 | I94: 26 | J94: 36 | K94: 28 | L94: 51 | M94: 37 | N94: 40 | S94: 290 | T94: 47.4% | U94: 118
A95: COMPENSAR | B95: COMPENSAR | C95: USS CALLE 67 | D95: 02-CHAPINERO | E95: 0 | F95: 0 | G95: 0 | H95: 0 | I95: 0 | J95: 0 | K95: 0 | L95: 0 | M95: 0 | N95: 0 | S95: 0 | T95: 0.0% | U95: 0
A96: COMPENSAR | B96: COMPENSAR | C96: USS CALLE 94 | D96: 02-CHAPINERO | E96: 369 | F96: 31 | G96: 35 | H96: 42 | I96: 26 | J96: 46 | K96: 63 | L96: 80 | M96: 62 | N96: 66 | S96: 420 | T96: 113.8%
A97: COMPENSAR | B97: COMPENSAR | C97: VIVA 1A IPS CHAPINERO | D97: 02-CHAPINERO | E97: 73 | F97: 6 | G97: 4 | H97: 6 | I97: 6 | J97: 2 | K97: 3 | L97: 6 | M97: 9 | N97: 2 | S97: 38 | T97: 52.1% | U97: 11
A98: COOMEVA | B98: COOMEVA | C98: SINERGIA UNIDAD BASICA LOURDES | D98: 02-CHAPINERO | E98: 217 | F98: 18 | G98: 9 | H98: 10 | I98: 10 | J98: 2 | K98: 0 | L98: 0 | M98: 0 | N98: 4 | S98: 35 | T98: 16.1% | U98: 110
A99: FAMISANAR | B99: FAMI- CAFAM | C99: CENTRO DE ATENCION EN SALUD CAFAM CALLE 48 | D99: 02-CHAPINERO | E99: 1050 | F99: 88 | G99: 32 | H99: 35 | I99: 21 | J99: 19 | K99: 31 | L99: 32 | M99: 32 | N99: 34 | S99: 236 | T99: 22.5% | U99: 464
A100: FAMISANAR | B100: FAMI- CAFAM | C100: CENTRO DE ATENCION EN SALUD CAFAM CALLE 90 | D100: 02-CHAPINERO | E100: 200 | F100: 17 | G100: 13 | H100: 7 | I100: 20 | J100: 5 | K100: 10 | L100: 8 | M100: 5 | N100: 9 | S100: 77 | T100: 38.5% | U100: 56
A101: FAMISANAR | B101: FAMI- COLSB | C101: CLINICA COLSUBSIDIO EL LAGO | D101: 02-CHAPINERO | E101: 392 | F101: 33 | G101: 10 | H101: 11 | I101: 6 | J101: 5 | K101: 7 | L101: 5 | M101: 6 | N101: 5 | S101: 55 | T101: 14.0% | U101: 206
A102: MILITAR | B102: MILITAR | C102: HOSPITAL MILITAR CENTRAL | D102: 02-CHAPINERO | E102: 70 | F102: 6 | G102: 10 | H102: 11 | I102: 5 | J102: 6 | K102: 3 | L102: 5 | M102: 3 | N102: 6 | S102: 49 | T102: 70.0%
A103: POLICIA | B103: POLICIA | C103: POLICIA NACIONAL ESPAM CHAPINERO | D103: 02-CHAPINERO | E103: 117 | F103: 10 | G103: 4 | H103: 0 | I103: 9 | J103: 32 | K103: 25 | L103: 24 | M103: 18 | N103: 26 | S103: 138 | T103: 117.9%
A104: NUEVA EPS | B104: NUEVA EPS | C104: IPS VIVA 1A SEDE MARLY | D104: 02-CHAPINERO | E104: 131 | F104: 11 | G104: 10 | H104: 5 | I104: 2 | J104: 2 | K104: 4 | L104: 3 | M104: 4 | N104: 3 | S104: 33 | T104: 25.2% | U104: 54
A105: SANITAS | B105: SANITAS | C105: EPS SANITAS CENTRO MEDICO TEUSAQUILLO | D105: 02-CHAPINERO | E105: 579 | F105: 48 | G105: 28 | H105: 24 | I105: 28 | J105: 12 | K105: 14 | L105: 15 | M105: 18 | N105: 18 | S105: 157 | T105: 27.1% | U105: 229
A106: SALUD TOTAL | B106: SALUD TOTAL | C106: VIRREY SOLIS CHAPINERO | D106: 02-CHAPINERO | E106: 337 | F106: 28 | G106: 17 | H106: 13 | I106: 16 | J106: 9 | K106: 16 | L106: 31 | M106: 25 | N106: 42 | S106: 169 | T106: 50.1% | U106: 56
A107: SURA | B107: SURA | C107: PUNTO DE SALUD CHAPINERO | D107: 02-CHAPINERO | E107: 237 | F107: 20 | G107: 14 | H107: 10 | I107: 14 | J107: 5 | K107: 14 | L107: 10 | M107: 1 | N107: 0 | S107: 68 | T107: 28.7% | U107: 90
A108: SURA | B108: SURA | C108: SALUD SURA | D108: 02-CHAPINERO | E108: 454 | F108: 38 | G108: 46 | H108: 29 | I108: 37 | J108: 14 | K108: 32 | L108: 26 | M108: 24 | N108: 26 | S108: 234 | T108: 51.5% | U108: 69
A109: PARTICULAR | B109: PARTICULAR | C109: CENTRO MEDICO COLSANITAS CALLE 96 | D109: 02-CHAPINERO | E109: 24 | F109: 2 | G109: 2 | H109: 0 | I109: 2 | J109: 16 | K109: 12 | L109: 15 | M109: 13 | N109: 18 | S109: 78 | T109: 325.0%
A110: PARTICULAR | B110: PARTICULAR | C110: CENTRO DE ESPECIALISTAS MEDICOS AXA COLPATRIA | D110: 02-CHAPINERO | E110: 0 | F110: 0 | G110: 5 | H110: 6 | I110: 5 | J110: 5 | K110: 9 | L110: 9 | M110: 10 | N110: 12 | S110: 61 | T110: 0.0%
A111: PARTICULAR | B111: PARTICULAR | C111: CLINICA DE LA MUJER | D111: 02-CHAPINERO | E111: 0 | F111: 0 | G111: 49 | H111: 40 | I111: 49 | J111: 25 | K111: 39 | L111: 49 | M111: 44 | N111: 35 | S111: 330 | T111: 0.0%
A112: PARTICULAR | B112: PARTICULAR | C112: VACUNARTE IPS | D112: 02-CHAPINERO | E112: 0 | F112: 0 | G112: 0 | H112: 3 | I112: 1 | J112: 1 | K112: 1 | L112: 2 | M112: 1 | N112: 2 | S112: 11 | T112: 0.0%
A113: PARTICULAR | B113: PARTICULAR | C113: UNIMARLY | D113: 02-CHAPINERO | E113: 0 | F113: 0 | G113: 0 | H113: 0 | I113: 0 | J113: 0 | K113: 0 | L113: 0 | M113: 0 | N113: 0 | S113: 0 | T113: 0.0% | U113: 0
A114: PARTICULAR | B114: PARTICULAR | C114: HOSPITAL SAN IGNACIO | D114: 02-CHAPINERO | E114: 0 | F114: 0 | G114: 13 | H114: 7 | I114: 4 | J114: 5 | K114: 1 | L114: 3 | M114: 3 | N114: 4 | S114: 40 | T114: 0.0%
A115: PARTICULAR | B115: PARTICULAR | C115: PROGRAMA MADRE CANGURO HOSPITAL SAN IGNACIO | D115: 02-CHAPINERO | E115: 0 | F115: 0 | G115: 92 | H115: 100 | I115: 80 | J115: 74 | K115: 65 | L115: 74 | M115: 83 | N115: 79 | S115: 647 | T115: 0.0%
A116: PARTICULAR | B116: PARTICULAR | C116: IPS AVENIR | D116: 02-CHAPINERO | E116: 0 | F116: 0 | G116: 0 | H116: 0 | I116: 0 | J116: 0 | K116: 0 | L116: 0 | M116: 0 | N116: 0 | S116: 0 | T116: 0.0% | U116: 0
A117: PARTICULAR | B117: PARTICULAR | C117: IPS INMUNOLOGIA Y DIAGNOSTICO ESPECIALIZADO | D117: 02-CHAPINERO | E117: 0 | F117: 0 | G117: 0 | H117: 0 | I117: 0 | J117: 0 | K117: 4 | L117: 1 | M117: 2 | N117: 2 | S117: 9 | T117: 0.0%
A118: PARTICULAR | B118: PARTICULAR | C118: ASOCIACION PEDIATRICA DE LOS ANDES | D118: 02-CHAPINERO | E118: 0 | F118: 0 | G118: 1 | H118: 0 | I118: 0 | J118: 0 | K118: 0 | L118: 0 | M118: 0 | N118: 0 | S118: 1 | T118: 0.0%
A119: PARTICULAR | B119: PARTICULAR | C119: CRUZ ROJA SEDE ANDINO | D119: 02-CHAPINERO | E119: 0 | F119: 0 | G119: 0 | H119: 0 | I119: 0 | J119: 0 | K119: 0 | L119: 0 | M119: 0 | N119: 0 | S119: 0 | T119: 0.0% | U119: 0
A120: PARTICULAR | B120: PARTICULAR | C120: CENTRO MEDICO SANTA MONICA | D120: 02-CHAPINERO | E120: 0 | F120: 0 | H120: 0 | I120: 0 | J120: 7 | K120: 8 | L120: 11 | M120: 0 | N120: 0 | S120: 26 | T120: 0.0%
A121: PEDIATRAS | B121: PEDIATRAS | C121: DR. JUAN OSCAR TAMAYO | D121: 02-CHAPINERO | E121: 0 | F121: 0 | G121: 2 | H121: 0 | I121: 0 | J121: 0 | K121: 0 | L121: 0 | M121: 0 | N121: 0 | S121: 2 | T121: 0.0%
A122: PEDIATRAS | B122: PEDIATRAS | C122: DR. ROBERTO SUAREZ | D122: 02-CHAPINERO | E122: 0 | F122: 0 | G122: 0 | H122: 0 | I122: 0 | J122: 0 | K122: 0 | L122: 0 | M122: 0 | N122: 0 | S122: 0 | T122: 0.0% | U122: 0
A123: PEDIATRAS | B123: PEDIATRAS | C123: DR. WILLIAM RICARDO CABRA | D123: 02-CHAPINERO | E123: 0 | F123: 0 | G123: 3 | H123: 2 | I123: 0 | J123: 2 | K123: 0 | L123: 0 | M123: 1 | N123: 0 | S123: 8 | T123: 0.0%
A124: PEDIATRAS | B124: PEDIATRAS | C124: DR. EDGAR CASTRO | D124: 02-CHAPINERO | E124: 0 | F124: 0 | G124: 5 | H124: 2 | I124: 0 | J124: 6 | K124: 5 | L124: 2 | M124: 1 | N124: 3 | S124: 24 | T124: 0.0%
A125: PEDIATRAS | B125: PEDIATRAS | C125: DR. PABLO KRAUSS | D125: 02-CHAPINERO | E125: 0 | F125: 0 | G125: 1 | H125: 2 | I125: 2 | J125: 0 | K125: 0 | L125: 0 | M125: 0 | N125: 0 | S125: 5 | T125: 0.0%
A126: PEDIATRAS | B126: PEDIATRAS | C126: DR. HERNAN ROBLES | D126: 02-CHAPINERO | E126: 0 | F126: 0 | G126: 4 | H126: 3 | I126: 6 | J126: 4 | K126: 3 | L126: 5 | M126: 7 | N126: 10 | S126: 42 | T126: 0.0%
A127: PEDIATRAS | B127: PEDIATRAS | C127: DR. RAFAEL GAMBOA CASABLANCA | D127: 02-CHAPINERO | E127: 0 | F127: 0 | G127: 0 | H127: 3 | I127: 5 | J127: 23 | K127: 12 | L127: 3 | M127: 4 | N127: 3 | S127: 53 | T127: 0.0%
A128: PEDIATRAS | B128: PEDIATRAS | C128: DR. JAVIER MEJIA | D128: 02-CHAPINERO | E128: 0 | F128: 0 | G128: 2 | H128: 2 | I128: 4 | J128: 2 | K128: 2 | L128: 4 | M128: 5 | N128: 2 | S128: 23 | T128: 0.0%
A129: PEDIATRAS | B129: PEDIATRAS | C129: DR. CARLOS CORTAZAR | D129: 02-CHAPINERO | E129: 0 | F129: 0 | G129: 0 | H129: 0 | I129: 0 | J129: 0 | K129: 0 | L129: 0 | M129: 0 | N129: 0 | S129: 0 | T129: 0.0% | U129: 0
A130: PEDIATRAS | B130: PEDIATRAS | C130: DR. NELSON PARDO | D130: 02-CHAPINERO | E130: 0 | F130: 0 | G130: 2 | H130: 1 | I130: 4 | J130: 0 | K130: 0 | L130: 3 | M130: 0 | N130: 0 | S130: 10 | T130: =IF(E130=0,0,+S130/E130) -> 0.0% | U130: =IF(COUNT(G130:R130)*(E130/12)-S130<0,"",COUNT(G130:R130)*(E130/12)-S130) -> 
A131: PEDIATRAS | B131: PEDIATRAS | C131: DR. ALVARO JACOME | D131: 02-CHAPINERO | E131: 0 | F131: =+E131/12 -> 0 | G131: 2 | H131: 1 | I131: 0 | J131: 4 | K131: 1 | L131: 0 | M131: 0 | N131: 0 | S131: =SUM(G131:R131) -> 8 | T131: 0.0%
A132: PEDIATRAS | B132: PEDIATRAS | C132: DR. SILVIO COPO | D132: 02-CHAPINERO | E132: 0 | F132: 0 | G132: 0 | H132: 1 | I132: 0 | J132: 0 | K132: 0 | L132: 0 | M132: 0 | N132: 0 | S132: 1 | T132: 0.0%
A133: PEDIATRAS | B133: PEDIATRAS | C133: DR. HECTOR FERNANDO MENDOZA | D133: 02-CHAPINERO | E133: 0 | F133: 0 | G133: 0 | H133: 0 | I133: 0 | J133: 0 | K133: 1 | L133: 0 | M133: 1 | N133: 0 | S133: 2 | T133: 0.0%
A134: PEDIATRAS | B134: PEDIATRAS | C134: DR. DIMITRIOS | D134: 02-CHAPINERO | E134: 0 | F134: 0 | G134: 1 | H134: 0 | I134: 0 | J134: 1 | K134: 0 | L134: 0 | M134: 0 | N134: 0 | S134: 2 | T134: 0.0%
A135: PEDIATRAS | B135: PEDIATRAS | C135: DR. ALVARO MARIÑO | D135: 02-CHAPINERO | E135: 0 | F135: 0 | G135: 0 | H135: 1 | I135: 0 | J135: 0 | K135: 0 | L135: 0 | M135: 0 | N135: 0 | S135: 1 | T135: 0.0%
A136: PEDIATRAS | B136: PEDIATRAS | C136: DR. ANDRES VARGAS | D136: 02-CHAPINERO | E136: 0 | F136: 0 | G136: 2 | H136: 1 | I136: 1 | J136: 0 | K136: 1 | L136: 1 | M136: 3 | N136: 1 | S136: 10 | T136: 0.0%
A137: PEDIATRAS | B137: PEDIATRAS | C137: DR. JORGE CAMILO LUNA | D137: 02-CHAPINERO | E137: 0 | F137: 0 | G137: 1 | H137: 6 | I137: 1 | J137: 16 | K137: 5 | L137: 7 | M137: 16 | N137: 13 | S137: 65 | T137: 0.0%
A138: PEDIATRAS | B138: PEDIATRAS | C138: DR. BERNARDO HUERTAS | D138: 02-CHAPINERO | E138: 0 | F138: 0 | G138: 6 | H138: 6 | I138: 10 | J138: 12 | K138: 13 | L138: 9 | M138: 10 | N138: 11 | S138: 77 | T138: 0.0%
A139: PEDIATRAS | B139: PEDIATRAS | C139: DR. CARLOS M CASTILLO | D139: 02-CHAPINERO | E139: 0 | F139: 0 | G139: 0 | H139: 0 | I139: 0 | J139: 0 | K139: 0 | L139: 0 | M139: 0 | N139: 0 | S139: 0 | T139: 0.0% | U139: 0
A140: PEDIATRAS | B140: PEDIATRAS | C140: DR. HEINZ OTTO PFALZGRAF | D140: 02-CHAPINERO | E140: 0 | F140: 0 | G140: 0 | H140: 0 | I140: 0 | J140: 0 | K140: 0 | L140: 0 | M140: 0 | N140: 0 | S140: 0 | T140: 0.0% | U140: 0
A141: PEDIATRAS | B141: PEDIATRAS | C141: DR. GONZALEZ BALLESTEROS | D141: 02-CHAPINERO | E141: 0 | F141: 0 | G141: 0 | H141: 0 | I141: 0 | J141: 0 | K141: 0 | L141: 0 | M141: 0 | N141: 0 | S141: 0 | T141: 0.0% | U141: 0
A142: PEDIATRAS | B142: PEDIATRAS | C142: DR. NORBERTO SALAMANCA | D142: 02-CHAPINERO | E142: 0 | F142: 0 | G142: 0 | H142: 0 | I142: 0 | J142: 0 | K142: 0 | L142: 0 | M142: 0 | N142: 1 | S142: 1 | T142: 0.0%
A143: PEDIATRAS | B143: PEDIATRAS | C143: DR. CAMILO ENRIQUE SOTOMAYOR | D143: 02-CHAPINERO | E143: 0 | F143: 0 | G143: 0 | H143: 2 | I143: 0 | J143: 0 | K143: 0 | L143: 2 | M143: 1 | N143: 1 | S143: 6 | T143: 0.0%
A144: PEDIATRAS | B144: PEDIATRAS | C144: DR. SANTIAGO RUEDA SAIZ | D144: 02-CHAPINERO | E144: 0 | F144: 0 | G144: 2 | H144: 1 | I144: 1 | J144: 0 | K144: 0 | L144: 0 | M144: 0 | N144: 0 | S144: 4 | T144: 0.0%
A145: PEDIATRAS | B145: PEDIATRAS | C145: DR. HENRY HERNANDO SANCHEZ ESCOBAR | D145: 02-CHAPINERO | E145: 0 | F145: 0 | G145: 1 | H145: 1 | I145: 0 | J145: 0 | K145: 1 | L145: 1 | M145: 0 | N145: 1 | S145: 5 | T145: 0.0%
A146: PEDIATRAS | B146: PEDIATRAS | C146: DR. RUBEN DARIO TAMAYO | D146: 02-CHAPINERO | E146: 0 | F146: 0 | G146: 2 | H146: 2 | I146: 0 | J146: 0 | K146: 1 | L146: 1 | M146: 3 | N146: 4 | S146: 13 | T146: 0.0%
A147: PEDIATRAS | B147: PEDIATRAS | C147: DR. JAIME MAURICIO MATALLANA | D147: 02-CHAPINERO | E147: 0 | F147: 0 | G147: 5 | H147: 4 | I147: 8 | J147: 3 | K147: 5 | L147: 6 | M147: 6 | N147: 5 | S147: 42 | T147: 0.0%
A148: PEDIATRAS | B148: PEDIATRAS | C148: DR. RODRIGO GARCIA | D148: 02-CHAPINERO | E148: 0 | F148: 0 | G148: 0 | H148: 0 | I148: 0 | J148: 0 | K148: 0 | L148: 0 | M148: 0 | N148: 0 | S148: 0 | T148: 0.0% | U148: 0
A149: PEDIATRAS | B149: PEDIATRAS | C149: DR. FELIPE ROBAYO | D149: 02-CHAPINERO | E149: 0 | F149: 0 | G149: 0 | H149: 0 | I149: 0 | J149: 0 | K149: 0 | L149: 0 | M149: 0 | N149: 0 | S149: 0 | T149: 0.0% | U149: 0
A150: PEDIATRAS | B150: PEDIATRAS | C150: DR. RUBEN FRANCO | D150: 02-CHAPINERO | E150: 0 | F150: 0 | G150: 0 | H150: 0 | I150: 1 | J150: 4 | K150: 0 | L150: 0 | M150: 0 | N150: 0 | S150: 5 | T150: 0.0%
A151: PEDIATRAS | B151: PEDIATRAS | C151: DR. ORLANDO RODRIGUEZ RAMIREZ | D151: 02-CHAPINERO | E151: 0 | F151: 0 | G151: 2 | H151: 0 | I151: 0 | J151: 0 | K151: 3 | L151: 3 | M151: 0 | N151: 2 | S151: 10 | T151: 0.0%
A152: PEDIATRAS | B152: PEDIATRAS | C152: DR. ARTURO MORENO | D152: 02-CHAPINERO | E152: 0 | F152: 0 | G152: 0 | H152: 0 | I152: 0 | J152: 0 | K152: 0 | L152: 0 | M152: 0 | N152: 0 | S152: 0 | T152: 0.0% | U152: 0
A153: PEDIATRAS | B153: PEDIATRAS | C153: DR. FRANCISCO LEAL QUEVEDO | D153: 02-CHAPINERO | E153: 0 | F153: 0 | G153: 0 | H153: 0 | I153: 0 | J153: 0 | K153: 0 | L153: 0 | M153: 0 | N153: 0 | S153: 0 | T153: 0.0% | U153: 0
A154: PEDIATRAS | B154: PEDIATRAS | C154: DR. CARLOS DIAZ PUENTES | D154: 02-CHAPINERO | E154: 0 | F154: 0 | G154: 0 | H154: 0 | I154: 0 | J154: 0 | K154: 0 | L154: 0 | M154: 0 | N154: 0 | S154: 0 | T154: 0.0% | U154: 0
A155: PEDIATRAS | B155: PEDIATRAS | C155: DR. PEDRO ERASMO MENDOZA | D155: 02-CHAPINERO | E155: 0 | F155: 0 | G155: 0 | H155: 0 | I155: 0 | J155: 0 | K155: 0 | L155: 0 | M155: 0 | N155: 0 | S155: 0 | T155: 0.0% | U155: 0
A156: PEDIATRAS | B156: PEDIATRAS | C156: DR. DIMAS ROSAS | D156: 02-CHAPINERO | E156: 0 | F156: 0 | G156: 0 | H156: 0 | I156: 0 | J156: 0 | K156: 0 | L156: 0 | M156: 0 | N156: 0 | S156: 0 | T156: 0.0% | U156: 0
A157: PEDIATRAS | B157: PEDIATRAS | C157: DR. JAVIER BRITO MORENO | D157: 02-CHAPINERO | E157: 0 | F157: 0 | G157: 0 | H157: 0 | I157: 0 | J157: 0 | K157: 0 | L157: 0 | M157: 0 | N157: 0 | S157: 0 | T157: 0.0% | U157: 0
A158: PEDIATRAS | B158: PEDIATRAS | C158: DR. GUSTAVO CORTÉS | D158: 02-CHAPINERO | E158: 0 | F158: 0 | G158: 0 | H158: 0 | I158: 0 | J158: 0 | K158: 0 | L158: 0 | M158: 0 | N158: 0 | S158: 0 | T158: 0.0% | U158: 0
A159: PEDIATRAS | B159: PEDIATRAS | C159: DR. CARLOS VELASQUEZ | D159: 02-CHAPINERO | E159: 0 | F159: 0 | G159: 0 | H159: 0 | I159: 0 | J159: 0 | K159: 0 | L159: 0 | M159: 0 | N159: 0 | S159: 0 | T159: 0.0% | U159: 0
A160: PEDIATRAS | B160: PEDIATRAS | C160: DR. RICARDO GOMEZ | D160: 02-CHAPINERO | E160: 0 | F160: 0 | G160: 0 | H160: 0 | I160: 0 | J160: 0 | K160: 0 | L160: 0 | M160: 0 | N160: 1 | S160: 1 | T160: 0.0%
A161: PEDIATRAS | B161: PEDIATRAS | C161: DR. SARA BERNAL | D161: 02-CHAPINERO | E161: 0 | F161: 0 | G161: 1 | H161: 2 | I161: 2 | J161: 0 | K161: 0 | L161: 0 | M161: 0 | N161: 2 | S161: 7 | T161: 0.0%
A162: PEDIATRAS | B162: PEDIATRAS | C162: DRA. MARIA PATRICIA AGUALIMPIA | D162: 02-CHAPINERO | E162: 0 | F162: 0 | G162: 0 | H162: 0 | I162: 0 | J162: 0 | K162: 0 | L162: 0 | M162: 0 | N162: 0 | S162: 0 | T162: 0.0% | U162: 0
A163: PEDIATRAS | B163: PEDIATRAS | C163: DRA. LUISA FERNANDA FORERO ACOSTA | D163: 02-CHAPINERO | E163: 0 | F163: 0 | G163: 0 | H163: 0 | I163: 0 | J163: 0 | K163: 0 | L163: 0 | M163: 0 | N163: 0 | S163: 0 | T163: 0.0% | U163: 0
A164: PEDIATRAS | B164: PEDIATRAS | C164: DRA. MARIA CLARA CASAS PARDO | D164: 02-CHAPINERO | E164: 0 | F164: 0 | G164: 0 | H164: 0 | I164: 0 | J164: 0 | K164: 0 | L164: 0 | M164: 0 | N164: 0 | S164: 0 | T164: 0.0% | U164: 0
A165: PEDIATRAS | B165: PEDIATRAS | C165: DRA. MARTHA EUGENIA RONDEROS DE FORERO | D165: 02-CHAPINERO | E165: 0 | F165: 0 | G165: 0 | H165: 0 | I165: 0 | J165: 0 | K165: 0 | L165: 0 | M165: 0 | N165: 0 | S165: 0 | T165: 0.0% | U165: 0
A166: PEDIATRAS | B166: PEDIATRAS | C166: DRA. MARIA ISABEL USCHER | D166: 02-CHAPINERO | E166: 0 | F166: 0 | G166: 4 | H166: 3 | I166: 2 | J166: 0 | K166: 2 | L166: 0 | M166: 3 | N166: 2 | S166: 16 | T166: 0.0%
A167: PEDIATRAS | B167: PEDIATRAS | C167: DRA. MARIA DE LOS ANGELES MUÑOZ | D167: 02-CHAPINERO | E167: 0 | F167: 0 | G167: 3 | H167: 0 | I167: 3 | J167: 0 | K167: 3 | L167: 2 | M167: 5 | N167: 0 | S167: 16 | T167: 0.0%
A168: PEDIATRAS | B168: PEDIATRAS | C168: DRA. CLARA ABELLO REYES | D168: 02-CHAPINERO | E168: 0 | F168: 0 | G168: 2 | H168: 1 | I168: 0 | J168: 0 | K168: 1 | L168: 0 | M168: 0 | N168: 0 | S168: 4 | T168: 0.0%
A169: PEDIATRAS | B169: PEDIATRAS | C169: DRA. PATRICIA CONTRERAS | D169: 02-CHAPINERO | E169: 0 | F169: 0 | G169: 0 | H169: 0 | I169: 3 | J169: 2 | K169: 2 | L169: 7 | M169: 5 | N169: 3 | S169: 22 | T169: 0.0%
A170: PEDIATRAS | B170: PEDIATRAS | C170: DRA. CLAUDIA ZOPPI | D170: 02-CHAPINERO | E170: 0 | F170: 0 | G170: 0 | H170: 0 | I170: 0 | J170: 1 | K170: 0 | L170: 0 | M170: 0 | N170: 0 | S170: 1 | T170: 0.0%
A171: PEDIATRAS | B171: PEDIATRAS | C171: DRA. MARIA DE LOS ANGELES FERNANDEZ LUQUE | D171: 02-CHAPINERO | E171: 0 | F171: 0 | G171: 0 | H171: 3 | I171: 0 | J171: 0 | K171: 0 | L171: 0 | M171: 0 | N171: 0 | S171: 3 | T171: 0.0%
A172: PEDIATRAS | B172: PEDIATRAS | C172: DRA. RUTH CORDOBA CORDOBA | D172: 02-CHAPINERO | E172: 0 | F172: 0 | G172: 0 | H172: 0 | I172: 0 | J172: 0 | K172: 0 | L172: 0 | M172: 0 | N172: 0 | S172: 0 | T172: 0.0% | U172: 0
A173: PEDIATRAS | B173: PEDIATRAS | C173: DRA. LUZ ESTELA CORTES | D173: 02-CHAPINERO | E173: 0 | F173: 0 | G173: 0 | H173: 0 | I173: 0 | J173: 0 | K173: 0 | L173: 0 | M173: 0 | N173: 0 | S173: 0 | T173: 0.0% | U173: 0
A174: UNICAJAS | B174: UNICAJAS | C174: UPA SAN LUIS | D174: 02-CHAPINERO | E174: 18 | F174: 2 | G174: 0 | H174: 0 | I174: 0 | J174: 0 | K174: 1 | L174: 0 | M174: 0 | N174: 0 | S174: 1 | T174: 5.6% | U174: 11
A175: 02-CHAPINERO | B175: OTROS | C175: UPA SAN LUIS | D175: 02-CHAPINERO | E175: 325 | F175: 27 | G175: 2 | H175: 3 | I175: 1 | J175: 3 | K175: 0 | L175: 1 | M175: 0 | N175: 1 | S175: 11 | T175: 3.4% | U175: 206
A176: 02-CHAPINERO | B176: DEMAS EAPB | C176: UPA SAN LUIS | D176: 02-CHAPINERO | F176: 0 | G176: 6 | H176: 3 | I176: 5 | J176: 1 | K176: 8 | L176: 7 | M176: 4 | N176: 7 | S176: 41 | T176: 0.0%
A177: UNICAJAS | B177: UNICAJAS | C177: COMFASALUD SEDE CENTRO | D177: 03-SANTA FE | E177: 50 | F177: 4 | G177: 2 | H177: 1 | I177: 2 | J177: 1 | K177: 0 | L177: 0 | M177: 0 | N177: 0 | S177: 6 | T177: 12.0% | U177: 27
A178: MEDIMAS | B178: MEDIMAS | C178: CORVESALUD TEUSAQUILLO | D178: 03-SANTA FE | E178: 193 | F178: 16 | G178: 6 | H178: 7 | I178: 2 | J178: 0 | K178: 0 | L178: 6 | M178: 1 | N178: 1 | S178: 23 | T178: 11.9% | U178: 106
A179: 03-SANTA FE | B179: CAPITAL SALUD | C179: EXTRAMURAL SANTA FE | D179: 03-SANTA FE | E179: 0 | F179: 0 | G179: 7 | H179: 3 | I179: 11 | J179: 11 | K179: 11 | L179: 0 | M179: 9 | N179: 14 | S179: 66 | T179: 0.0%
A180: 03-SANTA FE | B180: DEMAS EAPB | C180: EXTRAMURAL SANTA FE | D180: 03-SANTA FE | E180: 0 | F180: 0 | G180: 0 | H180: 1 | I180: 10 | J180: 30 | K180: 17 | L180: 18 | M180: 12 | N180: 12 | S180: 100 | T180: 0.0%
A181: 03-SANTA FE | B181: OTROS | C181: EXTRAMURAL SANTA FE | D181: 03-SANTA FE | E181: 0 | F181: 0 | G181: 11 | H181: 11 | I181: 12 | J181: 8 | K181: 10 | L181: 17 | M181: 11 | N181: 18 | S181: 98 | T181: 0.0%
A182: 03-SANTA FE | B182: UNICAJAS | C182: EXTRAMURAL SANTA FE | D182: 03-SANTA FE | E182: 0 | F182: 0 | G182: 0 | H182: 0 | I182: 2 | J182: 3 | K182: 1 | L182: 2 | M182: 2 | N182: 0 | S182: 10 | T182: 0.0%
A183: 03-SANTA FE | B183: CAPITAL SALUD | C183: USS LACHES | D183: 03-SANTA FE | E183: 54 | F183: 5 | G183: 7 | H183: 12 | I183: 7 | J183: 0 | K183: 5 | L183: 0 | M183: 3 | N183: 4 | S183: 38 | T183: 70.4%
A184: 03-SANTA FE | B184: DEMAS EAPB | C184: USS LACHES | D184: 03-SANTA FE | E184: 0 | F184: 0 | G184: 7 | H184: 6 | I184: 10 | J184: 6 | K184: 5 | L184: 1 | M184: 3 | N184: 7 | S184: 45 | T184: 0.0%
A185: 03-SANTA FE | B185: OTROS | C185: USS LACHES | D185: 03-SANTA FE | E185: 260 | F185: 22 | G185: 4 | H185: 4 | I185: 1 | J185: 1 | K185: 1 | L185: 2 | M185: 1 | N185: 2 | S185: 16 | T185: 6.2% | U185: 157
A186: 03-SANTA FE | B186: UNICAJAS | C186: USS LACHES | D186: 03-SANTA FE | E186: 17 | F186: 1 | G186: 1 | H186: 0 | I186: 0 | J186: 1 | K186: 0 | L186: 0 | M186: 0 | N186: 1 | S186: 3 | T186: 17.6% | U186: 8
A187: 03-SANTA FE | B187: CAPITAL SALUD | C187: USS LAS CRUCES | D187: 03-SANTA FE | E187: 44 | F187: 4 | G187: 6 | H187: 8 | I187: 3 | J187: 6 | K187: 1 | L187: 1 | M187: 3 | N187: 2 | S187: 30 | T187: 68.2%
A188: 03-SANTA FE | B188: DEMAS EAPB | C188: USS LAS CRUCES | D188: 03-SANTA FE | E188: 0 | F188: 0 | G188: 4 | H188: 5 | I188: 7 | J188: 1 | K188: 2 | L188: 1 | M188: 2 | N188: 0 | S188: 22 | T188: 0.0%
A189: 03-SANTA FE | B189: OTROS | C189: USS LAS CRUCES | D189: 03-SANTA FE | E189: 211 | F189: 18 | G189: 5 | H189: 3 | I189: 2 | J189: 1 | K189: 2 | L189: 2 | M189: 1 | N189: 2 | S189: 18 | T189: 8.5% | U189: 123
A190: 03-SANTA FE | B190: UNICAJAS | C190: USS LAS CRUCES | D190: 03-SANTA FE | E190: 14 | F190: 1 | G190: 1 | H190: 1 | I190: 1 | J190: 0 | K190: 0 | M190: 0 | N190: 0 | S190: 3 | T190: 21.4% | U190: 5
A191: 03-SANTA FE | B191: CAPITAL SALUD | C191: USS PERSEVERANCIA | D191: 03-SANTA FE | E191: 6 | F191: 1 | G191: 1 | H191: 1 | I191: 0 | J191: 0 | K191: 0 | L191: 0 | M191: 0 | N191: 1 | S191: 3 | T191: 50.0% | U191: 1
A192: 03-SANTA FE | B192: DEMAS EAPB | C192: USS PERSEVERANCIA | D192: 03-SANTA FE | E192: 0 | F192: 0 | G192: 1 | H192: 2 | I192: 0 | J192: 0 | K192: 2 | L192: 0 | M192: 0 | N192: 1 | S192: 6 | T192: 0.0%
A193: 03-SANTA FE | B193: OTROS | C193: USS PERSEVERANCIA | D193: 03-SANTA FE | E193: 30 | F193: 3 | G193: 2 | H193: 1 | I193: 2 | J193: 1 | K193: 1 | L193: 0 | M193: 1 | N193: 1 | S193: 9 | T193: 30.0% | U193: 11
A194: 03-SANTA FE | B194: UNICAJAS | C194: USS PERSEVERANCIA | D194: 03-SANTA FE | E194: 2 | F194: 0 | G194: 0 | H194: 0 | I194: 0 | J194: 0 | K194: 0 | L194: 4 | M194: 0 | N194: 0 | S194: 4 | T194: =IF(E194=0,0,+S194/E194) -> 200.0% | U194: =IF(COUNT(G194:R194)*(E194/12)-S194<0,"",COUNT(G194:R194)*(E194/12)-S194) -> 
A195: PARTICULAR | B195: PARTICULAR | C195: CLINICA SAN RAFAEL | D195: 04-SAN CRISTOBAL | E195: 375 | F195: =+E195/12 -> 31 | G195: 32 | H195: 52 | I195: 35 | J195: 29 | K195: 28 | L195: 19 | M195: 22 | N195: 15 | S195: =SUM(G195:R195) -> 232 | T195: 61.9% | U195: 18
A196: FAMISANAR | B196: FAMI- COLSB | C196: CENTRO MEDICO COLSUBSIDIO 20 DE JULIO | D196: 04-SAN CRISTOBAL | F196: 0 | S196: 0 | T196: 0.0% | U196: 0
A197: 04-SAN CRISTOBAL | B197: CAPITAL SALUD | C197: EXTRAMURAL SAN CRISTOBAL | D197: 04-SAN CRISTOBAL | E197: 0 | F197: 0 | G197: 22 | H197: 30 | I197: 78 | J197: 68 | K197: 70 | L197: 76 | M197: 62 | N197: 69 | S197: 475 | T197: 0.0%
A198: 04-SAN CRISTOBAL | B198: DEMAS EAPB | C198: EXTRAMURAL SAN CRISTOBAL | D198: 04-SAN CRISTOBAL | E198: 0 | F198: 0 | G198: 31 | H198: 16 | I198: 77 | J198: 140 | K198: 59 | L198: 72 | M198: 109 | N198: 72 | S198: 576 | T198: 0.0%
A199: 04-SAN CRISTOBAL | B199: OTROS | C199: EXTRAMURAL SAN CRISTOBAL | D199: 04-SAN CRISTOBAL | E199: 0 | F199: 0 | G199: 17 | H199: 12 | I199: 38 | J199: 30 | K199: 40 | L199: 38 | M199: 60 | N199: 51 | S199: 286 | T199: 0.0%
A200: 04-SAN CRISTOBAL | B200: UNICAJAS | C200: EXTRAMURAL SAN CRISTOBAL | D200: 04-SAN CRISTOBAL | E200: 0 | F200: 0 | G200: 3 | H200: 1 | I200: 6 | J200: 10 | K200: 11 | L200: 6 | M200: 16 | N200: 6 | S200: 59 | T200: 0.0%
... 620 more rows

Sheet NEUMOCOCO2
A1: EAPB | B1: EPS O ESE | C1: IPS | D1: Localidad | E1: Meta Anual Menor de 1 Año | F1: Meta Mensual | G1: Enero | H1: Febrero | I1: Marzo | J1: Abril | K1: Mayo | L1: Junio | M1: Julio | N1: Agosto | O1: Septiembre | P1: Octubre | Q1: Noviembre | R1: Diciembre | S1: Total | T1: % Cobertura | U1: Deficit
A2: CAPITAL SALUD | B2: CAPITAL SALUD | C2: UPA SAN CRISTOBAL | D2: 01-USAQUEN | E2: 124 | F2: =+E2/12 -> 10 | G2: 7 | H2: 3 | I2: 7 | J2: 6 | K2: 3 | L2: 8 | M2: 9 | N2: 11 | S2: =SUM(G2:R2) -> 54 | T2: =IF(E2=0,0,+S2/E2) -> 43.5% | U2: =IF(COUNT(G2:R2)*(E2/12)-S2<0,"",COUNT(G2:R2)*(E2/12)-S2) -> 29
A3: CAPITAL SALUD | B3: CAPITAL SALUD | C3: UPA USAQUEN | D3: 01-USAQUEN | E3: 10 | F3: =+E3/12 -> 1 | H3: 0 | I3: 0 | J3: 0 | K3: 0 | L3: 0 | M3: 0 | N3: 0 | S3: =SUM(G3:R3) -> 0 | T3: 0.0% | U3: 6
A4: CAPITAL SALUD | B4: CAPITAL SALUD | C4: UPA ORQUIDEAS | D4: 01-USAQUEN | E4: 11 | F4: 1 | G4: 3 | H4: 1 | I4: 1 | J4: 4 | K4: 2 | L4: 0 | M4: 4 | N4: 1 | S4: 16 | T4: 145.5%
A5: CAPITAL SALUD | B5: CAPITAL SALUD | C5: UPA CODITO | D5: 01-USAQUEN | E5: 107 | F5: 9 | G5: 8 | H5: 2 | I5: 3 | J5: 3 | K5: 6 | L5: 5 | M5: 6 | N5: 9 | S5: 42 | T5: 39.3% | U5: 29
A6: CAPITAL SALUD | B6: CAPITAL SALUD | C6: CAMI VERBENAL | D6: 01-USAQUEN | E6: 87 | F6: 7 | G6: 8 | H6: 4 | I6: 8 | J6: 3 | K6: 7 | L6: 6 | M6: 7 | N6: 5 | S6: 48 | T6: 55.2% | U6: 10
A7: CAPITAL SALUD | B7: CAPITAL SALUD | C7: HOSPITAL SIMON BOLIVAR | D7: 01-USAQUEN | E7: 36 | F7: 3 | G7: 9 | H7: 17 | I7: 11 | J7: 5 | K7: 5 | L7: 1 | M7: 4 | N7: 3 | S7: 55 | T7: 152.8%
A8: 01-USAQUEN | B8: 01-USAQUEN | C8: EXTRAMURAL USAQUEN | D8: 01-USAQUEN | E8: 0 | F8: 0 | G8: 13 | H8: 10 | I8: 18 | J8: 51 | K8: 42 | L8: 27 | M8: 41 | N8: 25 | S8: 227 | T8: 0.0%
A9: ALIANSALUD | B9: ALIANSALUD | C9: CENTRO MEDICO COLMEDICA SANTA BARBARA | D9: 01-USAQUEN | E9: 580 | F9: 48 | G9: 79 | H9: 56 | I9: 59 | J9: 36 | K9: 36 | L9: 35 | M9: 40 | N9: 42 | S9: 383 | T9: 66.0% | U9: 4
A10: COMPENSAR | B10: COMPENSAR | C10: USS CALLE 134 | D10: 01-USAQUEN | E10: 372 | F10: 31 | G10: 16 | H10: 16 | I10: 13 | J10: 6 | K10: 11 | L10: 12 | M10: 17 | N10: 27 | S10: 118 | T10: 31.7% | U10: 130
A11: COMPENSAR | B11: COMPENSAR | C11: USS CALLE 145 | D11: 01-USAQUEN | E11: 173 | F11: 14 | G11: 16 | H11: 16 | I11: 18 | J11: 10 | K11: 16 | L11: 7 | M11: 26 | N11: 18 | S11: 127 | T11: 73.4%
A12: COMPENSAR | B12: COMPENSAR | C12: JAVESALUD TOBERIN | D12: 01-USAQUEN | E12: 372 | F12: 31 | G12: 3 | H12: 3 | I12: 2 | J12: 9 | K12: 14 | L12: 11 | M12: 7 | N12: 8 | S12: 57 | T12: 15.3% | U12: 191
A13: COOMEVA | B13: COOMEVA | C13: SINERGIA UNIDAD INTEGRAL EN SALUD | D13: 01-USAQUEN | E13: 44 | F13: 4 | G13: 6 | H13: 5 | I13: 7 | J13: 5 | K13: 5 | L13: 3 | M13: 6 | N13: 5 | S13: 42 | T13: 95.5%
A14: FAMISANAR | B14: FAMI- COLSB | C14: CENTRO MEDICO COLSUBSIDIO USAQUEN | D14: 01-USAQUEN | E14: 298 | F14: 25 | G14: 30 | H14: 31 | I14: 27 | J14: 20 | K14: 14 | L14: 31 | M14: 30 | N14: 38 | S14: 221 | T14: 74.2%
A15: MILITAR | B15: MILITAR | C15: DISPENSARIO MEDICO CANTON NORTE | D15: 01-USAQUEN | E15: 205 | F15: 17 | G15: 3 | H15: 9 | I15: 4 | J15: 6 | K15: 6 | L15: 4 | M15: 9 | N15: 8 | S15: 49 | T15: 23.9% | U15: 88
A16: NUEVA EPS | B16: NUEVA EPS | C16: IPS VIVA 1A SEDE TOBERIN | D16: 01-USAQUEN | E16: 147 | F16: 12 | G16: 6 | H16: 7 | I16: 9 | J16: 6 | K16: 5 | L16: 4 | M16: 3 | N16: 6 | S16: 46 | T16: 31.3% | U16: 52
A17: NUEVA EPS | B17: NUEVA EPS | C17: CAFAM GRANADA HILLS | D17: 01-USAQUEN | E17: 44 | F17: 4 | G17: 6 | H17: 4 | I17: 0 | J17: 6 | K17: 2 | L17: 1 | M17: 2 | N17: 3 | S17: 24 | T17: 54.5% | U17: 5
A18: SANITAS | B18: SANITAS | C18: UAP SANITAS TOBERIN | D18: 01-USAQUEN | E18: 511 | F18: 43 | G18: 55 | H18: 41 | I18: 22 | J18: 42 | K18: 37 | L18: 23 | M18: 16 | N18: 19 | S18: 255 | T18: 49.9% | U18: 86
A19: SANITAS | B19: SANITAS | C19: MEDIKA IPS SANITAS UAP USAQUEN | D19: 01-USAQUEN | E19: 188 | F19: 16 | G19: 3 | H19: 1 | I19: 0 | J19: 1 | K19: 1 | L19: 0 | M19: 2 | N19: 2 | S19: 10 | T19: 5.3% | U19: 115
A20: SANITAS | B20: SANITAS | C20: UAP SANTA BARBARA | D20: 01-USAQUEN | E20: 796 | F20: 66 | G20: 86 | H20: 68 | I20: 73 | J20: 56 | K20: 52 | L20: 62 | M20: 57 | N20: 66 | S20: 520 | T20: 65.3% | U20: 11
A21: SANITAS | B21: SANITAS | C21: SANITAS BANCO DE LA REPUBLICA | D21: 01-USAQUEN | E21: 0 | F21: 0 | G21: 4 | H21: 1 | I21: 4 | J21: 3 | K21: 3 | L21: 4 | M21: 6 | N21: 1 | S21: 26 | T21: 0.0%
A22: SALUD TOTAL | B22: SALUD TOTAL | C22: VIRREY SOLIS TOBERÍN | D22: 01-USAQUEN | E22: 384 | F22: 32 | G22: 21 | H22: 20 | I22: 20 | J22: 12 | K22: 14 | L22: 13 | M22: 9 | N22: 8 | S22: 117 | T22: 30.5% | U22: 139
A23: SURA | B23: SURA | C23: IPS JAVESALUD SANTA BEATRIZ | D23: 01-USAQUEN | E23: 355 | F23: 30 | G23: 12 | H23: 9 | I23: 16 | J23: 8 | K23: 11 | L23: 6 | M23: 15 | N23: 13 | S23: 90 | T23: 25.4% | U23: 147
A24: ECOPETROL | B24: ECOPETROL | C24: IPS CLINICOS PALATINO | D24: 01-USAQUEN | E24: 87 | F24: 7 | G24: 9 | H24: 12 | I24: 9 | J24: 10 | K24: 6 | L24: 3 | M24: 5 | N24: 4 | S24: 58 | T24: 66.7% | U24: 0
A25: PARTICULAR | B25: PARTICULAR | C25: CLINICA PEDIATRICA COLSANITAS | D25: 01-USAQUEN | E25: 830 | F25: 69 | G25: 100 | H25: 89 | I25: 53 | J25: 53 | K25: 42 | L25: 52 | M25: 41 | N25: 48 | S25: 478 | T25: 57.6% | U25: 75
A26: PARTICULAR | B26: PARTICULAR | C26: CENTRO MEDICO COLSANITAS LA CALLEJA | D26: 01-USAQUEN | E26: 120 | F26: 10 | G26: 23 | H26: 16 | I26: 6 | J26: 6 | K26: 4 | L26: 1 | M26: 4 | N26: 5 | S26: 65 | T26: 54.2% | U26: 15
A27: PARTICULAR | B27: PARTICULAR | C27: CENTRO MEDICO COLSANITAS 108 | D27: 01-USAQUEN | E27: 40 | F27: 3 | G27: 4 | H27: 6 | I27: 3 | J27: 0 | K27: 0 | L27: 0 | M27: 0 | N27: 0 | S27: 13 | T27: 32.5% | U27: 14
A28: PARTICULAR | B28: PARTICULAR | C28: CENTRO MEDICO COLSANITAS SANTA ANA | D28: 01-USAQUEN | E28: 4 | F28: 0 | G28: 2 | H28: 0 | I28: 1 | J28: 0 | K28: 0 | L28: 0 | M28: 0 | N28: 0 | S28: 3 | T28: 75.0%
A29: PARTICULAR | B29: PARTICULAR | C29: FUNDACIÓN CARDIO INFANTIL | D29: 01-USAQUEN | E29: 0 | F29: 0 | G29: 11 | H29: 7 | I29: 3 | J29: 9 | K29: 5 | L29: 3 | M29: 4 | N29: 3 | S29: 45 | T29: 0.0%
A30: PARTICULAR | B30: PARTICULAR | C30: ENFASO USAQUEN | D30: 01-USAQUEN | E30: 0 | F30: 0 | G30: 9 | H30: 13 | I30: 3 | J30: 12 | K30: 4 | L30: 4 | M30: 5 | N30: 6 | S30: 56 | T30: 0.0%
